Workbook

Sheet Dev
H8: For at starte DK-RIM, tillad makroer
H9: at køre i dine sikkerhedsindstillinger
C13: RIM er software fr Aarhus Universitet, Afdeling for Agroøkologi
C14: Modellen og programmet blev oprindeligt udviklet af Univeristy of Western Australia
C15: © 2017 Ms Excel 2007® eller nyere anbefales
D57: Before to screen-copy, zoom to 100% and make sure computer resolution settings are normal
N61: Første trin er at tilpasse basis oplysningerne til netop din dyrkning. | V61: Det næste trin er at opbygge din strategi. | AD61: I det næste trin kan du sammenligne strategierne | AL61: Rajgræs population og frøpulje | AT61: Udbytte og Konkurrence | BB61: Export af resultater
S62: For hvert af de viste 10 år, skal du vælge en afgrøde.
F63: Velkommen til DK-RIM! | N63: Du skal tænke på et gennemsnitsår. | S63: Hvis du vælger vintersæd inaktiveres vårsæd automatisk og omvendt | AA63: Det kræver du har trykket på eller | BJ63: At låse DK-RIM op…
S64: Den nederste del "Alle" hører til både vinter- og vårsæd | AL64: Graferne på denne fane giver yderligere sammenligninger,
N65: Start med at tilpasse dine udbytter og salgspriser… | AL65: med fokus på udviklingenr over tid af: | AT65: Denne fane fokuserer på indflydelse af dyrkningspraksis | BB65: Hvis du har problemer med at printe eller gemme,
AD66: Du kan sammenligne to strategier med samme basis oplysninger: | AJ66: - antallet af rajgræsplanter (fuld optrukket linje); og | AT66: og rajgræsmængdens effekt på dine afgrøder. | BB66: kan du prøve at kører DK-RIM i en nyere version af Excel.
F67: RIM giver dig mulighed for at prøve, hvordan rajgræs og udbytter | AC67: Jensen, Mark 1 - Herbicider | AJ67: - frøpuljen (skraveret område).
F68: udvikler sig over tid afhængig af dyrkningsstrategi. | AC68: Jensen, Mark 1 - Ingen herbicider | BB68: Du kan også gå tilbage til startsiden og gå til "Information"
AL69: I den foregående graf (Oversigt og økonomi) | AT69: DK-RIM bruger ukrudtsfrit udbytte, som | BB69: Her kan du låse DK-RIM op. | BJ69: … kan ændre indhold og functionalitet
F70: RIM kan vise hvilken udvikling er mest sandsynlig | K70: Der er mere hjælp at hente | N70: Alle bælgsædsafgrøder (ærter, | AL70: vises kun antallet ved slutningen af sæsonen. | AT70: du har angivet i "Basis oplysninger", som udgangspunkt. | BB70: Hermed kan du se det ubeskyttede indhold. | BJ70: og anbefales generelt ikke!
F71: ud fra de valg du foretager? | K71: ved at holde musen over de røde | N71: bønner m. fl.) | AD71: ..med forskellige basis oplysninger (samme strategi, eller en anden) | AL71: Her vises planter og frø gennem årene. | BB71: Du kan printe eller gemme dele af resultatsiderne
K72: hjørner | N72: Som udgangspunkt er ærter lagt ind | AC72: Jensen, Mark 1 - Herbicider | AT72: Dette "Udbytte potentiale" ( ) påvirkes af praksis | BB72: ("Bio Results" og "Eco Results).
K73: …fortsæt med de andre tal. Du kan ændre herbicider, doseringer | S73: Derefter vælger du resten af dyrkningsstrategien… | AC73: Jensen, Resistens - Herbicider | AL73: Typisk vil antallet af rajgræsplanter øges i starten af | AT73: og sædskifte ( ). Korn vil foreksempel have gavn af | AZ73: Vær opmærksom på at dette indhold er på engelsk
K74: og effekt i denne tabel | AL74: vækstsæsonen, og falde i takt med at bekæmpelse udføres. | AT74: forfrugt af bælgsæd, mens et ensidigt sædskifte kan resultere | BH74: Du kan evt. låse DK-RIM op, hvis:
M75: …og yderligere muligheder og priser i: | AL75: Fremspiring, bekæmpelse og dødelighed af frø vil | AT75: i tab. Nogle gange vil fordele og ulemper udligne hinanden.
AB76: Klik på denne knap for at tilpasse grafens akser: | AL76: gradvist udtømme frøpuljen. | BH76: -du har problemer med at eksportere resultater
AB77: Auto | AC77: - for at justere til værdierne
AT78: Det endelige udbytte ( ) tager hensyn til konkurrence. | BH78: - du ønsker at tilpasse yderligere parametre
F79: Kan du holde rajgræs populationen under kontrol? | L79: Når du mener det stemmer, navngiv dine oplysninger. | AI79: Note: | AT79: hvis du har rajgræspopulationen under kontrol vil tabet pga. af dette
F80: Vil du øge eller miste udbytte? | L80: Du kan gemme dem her og hente dem igen senere: | AJ80: - hver markering på den horisontale akse angiver sommer | AT80: være tæt på nul. | BB80: Henvendelser, kommentarer og feedback, | BH80: - du ønsker at se de bagvedliggende udregninger
F81: Hvad sker der, når resistens opstår? | S81: …og se effekten på rajgræsantal og udbytte. | AD81: for at se flere resultater, klik på fanerne i toppen: | BB81: skal rettes til Institut for Agroøkologi, Aarhus Universitet. | BH81: og forudsætninger
F82: Skal du ændre din strategi?
F83: Hvilket sædskifte kan give størst udbytte over tid? | K83: gå videre til næste trin ved at bruge Næste knappen: | S83: Når du er færdig, navngiv din strategi. | BH83: - du ønsker at tilpasse DK-RIM og/eller bruge DK-RIM
S84: Du kan gemme dem her og hente dem igen senere: | AG84: Den sidste fane viser tabeller | BH84: i forskningssammenhæng. I begge tilfælde anerkendes
AG85: over de værdier alle grafer er baseret på | AS85: Grafen til højre er vist som reference. | BH85: copyright og forbehold nævnt andetsteds
S86: Du kan sammeligne to strategier ved at trykke på | AS86: Den illustrerer betydningen af konkurrence
K87: Du kan altid klikke på DK-RIM logoet og komme tilbage til startsiden. | S87: hhv. den røde og blå knap efter at have planlagt strategierne | AA87: for at printe eller eksportere resultater, klik på | AI87: For at se resultaterne i et andet perspektiv, prøv | AS87: og hvordan betydnignen variere afhængig af afgrøde | AY87: Du kan altid klikke på DK-RIM logoet og komme tilbage til startsiden.
K88: Så længe programmet ikke er lukket er dine ændringer gemt. | AS88: og rajgræstæthed. | AY88: Så længe programmet ikke er lukket er dine ændringer gemt.
H90: Fortsæt!
M91: Zoom to 80% only
F93: With the support of

Sheet Title
L12: Danmark
M13: Integreret bekæmpelse af italiensk rajgræs
C22: Et beslutningsstøtteværktøj til at evaluere strategier for rajgræsbekæmpelse
C23: både på kort og lang sigt i 3 simple trin:
C26: 1. Definér basisoplysninger 2. Opbyg din strategi 3. Sammenlign resultater
C28: Husk at se efter nyere version på Landbrugsinfo inden du bruger DK-RIM. Programmet vil løbende blive opdateret!
AM33: 0
U35: Version 2019.1 | AM35: FALSE
T59: Her kan du låse op
T60: for programkoden
B107: Log since official release 2018 in DK:
B108: version 2019.1: en lang række rettelser og forbedringer
C109: - tilpasning af effekt af såtidstidpunkt
C110: - tilpasning af udregning for frøproduktion
C111: - flere rettelser på procedurer, der kører i baggrunden
B112: version 03.08.2020: korrektion på frøproduktion og herbicideffektudregning
B113: version 29.09.2020: korrektion afgrøde tæthed

Sheet 1.Profile
A3: 1. Basisoplysninger
B4: Brugeren kan ændre alle felter i lys-grøn. Der kan bl.a. slettes og tilføjes herbicider
B5: Basis tal | D5: Vinter hvede | E5: Vinter byg | F5: Vinter rug | G5: Vinter raps | H5: Vårbyg | I5: Havre | J5: Vår hvede | K5: Bælgsæd
C7: Ukrudtsfrit udbytte | D7: 10 | E7: 8 | F7: 8 | G7: 4.5 | H7: 7 | I7: 7.5 | J7: 6 | K7: 4.5 | L7: t/ha | N7: Bekæmpelse fra
C8: Pris ved salg | D8: 1200 | E8: 1200 | F8: 1050 | G8: 2600 | H8: 1200 | I8: 1000 | J8: 1200 | K8: 1400 | L8: kr/t | N8: efterafgrøder | O8: 0.02
BO9: Gennemsnitsareal dyrket | BR9: 1 | BS9: ha
C10: Udgift til sprøjtning | F10: 75 | G10: kr/ha | H10: EU støtte pr hektar | K10: 0 | L10: kr/ha | P10: Modne rajgræsplanter sidste
O11: sæson: | P11: 2 | Q11: planter/m2
B14: Bekæmpelsesmuligheder | E14: Vinter sæd | F14: Vårsæd | G14: Raps | H14: Bælg sæd | I14: Vinter sæd | J14: Vårsæd | K14: Raps | L14: Bælg sæd
B15: Udfyld herbicidnavn, pris og effektivitetsniveau (% kontrol af rajgræs): | G15: Pris (kr/ha) | K15: % kontrol af rajgræs
B16: Glyphosat | C16: 540 | E16: 75 | F16: 75 | G16: 75 | H16: 75 | I16: 0.85 | J16: 0.85 | K16: 0.85 | L16: 0.85
B17: (g as) | C17: 1080 | D17: 3 l a' 360 g | E17: 150 | F17: 150 | G17: 150 | H17: 150 | I17: 0.95 | J17: 0.95 | K17: 0.95 | L17: 0.95
B19: Før | C19: Boxer 1 l | E19: 180 | I19: 0.63
B20: fremspiring | C20: Boxer 2 l | E20: 360 | I20: 0.85 | M20: =IF($AC$50<19,$AD$50,IF($AC$51<45,$AD$51,IF($AC$52<32,$AD$52,""))) -> 
B22: Herbicider | C22: Topik | D22: 0,2 l | E22: 248 | I22: 0.67
B23: Efter | C23: Atlantis OD | D23: 0,75 l | E23: 258 | I23: 0.97 | M23: Gem Profilen
B24: fremspiring | C24: Hussar Plus OD | D24: 0,07 - 0,14 l | E24: 176 | F24: 88 | I24: 0.94 | J24: 0.82
B25: Følg | C25: Broadway | D25: 130 g | E25: 160 | I25: 0.86
B26: produkternes | C26: Cossack OD | D26: 0,93 l | E26: 344 | I26: 0.98 | M26: Filnavn | O26: Danmark
B27: brugsanvisning! | C27: Focus Ultra | D27: 1,5 - 2 l | G27: 270 | H27: 360 | K27: 0.95 | L27: 0.92 | M27: Strategiens navn: | O27: Ingen resistens
C28: Kerb | D28: 1,25 l | G28: 394 | K28: 0.92
O30: ALS/SU resistens, Danmark
B31: Du kan indsætter dine egne strategier her | O31: Fop/dim resistens, Danmark
B32: Yderligere | C32: Mulighed 1 | O32: Metabolisk resistens, Danmark
B33: muligheder | C33: Mulighed 2 | O33: Ingen resistens, Danmark
O35: Ingen resistens, Default
B36: Bemærk! Der kan findes forklaring i programmet ved at holde musen over de røde hjørnemarkeringer
AR39: =P_1P -> TRUE | AT39: indicator for printing
AR46: FALSE | AT46: indicator for tutorials
R48: Note: careful with deleting/inserting lines, could stuff up the saving/loading macros
B49: Profile_0 | C49: =O35 -> Ingen resistens, Default
AC50: =COUNT(D7:K8,'1.Profile'!F10,O8,SeedNos_SH,O26:Q27) -> 19 | AD50: Der mangler informationer på denne side
B51: Basis tal | D51: Vinter hvede | E51: Vinter byg | F51: Vinter rug | G51: Vinter raps | H51: Vårbyg | I51: Havre | J51: Vår hvede | K51: Bælgsæd | AC51: ='+Prices'!AC46 -> 45 | AD51: Der mangler information i "Flere priser"
AC52: ='+Options'!AC48 -> 42 | AD52: Der mangler information i "Flere muligheder"
C53: Ukrudtsfrit udbytte | D53: 10 | E53: 8 | F53: 8 | G53: 4.5 | H53: 7 | I53: 7.5 | J53: 6 | K53: 4.5 | L53: t/ha | N53: Bekæmpelse fra
C54: Pris ved salg | D54: 1200 | E54: 1200 | F54: 1050 | G54: 2600 | H54: 1200 | I54: 1000 | J54: 1200 | K54: 1400 | L54: kr/t | N54: efterafgrøder | O54: 0.02
C56: Udgift til sprøjtning | F56: 75 | G56: kr/ha | H56: EU støtte pr hektar | K56: 0 | L56: kr/ha | P56: Modne rajgræsplanter sidste
O57: sæson: | P57: 2 | Q57: planter/m2
B60: Bekæmpelsesmuligheder | E60: Vinter sæd | F60: Vårsæd | G60: Raps | H60: Bælg sæd | I60: Vinter sæd | J60: Vårsæd | K60: Raps | L60: Bælg sæd
B61: Udfyld herbicidnavn, pris og effektivitetsniveau (% kontrol af rajgræs): | G61: Pris (kr/ha) | K61: % kontrol af rajgræs
B62: Glyphosat | C62: 540 | E62: 75 | F62: 75 | G62: 75 | H62: 75 | I62: 0.85 | J62: 0.85 | K62: 0.85 | L62: 0.85
B63: (g as) | C63: 1080 | D63: 3 l a' 360 g | E63: 150 | F63: 150 | G63: 150 | H63: 150 | I63: 0.95 | J63: 0.95 | K63: 0.95 | L63: 0.95
B65: Før | C65: Boxer 1 l | E65: 180 | I65: 0.63
B66: fremspiring | C66: Boxer 2 l | E66: 360 | I66: 0.85 | M66: =IF($AC$50<19,$AD$50,IF($AC$51<45,$AD$51,IF($AC$52<32,$AD$52,""))) -> 
B68: Herbicider | C68: Topik | D68: 0,2 l | E68: 248 | I68: 0.67
B69: Efter | C69: Atlantis OD | D69: 0,75 l | E69: 258 | I69: 0.97 | M69: Gem Profilen
B70: fremspiring | C70: Hussar Plus OD | D70: 0,07 - 0,14 l | E70: 176 | F70: 88 | I70: 0.94 | J70: 0.82
B71: Følg | C71: Broadway | D71: 130 g | E71: 160 | I71: 0.86
B72: produkternes | C72: Cossack OD | D72: 0,93 l | E72: 344 | I72: 0.98 | M72: Filnavn | O72: Danmark
B73: brugsanvisning! | C73: Focus Ultra | D73: 1,5 - 2 l | G73: 270 | H73: 360 | K73: 0.95 | L73: 0.92 | M73: Strategiens navn: | O73: Ingen resistens
C74: Kerb | D74: 1,25 l | G74: 394 | K74: 0.9
O76: ALS/SU resistens, Danmark
B77: Du kan indsætter dine egne strategier her | O77: fop/dim resistens, Danmark
B78: Yderligere | C78: Mulighed 1 | O78: Metabolisk resistens, Danmark
B79: muligheder | C79: Mulighed 2
O81: Ingen resistens, Default
B82: Bemærk! Der kan findes forklaring i programmet ved at holde musen over de røde hjørnemarkeringer
B88: Profile_1 | C88: =O30 -> ALS/SU resistens, Danmark
B90: Basis tal | D90: Vinter hvede | E90: Vinter byg | F90: Vinter rug | G90: Vinter raps | H90: Vårbyg | I90: Havre | J90: Vår hvede | K90: Bælgsæd
C92: Ukrudtsfrit udbytte | D92: 10 | E92: 8 | F92: 8 | G92: 4.5 | H92: 7 | I92: 7.5 | J92: 6 | K92: 4.5 | L92: t/ha | N92: Bekæmpelse fra
C93: Pris ved salg | D93: 1200 | E93: 1200 | F93: 1050 | G93: 2600 | H93: 1200 | I93: 1000 | J93: 1200 | K93: 1400 | L93: kr/t | N93: efterafgrøder | O93: 0.02
C95: Udgift til sprøjtning | F95: 75 | G95: kr/ha | H95: EU støtte pr hektar | K95: 0 | L95: kr/ha | P95: Modne rajgræsplanter sidste
O96: sæson: | P96: 2 | Q96: planter/m2
B99: Bekæmpelsesmuligheder | E99: Vinter sæd | F99: Vårsæd | G99: Raps | H99: Bælg sæd | I99: Vinter sæd | J99: Vårsæd | K99: Raps | L99: Bælg sæd
B100: Udfyld herbicidnavn, pris og effektivitetsniveau (% kontrol af rajgræs): | G100: Pris (kr/ha) | K100: % kontrol af rajgræs
B101: Glyphosat | C101: 540 | E101: 75 | F101: 75 | G101: 75 | H101: 75 | I101: 0.85 | J101: 0.85 | K101: 0.85 | L101: 0.85
B102: (g as) | C102: 1080 | D102: 3 l a' 360 g | E102: 150 | F102: 150 | G102: 150 | H102: 150 | I102: 0.95 | J102: 0.95 | K102: 0.95 | L102: 0.95
B104: Før | C104: Boxer 1 l | E104: 180 | I104: 0.63
B105: fremspiring | C105: Boxer 2 l | E105: 360 | I105: 0.85 | M105: =IF($AC$50<19,$AD$50,IF($AC$51<45,$AD$51,IF($AC$52<32,$AD$52,""))) -> 
B107: Herbicider | C107: Topik | D107: 0,2 l | E107: 248 | I107: 0.67
B108: Efter | C108: Atlantis OD | D108: 0,75 l | E108: 258 | I108: 0.05 | M108: Gem Profilen
B109: fremspiring | C109: Hussar Plus OD | D109: 0,07 - 0,14 l | E109: 176 | F109: 88 | I109: 0.05 | J109: 0.05
B110: Følg | C110: Broadway | D110: 130 g | E110: 160 | I110: 0.05
B111: produkternes | C111: Cossack OD | D111: 0,93 l | E111: 344 | I111: 0.05 | M111: Filnavn | O111: Danmark
B112: brugsanvisning! | C112: Focus Ultra | D112: 1,5 - 2 l | G112: 270 | H112: 360 | K112: 0.95 | L112: 0.92 | M112: Strategiens navn: | O112: ALS/SU resistens
C113: Kerb | D113: 1,25 l | G113: 394
O115: ALS/SU resistens, Danmark
B116: You may enter additional end of season weed control options here: | O116: fop/dim resistens, Danmark
B117: Additional | C117: Mulighed 1 | O117: Metabolisk resistens, Danmark
B118: control options | C118: Mulighed 2
O120: Ingen resistens, Default
B126: Profile_2 | C126: =O31 -> Fop/dim resistens, Danmark
B128: Basis tal | D128: Vinter hvede | E128: Vinter byg | F128: Vinter rug | G128: Vinter raps | H128: Vårbyg | I128: Havre | J128: Vår hvede | K128: Bælgsæd
C130: Ukrudtsfrit udbytte | D130: 10 | E130: 8 | F130: 8 | G130: 4.5 | H130: 7 | I130: 7.5 | J130: 6 | K130: 4.5 | L130: t/ha | N130: Bekæmpelse fra
C131: Pris ved salg | D131: 1200 | E131: 1200 | F131: 1050 | G131: 2600 | H131: 1200 | I131: 1000 | J131: 1200 | K131: 1400 | L131: kr/t | N131: efterafgrøder | O131: 0.02
C133: Udgift til sprøjtning | F133: 75 | G133: kr/ha | H133: EU støtte pr hektar | K133: 0 | L133: kr/ha | P133: Modne rajgræsplanter sidste
O134: sæson: | P134: 2 | Q134: planter/m2
B137: Bekæmpelsesmuligheder | E137: Vinter sæd | F137: Vårsæd | G137: Raps | H137: Bælg sæd | I137: Vinter sæd | J137: Vårsæd | K137: Raps | L137: Bælg sæd
B138: Udfyld herbicidnavn, pris og effektivitetsniveau (% kontrol af rajgræs): | G138: Pris (kr/ha) | K138: % kontrol af rajgræs
B139: Glyphosat | C139: 540 | E139: 75 | F139: 75 | G139: 75 | H139: 75 | I139: 0.85 | J139: 0.85 | K139: 0.85 | L139: 0.85
B140: (g as) | C140: 1080 | D140: 3 l a' 360 g | E140: 150 | F140: 150 | G140: 150 | H140: 150 | I140: 0.95 | J140: 0.95 | K140: 0.95 | L140: 0.95
B142: Før | C142: Boxer 1 l | E142: 180 | I142: 0.63
B143: fremspiring | C143: Boxer 2 l | E143: 360 | I143: 0.85 | M143: =IF($AC$50<19,$AD$50,IF($AC$51<45,$AD$51,IF($AC$52<32,$AD$52,""))) -> 
B145: Herbicider | C145: Topik | D145: 0,2 l | E145: 248 | I145: 0.05
B146: Efter | C146: Atlantis OD | D146: 0,75 l | E146: 258 | I146: 0.97 | M146: Gem Profilen
B147: fremspiring | C147: Hussar Plus OD | D147: 0,07 - 0,14 l | E147: 176 | F147: 88 | I147: 0.94 | J147: 0.82
B148: Følg | C148: Broadway | D148: 130 g | E148: 160 | I148: 0.86
B149: produkternes | C149: Cossack OD | D149: 0,93 l | E149: 344 | I149: 0.98 | M149: Filnavn | O149: Danmark
B150: brugsanvisning! | C150: Focus Ultra | D150: 1,5 - 2 l | G150: 270 | H150: 360 | K150: 0.95 | L150: 0.92 | M150: Strategiens navn: | O150: Fop/dim resistens
C151: Kerb | D151: 1,25 l | G151: 394
O153: ALS/SU resistens, Danmark
B154: You may enter additional end of season weed control options here: | O154: fop/dim resistens, Danmark
B155: Additional | C155: Mulighed 1 | O155: Metabolisk resistens, Danmark
B156: control options | C156: Mulighed 2
O158: Ingen resistens, Default
B165: Profile_3 | C165: =O32 -> Metabolisk resistens, Danmark
B167: Basis tal | D167: Vinter hvede | E167: Vinter byg | F167: Vinter rug | G167: Vinter raps | H167: Vårbyg | I167: Havre | J167: Vår hvede | K167: Bælgsæd
C169: Ukrudtsfrit udbytte | D169: 10 | E169: 8 | F169: 8 | G169: 4.5 | H169: 7 | I169: 7.5 | J169: 6 | K169: 4.5 | L169: t/ha | N169: Bekæmpelse fra
C170: Pris ved salg | D170: 1200 | E170: 1200 | F170: 1050 | G170: 2600 | H170: 1200 | I170: 1000 | J170: 1200 | K170: 1400 | L170: kr/t | N170: efterafgrøder | O170: 0.02
C172: Udgift til sprøjtning | F172: 75 | G172: kr/ha | H172: EU støtte pr hektar | K172: 0 | L172: kr/ha | P172: Modne rajgræsplanter sidste
O173: sæson: | P173: 2 | Q173: planter/m2
B176: Bekæmpelsesmuligheder | E176: Vinter sæd | F176: Vårsæd | G176: Raps | H176: Bælg sæd | I176: Vinter sæd | J176: Vårsæd | K176: Raps | L176: Bælg sæd
B177: Udfyld herbicidnavn, pris og effektivitetsniveau (% kontrol af rajgræs): | G177: Pris (kr/ha) | K177: % kontrol af rajgræs
B178: Glyphosat | C178: 540 | E178: 75 | F178: 75 | G178: 75 | H178: 75 | I178: 0.85 | J178: 0.85 | K178: 0.85 | L178: 0.85
B179: (g as) | C179: 1080 | D179: 3 l a' 360 g | E179: 150 | F179: 150 | G179: 150 | H179: 150 | I179: 0.95 | J179: 0.95 | K179: 0.95 | L179: 0.95
B181: Før | C181: Boxer 1 l | E181: 180 | I181: 0.3
B182: fremspiring | C182: Boxer 2 l | E182: 360 | I182: 0.5 | M182: =IF($AC$50<19,$AD$50,IF($AC$51<45,$AD$51,IF($AC$52<32,$AD$52,""))) -> 
B184: Herbicider | C184: Topik | D184: 0,2 l | E184: 248 | I184: 0.4
B185: Efter | C185: Atlantis OD | D185: 0,75 l | E185: 258 | I185: 0.5 | M185: Gem Profilen
B186: fremspiring | C186: Hussar Plus OD | D186: 0,07 - 0,14 l | E186: 176 | F186: 88 | I186: 0.5 | J186: 0.5
B187: Følg | C187: Broadway | D187: 130 g | E187: 160 | I187: 0.5
B188: produkternes | C188: Cossack OD | D188: 0,93 l | E188: 344 | I188: 0.5 | M188: Filnavn | O188: Danmark
B189: brugsanvisning! | C189: Focus Ultra | D189: 1,5 - 2 l | G189: 270 | H189: 360 | K189: 0.95 | L189: 0.92 | M189: Strategiens navn: | O189: Metabolisk resistens
C190: Kerb | D190: 1,25 l | G190: 394
O192: ALS/SU resistens, Danmark
B193: You may enter additional end of season weed control options here: | O193: fop/dim resistens, Danmark
B194: Additional | C194: Mulighed 1 | O194: Metabolisk resistens, Danmark
B195: control options | C195: Mulighed 2
O197: Ingen resistens, Default
B204: Profile_4 | C204: =O33 -> Ingen resistens, Danmark
B206: Basis tal | D206: Vinter hvede | E206: Vinter byg | F206: Vinter rug | G206: Vinter raps | H206: Vårbyg | I206: Havre | J206: Vår hvede | K206: Bælgsæd
C208: Ukrudtsfrit udbytte | D208: 10 | E208: 8 | F208: 8 | G208: 4.5 | H208: 7 | I208: 7.5 | J208: 6 | K208: 4.5 | L208: t/ha | N208: Bekæmpelse fra
C209: Pris ved salg | D209: 1200 | E209: 1200 | F209: 1050 | G209: 2600 | H209: 1200 | I209: 1000 | J209: 1200 | K209: 1400 | L209: kr/t | N209: efterafgrøder | O209: 0.02
C211: Udgift til sprøjtning | F211: 75 | G211: kr/ha | H211: EU støtte pr hektar | K211: 0 | L211: kr/ha | P211: Modne rajgræsplanter sidste
O212: sæson: | P212: 2 | Q212: planter/m2
B215: Bekæmpelsesmuligheder | E215: Vinter sæd | F215: Vårsæd | G215: Raps | H215: Bælg sæd | I215: Vinter sæd | J215: Vårsæd | K215: Raps | L215: Bælg sæd
B216: Udfyld herbicidnavn, pris og effektivitetsniveau (% kontrol af rajgræs): | G216: Pris (kr/ha) | K216: % kontrol af rajgræs
B217: Glyphosat | C217: 540 | E217: 75 | F217: 75 | G217: 75 | H217: 75 | I217: 0.85 | J217: 0.85 | K217: 0.85 | L217: 0.85
B218: (g as) | C218: 1080 | D218: 3 l a' 360 g | E218: 150 | F218: 150 | G218: 150 | H218: 150 | I218: 0.95 | J218: 0.95 | K218: 0.95 | L218: 0.95
B220: Før | C220: Boxer 1 l | E220: 180 | I220: 0.63
B221: fremspiring | C221: Boxer 2 l | E221: 360 | I221: 0.85 | M221: =IF($AC$50<19,$AD$50,IF($AC$51<45,$AD$51,IF($AC$52<32,$AD$52,""))) -> 
B223: Herbicider | C223: Topik | D223: 0,2 l | E223: 248 | I223: 0.67
B224: Efter | C224: Atlantis OD | D224: 0,75 l | E224: 258 | I224: 0.97 | M224: Gem Profilen
B225: fremspiring | C225: Hussar Plus OD | D225: 0,07 - 0,14 l | E225: 176 | F225: 88 | I225: 0.94 | J225: 0.82
B226: Følg | C226: Broadway | D226: 130 g | E226: 160 | I226: 0.86
B227: produkternes | C227: Cossack OD | D227: 0,93 l | E227: 344 | I227: 0.98 | M227: Filnavn | O227: Danmark
B228: brugsanvisning! | C228: Focus Ultra | D228: 1,5 - 2 l | G228: 270 | H228: 360 | K228: 0.95 | L228: 0.92 | M228: Strategiens navn: | O228: Ingen resistens
C229: Kerb | D229: 1,25 l | G229: 394
O231: ALS/SU resistens, Danmark
B232: You may enter additional end of season weed control options here: | O232: fop/dim resistens, Danmark
B233: Additional | C233: Mulighed 1 | O233: Metabolisk resistens, Danmark
B234: control options | C234: Mulighed 2
O236: Ingen resistens, Default

Sheet +Prices
B7: Flere priser… | I7: ='1.Profile'!O27&", "&'1.Profile'!O26 -> Ingen resistens, Danmark
B10: Etableringsomkostninger | F10: V.hvede | G10: V.byg | H10: V.rug | I10: Raps | J10: Vårbyg | K10: Havre | L10: Vårhvede | M10: Bælgsæd | N10: Græs | O10: Græs/kløver
C12: Udsædsmængde (standard) | E12: kr/ha | F12: 442 | G12: 448 | H12: 360 | I12: 360 | J12: 378 | K12: 428 | L12: 374 | M12: 560 | N12: 400 | O12: 800
C13: inkl. udgifter relateret til udsæd
C14: Gødning - standard, almindelig praksis | E14: kr/ha | F14: 2250 | G14: 2250 | H14: 2000 | I14: 3500 | J14: 1900 | K14: 2000 | L14: 2000 | M14: 1000 | N14: 2000 | O14: 0
C17: Yderligere omkostninger | E17: kr/ha | F17: 1000 | G17: 1000 | H17: 1000 | I17: 1000 | J17: 1000 | K17: 1000 | L17: 1000 | M17: 2000 | N17: 200 | O17: 200
C18: insekticider, fungicider, anden ukrudtskontrol, tørring, transport m.m.
F19: Efter/i vintersæd | H19: Efter/i vårsæd | J19: Efter/i raps | L19: Efter bælgsæd
C20: Udgifter til efterafgrøder | E20: kr/ha | F20: 500 | H20: 600 | J20: 0 | L20: 300
B23: Andre udgifter | I23: Udgifter til høst
B25: Jordbearbejdning og såning, priser med maskinstation: | I25: Baseret på maskinstationpriser
B26: Pløjning, harvning og såning | E26: kr/ha | F26: 1150 | I26: Korn, mejetærsker og presning | N26: kr/ha | O26: 1200
B27: Reduceret jordbearbejdning og såning | E27: kr/ha | F27: 480 | I27: Korn, mejetærsker og snitter | N27: kr/ha | O27: 1125
B28: Direkte såning | E28: kr/ha | F28: 160 | I28: Raps, høst | N28: kr/ha | O28: 850
I29: Raps, høst med skårlægning | N29: kr/ha | O29: 1350
I30: Bælgsæd, høst | N30: kr/ha | O30: 1300
I32: Purchase cost of:
I33: Harrington seed destructor (HSD) | N33: kr | O33: 0
I34: HSD repayments:
I35: Loan duration | N35: years | O35: 8
I36: Interest rate | O36: 0.06
AR39: =P_1P -> TRUE
AC46: =COUNT(F12:O12,F14:O14,F17:O17,F20:M20,F26:F28,O26:O30,O33,O35:O36) -> 45 | AE46: NB Feltet til HSD er skjult bag billede
B48: Prices_0 | C48: ='1.Profile'!O35 -> Ingen resistens, Default
B50: Etableringsomkostninger | F50: V.hvede | G50: V.byg | H50: V.rug | I50: Raps | J50: Vårbyg | K50: Havre | L50: Vårhvede | M50: Bælgsæd | N50: Græs | O50: Græs/kløver | AI50: Establishment costs - machinery
C52: Udsædsmængde (standard) | E52: kr/ha | F52: 442 | G52: 448 | H52: 360 | I52: 360 | J52: 378 | K52: 428 | L52: 374 | M52: 560 | N52: 400 | O52: 800
C53: inkl. udgifter relateret til udsæd
C54: Gødning - standard, almindelig praksis | E54: kr/ha | F54: 2250 | G54: 2250 | H54: 2000 | I54: 3500 | J54: 1900 | K54: 2000 | L54: 2000 | M54: 1000 | N54: 2000 | O54: 0
AI56: Priser er taget fra Farmtal Online 2016
C57: Yderligere omkostninger | E57: kr/ha | F57: 1000 | G57: 1000 | H57: 1000 | I57: 1000 | J57: 1000 | K57: 1000 | L57: 1000 | M57: 2000 | N57: 200 | O57: 200 | AI57: DK, jordbearbejdning | AU57: Legend: | AV57: 22 | AW57: linked to interface (current page or otherwise specified)
C58: insekticider, fungicider, anden ukrudtskontrol, tørring, transport m.m. | AV58: 22 | AW58: calculation
F59: Efter/i vintersæd | H59: Efter/i vårsæd | J59: Efter/i raps | L59: Efter bælgsæd | AI59: Vendeplov m. jordpakning fulgt af rotorharve; 700 + 450 kr/ha | AW59: n.a.
C60: Udgifter til efterafgrøder | E60: kr/ha | F60: 500 | H60: 600 | J60: 0 | L60: 300 | AI60: Stubharvning + såbedsharvning; 325 + 160 kr/ha | AV60: 0.22 | AW60: not linked (direct input)
AI61: såbedsharvning; 160 kr/ha | AV61: 0.22 | AW61: not linked, do not change without good advice
AV62: 0.22 | AW62: reference data, in cases used for ratios
B63: Andre udgifter | I63: Udgifter til høst | AI63: Handelsgødning udbringning; 140 kr/ha
AU64: Financial values
B65: Jordbearbejdning og såning, priser med maskinstation: | I65: Baseret på maskinstationpriser | AJ65: Cost | AU65: These rates apply for the whole 10 year period
B66: Pløjning, harvning og såning | E66: kr/ha | F66: 1150 | I66: Korn, mejetærsker og presning | N66: kr/ha | O66: 1200 | AJ66: (kr/ha) | AU66: Da den danske version udelukkende kører med maskinstationpriser er dette sat ud af funktion
B67: Reduceret jordbearbejdning og såning | E67: kr/ha | F67: 480 | I67: Korn, mejetærsker og snitter | N67: kr/ha | O67: 1125 | AI67: Mouldboard ploughing | AJ67: =F26 -> 1150 | AU67: Rates of Price and Yield Increase | AX67: Reviewed 2012, australian values
B68: Direkte såning | E68: kr/ha | F68: 160 | I68: Raps, høst | N68: kr/ha | O68: 850 | AI68: Reduced tillage | AJ68: =F27 -> 480 | AU68: Rate of increase of potential crop yield (%/year) | AV68: 0.01 | AX68: 0.01
I69: Raps, høst med skårlægning | N69: kr/ha | O69: 1350 | AI69: No-till | AJ69: =F28 -> 160 | AU69: Inflation rate for crop sale prices (%/year) | AV69: 0.01 | AX69: 0.01
I70: Bælgsæd, høst | N70: kr/ha | O70: 1300 | AI70: Harvest, bale | AJ70: =O26 -> 1200 | AK70: Høst 800 + bigballer 80 pr stk | AU70: Inflation rate for input costs (%/year) | AV70: 0.03 | AX70: 0.03
AI71: Harvest, straw chopped | AJ71: =O27 -> 1125 | AK71: Høst + snitning 850 + Nedmuldning 275 | AU71: Long-term interest rate (%) * | AV71: 0 | AW71: sat til 0 | AX71: 0.08
I72: Purchase cost of: | AI72: Oilseed rape, harvest | AJ72: =O28 -> 850 | AU72: Marginal tax rate (%) | AV72: 0 | AW72: sat til 0 | AX72: 0.21
I73: Harrington seed destructor (HSD) | N73: kr | O73: 0 | AI73: Oilseed rape, harvest, with swathing | AJ73: =O29 -> 1350 | AU73: * Note: Use the raw interest rate (do not deduct the inflation rate to express
I74: HSD repayments: | AI74: Legumes, harvest with chopping | AJ74: =O30 -> 1300 | AN74: Repayments | AU74: it in "real" terms) as all calculations are done in "nominal" terms.
I75: Loan duration | N75: years | O75: 8 | AI75: HSD = Harrington seed destructor | AJ75: =((AJ70+AJ71)/2)+((AJ70+AJ71)/2)*0.2 -> 1395 | AM75: to Calc | AN75: =AI75 -> HSD = Harrington seed destructor | AP75: =-PMT('+Prices'!$O$36,'+Prices'!$O$35,'+Prices'!O33,0,0)/'+Prices'!$AL$80 -> 0
I76: Interest rate | O76: 0.06 | AI76: Option for later additions | AU76: Note also that the model's main calculations are done on the basis that prices
AU77: and potential yields don't change over time. In the "Economic results" sheet
AU78: the above rates of increase are applied to the results.
AI80: Average area (ha) on which machinery is used | AL80: ='1.Profile'!BR9 -> 1
B81: Prices_1 | C81: ='1.Profile'!O30 -> ALS/SU resistens, Danmark | AL81: from Profile
B83: Etableringsomkostninger | F83: V.hvede | G83: V.byg | H83: V.rug | I83: Raps | J83: Vårbyg | K83: Havre | L83: Vårhvede | M83: Bælgsæd | N83: Græs | O83: Græs/kløver | AI83: Establishment costs - crops | AW83: References used for ratios Expert evaluation used in DK
AV84: Savings in kg/ha of N after a legume:
C85: Udsædsmængde (standard) | E85: kr/ha | F85: 442 | G85: 448 | H85: 360 | I85: 360 | J85: 378 | K85: 428 | L85: 374 | M85: 560 | N85: 400 | O85: 800 | AI85: Fertilisers | AJ85: W.wheat | AK85: W.Barley | AL85: W.Rye | AM85: S.Barley | AN85: S.Oat | AO85: S.Wheat | AP85: Oilseed | AQ85: Legumes | AW85: Wheat | AX85: Barley | AY85: Canola | AZ85: In DK: about 1/3 of the fertilser amount | BD85: reference for Australian RIM
C86: inkl. udgifter relateret til udsæd | AI86: Total cost of all fertilisers (kr/ha) | AJ86: =F14 -> 2250 | AK86: =G14 -> 2250 | AL86: =H14 -> 2000 | AM86: =J14 -> 1900 | AN86: =K14 -> 2000 | AO86: =L14 -> 2000 | AP86: =I14 -> 3500 | AQ86: =M14 -> 1000 | AV86: 1st year | AW86: 30 | AX86: 30 | AY86: 40 | AZ86: Planfarm and Bankwest (2012) Planfarm Bankwest Benchmarks 2011/2012. Planfarm Pty. Ltd. and BankWest Agribusiness Centre, West Perth and Wembley, Western Australia, 81pp.
C87: Gødning - standard, almindelig praksis | E87: kr/ha | F87: 2250 | G87: 2250 | H87: 2000 | I87: 3500 | J87: 1900 | K87: 2000 | L87: 2000 | M87: 1000 | N87: 2000 | O87: 0 | AI87: Saving in N fertiliser application 1 year after legumes | AJ87: =AJ86/3 -> 750 | AK87: 750 | AL87: 666.6666667 | AM87: 633.3333333 | AN87: 666.6666667 | AO87: 666.6666667 | AP87: 1166.666667 | AR87: not included in the calculations here, but included Calcs table 9 | AV87: In DK | AW87: =AJ86/3 -> 750 | AX87: =AM86/3 -> 633.3333333 | AY87: =AP86/3 -> 1166.666667
AI88: Saving in N fertiliser application 1 year after grass/clover | AJ88: =AW87/2 -> 375 | AK88: =AX87/2 -> 316.6666667 | AL88: =AY87/2 -> 583.3333333 | AM88: =AM87/2 -> 316.6666667 | AN88: =AN87/2 -> 333.3333333 | AO88: =AO87/2 -> 333.3333333 | AP88: =AP87/2 -> 583.3333333 | AR88: not included in the calculations here, but included Calcs table 9
AJ89: Note: this data also used for crop following pasture
C90: Yderligere omkostninger | E90: kr/ha | F90: 1000 | G90: 1000 | H90: 1000 | I90: 1000 | J90: 1000 | K90: 1000 | L90: 1000 | M90: 2000 | N90: 200 | O90: 200 | AI90: Seed and other inputs
C91: insekticider, fungicider, anden ukrudtskontrol, tørring, transport m.m. | AI91: Cost of seed (including dressing/cleaning/inoculum/etc.) (kr/ha) | AJ91: =F12 -> 442 | AK91: =G12 -> 448 | AL91: 360 | AM91: 360 | AN91: 378 | AO91: 428 | AP91: 374 | AQ91: 560
F92: Efter/i vintersæd | H92: Efter/i vårsæd | J92: Efter/i raps | L92: Efter bælgsæd | AI92: Cost of additional input (kr/ha) | AJ92: =F17 -> 1000 | AK92: =G17 -> 1000 | AL92: 1000 | AM92: 1000 | AN92: 1000 | AO92: 1000 | AP92: 1000 | AQ92: 2000
C93: Udgifter til efterafgrøder | E93: kr/ha | F93: 500 | H93: 600 | J93: 0 | L93: 300
AI95: Cost of mouldboard ploughing (kr/ha) | AJ95: =$F$26+AJ86+AJ91+AJ92 -> 4842 | AK95: =$F$26+AK86+AK91+AK92 -> 4848 | AL95: 4510 | AM95: 4410 | AN95: 4528 | AO95: 4578 | AP95: 6024 | AQ95: 4710
B96: Andre udgifter | I96: Udgifter til høst | AI96: Cost of reduced tillage | AJ96: =$F$27+AJ86+AJ91+AJ92 -> 4172 | AK96: 4178 | AL96: 3840 | AM96: 3740 | AN96: 3858 | AO96: 3908 | AP96: 5354 | AQ96: 4040
AI97: Cost of direct seeding | AJ97: =$F$28+AJ86+AJ91+AJ92 -> 3852 | AK97: 3858 | AL97: 3520 | AM97: 3420 | AN97: 3538 | AO97: 3588 | AP97: 5034 | AQ97: 3720
B98: Jordbearbejdning og såning, priser med maskinstation: | I98: Baseret på maskinstationpriser | AI98: Extra cost of Intermediate seeding rate | AJ98: =('+Options'!AG57-'+Options'!AG56)/'+Options'!AG56*AJ91 -> 190.06 | AK98: =('+Options'!AH57-'+Options'!AH56)/'+Options'!AH56*AK91 -> 42.44210526 | AL98: =('+Options'!AI57-'+Options'!AI56)/'+Options'!AI56*AL91 -> 40 | AM98: =('+Options'!AJ57-'+Options'!AJ56)/'+Options'!AJ56*AM91 -> 25.71428571 | AN98: =('+Options'!AK57-'+Options'!AK56)/'+Options'!AK56*AN91 -> 27 | AO98: =('+Options'!AL57-'+Options'!AL56)/'+Options'!AL56*AO91 -> 12.58823529 | AP98: =('+Options'!AM57-'+Options'!AM56)/'+Options'!AM56*AP91 -> 74.8 | AQ98: =('+Options'!AN57-'+Options'!AN56)/'+Options'!AN56*AQ91 -> 76.36363636 | AR98: Included in Calcs Table 9
B99: Pløjning, harvning og såning | E99: kr/ha | F99: 1150 | I99: Korn, mejetærsker og presning | N99: kr/ha | O99: 1200 | AI99: Extra cost of high seeding rate | AJ99: =('+Options'!AG58-'+Options'!AG56)/'+Options'!AG56*AJ91 -> 375.7 | AK99: =('+Options'!AH58-'+Options'!AH56)/'+Options'!AH56*AK91 -> 82.52631579 | AL99: =('+Options'!AI58-'+Options'!AI56)/'+Options'!AI56*AL91 -> 80 | AM99: =('+Options'!AJ58-'+Options'!AJ56)/'+Options'!AJ56*AM91 -> 51.42857143 | AN99: =('+Options'!AK58-'+Options'!AK56)/'+Options'!AK56*AN91 -> 54 | AO99: =('+Options'!AL58-'+Options'!AL56)/'+Options'!AL56*AO91 -> 45.31764706 | AP99: =('+Options'!AM58-'+Options'!AM56)/'+Options'!AM56*AP91 -> 149.6 | AQ99: =('+Options'!AN58-'+Options'!AN56)/'+Options'!AN56*AQ91 -> 152.7272727 | AR99: Included in Calcs Table 9
B100: Reduceret jordbearbejdning og såning | E100: kr/ha | F100: 480 | I100: Korn, mejetærsker og snitter | N100: kr/ha | O100: 1125 | AI100: Cost of cover crop | AJ100: =$F$20 -> 500 | AK100: =$F$20 -> 500 | AL100: =$F$20 -> 500 | AM100: =$H$20 -> 600 | AN100: =$H$20 -> 600 | AO100: =$H$20 -> 600 | AP100: =$J$20 -> 0 | AQ100: =$L$20 -> 300 | AR100: Included in Calcs Table 3
B101: Direkte såning | E101: kr/ha | F101: 160 | I101: Raps, høst | N101: kr/ha | O101: 850
I102: Raps, høst med skårlægning | N102: kr/ha | O102: 1350
I103: Bælgsæd, høst | N103: kr/ha | O103: 1500
AI104: Establishment costs - pastures
I105: Purchase cost of:
I106: Harrington seed destructor (HSD) | N106: kr | O106: 0
I107: HSD repayments: | AI107: Grass
I108: Loan duration | N108: years | O108: 8 | AI108: Cost of sowing (seed + machinery) (kr/ha) | AJ108: =N12+AL67 -> 400
I109: Interest rate | O109: 0.06 | AI109: Cost of fertilisers (kr/ha/year) | AJ109: =N14 -> 2000
AI110: Additional costs, incl. insecticide appl. (kr/ha) | AJ110: =N17 -> 200
AI111: Total, inputs (kr/ha) | AJ111: =SUM(AJ108:AJ110) -> 2600
B115: Prices_2 | C115: ='1.Profile'!O31 -> Fop/dim resistens, Danmark | AI115: Grass/clover
AI116: Cost of sowing (seed + machinery) (kr/ha) | AJ116: =O12+AL67 -> 800
B117: Etableringsomkostninger | F117: V.hvede | G117: V.byg | H117: V.rug | I117: Raps | J117: Vårbyg | K117: Havre | L117: Vårhvede | M117: Bælgsæd | N117: Græs | O117: Græs/kløver | AI117: Cost of fertilisers (kr/ha/year) | AJ117: =$O$14 -> 0
AI118: Additional costs, incl. insecticide appl. (kr/ha) | AJ118: =J17 -> 1000
C119: Udsædsmængde (standard) | E119: kr/ha | F119: 442 | G119: 448 | H119: 360 | I119: 360 | J119: 378 | K119: 428 | L119: 374 | M119: 560 | N119: 400 | O119: 800 | AI119: Total, inputs (kr/ha) | AJ119: =SUM(AJ116:AJ118) -> 1800
C120: inkl. udgifter relateret til udsæd
C121: Gødning - standard, almindelig praksis | E121: kr/ha | F121: 2250 | G121: 2250 | H121: 2000 | I121: 3500 | J121: 1900 | K121: 2000 | L121: 2000 | M121: 1000 | N121: 2000 | O121: 0
C124: Yderligere omkostninger | E124: kr/ha | F124: 1000 | G124: 1000 | H124: 1000 | I124: 1000 | J124: 1000 | K124: 1000 | L124: 1000 | M124: 2000 | N124: 200 | O124: 200
C125: insekticider, fungicider, anden ukrudtskontrol, tørring, transport m.m.
F126: Efter/i vintersæd | H126: Efter/i vårsæd | J126: Efter/i raps | L126: Efter bælgsæd
C127: Udgifter til efterafgrøder | E127: kr/ha | F127: 500 | H127: 600 | J127: 0 | L127: 300
B130: Andre udgifter | I130: Udgifter til høst
B132: Jordbearbejdning og såning, priser med maskinstation: | I132: Baseret på maskinstationpriser
B133: Pløjning, harvning og såning | E133: kr/ha | F133: 1150 | I133: Korn, mejetærsker og presning | N133: kr/ha | O133: 1200
B134: Reduceret jordbearbejdning og såning | E134: kr/ha | F134: 480 | I134: Korn, mejetærsker og snitter | N134: kr/ha | O134: 1125
B135: Direkte såning | E135: kr/ha | F135: 160 | I135: Raps, høst | N135: kr/ha | O135: 850
I136: Raps, høst med skårlægning | N136: kr/ha | O136: 1350
I137: Bælgsæd, høst | N137: kr/ha | O137: 1500
I139: Purchase cost of:
I140: Harrington seed destructor (HSD) | N140: kr | O140: 0
I141: HSD repayments:
I142: Loan duration | N142: years | O142: 8
I143: Interest rate | O143: 0.06
B149: Prices_3 | C149: ='1.Profile'!O32 -> Metabolisk resistens, Danmark
B151: Etableringsomkostninger | F151: V.hvede | G151: V.byg | H151: V.rug | I151: Raps | J151: Vårbyg | K151: Havre | L151: Vårhvede | M151: Bælgsæd | N151: Græs | O151: Græs/kløver
C153: Udsædsmængde (standard) | E153: kr/ha | F153: 442 | G153: 448 | H153: 360 | I153: 360 | J153: 378 | K153: 428 | L153: 374 | M153: 560 | N153: 400 | O153: 800
C154: inkl. udgifter relateret til udsæd
C155: Gødning - standard, almindelig praksis | E155: kr/ha | F155: 2250 | G155: 2250 | H155: 2000 | I155: 3500 | J155: 1900 | K155: 2000 | L155: 2000 | M155: 1000 | N155: 2000 | O155: 0
C158: Yderligere omkostninger | E158: kr/ha | F158: 1000 | G158: 1000 | H158: 1000 | I158: 1000 | J158: 1000 | K158: 1000 | L158: 1000 | M158: 2000 | N158: 200 | O158: 200
C159: insekticider, fungicider, anden ukrudtskontrol, tørring, transport m.m.
F160: Efter/i vintersæd | H160: Efter/i vårsæd | J160: Efter/i raps | L160: Efter bælgsæd
C161: Udgifter til efterafgrøder | E161: kr/ha | F161: 500 | H161: 600 | J161: 0 | L161: 300
B164: Andre udgifter | I164: Udgifter til høst
B166: Jordbearbejdning og såning, priser med maskinstation: | I166: Baseret på maskinstationpriser
B167: Pløjning, harvning og såning | E167: kr/ha | F167: 1150 | I167: Korn, mejetærsker og presning | N167: kr/ha | O167: 1200
B168: Reduceret jordbearbejdning og såning | E168: kr/ha | F168: 480 | I168: Korn, mejetærsker og snitter | N168: kr/ha | O168: 1125
B169: Direkte såning | E169: kr/ha | F169: 160 | I169: Raps, høst | N169: kr/ha | O169: 850
I170: Raps, høst med skårlægning | N170: kr/ha | O170: 1350
I171: Bælgsæd, høst | N171: kr/ha | O171: 1500
I173: Purchase cost of:
I174: Harrington seed destructor (HSD) | N174: kr | O174: 0
I175: HSD repayments:
I176: Loan duration | N176: years | O176: 8
I177: Interest rate | O177: 0.06
B182: Prices_4 | C182: ='1.Profile'!O33 -> Ingen resistens, Danmark
B184: Etableringsomkostninger | F184: V.hvede | G184: V.byg | H184: V.rug | I184: Raps | J184: Vårbyg | K184: Havre | L184: Vårhvede | M184: Bælgsæd | N184: Græs | O184: Græs/kløver
C186: Udsædsmængde (standard) | E186: kr/ha | F186: 442 | G186: 448 | H186: 360 | I186: 360 | J186: 378 | K186: 428 | L186: 374 | M186: 560 | N186: 400 | O186: 800
C187: inkl. udgifter relateret til udsæd
C188: Gødning - standard, almindelig praksis | E188: kr/ha | F188: 2250 | G188: 2250 | H188: 2000 | I188: 3500 | J188: 1900 | K188: 2000 | L188: 2000 | M188: 1000 | N188: 2000 | O188: 0
C191: Yderligere omkostninger | E191: kr/ha | F191: 1000 | G191: 1000 | H191: 1000 | I191: 1000 | J191: 1000 | K191: 1000 | L191: 1000 | M191: 2000 | N191: 200 | O191: 200
C192: insekticider, fungicider, anden ukrudtskontrol, tørring, transport m.m.
F193: Efter/i vintersæd | H193: Efter/i vårsæd | J193: Efter/i raps | L193: Efter bælgsæd
C194: Udgifter til efterafgrøder | E194: kr/ha | F194: 500 | H194: 600 | J194: 0 | L194: 300
B197: Andre udgifter | I197: Udgifter til høst
B199: Jordbearbejdning og såning, priser med maskinstation: | I199: Baseret på maskinstationpriser
B200: Pløjning, harvning og såning | E200: kr/ha | F200: 1150 | I200: Korn, mejetærsker og presning | N200: kr/ha | O200: 1200
B201: Reduceret jordbearbejdning og såning | E201: kr/ha | F201: 480 | I201: Korn, mejetærsker og snitter | N201: kr/ha | O201: 1125
B202: Direkte såning | E202: kr/ha | F202: 160 | I202: Raps, høst | N202: kr/ha | O202: 850
I203: Raps, høst med skårlægning | N203: kr/ha | O203: 1350
I204: Bælgsæd, høst | N204: kr/ha | O204: 1300
I206: Purchase cost of:
I207: Harrington seed destructor (HSD) | N207: kr | O207: 0
I208: HSD repayments:
I209: Loan duration | N209: years | O209: 8
I210: Interest rate | O210: 0.06

Sheet +Options
A7: Flere muligheder… | J7: ='1.Profile'!O27&", "&'1.Profile'!O26 -> Ingen resistens, Danmark
B10: Afgrøder | E10: V.hvede | F10: V.byg | G10: V.rug | H10: Raps | I10: Vårbyg | J10: Havre | K10: Vårhvede | L10: Bælgsæd | M10: Græs | N10: Græs/kløver
C12: Udsædsmængde standard | D12: kg/ha | E12: 100 | F12: 190 | G12: 90 | H12: 2.5 | I12: 140 | J12: 140 | K12: 170 | L12: 110 | M12: 90 | N12: 110
C13: Udsædsmængde medium | D13: kg/ha | E13: 143 | F13: 208 | G13: 100 | H13: 3 | I13: 150 | J13: 150 | K13: 175 | L13: 125 | M13: 98 | N13: 123
C14: Udsædsmængde høj | D14: kg/ha | E14: 185 | F14: 225 | G14: 110 | H14: 3.5 | I14: 160 | J14: 160 | K14: 188 | L14: 140 | M14: 105 | N14: 135
C15: Ved sen såning er det standard praksis at forhøje udsædsmængden for at opnå det samme plantetal pr m2.
C16: Der vil derfor ikke pånås højere plantetal ved kombinationen sen såning og høj udsædsmængde end ved tidlig såning og standard udsædsmængde
C17: Der kan vælges medium eller høj udsædsmængde for tidlig eller mellemtidlig såning, dette vil forhøje plantetal pr. m2
B20: Udbytte fordele | L20: Rajgræs bekæmpelse
L21: Andel af rajgræsplanter, der bekæmpes:
C22: - for raps efter bælgsæd | H22: 0.05 | M22: Behovsbaseret pløjning | Q22: 0.98
C23: - for korn efter bælgsæd | H23: 0.2 | M23: Pløjning | Q23: 0.9
C24: - for alle afgrøder efter efterafgrøder | H24: 0.02 | M24: Reduceret jordbearbejdning | Q24: 0.6
M25: No-till | Q25: 0.4
M26: Nedvisning | Q26: 0.05
B27: Udbytte straf
M28: Afskriving af afgrøde | Q28: 0.95
C29: For bælgsæd, effekt af herbicider brugt i foregående afgrøde | H29: 0.02 | AQ29: Opsamling og HSD | AU29: 0.85 | AV29: Flyttet herud for at skjule
AV30: Kan genaktiveres
C31: - for raps, hvis pause mellem rapsafgrøder er 1 år | H31: 0.5
C32: - for bælgsæd, hvis pause mellem rapsafgrøder er 1 år | H32: 0.4
AR39: =P_1P -> TRUE
AQ47: Legend: | AR47: 22 | AS47: linked to interface (current page or otherwise specified)
AC48: =COUNT(E12:N14,H22:H24,H29,H31:H32,Q22:Q26,Q28) -> 42 | AF48: Mulighed med HSD er flyttet fra M29 og langt ud til højre for at skjule den | AR48: 22 | AS48: calculation
AF49: Fejlmeddelelse i AB48 er rettet | AS49: n.a.
AR50: 0.22 | AS50: not linked (direct input)
B51: Options_0 | C51: ='1.Profile'!O35 -> Ingen resistens, Default | E51: 0 | AR51: 0.22 | AS51: not linked, and do not change without good advice
AF52: Crops | AR52: 0.22 | AS52: reference data
B53: Afgrøder | E53: V.hvede | F53: V.byg | G53: V.rug | H53: Raps | I53: Vårbyg | J53: Havre | K53: Vårhvede | L53: Bælgsæd | M53: Græs | N53: Græs/kløver | AF53: Boost and penalties | AR53: 0.22 | AS53: reference data used for ratios
AF54: Crop Variables | AG54: W. Wheat | AH54: W. Barley | AI54: W. rye | AJ54: S. Barley | AK54: S.Oat | AL54: S. Wheat | AM54: Oilseed | AN54: Legumes | AR54: blabla | AS54: information / tracking data (not involved in calculations)
C55: Udsædsmængde standard | D55: kg/ha | E55: 100 | F55: 190 | G55: 90 | H55: 2.5 | I55: 140 | J55: 140 | K55: 170 | L55: 110 | M55: 90 | N55: 110 | AF55: Weed-free yield (after long break with no legume) (t/ha) | AG55: ='1.Profile'!D7 -> 10 | AH55: ='1.Profile'!E7 -> 8 | AI55: ='1.Profile'!F7 -> 8 | AJ55: ='1.Profile'!H7 -> 7 | AK55: ='1.Profile'!I7 -> 7.5 | AL55: ='1.Profile'!J7 -> 6 | AM55: ='1.Profile'!G7 -> 4.5 | AN55: ='1.Profile'!G7 -> 4.5 | AO55: From Profile | AP55: Wheat | AQ55: Barley | AR55: Canola | AS55: Legumes
C56: Udsædsmængde medium | D56: kg/ha | E56: 143 | F56: 208 | G56: 100 | H56: 3 | I56: 150 | J56: 150 | K56: 175 | L56: 125 | M56: 98 | N56: 123 | AF56: Standard seeding rate (kg/ha) | AG56: =E12 -> 100 | AH56: =F12 -> 190 | AI56: =G12 -> 90 | AJ56: =I12 -> 140 | AK56: 140 | AL56: 170 | AM56: =H12 -> 2.5 | AN56: =L12 -> 110 | AO56: Options | AP56: 2 | AQ56: 2.2 | AR56: 1 | AS56: 1
C57: Udsædsmængde høj | D57: kg/ha | E57: 185 | F57: 225 | G57: 110 | H57: 3.5 | I57: 160 | J57: 160 | K57: 188 | L57: 140 | M57: 105 | N57: 135 | AF57: Intermediate seeding rate (kg/ha) | AG57: =E13 -> 143 | AH57: =F13 -> 208 | AI57: 100 | AJ57: 150 | AK57: 150 | AL57: 175 | AM57: =H13 -> 3 | AN57: 125 | AP57: 60 | AQ57: 70 | AR57: 3 | AS57: 100
C58: Ved sen såning er det standard praksis at forhøje udsædsmængden for at opnå det samme plantetal pr m2. | AF58: High seeding rate (kg/ha) | AG58: =E14 -> 185 | AH58: =F14 -> 225 | AI58: =G14 -> 110 | AJ58: 160 | AK58: 160 | AL58: 188 | AM58: =H14 -> 3.5 | AN58: =L14 -> 140 | AO58: Options | AP58: 90 | AQ58: 100 | AR58: 5-6 | AS58: 125
C59: Der vil derfor ikke pånås højere plantetal ved kombinationen sen såning og høj udsædsmængde end ved tidlig såning og standard udsædsmængde | AF59: Standard density (plants/m2) | AG59: =AG56*100/AG$83*AG$84 -> 226.1904762 | AH59: 305.9322034 | AI59: 212.3076923 | AJ59: 266 | AK59: 332.5 | AL59: 358.8888889 | AM59: 50 | AN59: 58.66666667 | AP59: 120 | AQ59: 145-150 | AR59: 60 | AS59: 50
C60: Der kan vælges medium eller høj udsædsmængde for tidlig eller mellemtidlig såning, dette vil forhøje plantetal pr. m2 | AF60: Intermediate density (plants/m2) | AG60: =AG57*100/AG$83*AG$84 -> 323.452381 | AH60: =AH57*100/AH$83*AH$84 -> 334.9152542 | AI60: 235.8974359 | AJ60: 285 | AK60: 356.25 | AL60: 369.4444444 | AM60: 60 | AN60: 66.66666667 | AP60: 165 | AQ60: 195 | AR60: 90-100 | AS60: 60-65
AF61: High density (plants/m2) | AG61: =AG58*100/AG$83*AG$85 -> 396.4285714 | AH61: 343.220339 | AI61: 245.3846154 | AJ61: 288 | AK61: 360 | AL61: 376 | AM61: 64.16666667 | AN61: 70
B63: Udbytte fordele | L63: Rajgræs bekæmpelse | AF63: Yield benefits
L64: Andel af rajgræsplanter, der bekæmpes: | AF64: Yield benefit 1st year after legumes | AG64: =$H$23 -> 0.2 | AH64: 0.2 | AI64: 0.2 | AJ64: 0.2 | AK64: 0.2 | AL64: 0.2 | AM64: =H22 -> 0.05 | AO64: all based on wheat | AP64: 0.2 | AQ64: 0.2 | AR64: 0
C65: - for raps efter bælgsæd | H65: 0.05 | M65: Behovsbaseret pløjning | Q65: 0.98 | AF65: Yield benefit 1st year after oilseed | AG65: 0.05 | AH65: 0.05 | AI65: 0.05 | AJ65: =AG65 -> 0.05 | AK65: =AH65 -> 0.05 | AL65: =AI65 -> 0.05 | AN65: =AG65*0.75 -> 0.0375 | AP65: 0.05 | AQ65: 0.05
C66: - for korn efter bælgsæd | H66: 0.2 | M66: Pløjning | Q66: 0.9 | AF66: Yield benefit 1st year after spring cereals, not oat | AG66: 0.08 | AH66: 0.08 | AI66: 0.08 | AM66: =AG66*0.75 -> 0.06 | AN66: =AG66*0.75 -> 0.06 | AO66: Expert assessment
C67: - for alle afgrøder efter efterafgrøder | H67: 0.02 | M67: Reduceret jordbearbejdning | Q67: 0.6 | AF67: Yield benefit 1st year after spring oat | AG67: 0.2 | AH67: 0.2 | AI67: 0.2 | AM67: 0.15 | AN67: 0.15 | AO67: Expert assessment, but should be higher than spring barley and spring wheat
M68: No-till | Q68: 0.4 | AF68: Yield benefit from following grass | AG68: 0.05 | AH68: 0.05 | AI68: 0.05 | AJ68: 0.05 | AK68: 0.05 | AL68: 0.05 | AM68: 0.05 | AN68: 0.05
M69: Nedvisning | Q69: 0.05 | AF69: Yield benefit from following grass/clover | AG69: 0.08 | AH69: 0.08 | AI69: 0.08 | AJ69: 0.08 | AK69: 0.08 | AL69: 0.08 | AM69: 0.08 | AN69: 0.08
B70: Udbytte straf | AF70: Benefit for later option added | AG70: 0 | AH70: 0 | AI70: 0 | AJ70: 0 | AK70: 0 | AL70: 0 | AM70: 0 | AN70: 0 | AO70: to keep option for later
M71: Afskriving af afgrøde | Q71: 0.95 | AF71: Yield benefit for all crops, after cover crops | AN71: =H24 -> 0.02
C72: For bælgsæd, effekt af herbicider brugt i foregående afgrøde | H72: 0.02 | AF72: Yield penalties
AF73: Second year crop | AG73: 0.2 | AH73: 0.2 | AI73: 0.2 | AJ73: 0.05 | AK73: 0.05 | AL73: 0.05 | AM73: =H31 -> 0.5 | AN73: =H32 -> 0.4
C74: - for raps, hvis pause mellem rapsafgrøder er 1 år | H74: 0.5 | AF74: Third year crop | AG74: 0.15 | AH74: 0.15 | AI74: 0.15 | AJ74: 0.03 | AK74: 0.03 | AL74: 0.03 | AM74: =AM73+(AM73*0.2) -> 0.6 | AN74: =AN73+(AN73*0.2) -> 0.48
C75: - for bælgsæd, hvis pause mellem rapsafgrøder er 1 år | H75: 0.4 | AF75: Fourth year crop | AG75: 0.1 | AH75: 0.1 | AI75: 0.1 | AJ75: 0.03 | AK75: 0.03 | AL75: 0.03 | AM75: =AM74+(AM74*0.2) -> 0.72 | AN75: =AN74+(AN74*0.2) -> 0.576
AF76: Penalty for later option added | AG76: 0 | AH76: 0 | AI76: 0 | AJ76: 0 | AK76: 0 | AL76: 0 | AM76: 0 | AN76: 0 | AO76: to keep option for later
AF77: Penalty for later option added | AG77: 0 | AH77: 0 | AI77: 0 | AJ77: 0 | AK77: 0 | AL77: 0 | AM77: 0 | AN77: 0 | AO77: to keep option for later
AF78: Penalty for later option added | AG78: 0 | AH78: 0 | AI78: 0 | AJ78: 0 | AK78: 0 | AL78: 0 | AM78: 0 | AN78: 0 | AO78: to keep option for later
AF81: Average yield penalty from phytotoxic effect herbicides (of pre- and post-emergents) | AN81: =H29 -> 0.02 | AY81: 0.02
AF82: Critical factors | AG82: Do not change without good advice | AV82: Australian reference data
AF83: Average kernel weight (mg) | AG83: 42 | AH83: 59 | AI83: 39 | AJ83: 50 | AK83: 40 | AL83: 45 | AM83: 3 | AN83: 150 | AV83: 37 | AW83: 35 | AX83: 3 | AY83: 150 | BA83: From the TKV found, it seems that the kernels are larger here than in AU.
AF84: Expected standard rates seedling establishment (% of seeds) | AG84: 0.95 | AH84: 0.95 | AI84: 0.92 | AJ84: 0.95 | AK84: 0.95 | AL84: 0.95 | AM84: 0.6 | AN84: 0.8 | AV84: 0.75 | AW84: 0.75 | AX84: 0.6 | AY84: 0.8 | BA84: And have higher establishment rate
B85: Options_1 | C85: ='1.Profile'!O30 -> ALS/SU resistens, Danmark | AF85: Expected high rates seedling establishment (% of seeds) | AG85: 0.9 | AH85: 0.9 | AI85: 0.87 | AJ85: 0.9 | AK85: 0.9 | AL85: 0.9 | AM85: 0.55 | AN85: 0.75 | AV85: 0.7 | AW85: 0.7 | AX85: 0.55 | AY85: 0.75 | BA85: Ditto
AF86: Maximum proportion of yield lost at high weed density (∞)(Cousens a) | AG86: 0.6 | AH86: 0.6 | AI86: 0.6 | AJ86: 0.45 | AK86: 0.4 | AL86: 0.4 | AM86: 0.45 | AN86: 0.95 | AO86: DK ref: Lemerle et al 1995 (several crops, rigidum), Izquierdo et al 2003 (high losses in barley, not integrated pt, rigidum), Stone et al 1999 (wheat, multiflorum) | AV86: 0.6 | AW86: 0.45 | AX86: 0.6 | AY86: 0.6 | BA86: Goggin, D.E., Powles, S.B. and Steadman, K,J. (2012) Understanding Lolium rigidum Seeds: The Key to Managing a Problem Weed? Agronomy 2:222-239
B87: Afgrøder | E87: V.hvede | F87: V.byg | G87: V.rug | H87: Raps | I87: Vårbyg | J87: Havre | K87: Vårhvede | L87: Bælgsæd | M87: Græs | N87: Græs/kløver | AD87: Used in seed production | AF87: Competition factor on ryegrass from crop | AG87: 0.09 | AH87: 0.09 | AI87: 0.15 | AJ87: 0.25 | AK87: 0.3 | AL87: 0.2 | AM87: 0.2 | AN87: 0.07 | AV87: 3 | AW87: 3.3 | AX87: 2.6 | AY87: 3.9 | AZ87: * | BA87: Doole, G.J. (2009) Increased cropping activity and herbicide resistance: the case of rigid ryegrass in Western Australian dryland agriculture. In: Berklian, Y.U. (Ed.), Crop Rotation: Economics, Impact, and Management. Nova Science Publishers, Hauppauge, pp. 1–40.
AD88: Used in Table 12 & graph | AF88: Density standard (not the actual density - a standard level for comparison) (plants/m2) | AG88: 110 | AH88: 110 | AI88: 110 | AJ88: 145 | AK88: 145 | AL88: 145 | AM88: 60 | AN88: 50 | AV88: 110 | AW88: 145 | AX88: 60 | AY88: 50
C89: Udsædsmængde standard | D89: kg/ha | E89: 100 | F89: 190 | G89: 90 | H89: 2.5 | I89: 140 | J89: 140 | K89: 170 | L89: 110 | M89: 90 | N89: 110 | AD89: Used in Table 12 & graph | AF89: Background competition factor | AG89: 5 | AH89: 5 | AI89: 5 | AJ89: 3 | AK89: 3 | AL89: 3 | AM89: 5 | AN89: 9 | AV89: 5 | AW89: 3 | AX89: 5 | AY89: 9 | AZ89: *
C90: Udsædsmængde medium | D90: kg/ha | E90: 143 | F90: 208 | G90: 100 | H90: 3 | I90: 150 | J90: 150 | K90: 175 | L90: 125 | M90: 98 | N90: 123 | AF90: % Yield loss/weed plant/unit area as weed density -> 0 (cousens i) | AG90: 0.01 | AH90: 0.01 | AI90: 0.01 | AJ90: 0.01 | AK90: 0.01 | AL90: 0.01 | AM90: 0.01 | AN90: 0.01 | AV90: * A. Diggle, D.Pannell, John Moore, 1999.
C91: Udsædsmængde høj | D91: kg/ha | E91: 185 | F91: 225 | G91: 110 | H91: 3.5 | I91: 160 | J91: 160 | K91: 188 | L91: 140 | M91: 105 | N91: 135
C92: Ved sen såning er det standard praksis at forhøje udsædsmængden for at opnå det samme plantetal pr m2.
C93: Der vil derfor ikke pånås højere plantetal ved kombinationen sen såning og høj udsædsmængde end ved tidlig såning og standard udsædsmængde
C94: Der kan vælges medium eller høj udsædsmængde for tidlig eller mellemtidlig såning, dette vil forhøje plantetal pr. m2 | AF94: Ryegrass
AF96: Ryegrass plants in September year 1 (pl/m2) | AG96: =SeedNos_SH -> 2 | AH96: From Profile | AK96: 0.05 | AL96: Australian | AM96: For Australia
B97: Udbytte fordele | L97: Rajgræs bekæmpelse | AK97: 0.4 | AL97: Standard | AM97: Note: Germination is:
L98: Andel af rajgræsplanter, der bekæmpes: | AF98: For Denmark | AK98: 0.4 | AM98: - the least in regenerating pasture without tickle (minimal disturbance)
C99: - for raps efter bælgsæd | H99: 0.05 | M99: Behovsbaseret pløjning | Q99: 0.98 | AF99: LOLMU can emerge from Feb to Nov with peaks in Apr-May and Aug-Oct | AK99: 0.4 | AM99: - skewed earlier if tickle (and slight change in amount )
C100: - for korn efter bælgsæd | H100: 0.2 | M100: Pløjning | Q100: 0.9 | AF100: These numbers reflect the emergence in autumn from Aug to Nov following the division into 6 parts from below | AK100: 0.1 | AL100: 0.82 | AM100: - a bit greater with full-cut compared to no-till
C101: - for alle afgrøder efter efterafgrøder | H101: 0.02 | M101: Reduceret jordbearbejdning | Q101: 0.6 | AF101: The emergence in spring will be scewed more to the left
M102: No-till | Q102: 0.4 | AG102: 0.3 | AH102: Dansk | AI102: Ichihara et al 2009 (Japan), LOLMU, more emergence on surface than burried with harrow (5 cm)
M103: Nedvisning | Q103: 0.05 | AG103: 0.4 | AH103: Standard | AI103: Kryger Jensen 2010 (DK); larger decay when left on soil surface; Poa trivialis and Vulpia myuros
B104: Udbytte straf | AG104: 0.25 | AI104: Chauhan et al 2006 (Australia); rigidum; | AL104: "The seedling recruitment of rigid ryegrass was lower under the low–soildisturbance tillage systems
M105: Afskriving af afgrøde | Q105: 0.95 | AG105: 0.1 | AL105: than under the high–soil-disturbance tillage systems at both locations.
C106: For bælgsæd, effekt af herbicider brugt i foregående afgrøde | H106: 0.02 | AG106: 0.1 | AH106: 0.82 | AL106: The seedling recruitment was two- to fourfold greater under minimum tillage than under no-till.
AG107: 0.05 | AL107: The carryover of residual viable seeds from one season to the next was similar between the tillage systems.
C108: - for raps, hvis pause mellem rapsafgrøder er 1 år | H108: 0.5 | AL108: However, seed decay under no-till (48 to 60%) was much greater than under minimum tillage (12 to 39%)."
C109: - for bælgsæd, hvis pause mellem rapsafgrøder er 1 år | H109: 0.4
AG111: The relation ship among the tillage practices are somewhat documented, but not the actutal numbers
AG112: See above references + pers comments Jens Erik jensen SEGES
AF113: Germination - Sowing (crop or pasture) and: | AG113: Autumn sown crops | AJ113: Spring sown crops | AO113: Autumn crops | AR113: Autumn crops | AU113: Autumn crops
AF114: These show the % of remaining seed which germ in this period | AG114: Plough | AH114: Red. Till | AI114: No-till | AJ114: Plough | AK114: Red. Till | AL114: No-till | AO114: Plough | AR114: Reduced tillage | AU114: No-till
AF115: Period for early sowing 1.-15. sep /before 20. Mar. | AG115: 0.25 | AH115: 0.15 | AI115: 0.08 | AJ115: 0.72 | AK115: 0.47 | AL115: 0.45 | AO115: =AG115 -> 0.25 | AP115: =1*(1-AG115) -> 0.75 | AR115: =AH115 -> 0.15 | AS115: =1*(1-AH115) -> 0.85 | AU115: =AI115 -> 0.08 | AV115: =1*(1-AI115) -> 0.92
AF116: Period for medium sowing 15.-20. sep /20. mar - 15. apr | AG116: 0.35 | AH116: 0.2 | AI116: 0.15 | AJ116: 0.25 | AK116: 0.15 | AL116: 0.1 | AO116: =AP115-AP116 -> 0.2625 | AP116: =AP115*(1-AG116) -> 0.4875 | AR116: =AS115-AS116 -> 0.17 | AS116: =AS115*(1-AH116) -> 0.68 | AU116: =AV115-AV116 -> 0.138 | AV116: =AV115*(1-AI116) -> 0.782
AF117: Period for late sowing after 20. sep / after 15. apr. | AG117: 0.25 | AH117: 0.25 | AI117: 0.2 | AJ117: 0.15 | AK117: 0.1 | AL117: 0.15 | AO117: =AP116-AP117 -> 0.121875 | AP117: =AP116*(1-AG117) -> 0.365625 | AR117: =AS116-AS117 -> 0.17 | AS117: =AS116*(1-AH117) -> 0.51 | AU117: =AV116-AV117 -> 0.1564 | AV117: =AV116*(1-AI117) -> 0.6256
AF118: Before Pre-E spraying (late emerging ) /not relevant in spring | AG118: 0.1 | AH118: 0.1 | AI118: 0.08 | AJ118: 0 | AK118: 0 | AL118: 0 | AO118: =AP117-AP118 -> 0.0365625 | AP118: =AP117*(1-AG118) -> 0.3290625 | AR118: =AS117-AS118 -> 0.051 | AS118: =AS117*(1-AH118) -> 0.459 | AU118: =AV117-AV118 -> 0.050048 | AV118: =AV117*(1-AI118) -> 0.575552
B119: Options_2 | C119: ='1.Profile'!O31 -> Fop/dim resistens, Danmark | AF119: Before Post-E spraying, both seasons | AG119: 0.1 | AH119: 0.1 | AI119: 0.08 | AJ119: 0.1 | AK119: 0.08 | AL119: 0.05 | AO119: =AP118-AP119 -> 0.03290625 | AP119: =AP118*(1-AG119) -> 0.29615625 | AR119: =AS118-AS119 -> 0.0459 | AS119: =AS118*(1-AH119) -> 0.4131 | AU119: =AV118-AV119 -> 0.04604416 | AV119: =AV118*(1-AI119) -> 0.52950784
AF120: Spring germination, both winter and spring crop | AG120: 0.05 | AH120: 0.05 | AI120: 0.02 | AJ120: 0.05 | AK120: 0.02 | AL120: 0.02 | AO120: =AP119-AP120 -> 0.0148078125 | AP120: =AP119*(1-AG120) -> 0.2813484375 | AR120: =AS119-AS120 -> 0.020655 | AS120: =AS119*(1-AH120) -> 0.392445 | AU120: =AV119-AV120 -> 0.0105901568 | AV120: =AV119*(1-AI120) -> 0.5189176832
B121: Afgrøder | E121: V.hvede | F121: V.byg | G121: V.rug | H121: Raps | I121: Vårbyg | J121: Havre | K121: Vårhvede | L121: Bælgsæd | M121: Græs | N121: Græs/kløver | AO121: total: | AP121: =1-AP120 -> 0.7186515625 | AQ121: =SUM(AO115:AO120)+AP120 -> 1 | AR121: total: | AS121: =1-AS120 -> 0.607555 | AT121: =SUM(AR115:AR120)+AS120 -> 1 | AU121: total: | AV121: =1-AV120 -> 0.4810823168 | AW121: =SUM(AU115:AU120)+AV120 -> 1
AF122: Ryegrass Variables | AG122: =1-AP120 -> 0.7186515625 | AH122: =1-AS120 -> 0.607555 | AI122: =1-AV120 -> 0.4810823168 | AJ122: =1-AP129 -> 0.8473825 | AK122: =1-AS129 -> 0.63444628 | AL122: =1-AV129 -> 0.60828175 | AO122: Spring crops | AR122: spring crops | AU122: spring crops
C123: Udsædsmængde standard | D123: kg/ha | E123: 100 | F123: 190 | G123: 90 | H123: 2.5 | I123: 140 | J123: 140 | K123: 170 | L123: 110 | M123: 90 | N123: 110 | AF123: Nb of viable seeds at start (Yr1) per mature plant last year | AG123: 50 | AI123: 50 | AJ123: Steve Powles, 2012 | AL123: Australian data in blue | AO123: Plough | AR123: Reduced tillage | AU123: No-till
C124: Udsædsmængde medium | D124: kg/ha | E124: 143 | F124: 208 | G124: 100 | H124: 3 | I124: 150 | J124: 150 | K124: 175 | L124: 125 | M124: 98 | N124: 123 | AF124: Mouldboard plough: % emerged plants controlled | AG124: =Q23 -> 0.9 | AI124: 1 | AJ124: GRDC, 2012 | AL124: European data in dark blue | AO124: =AJ115 -> 0.72 | AP124: =1*(1-AJ115) -> 0.28 | AR124: =AK115 -> 0.47 | AS124: =1*(1-AK115) -> 0.53 | AU124: =AL115 -> 0.45 | AV124: =1*(1-AL115) -> 0.55
C125: Udsædsmængde høj | D125: kg/ha | E125: 185 | F125: 225 | G125: 110 | H125: 3.5 | I125: 160 | J125: 160 | K125: 188 | L125: 140 | M125: 105 | N125: 135 | AE125: proportion germinated | AF125: Need-based ploughing to bury grass seeds if 4-5 yrs between plough | AG125: =1-Q22 -> 0.02 | AH125: Expert assessment | AI125: 0.3 | AJ125: adapted from Goggin et al. 2012 | AO125: =AP124-AP125 -> 0.07 | AP125: =AP124*(1-AJ116) -> 0.21 | AR125: =AS124-AS125 -> 0.0795 | AS125: =AS124*(1-AK116) -> 0.4505 | AU125: =AV124-AV125 -> 0.055 | AV125: =AV124*(1-AL116) -> 0.495
C126: Ved sen såning er det standard praksis at forhøje udsædsmængden for at opnå det samme plantetal pr m2. | AF126: Natural mortality of seedlings (% of total seedlings) | AG126: 0.05 | AI126: 0.05 | AJ126: Cheam, AgWA 1999 | AO126: =AP125-AP126 -> 0.0315 | AP126: =AP125*(1-AJ117) -> 0.1785 | AR126: =AS125-AS126 -> 0.04505 | AS126: =AS125*(1-AK117) -> 0.40545 | AU126: =AV125-AV126 -> 0.07425 | AV126: =AV125*(1-AL117) -> 0.42075
C127: Der vil derfor ikke pånås højere plantetal ved kombinationen sen såning og høj udsædsmængde end ved tidlig såning og standard udsædsmængde | AF127: Natural mortality of dormant seeds during season | AG127: 0.2 | AH127: Might need to be adjusted for DK conditions? | AI127: 0.2 | AJ127: J. Holmes, RTC & M. Monjardino, UWA 1999 | AO127: =AP126-AP127 -> 0 | AP127: =AP126*(1-AJ118) -> 0.1785 | AR127: =AS126-AS127 -> 0 | AS127: =AS126*(1-AK118) -> 0.40545 | AU127: =AV126-AV127 -> 0 | AV127: =AV126*(1-AL118) -> 0.42075
C128: Der kan vælges medium eller høj udsædsmængde for tidlig eller mellemtidlig såning, dette vil forhøje plantetal pr. m2 | AF128: Natural mortality of seeds over the season | AG128: 0.3 | AH128: Expert assessment | AI128: 0.3 | AJ128: M. Monjardino, UWA 1999 | AL128: Maia et al. 2009, Brazilian data on LOLMU | AO128: =AP127-AP128 -> 0.01785 | AP128: =AP127*(1-AJ119) -> 0.16065 | AR128: =AS127-AS128 -> 0.032436 | AS128: =AS127*(1-AK119) -> 0.373014 | AU128: =AV127-AV128 -> 0.0210375 | AV128: =AV127*(1-AL119) -> 0.3997125
AF129: Sub-lethal effect of selective herbicides - lower seed production of surviving weeds. | AG129: 0.33 | AI129: 0.33 | AJ129: D. Pannell & V. Stewart, 1999 | AO129: =AP128-AP129 -> 0.0080325 | AP129: =AP128*(1-AJ120) -> 0.1526175 | AR129: =AS128-AS129 -> 0.00746028 | AS129: =AS128*(1-AK120) -> 0.36555372 | AU129: =AV128-AV129 -> 0.00799425 | AV129: =AV128*(1-AL120) -> 0.39171825
AF130: Effect of late-season application of non-selective herbicide - lower viability of newly produced seeds | AG130: 0.5 | AI130: 0.5 | AJ130: Steadman et al., 2006 | AO130: total: | AP130: =1-AP129 -> 0.8473825 | AQ130: =SUM(AO124:AO129)+AP129 -> 1 | AR130: total: | AS130: =1-AS129 -> 0.63444628 | AT130: =SUM(AR124:AR129)+AS129 -> 1 | AU130: total: | AV130: =1-AV129 -> 0.60828175 | AW130: =SUM(AU124:AU129)+AV129 -> 1
B131: Udbytte fordele | L131: Rajgræs bekæmpelse | AF131: Maximum ryegrass seed production (seeds/m2/year) | AG131: 35000 | AI131: 35000 | AJ131: M. Monjardino, UWA 1999 | AO131: A number of those ryegrass parameters are reviewed in:
L132: Andel af rajgræsplanter, der bekæmpes: | AF132: Removal of weed seed in grain with normal harvesting | AG132: 0.05 | AI132: 0.05 | AJ132: Michael Walsh, 2012 | AO132: Goggin, D.E., Powles, S.B. and Steadman, K,J. (2012) Understanding Lolium rigidum Seeds: The Key to Managing a Problem Weed? Agronomy 2:222-239
C133: - for raps efter bælgsæd | H133: 0.05 | M133: Behovsbaseret pløjning | Q133: 0.98 | AE133: Added in Dk version | AF133: Ryegrass germination in grass | AG133: 0.3 | AH133: Expert assessment | AO133: Doole, G.J. (2009) Increased cropping activity and herbicide resistance: the case of rigid ryegrass in Western Australian dryland agriculture. In: Berklian, Y.U. (Ed.), Crop Rotation: Economics, Impact, and Management. Nova Science Publishers, Hauppauge, pp. 1–40.
C134: - for korn efter bælgsæd | H134: 0.2 | M134: Pløjning | Q134: 0.9 | AF134: Ryegrass background comp. Factor (intra-specific) | AG134: 0.04 | AH134: Changed, see comment | AI134: 33 | AJ134: A. Diggle, AgWA | AL134: Renton et al 2011, Hashem et al. 1998?
C135: - for alle afgrøder efter efterafgrøder | H135: 0.02 | M135: Reduceret jordbearbejdning | Q135: 0.6 | AE135: Not in use at the moment | AF135: Ryegrass competition factor in wheat | AG135: 0.33 | AI135: 0.33 | AJ135: D. Pannell, UWA 1999 | AL135: Not used in DK-RIM because we changed the yield function
M136: No-till | Q136: 0.4 | AE136: Not in use at the moment | AF136: Ryegrass competition factor in s barley | AG136: 0.3 | AI136: 0.3 | AJ136: D. Pannell, UWA 1999
M137: Nedvisning | Q137: 0.05 | AE137: Not in use at the moment | AF137: Ryegrass competition factor in oilseed rape | AG137: 0.35 | AI137: 0.35 | AJ137: D. Pannell, UWA 1999
B138: Udbytte straf | AE138: Not in use at the moment | AF138: Ryegrass competition factor in legumes | AG138: 0.24 | AI138: 0.24 | AJ138: D. Pannell, UWA 1999
M139: Afskriving af afgrøde | Q139: 0.95 | AF139: Ryegrass competition factor in pasture | AG139: 0.99
C140: For bælgsæd, effekt af herbicider brugt i foregående afgrøde | H140: 0.02 | AF140: Needs-based ploughing extra ungerminated seed mortality | AG140: 0.8
AF141: Don't change red numbers without good advice
C142: - for raps, hvis pause mellem rapsafgrøder er 1 år | H142: 0.5
C143: - for bælgsæd, hvis pause mellem rapsafgrøder er 1 år | H143: 0.4
AG145: The number of seeds produced per plant in % relative to the maximum possible amount
AH146: Autumn | AK146: Spring | AO146: Australian data
AF147: Progeny index for ryegrass | AG147: Early sow | AH147: Medium sow | AI147: Late sow | AJ147: Early sow | AK147: Medium sow | AL147: Late sow | AO147: John Moore, DAWA, Dec 2000
AF148: Period for early sowing 1.-15. sep /before 20. Mar. | AG148: 1 | AH148: 0.8 | AI148: 0.6 | AJ148: 0.5 | AK148: 0.4 | AL148: 0.3 | AO148: Seed day 0 | AP148: Seed day 10 | AQ148: Seed day 20 | AS148: Første udgave af DK-RIM brugte disse værdier
AF149: Period for medium sowing 15.-20. sep /20. mar - 15. apr | AG149: 0.4 | AH149: 0.6 | AI149: 0.4 | AJ149: 0.25 | AK149: 0.25 | AL149: 0.2 | AO149: 1 | AP149: 1 | AQ149: 1 | AS149: 1 | AT149: 1 | AU149: 1 | AV149: 0.5 | AW149: 0.6 | AX149: 0.7
AF150: Period for late sowing after 20. sep / after 15. apr. | AG150: 0.3 | AH150: 0.25 | AI150: 0.15 | AJ150: 0.05 | AK150: 0.05 | AL150: 0.02 | AO150: 0.3 | AP150: 1 | AQ150: 1 | AS150: 0.25 | AT150: 1 | AU150: 1 | AV150: 0.25 | AW150: 0.55 | AX150: 0.6
AF151: Before Pre-E spraying (late emerging ) /not relevant in spring crops | AG151: 0.1 | AH151: 0.1 | AI151: 0.1 | AJ151: 0 | AK151: 0 | AL151: 0 | AO151: 0.1 | AP151: 0.3 | AQ151: 0.45 | AS151: 0.15 | AT151: 0.25 | AU151: 1 | AV151: 0.1 | AW151: 0.3 | AX151: 0.45
AF152: Before Post-E spraying, both seasons | AG152: 0.05 | AH152: 0.05 | AI152: 0.05 | AJ152: 0.02 | AK152: 0.02 | AL152: 0.02 | AO152: 0.02 | AP152: 0.1 | AQ152: 0.1 | AS152: 0.1 | AT152: 0.1 | AU152: 0.2 | AV152: 0.05 | AW152: 0.15 | AX152: 0.1
B153: Options_3 | C153: ='1.Profile'!O32 -> Metabolisk resistens, Danmark | AF153: Spring germination, both winter and spring crop | AG153: 0.02 | AH153: 0.02 | AI153: 0.02 | AJ153: 0.02 | AK153: 0.02 | AL153: 0.02 | AS153: 0.05 | AT153: 0.05 | AU153: 0.15 | AV153: 0.02 | AW153: 0.03 | AX153: 0.05
AS154: 0.02 | AT154: 0.02 | AU154: 0.05 | AV154: 0.02 | AW154: 0.02 | AX154: 0.05
B155: Afgrøder | E155: V.hvede | F155: V.byg | G155: V.rug | H155: Raps | I155: Vårbyg | J155: Havre | K155: Vårhvede | L155: Bælgsæd | M155: Græs | N155: Græs/kløver | AG155: =AVERAGE(AG148:AG153) -> 0.3116666667 | AH155: 0.3033333333 | AI155: 0.22 | AJ155: 0.14 | AK155: 0.1233333333 | AL155: 0.09333333333
C157: Udsædsmængde standard | D157: kg/ha | E157: 100 | F157: 190 | G157: 90 | H157: 2.5 | I157: 140 | J157: 140 | K157: 170 | L157: 110 | M157: 90 | N157: 110 | AG157: Expert assessment, might need adjustment later
C158: Udsædsmængde medium | D158: kg/ha | E158: 143 | F158: 208 | G158: 100 | H158: 3 | I158: 150 | J158: 150 | K158: 175 | L158: 125 | M158: 98 | N158: 123
C159: Udsædsmængde høj | D159: kg/ha | E159: 185 | F159: 225 | G159: 110 | H159: 3.5 | I159: 160 | J159: 160 | K159: 188 | L159: 140 | M159: 105 | N159: 135
C160: Ved sen såning er det standard praksis at forhøje udsædsmængden for at opnå det samme plantetal pr m2.
C161: Der vil derfor ikke pånås højere plantetal ved kombinationen sen såning og høj udsædsmængde end ved tidlig såning og standard udsædsmængde
C162: Der kan vælges medium eller høj udsædsmængde for tidlig eller mellemtidlig såning, dette vil forhøje plantetal pr. m2
B165: Udbytte fordele | L165: Rajgræs bekæmpelse
L166: Andel af rajgræsplanter, der bekæmpes:
C167: - for raps efter bælgsæd | H167: 0.05 | M167: Behovsbaseret pløjning | Q167: 0.98
C168: - for korn efter bælgsæd | H168: 0.2 | M168: Pløjning | Q168: 0.9
C169: - for alle afgrøder efter efterafgrøder | H169: 0.02 | M169: Reduceret jordbearbejdning | Q169: 0.6
M170: No-till | Q170: 0.4
M171: Nedvisning | Q171: 0.05
B172: Udbytte straf
M173: Afskriving af afgrøde | Q173: 0.95
C174: For bælgsæd, effekt af herbicider brugt i foregående afgrøde | H174: 0.02
C176: - for raps, hvis pause mellem rapsafgrøder er 1 år | H176: 0.5
C177: - for bælgsæd, hvis pause mellem rapsafgrøder er 1 år | H177: 0.4
B188: Options_4 | C188: ='1.Profile'!O33 -> Ingen resistens, Danmark
B190: Afgrøder | E190: V.hvede | F190: V.byg | G190: V.rug | H190: Raps | I190: Vårbyg | J190: Havre | K190: Vårhvede | L190: Bælgsæd | M190: Græs | N190: Græs/kløver
C192: Udsædsmængde standard | D192: kg/ha | E192: 100 | F192: 190 | G192: 90 | H192: 2.5 | I192: 140 | J192: 140 | K192: 170 | L192: 110 | M192: 90 | N192: 110
C193: Udsædsmængde medium | D193: kg/ha | E193: 143 | F193: 208 | G193: 100 | H193: 3 | I193: 150 | J193: 150 | K193: 175 | L193: 125 | M193: 98 | N193: 123
C194: Udsædsmængde høj | D194: kg/ha | E194: 185 | F194: 225 | G194: 110 | H194: 3.5 | I194: 160 | J194: 160 | K194: 188 | L194: 140 | M194: 105 | N194: 135
C195: Ved sen såning er det standard praksis at forhøje udsædsmængden for at opnå det samme plantetal pr m2.
C196: Der vil derfor ikke pånås højere plantetal ved kombinationen sen såning og høj udsædsmængde end ved tidlig såning og standard udsædsmængde
C197: Der kan vælges medium eller høj udsædsmængde for tidlig eller mellemtidlig såning, dette vil forhøje plantetal pr. m2
B200: Udbytte fordele | L200: Rajgræs bekæmpelse
L201: Andel af rajgræsplanter, der bekæmpes:
C202: - for raps efter bælgsæd | H202: 0.05 | M202: Behovsbaseret pløjning | Q202: 0.98
C203: - for korn efter bælgsæd | H203: 0.2 | M203: Pløjning | Q203: 0.9
C204: - for alle afgrøder efter efterafgrøder | H204: 0.02 | M204: Reduceret jordbearbejdning | Q204: 0.6
M205: No-till | Q205: 0.4
M206: Nedvisning | Q206: 0.05
B207: Udbytte straf
M208: Afskriving af afgrøde | Q208: 0.95
C209: For bælgsæd, effekt af herbicider brugt i foregående afgrøde | H209: 0.02
C211: - for raps, hvis pause mellem rapsafgrøder er 1 år | H211: 0.5
C212: - for bælgsæd, hvis pause mellem rapsafgrøder er 1 år | H212: 0.4

Sheet 2.Strategy
B1: 2. Planlæg strategien | J1: ='1.Profile'!O27&", "&'1.Profile'!O26 -> Ingen resistens, Danmark | AN1: =AND(D$6<>"",D$13<>"") -> FALSE
O2: Brug ikke copy-paste funktion til at udfylde strategien
C3: Vælg afgrøde og dyrknings- | D3: År 1 | E3: År 2 | F3: År 3 | G3: År 4 | H3: År 5 | I3: År 6 | J3: År 7 | K3: År 8 | L3: År 9 | M3: År 10 | O3: Det ødelægger formateringen.
C4: -system for hvert høstår: | D4: Vårbyg | E4: Raps | F4: V.hvede | G4: V.hvede | H4: Vårbyg | I4: Raps | J4: V.hvede | K4: V.hvede | L4: Vårbyg | M4: Raps | O4: Gem & indlæs | AV4: Excluded
A5: 13 | C5: =" "&P71 -> Glyphosat & timing | E5: Ingen | F5: Ingen | G5: Ingen | I5: Ingen | J5: Ingen | K5: Ingen | M5: Ingen | O5: Strateginavn: | AV5: =D93&D94&D95 -> TidligMediumSen
A6: 10 | C6: =" "&C76 -> Jordbearbejdning | E6: Pløjet | F6: Pløjet | G6: Pløjet | I6: Pløjet | J6: Pløjet | K6: Pløjet | M6: Pløjet
A7: 1 | C7: =" "&C80 -> Såtid | E7: Tidlig | F7: Sen | G7: Tidlig | I7: Tidlig | J7: Sen | K7: Tidlig | M7: Tidlig
A8: 4 | C8: =" "&C84 -> Udsædsmængde | E8: Standard | F8: Høj | G8: Standard | I8: Standard | J8: Høj | K8: Standard | M8: Standard
A9: 11 | C9: =" "&P97 -> Mellem/Efterafgrøder | E9: Nej | F9: Nej | G9: Nej | I9: Nej | J9: Nej | K9: Nej | M9: Nej | AV9: =H63 -> Vårbyg
A10: 9 | C10: =" "&P81 -> Herbicid før fremspiring | F10: Boxer 1 l | G10: Boxer 1 l | J10: Boxer 1 l | K10: Boxer 1 l | AV10: =H63&I63&J63 -> VårbygHavreVårhvede
A11: 15 | C11: =" "&P87 -> Herbicid efter fremspiring | E11: Kerb | G11: Topik | I11: Kerb | K11: Topik | M11: Kerb
A12: 16 | C12: =" "&P71 -> Glyphosat & timing | D12: Ingen | H12: Ingen | L12: Ingen
A13: 17 | C13: =" "&C88 -> Jordbearbejdning | D13: Pløjet | H13: Pløjet | L13: Pløjet
A14: 23 | C14: =" "&C93 -> Såtid | D14: Tidlig | H14: Tidlig | L14: Tidlig | O14: Default | AV14: =D63&E63&F63&G63 -> V.hvedeV.bygV.rugRaps
A15: 35 | C15: =" "&C97 -> Udsædsmængde | D15: Standard | H15: Standard | L15: Standard
A16: 25 | C16: =" "&P97 -> Mellem/Efterafgrøder | D16: Nej | H16: Nej | L16: Nej | P16: =IF(COUNTIF(D48:M48,"Err NS")>0,E50,IF(COUNTIF(D48:M48,"Err E")>0,E51,IF(COUNTIF(D48:M48,"Err H")>0,E52,""))) ->  | AV16: =H63&I63&J63 -> VårbygHavreVårhvede
A17: 31 | C17: =" "&P87 -> Herbicid efter fremspiring | D17: Hussar Plus OD | F17: Hussar Plus OD | H17: Hussar Plus OD | J17: Hussar Plus OD | L17: Hussar Plus OD | P17: =IF(COUNTIF(D48:M48,"Err NS")>0,H50,IF(COUNTIF(D48:M48,"Err E")>0,H51,IF(COUNTIF(D48:M48,"Err H")>0,H52,""))) -> 
A18: 35 | C18: =" "&C101 -> Yderligere muligheder | P18: =IF(COUNTIF(D48:M48,"Err NS")>0,J50,IF(COUNTIF(D48:M48,"Err E")>0,J51,IF(COUNTIF(D48:M48,"Err H")>0,J52,""))) ->  | AV18: =L63&M63 -> GræsGræs/kløver
C19: =" "&C107 -> Høst | D19: Korn+ snit | E19: Raps | F19: Korn+ snit | G19: Korn+ snit | H19: Korn+ snit | I19: Raps | J19: Korn+ snit | K19: Korn+ snit | L19: Korn+ snit | M19: Raps
C20: Rajgræsplanter m. frøsætning pr. m2: | D20: =IF('Bio results'!D$9>$O$67,">"&$O$67,'Bio results'!D$9) -> 3.228138 | E20: =IF('Bio results'!E$9>$O$67,">"&$O$67,'Bio results'!E$9) -> 2.63368595 | F20: =IF('Bio results'!F$9>$O$67,">"&$O$67,'Bio results'!F$9) -> 1.846277453 | G20: =IF('Bio results'!G$9>$O$67,">"&$O$67,'Bio results'!G$9) -> 10.15933109 | H20: =IF('Bio results'!H$9>$O$67,">"&$O$67,'Bio results'!H$9) -> 6.1334622 | I20: =IF('Bio results'!I$9>$O$67,">"&$O$67,'Bio results'!I$9) -> 5.2673719 | J20: =IF('Bio results'!J$9>$O$67,">"&$O$67,'Bio results'!J$9) -> 3.692554905 | K20: =IF('Bio results'!K$9>$O$67,">"&$O$67,'Bio results'!K$9) -> 20.31866218 | L20: =IF('Bio results'!L$9>$O$67,">"&$O$67,'Bio results'!L$9) -> 12.2669244 | M20: =IF('Bio results'!M$9>$O$67,">"&$O$67,'Bio results'!M$9) -> 10.15850295
C21: Frø i jord følgende sæson pr. m2: | D21: =IF('Bio results'!D$22>$O$68,">"&$O$68,'Bio results'!D$22) -> 70 | E21: =IF('Bio results'!E$22>$O$68,">"&$O$68,'Bio results'!E$22) -> 130 | F21: =IF('Bio results'!F$22>$O$68,">"&$O$68,'Bio results'!F$22) -> 180 | G21: =IF('Bio results'!G$22>$O$68,">"&$O$68,'Bio results'!G$22) -> 190 | H21: =IF('Bio results'!H$22>$O$68,">"&$O$68,'Bio results'!H$22) -> 140 | I21: =IF('Bio results'!I$22>$O$68,">"&$O$68,'Bio results'!I$22) -> 260 | J21: =IF('Bio results'!J$22>$O$68,">"&$O$68,'Bio results'!J$22) -> 360 | K21: =IF('Bio results'!K$22>$O$68,">"&$O$68,'Bio results'!K$22) -> 380 | L21: =IF('Bio results'!L$22>$O$68,">"&$O$68,'Bio results'!L$22) -> 270 | M21: =IF('Bio results'!M$22>$O$68,">"&$O$68,'Bio results'!M$22) -> 480
C22: Årligt udbytte (kr/ha) | D22: =ROUND(('Eco results'!E81),-2) -> 2100 | E22: =ROUND(('Eco results'!F81),-2) -> 4300 | F22: =ROUND(('Eco results'!G81),-2) -> 5000 | G22: =ROUND(('Eco results'!H81),-2) -> 1800 | H22: =ROUND(('Eco results'!I81),-2) -> 1900 | I22: =ROUND(('Eco results'!J81),-2) -> 4100 | J22: =ROUND(('Eco results'!K81),-2) -> 4800 | K22: =ROUND(('Eco results'!L81),-2) -> 1200 | L22: =ROUND(('Eco results'!M81),-2) -> 1600 | M22: =ROUND(('Eco results'!N81),-2) -> 3600
D24: ='Eco results'!E91 -> 3000
D25: kr/ha i gn.snit. | AU25: FALSE
AU26: 1
O28: =IF(AND('Eco results'!Q5='Eco results'!Q25,'Eco results'!P5='Eco results'!P25),"Aktiv","") ->  | P28: =IF('3. Out Eco'!C10=0,"",'3. Out Eco'!C10) -> 
O29: ='3. Out Eco'!F10 -> Ingen resistens, Danmark -
O35: =IF(AND('Eco results'!Q5='Eco results'!Q43,'Eco results'!P5='Eco results'!P43),"Aktiv","") ->  | P35: =IF('3. Out Eco'!C25=0,"",'3. Out Eco'!C25) -> 
O36: ='3. Out Eco'!F25 -> Ingen resistens, Danmark -
AR37: 2
P38: Auto
AR39: =P_2S -> TRUE
C46: ERROR
C47: Error handling | D47: Yr 1 | E47: Yr 2 | F47: Yr 3 | G47: Yr 4 | H47: Yr 5 | I47: Yr 6 | J47: Yr 7 | K47: Yr 8 | L47: Yr 9 | M47: Yr 10
C48: =IF(OR(COUNTIF(D4:M4,D63)>9,COUNTIF(D4:M4,E63)>9,COUNTIF(D4:M4,F63)>9,COUNTIF(D4:M4,G63)>9,COUNTIF(D4:M4,H63)>9,COUNTIF(D4:M4,I63)>9,COUNTIF(D4:M4,J63)>9,COUNTIF(D4:M4,K63)>9,COUNTIF(D4:M4,L63)>9,COUNTIF(D4:M4,M63)>9),"Err 1","OK") -> OK | D48: =IF(OR(ISERROR(FIND(D5,$D$55,1))=TRUE,ISERROR(FIND(D12,$D$55,1))=TRUE),"Err NS",IF((ISERROR(FIND(D10,$D$57,1))=TRUE),"Err E", IF(OR(ISERROR(FIND(D11,$D$59,1))=TRUE,ISERROR(FIND(D17,$D$59,1))=TRUE),"Err H","OK"))) -> OK | E48: OK | F48: OK | G48: OK | H48: OK | I48: OK | J48: OK | K48: OK | L48: OK | M48: OK
D49: 4 | E49: Error! Two consecutive years | H49: of canola or legumes | J49: (high disease risk) | L49: removed, to replace copy code from RIM Aus, change row nos
D50: NS | E50: Fejl! Et herbicid er ikke | H50: blevet opdateret | J50: i basale oplysninger | L50: Fejl! Et herbicid er ikke blevet opdateret i basale opslysninger
D51: E | E51: Fejl! Et herbicid er ikke | H51: blevet opdateret | J51: i basale oplysninger | L51: Fejl! Et herbicid er ikke blevet opdateret i basale opslysninger
C52: Error messages | D52: H | E52: Fejl! Et herbicid er ikke | H52: blevet opdateret | J52: i basale oplysninger | L52: Fejl! Et herbicid er ikke blevet opdateret i basale opslysninger
D53: 3 | E53: Error! Too many Spring | H53: and/or Harvest options | L53: removed
D54: 1 | E54: Error! Please set a rotation | H54: which reflects your | J54: long-term yield averages | L54: removed
D55: =CONCATENATE(O71,P72,P73,P74,P75,P76,P77,P78) -> Glyphosate rateIngen540Tidlig540Medium540Sen1080Tidlig1080Medium1080Sen
D56: =IF(OR(ISERROR(FIND(D5,$D$55,1))=TRUE,ISERROR(FIND(D12,$D$55,1))=TRUE),"Err NS","Found it") -> Found it | E56: =IF(OR(ISERROR(FIND(E5,$D$55,1))=TRUE,ISERROR(FIND(E12,$D$55,1))=TRUE),"Err NS","Found it") -> Found it | F56: Found it | G56: Found it | H56: Found it | I56: Found it | J56: Found it | K56: Found it | L56: Found it | M56: Found it
C57: Formulas for Err NS, E and H | D57: =CONCATENATE('2.Strategy'!P83,'2.Strategy'!P84) -> Boxer 1 lBoxer 2 l
D58: =IF((ISERROR(FIND(D10,$D$57,1))=TRUE),"Err E","Found it") -> Found it | E58: =IF((ISERROR(FIND(E10,$D$57,1))=TRUE),"Err E","Found it") -> Found it | F58: =IF((ISERROR(FIND(F10,$D$57,1))=TRUE),"Err E","Found it") -> Found it | G58: =IF((ISERROR(FIND(G8,$D$57,1))=TRUE),"Err E","Found it") -> Err E | H58: =IF((ISERROR(FIND(H10,$D$57,1))=TRUE),"Err E","Found it") -> Found it | I58: =IF((ISERROR(FIND(I10,$D$57,1))=TRUE),"Err E","Found it") -> Found it | J58: =IF((ISERROR(FIND(J10,$D$57,1))=TRUE),"Err E","Found it") -> Found it | K58: =IF((ISERROR(FIND(K8,$D$57,1))=TRUE),"Err E","Found it") -> Err E | L58: =IF((ISERROR(FIND(L10,$D$57,1))=TRUE),"Err E","Found it") -> Found it | M58: =IF((ISERROR(FIND(M10,$D$57,1))=TRUE),"Err E","Found it") -> Found it
D59: =CONCATENATE('2.Strategy'!P89,'2.Strategy'!P90,'2.Strategy'!P91,'2.Strategy'!P92,'2.Strategy'!P93,'2.Strategy'!P94,'2.Strategy'!P95) -> TopikAtlantis ODHussar Plus ODBroadwayCossack ODFocus UltraKerb
D60: =IF(OR(ISERROR(FIND(D11,$D$59,1))=TRUE,ISERROR(FIND(D17,$D$59,1))=TRUE),"Err H","Found it") -> Found it | E60: Found it | F60: Found it | G60: Found it | H60: Found it | I60: Found it | J60: Found it | K60: Found it | L60: Found it | M60: Found it
C62: VARIOUS
C63: Choice of enterprises | D63: V.hvede | E63: V.byg | F63: V.rug | G63: Raps | H63: Vårbyg | I63: Havre | J63: Vårhvede | K63: Bælgsæd | L63: Græs | M63: Græs/kløver
C64: Enterprise+year for graphs | D64: =VLOOKUP(Calcs!E242,Calcs!$C254:$K352,2)&" 1" -> Vårbyg 1 | E64: =VLOOKUP(Calcs!F242,Calcs!$C254:$K352,2)&" 2" -> Raps 2 | F64: =VLOOKUP(Calcs!G242,Calcs!$C254:$K352,2)&" 3" -> V.hvede 3 | G64: =VLOOKUP(Calcs!H242,Calcs!$C254:$K352,2)&" 4" -> V.hvede 4 | H64: =VLOOKUP(Calcs!I242,Calcs!$C254:$K352,2)&" 5" -> Vårbyg 5 | I64: =VLOOKUP(Calcs!J242,Calcs!$C254:$K352,2)&" 6" -> Raps 6 | J64: =VLOOKUP(Calcs!K242,Calcs!$C254:$K352,2)&" 7" -> V.hvede 7 | K64: =VLOOKUP(Calcs!L242,Calcs!$C254:$K352,2)&" 8" -> V.hvede 8 | L64: =VLOOKUP(Calcs!M242,Calcs!$C254:$K352,2)&" 9" -> Vårbyg 9 | M64: =VLOOKUP(Calcs!N242,Calcs!$C254:$K352,2)&" 10" -> Raps 10
C65: Season | D65: =IF(OR(D4=$D$63,D4=$E$63,D4=$F$63,D4=$G$63),"winter",IF(OR(D4=$L$63,D4=$M$63), "grass","spring")) -> spring | E65: =IF(OR(E4=$D$63,E4=$E$63,E4=$F$63,E4=$G$63),"winter",IF(OR(E4=$L$63,E4=$M$63), "grass","spring")) -> winter | F65: winter | G65: winter | H65: spring | I65: winter | J65: winter | K65: winter | L65: spring | M65: winter | O65: Critical densities
O66: for warnings
C67: Ryegrass setting seed, Nov. (per m2) | D67: ='Bio results'!D9 -> 3.228138 | E67: ='Bio results'!E9 -> 2.63368595 | F67: ='Bio results'!F9 -> 1.846277453 | G67: ='Bio results'!G9 -> 10.15933109 | H67: ='Bio results'!H9 -> 6.1334622 | I67: ='Bio results'!I9 -> 5.2673719 | J67: ='Bio results'!J9 -> 3.692554905 | K67: ='Bio results'!K9 -> 20.31866218 | L67: ='Bio results'!L9 -> 12.2669244 | M67: ='Bio results'!M9 -> 10.15850295 | O67: 300
C68: Ryegrass seeds in soil next March. (per m2) | D68: ='Bio results'!D$22 -> 70 | E68: ='Bio results'!E$22 -> 130 | F68: ='Bio results'!F$22 -> 180 | G68: ='Bio results'!G$22 -> 190 | H68: ='Bio results'!H$22 -> 140 | I68: ='Bio results'!I$22 -> 260 | J68: ='Bio results'!J$22 -> 360 | K68: ='Bio results'!K$22 -> 380 | L68: ='Bio results'!L$22 -> 270 | M68: ='Bio results'!M$22 -> 480 | O68: 1000
C70: CATEGORIES
C71: Glyphosat timing | O71: Glyphosate rate | P71: Glyphosat & timing
D72: Tidlig | O72: Ingen | P72: Ingen
D73: Medium | O73: =LEFT('1.Profile'!C16,12) -> 540 | P73: =CONCATENATE(O73,D72) -> 540Tidlig
D74: Sen | O74: =LEFT('1.Profile'!C17,12) -> 1080 | P74: =CONCATENATE(O73,D73) -> 540Medium
P75: =CONCATENATE(O73,D74) -> 540Sen
C76: Jordbearbejdning | D76: Pløjet | P76: =CONCATENATE(O74,D72) -> 1080Tidlig
D77: Reduceret | P77: =CONCATENATE(O74,D73) -> 1080Medium
D78: No-till | P78: =CONCATENATE(O74,D74) -> 1080Sen
C80: Såtid | D80: Tidlig
D81: Medium | P81: Herbicid før fremspiring
D82: Sen
P83: =IF(LEFT('1.Profile'!C19,12)<>"",LEFT('1.Profile'!C19,12),"") -> Boxer 1 l
C84: Udsædsmængde | D84: Standard | P84: =IF(LEFT('1.Profile'!C20,12)<>"",LEFT('1.Profile'!C20,12),"") -> Boxer 2 l
D85: Medium
D86: Høj
P87: Herbicid efter fremspiring
C88: Jordbearbejdning | D88: Behovsbaseret
D89: Pløjet | P89: =LEFT('1.Profile'!C22,17) -> Topik
D90: Reduceret | P90: =LEFT('1.Profile'!C23,17) -> Atlantis OD
D91: No-till | P91: =LEFT('1.Profile'!C24,17) -> Hussar Plus OD
P92: =LEFT('1.Profile'!C25,17) -> Broadway
C93: Såtid | D93: Tidlig | P93: =LEFT('1.Profile'!C26,17) -> Cossack OD
D94: Medium | P94: =LEFT('1.Profile'!C27,17) -> Focus Ultra
D95: Sen | P95: =LEFT('1.Profile'!C28,17) -> Kerb
C97: Udsædsmængde | D97: Standard | P97: Mellem/Efterafgrøder
D98: Medium
D99: Høj | P99: Ja
P100: Nej
C101: Yderligere muligheder | P101: =LEFT('1.Profile'!D45,12) -> 
D102: Nedvisning
D103: Destruktion af afgrøde
D104: =LEFT('1.Profile'!C32,17) -> Mulighed 1
D105: =LEFT('1.Profile'!C33,17) -> Mulighed 2
C107: Høst | D107: Korn + balle
D108: Korn+ snit
D109: Raps
D110: Raps + skår
D111: Bælgsæd
D112: Ingen/græs
R123: Note: careful with deleting/inserting lines, could stuff up the saving/loading macros
C127: Strategy 0 | D127: Vårbyg | E127: Raps | F127: V.hvede | G127: V.hvede | H127: Vårbyg | I127: Raps | J127: V.hvede | K127: V.hvede | L127: Vårbyg | M127: Raps
C128: Default | E128: Ingen | F128: Ingen | G128: Ingen | I128: Ingen | J128: Ingen | K128: Ingen | M128: Ingen
E129: Pløjet | F129: Pløjet | G129: Pløjet | I129: Pløjet | J129: Pløjet | K129: Pløjet | M129: Pløjet
E130: Tidlig | F130: Sen | G130: Tidlig | I130: Tidlig | J130: Sen | K130: Tidlig | M130: Tidlig
E131: Standard | F131: Høj | G131: Standard | I131: Standard | J131: Høj | K131: Standard | M131: Standard
E132: Nej | F132: Nej | G132: Nej | I132: Nej | J132: Nej | K132: Nej | M132: Nej
F133: Boxer 1 l | G133: Boxer 1 l | J133: Boxer 1 l | K133: Boxer 1 l
E134: Kerb | G134: Topik | I134: Kerb | K134: Topik | M134: Kerb
D135: Ingen | H135: Ingen | L135: Ingen
D136: Pløjet | H136: Pløjet | L136: Pløjet
D137: Tidlig | H137: Tidlig | L137: Tidlig
D138: Standard | H138: Standard | L138: Standard
D139: Nej | H139: Nej | L139: Nej
D140: Hussar Plus OD | F140: Hussar Plus OD | H140: Hussar Plus OD | J140: Hussar Plus OD | L140: Hussar Plus OD
D142: Korn+ snit | E142: Raps | F142: Korn+ snit | G142: Korn+ snit | H142: Korn+ snit | I142: Raps | J142: Korn+ snit | K142: Korn+ snit | L142: Korn+ snit | M142: Raps
C144: Strategy 1 | D144: V.hvede | E144: V.hvede | F144: V.hvede | G144: V.hvede | H144: V.hvede | I144: V.hvede | J144: V.hvede | K144: V.hvede | L144: V.hvede | M144: V.hvede
C161: Strategy 2 | D161: Vårbyg | E161: Raps | F161: V.hvede | G161: V.hvede | H161: Vårbyg | I161: Raps | J161: V.hvede | K161: V.hvede | L161: Vårbyg | M161: Raps
C178: Strategy 3 | D178: V.hvede | E178: V.hvede | F178: V.hvede | G178: V.hvede | H178: V.hvede | I178: V.hvede | J178: V.hvede | K178: V.hvede | L178: V.hvede | M178: V.hvede
C195: Strategy 4 | D195: V.hvede | E195: V.hvede | F195: V.hvede | G195: V.hvede | H195: V.hvede | I195: V.hvede | J195: V.hvede | K195: V.hvede | L195: V.hvede | M195: V.hvede
C212: Strategy 5 | D212: V.hvede | E212: V.hvede | F212: V.hvede | G212: V.hvede | H212: V.hvede | I212: V.hvede | J212: V.hvede | K212: V.hvede | L212: V.hvede | M212: V.hvede
C229: Strategy 6 | D229: V.hvede | E229: V.hvede | F229: V.hvede | G229: V.hvede | H229: V.hvede | I229: V.hvede | J229: V.hvede | K229: V.hvede | L229: V.hvede | M229: V.hvede

Sheet Calcs
B1: Year | C1: ='2.Strategy'!D64 -> Vårbyg 1 | D1: ='2.Strategy'!E64 -> Raps 2 | E1: ='2.Strategy'!F64 -> V.hvede 3 | F1: ='2.Strategy'!G64 -> V.hvede 4 | G1: ='2.Strategy'!H64 -> Vårbyg 5 | H1: ='2.Strategy'!I64 -> Raps 6 | I1: ='2.Strategy'!J64 -> V.hvede 7 | J1: ='2.Strategy'!K64 -> V.hvede 8 | K1: ='2.Strategy'!L64 -> Vårbyg 9 | L1: ='2.Strategy'!M64 -> Raps 10
B3: De følgende tabeller er længere end de oprindelige | N3: SUMMARY - 'CALC' PAGE | U3: SUMMARY - OTHER PAGES
B4: Table 1. Selected options & enterprises | C4: First table behind the chosen strategy: displays the enterprise code for each option. Their labels are | O4: =B4 -> Table 1. Selected options & enterprises
C5: sourced from under the strategy table, feeding into the drop-down lists and into the labels of this table. | O5: =N32 -> Table 1a. Non-selective herbicides counts | U5: DEV | W5: Tutorial templates
C6: 1=w wheat, 2=w barley, 3=w rye, 4=w oilseed, 5=s barley, 6=s oat, 7=s wheat, 8=legumes, 9=grass, 10=grass/clover | O6: =N44 -> Table 1b. Herbicides type counts
A7: 1 | B7: Glyphosate Early | C7: =IF(AND('2.Strategy'!D$65="winter",AND(OR('2.Strategy'!D$5='2.Strategy'!$P$73,'2.Strategy'!D$5='2.Strategy'!$P$76))),E$242,"") ->  | D7: =IF(AND('2.Strategy'!E$65="winter",AND(OR('2.Strategy'!E$5='2.Strategy'!$P$73,'2.Strategy'!E$5='2.Strategy'!$P$76))),F$242,"") ->  | E7: =IF(AND('2.Strategy'!F$65="winter",AND(OR('2.Strategy'!F$5='2.Strategy'!$P$73,'2.Strategy'!F$5='2.Strategy'!$P$76))),G$242,"") ->  | F7: =IF(AND('2.Strategy'!G$65="winter",AND(OR('2.Strategy'!G$5='2.Strategy'!$P$73,'2.Strategy'!G$5='2.Strategy'!$P$76))),H$242,"") ->  | G7: =IF(AND('2.Strategy'!H$65="winter",AND(OR('2.Strategy'!H$5='2.Strategy'!$P$73,'2.Strategy'!H$5='2.Strategy'!$P$76))),I$242,"") ->  | H7: =IF(AND('2.Strategy'!I$65="winter",AND(OR('2.Strategy'!I$5='2.Strategy'!$P$73,'2.Strategy'!I$5='2.Strategy'!$P$76))),J$242,"") ->  | I7: =IF(AND('2.Strategy'!J$65="winter",AND(OR('2.Strategy'!J$5='2.Strategy'!$P$73,'2.Strategy'!J$5='2.Strategy'!$P$76))),K$242,"") ->  | J7: =IF(AND('2.Strategy'!K$65="winter",AND(OR('2.Strategy'!K$5='2.Strategy'!$P$73,'2.Strategy'!K$5='2.Strategy'!$P$76))),L$242,"") ->  | K7: =IF(AND('2.Strategy'!L$65="winter",AND(OR('2.Strategy'!L$5='2.Strategy'!$P$73,'2.Strategy'!L$5='2.Strategy'!$P$76))),M$242,"") ->  | L7: =IF(AND('2.Strategy'!M$65="winter",AND(OR('2.Strategy'!M$5='2.Strategy'!$P$73,'2.Strategy'!M$5='2.Strategy'!$P$76))),N$242,"") -> 
A8: 2 | B8: Glyphosate Medium | C8: =IF(AND('2.Strategy'!D$65="winter",AND(OR('2.Strategy'!D$5='2.Strategy'!$P$74,'2.Strategy'!D$5='2.Strategy'!$P$77))),E$242,"") ->  | D8: =IF(AND('2.Strategy'!E$65="winter",AND(OR('2.Strategy'!E$5='2.Strategy'!$P$74,'2.Strategy'!E$5='2.Strategy'!$P$77))),F$242,"") ->  | E8: =IF(AND('2.Strategy'!F$65="winter",AND(OR('2.Strategy'!F$5='2.Strategy'!$P$74,'2.Strategy'!F$5='2.Strategy'!$P$77))),G$242,"") ->  | F8: =IF(AND('2.Strategy'!G$65="winter",AND(OR('2.Strategy'!G$5='2.Strategy'!$P$74,'2.Strategy'!G$5='2.Strategy'!$P$77))),H$242,"") ->  | G8: =IF(AND('2.Strategy'!H$65="winter",AND(OR('2.Strategy'!H$5='2.Strategy'!$P$74,'2.Strategy'!H$5='2.Strategy'!$P$77))),I$242,"") ->  | H8: =IF(AND('2.Strategy'!I$65="winter",AND(OR('2.Strategy'!I$5='2.Strategy'!$P$74,'2.Strategy'!I$5='2.Strategy'!$P$77))),J$242,"") ->  | I8: =IF(AND('2.Strategy'!J$65="winter",AND(OR('2.Strategy'!J$5='2.Strategy'!$P$74,'2.Strategy'!J$5='2.Strategy'!$P$77))),K$242,"") ->  | J8: =IF(AND('2.Strategy'!K$65="winter",AND(OR('2.Strategy'!K$5='2.Strategy'!$P$74,'2.Strategy'!K$5='2.Strategy'!$P$77))),L$242,"") ->  | K8: =IF(AND('2.Strategy'!L$65="winter",AND(OR('2.Strategy'!L$5='2.Strategy'!$P$74,'2.Strategy'!L$5='2.Strategy'!$P$77))),M$242,"") ->  | L8: =IF(AND('2.Strategy'!M$65="winter",AND(OR('2.Strategy'!M$5='2.Strategy'!$P$74,'2.Strategy'!M$5='2.Strategy'!$P$77))),N$242,"") ->  | N8: Go to | O8: =B70 -> Table 2. Selected RG control (%) | U8: PRICES
A9: 3 | B9: Glyphosate Late | C9: =IF(AND('2.Strategy'!D$65="winter",AND(OR('2.Strategy'!D$5='2.Strategy'!$P$75,'2.Strategy'!D$5='2.Strategy'!$P$78))),E$242,"") ->  | D9: =IF(AND('2.Strategy'!E$65="winter",AND(OR('2.Strategy'!E$5='2.Strategy'!$P$75,'2.Strategy'!E$5='2.Strategy'!$P$78))),F$242,"") ->  | E9: =IF(AND('2.Strategy'!F$65="winter",AND(OR('2.Strategy'!F$5='2.Strategy'!$P$75,'2.Strategy'!F$5='2.Strategy'!$P$78))),G$242,"") ->  | F9: =IF(AND('2.Strategy'!G$65="winter",AND(OR('2.Strategy'!G$5='2.Strategy'!$P$75,'2.Strategy'!G$5='2.Strategy'!$P$78))),H$242,"") ->  | G9: =IF(AND('2.Strategy'!H$65="winter",AND(OR('2.Strategy'!H$5='2.Strategy'!$P$75,'2.Strategy'!H$5='2.Strategy'!$P$78))),I$242,"") ->  | H9: =IF(AND('2.Strategy'!I$65="winter",AND(OR('2.Strategy'!I$5='2.Strategy'!$P$75,'2.Strategy'!I$5='2.Strategy'!$P$78))),J$242,"") ->  | I9: =IF(AND('2.Strategy'!J$65="winter",AND(OR('2.Strategy'!J$5='2.Strategy'!$P$75,'2.Strategy'!J$5='2.Strategy'!$P$78))),K$242,"") ->  | J9: =IF(AND('2.Strategy'!K$65="winter",AND(OR('2.Strategy'!K$5='2.Strategy'!$P$75,'2.Strategy'!K$5='2.Strategy'!$P$78))),L$242,"") ->  | K9: =IF(AND('2.Strategy'!L$65="winter",AND(OR('2.Strategy'!L$5='2.Strategy'!$P$75,'2.Strategy'!L$5='2.Strategy'!$P$78))),M$242,"") ->  | L9: =IF(AND('2.Strategy'!M$65="winter",AND(OR('2.Strategy'!M$5='2.Strategy'!$P$75,'2.Strategy'!M$5='2.Strategy'!$P$78))),N$242,"") ->  | O9: =N69 -> Table 2a. Ryegrass control (%) | V9: Establishment costs - Machinery
A10: 4 | B10: None | C10: =IF(AND('2.Strategy'!D$65="winter",'2.Strategy'!D$5='2.Strategy'!$P$72),E$242,"") ->  | D10: =IF(AND('2.Strategy'!E$65="winter",'2.Strategy'!E$5='2.Strategy'!$P$72),F$242,"") -> 4 | E10: =IF(AND('2.Strategy'!F$65="winter",'2.Strategy'!F$5='2.Strategy'!$P$72),G$242,"") -> 1 | F10: =IF(AND('2.Strategy'!G$65="winter",'2.Strategy'!G$5='2.Strategy'!$P$72),H$242,"") -> 1 | G10: =IF(AND('2.Strategy'!H$65="winter",'2.Strategy'!H$5='2.Strategy'!$P$72),I$242,"") ->  | H10: =IF(AND('2.Strategy'!I$65="winter",'2.Strategy'!I$5='2.Strategy'!$P$72),J$242,"") -> 4 | I10: =IF(AND('2.Strategy'!J$65="winter",'2.Strategy'!J$5='2.Strategy'!$P$72),K$242,"") -> 1 | J10: =IF(AND('2.Strategy'!K$65="winter",'2.Strategy'!K$5='2.Strategy'!$P$72),L$242,"") -> 1 | K10: =IF(AND('2.Strategy'!L$65="winter",'2.Strategy'!L$5='2.Strategy'!$P$72),M$242,"") ->  | L10: =IF(AND('2.Strategy'!M$65="winter",'2.Strategy'!M$5='2.Strategy'!$P$72),N$242,"") -> 4 | V10: Establishment costs - Crops
A11: 5 | B11: ="Glyphosate rate: "&'1.Profile'!C16 -> Glyphosate rate: 540 | C11: =IF(AND('2.Strategy'!D$65="winter",AND(OR('2.Strategy'!D$5='2.Strategy'!$P$73,'2.Strategy'!D$5='2.Strategy'!$P$74,'2.Strategy'!D$5='2.Strategy'!$P$75))),E$242,"") ->  | D11: =IF(AND('2.Strategy'!E$65="winter",AND(OR('2.Strategy'!E$5='2.Strategy'!$P$73,'2.Strategy'!E$5='2.Strategy'!$P$74,'2.Strategy'!E$5='2.Strategy'!$P$75))),F$242,"") ->  | E11: =IF(AND('2.Strategy'!F$65="winter",AND(OR('2.Strategy'!F$5='2.Strategy'!$P$73,'2.Strategy'!F$5='2.Strategy'!$P$74,'2.Strategy'!F$5='2.Strategy'!$P$75))),G$242,"") ->  | F11: =IF(AND('2.Strategy'!G$65="winter",AND(OR('2.Strategy'!G$5='2.Strategy'!$P$73,'2.Strategy'!G$5='2.Strategy'!$P$74,'2.Strategy'!G$5='2.Strategy'!$P$75))),H$242,"") ->  | G11: =IF(AND('2.Strategy'!H$65="winter",AND(OR('2.Strategy'!H$5='2.Strategy'!$P$73,'2.Strategy'!H$5='2.Strategy'!$P$74,'2.Strategy'!H$5='2.Strategy'!$P$75))),I$242,"") ->  | H11: =IF(AND('2.Strategy'!I$65="winter",AND(OR('2.Strategy'!I$5='2.Strategy'!$P$73,'2.Strategy'!I$5='2.Strategy'!$P$74,'2.Strategy'!I$5='2.Strategy'!$P$75))),J$242,"") ->  | I11: =IF(AND('2.Strategy'!J$65="winter",AND(OR('2.Strategy'!J$5='2.Strategy'!$P$73,'2.Strategy'!J$5='2.Strategy'!$P$74,'2.Strategy'!J$5='2.Strategy'!$P$75))),K$242,"") ->  | J11: =IF(AND('2.Strategy'!K$65="winter",AND(OR('2.Strategy'!K$5='2.Strategy'!$P$73,'2.Strategy'!K$5='2.Strategy'!$P$74,'2.Strategy'!K$5='2.Strategy'!$P$75))),L$242,"") ->  | K11: =IF(AND('2.Strategy'!L$65="winter",AND(OR('2.Strategy'!L$5='2.Strategy'!$P$73,'2.Strategy'!L$5='2.Strategy'!$P$74,'2.Strategy'!L$5='2.Strategy'!$P$75))),M$242,"") ->  | L11: =IF(AND('2.Strategy'!M$65="winter",AND(OR('2.Strategy'!M$5='2.Strategy'!$P$73,'2.Strategy'!M$5='2.Strategy'!$P$74,'2.Strategy'!M$5='2.Strategy'!$P$75))),N$242,"") ->  | N11: Go to | O11: =B137 -> Table 3. Selected costs (kr/ha) | V11: Establishment costs - Pastures
A12: 6 | B12: ="Glyphosate rate: "&'1.Profile'!C17 -> Glyphosate rate: 1080 | C12: =IF(AND('2.Strategy'!D$65="winter",AND(OR('2.Strategy'!D$5='2.Strategy'!$P$76,'2.Strategy'!D$5='2.Strategy'!$P$77,'2.Strategy'!D$5='2.Strategy'!$P$78))),E$242,"") ->  | D12: =IF(AND('2.Strategy'!E$65="winter",AND(OR('2.Strategy'!E$5='2.Strategy'!$P$76,'2.Strategy'!E$5='2.Strategy'!$P$77,'2.Strategy'!E$5='2.Strategy'!$P$78))),F$242,"") ->  | E12: =IF(AND('2.Strategy'!F$65="winter",AND(OR('2.Strategy'!F$5='2.Strategy'!$P$76,'2.Strategy'!F$5='2.Strategy'!$P$77,'2.Strategy'!F$5='2.Strategy'!$P$78))),G$242,"") ->  | F12: =IF(AND('2.Strategy'!G$65="winter",AND(OR('2.Strategy'!G$5='2.Strategy'!$P$76,'2.Strategy'!G$5='2.Strategy'!$P$77,'2.Strategy'!G$5='2.Strategy'!$P$78))),H$242,"") ->  | G12: =IF(AND('2.Strategy'!H$65="winter",AND(OR('2.Strategy'!H$5='2.Strategy'!$P$76,'2.Strategy'!H$5='2.Strategy'!$P$77,'2.Strategy'!H$5='2.Strategy'!$P$78))),I$242,"") ->  | H12: =IF(AND('2.Strategy'!I$65="winter",AND(OR('2.Strategy'!I$5='2.Strategy'!$P$76,'2.Strategy'!I$5='2.Strategy'!$P$77,'2.Strategy'!I$5='2.Strategy'!$P$78))),J$242,"") ->  | I12: =IF(AND('2.Strategy'!J$65="winter",AND(OR('2.Strategy'!J$5='2.Strategy'!$P$76,'2.Strategy'!J$5='2.Strategy'!$P$77,'2.Strategy'!J$5='2.Strategy'!$P$78))),K$242,"") ->  | J12: =IF(AND('2.Strategy'!K$65="winter",AND(OR('2.Strategy'!K$5='2.Strategy'!$P$76,'2.Strategy'!K$5='2.Strategy'!$P$77,'2.Strategy'!K$5='2.Strategy'!$P$78))),L$242,"") ->  | K12: =IF(AND('2.Strategy'!L$65="winter",AND(OR('2.Strategy'!L$5='2.Strategy'!$P$76,'2.Strategy'!L$5='2.Strategy'!$P$77,'2.Strategy'!L$5='2.Strategy'!$P$78))),M$242,"") ->  | L12: =IF(AND('2.Strategy'!M$65="winter",AND(OR('2.Strategy'!M$5='2.Strategy'!$P$76,'2.Strategy'!M$5='2.Strategy'!$P$77,'2.Strategy'!M$5='2.Strategy'!$P$78))),N$242,"") ->  | V12: Financial values: quality, inflation, tax, etc.
A13: 7 | B13: Plough | C13: =IF('2.Strategy'!D$6='2.Strategy'!$D$76,E$242,"") ->  | D13: =IF('2.Strategy'!E$6='2.Strategy'!$D$76,F$242,"") -> 4 | E13: =IF('2.Strategy'!F$6='2.Strategy'!$D$76,G$242,"") -> 1 | F13: =IF('2.Strategy'!G$6='2.Strategy'!$D$76,H$242,"") -> 1 | G13: =IF('2.Strategy'!H$6='2.Strategy'!$D$76,I$242,"") ->  | H13: =IF('2.Strategy'!I$6='2.Strategy'!$D$76,J$242,"") -> 4 | I13: =IF('2.Strategy'!J$6='2.Strategy'!$D$76,K$242,"") -> 1 | J13: =IF('2.Strategy'!K$6='2.Strategy'!$D$76,L$242,"") -> 1 | K13: =IF('2.Strategy'!L$6='2.Strategy'!$D$76,M$242,"") ->  | L13: =IF('2.Strategy'!M$6='2.Strategy'!$D$76,N$242,"") -> 4 | N13: Go to | O13: =B212 -> Table 4. RG germination
A14: 8 | B14: Reduced tillage | C14: =IF('2.Strategy'!D$6='2.Strategy'!$D$77,E$242,"") ->  | D14: =IF('2.Strategy'!E$6='2.Strategy'!$D$77,F$242,"") ->  | E14: =IF('2.Strategy'!F$6='2.Strategy'!$D$77,G$242,"") ->  | F14: =IF('2.Strategy'!G$6='2.Strategy'!$D$77,H$242,"") ->  | G14: =IF('2.Strategy'!H$6='2.Strategy'!$D$77,I$242,"") ->  | H14: =IF('2.Strategy'!I$6='2.Strategy'!$D$77,J$242,"") ->  | I14: =IF('2.Strategy'!J$6='2.Strategy'!$D$77,K$242,"") ->  | J14: =IF('2.Strategy'!K$6='2.Strategy'!$D$77,L$242,"") ->  | K14: =IF('2.Strategy'!L$6='2.Strategy'!$D$77,M$242,"") ->  | L14: =IF('2.Strategy'!M$6='2.Strategy'!$D$77,N$242,"") ->  | O14: =B221 -> Table 5. RG control per period | U14: OPTIONS
A15: 9 | B15: No-till | C15: =IF('2.Strategy'!D$6='2.Strategy'!$D$78,E$242,"") ->  | D15: =IF('2.Strategy'!E$6='2.Strategy'!$D$78,F$242,"") ->  | E15: =IF('2.Strategy'!F$6='2.Strategy'!$D$78,G$242,"") ->  | F15: =IF('2.Strategy'!G$6='2.Strategy'!$D$78,H$242,"") ->  | G15: =IF('2.Strategy'!H$6='2.Strategy'!$D$78,I$242,"") ->  | H15: =IF('2.Strategy'!I$6='2.Strategy'!$D$78,J$242,"") ->  | I15: =IF('2.Strategy'!J$6='2.Strategy'!$D$78,K$242,"") ->  | J15: =IF('2.Strategy'!K$6='2.Strategy'!$D$78,L$242,"") ->  | K15: =IF('2.Strategy'!L$6='2.Strategy'!$D$78,M$242,"") ->  | L15: =IF('2.Strategy'!M$6='2.Strategy'!$D$78,N$242,"") ->  | O15: =B230 -> Table 6. Healthy equivalent weeds/m2 | V15: Crops: variables, yield benefits, penalties
A16: 10 | B16: Early sowing | C16: =IF('2.Strategy'!D$7='2.Strategy'!$D$80,E$242,"") ->  | D16: =IF('2.Strategy'!E$7='2.Strategy'!$D$80,F$242,"") -> 4 | E16: =IF('2.Strategy'!F$7='2.Strategy'!$D$80,G$242,"") ->  | F16: =IF('2.Strategy'!G$7='2.Strategy'!$D$80,H$242,"") -> 1 | G16: =IF('2.Strategy'!H$7='2.Strategy'!$D$80,I$242,"") ->  | H16: =IF('2.Strategy'!I$7='2.Strategy'!$D$80,J$242,"") -> 4 | I16: =IF('2.Strategy'!J$7='2.Strategy'!$D$80,K$242,"") ->  | J16: =IF('2.Strategy'!K$7='2.Strategy'!$D$80,L$242,"") -> 1 | K16: =IF('2.Strategy'!L$7='2.Strategy'!$D$80,M$242,"") ->  | L16: =IF('2.Strategy'!M$7='2.Strategy'!$D$80,N$242,"") -> 4 | V16: Ryegrass: germination, variables
A17: 11 | B17: Intermediate sowing | C17: =IF('2.Strategy'!D$7='2.Strategy'!$D$81,E$242,"") ->  | D17: =IF('2.Strategy'!E$7='2.Strategy'!$D$81,F$242,"") ->  | E17: =IF('2.Strategy'!F$7='2.Strategy'!$D$81,G$242,"") ->  | F17: =IF('2.Strategy'!G$7='2.Strategy'!$D$81,H$242,"") ->  | G17: =IF('2.Strategy'!H$7='2.Strategy'!$D$81,I$242,"") ->  | H17: =IF('2.Strategy'!I$7='2.Strategy'!$D$81,J$242,"") ->  | I17: =IF('2.Strategy'!J$7='2.Strategy'!$D$81,K$242,"") ->  | J17: =IF('2.Strategy'!K$7='2.Strategy'!$D$81,L$242,"") ->  | K17: =IF('2.Strategy'!L$7='2.Strategy'!$D$81,M$242,"") ->  | L17: =IF('2.Strategy'!M$7='2.Strategy'!$D$81,N$242,"") ->  | V17: Pastures: stocking rates, N savings
A18: 12 | B18: Late Sowing | C18: =IF('2.Strategy'!D$7='2.Strategy'!$D$82,E$242,"") ->  | D18: =IF('2.Strategy'!E$7='2.Strategy'!$D$82,F$242,"") ->  | E18: =IF('2.Strategy'!F$7='2.Strategy'!$D$82,G$242,"") -> 1 | F18: =IF('2.Strategy'!G$7='2.Strategy'!$D$82,H$242,"") ->  | G18: =IF('2.Strategy'!H$7='2.Strategy'!$D$82,I$242,"") ->  | H18: =IF('2.Strategy'!I$7='2.Strategy'!$D$82,J$242,"") ->  | I18: =IF('2.Strategy'!J$7='2.Strategy'!$D$82,K$242,"") -> 1 | J18: =IF('2.Strategy'!K$7='2.Strategy'!$D$82,L$242,"") ->  | K18: =IF('2.Strategy'!L$7='2.Strategy'!$D$82,M$242,"") ->  | L18: =IF('2.Strategy'!M$7='2.Strategy'!$D$82,N$242,"") ->  | N18: Go to | O18: =B238 -> Table 7. Rotation codes
A19: 13 | B19: Standard seeding rate | C19: =IF('2.Strategy'!D$8='2.Strategy'!$D$84,E$242,"") ->  | D19: =IF('2.Strategy'!E$8='2.Strategy'!$D$84,F$242,"") -> 4 | E19: =IF('2.Strategy'!F$8='2.Strategy'!$D$84,G$242,"") ->  | F19: =IF('2.Strategy'!G$8='2.Strategy'!$D$84,H$242,"") -> 1 | G19: =IF('2.Strategy'!H$8='2.Strategy'!$D$84,I$242,"") ->  | H19: =IF('2.Strategy'!I$8='2.Strategy'!$D$84,J$242,"") -> 4 | I19: =IF('2.Strategy'!J$8='2.Strategy'!$D$84,K$242,"") ->  | J19: =IF('2.Strategy'!K$8='2.Strategy'!$D$84,L$242,"") -> 1 | K19: =IF('2.Strategy'!L$8='2.Strategy'!$D$84,M$242,"") ->  | L19: =IF('2.Strategy'!M$8='2.Strategy'!$D$84,N$242,"") -> 4 | O19: =B252 -> Table 8. Rotation values
A20: 14 | B20: Intermediate seeding rate | C20: =IF('2.Strategy'!D$8='2.Strategy'!$D$85,E$242,"") ->  | D20: =IF('2.Strategy'!E$8='2.Strategy'!$D$85,F$242,"") ->  | E20: =IF('2.Strategy'!F$8='2.Strategy'!$D$85,G$242,"") ->  | F20: =IF('2.Strategy'!G$8='2.Strategy'!$D$85,H$242,"") ->  | G20: =IF('2.Strategy'!H$8='2.Strategy'!$D$85,I$242,"") ->  | H20: =IF('2.Strategy'!I$8='2.Strategy'!$D$85,J$242,"") ->  | I20: =IF('2.Strategy'!J$8='2.Strategy'!$D$85,K$242,"") ->  | J20: =IF('2.Strategy'!K$8='2.Strategy'!$D$85,L$242,"") ->  | K20: =IF('2.Strategy'!L$8='2.Strategy'!$D$85,M$242,"") ->  | L20: =IF('2.Strategy'!M$8='2.Strategy'!$D$85,N$242,"") ->  | U20: BIO RESULTS
A21: 15 | B21: High seeding rate | C21: =IF('2.Strategy'!D$8='2.Strategy'!$D$86,E$242,"") ->  | D21: =IF('2.Strategy'!E$8='2.Strategy'!$D$86,F$242,"") ->  | E21: =IF('2.Strategy'!F$8='2.Strategy'!$D$86,G$242,"") -> 1 | F21: =IF('2.Strategy'!G$8='2.Strategy'!$D$86,H$242,"") ->  | G21: =IF('2.Strategy'!H$8='2.Strategy'!$D$86,I$242,"") ->  | H21: =IF('2.Strategy'!I$8='2.Strategy'!$D$86,J$242,"") ->  | I21: =IF('2.Strategy'!J$8='2.Strategy'!$D$86,K$242,"") -> 1 | J21: =IF('2.Strategy'!K$8='2.Strategy'!$D$86,L$242,"") ->  | K21: =IF('2.Strategy'!L$8='2.Strategy'!$D$86,M$242,"") ->  | L21: =IF('2.Strategy'!M$8='2.Strategy'!$D$86,N$242,"") ->  | N21: Go to | O21: =B356 -> Table 9. Production costs (kr/ha) | V21: Ryegrass: plants/m2, seeds/m2
A22: 16 | B22: Cover crops | C22: =IF('2.Strategy'!D$9='2.Strategy'!$P$99,E$242,"") ->  | D22: =IF('2.Strategy'!E$9='2.Strategy'!$P$99,F$242,"") ->  | E22: =IF('2.Strategy'!F$9='2.Strategy'!$P$99,G$242,"") ->  | F22: =IF('2.Strategy'!G$9='2.Strategy'!$P$99,H$242,"") ->  | G22: =IF('2.Strategy'!H$9='2.Strategy'!$P$99,I$242,"") ->  | H22: =IF('2.Strategy'!I$9='2.Strategy'!$P$99,J$242,"") ->  | I22: =IF('2.Strategy'!J$9='2.Strategy'!$P$99,K$242,"") ->  | J22: =IF('2.Strategy'!K$9='2.Strategy'!$P$99,L$242,"") ->  | K22: =IF('2.Strategy'!L$9='2.Strategy'!$P$99,M$242,"") ->  | L22: =IF('2.Strategy'!M$9='2.Strategy'!$P$99,N$242,"") ->  | V22: Impacts on yields
A23: 17 | B23: No cover crops | C23: =IF('2.Strategy'!D$9='2.Strategy'!$P$100,E$242,"") ->  | D23: =IF('2.Strategy'!E$9='2.Strategy'!$P$100,F$242,"") -> 4 | E23: =IF('2.Strategy'!F$9='2.Strategy'!$P$100,G$242,"") -> 1 | F23: =IF('2.Strategy'!G$9='2.Strategy'!$P$100,H$242,"") -> 1 | G23: =IF('2.Strategy'!H$9='2.Strategy'!$P$100,I$242,"") ->  | H23: =IF('2.Strategy'!I$9='2.Strategy'!$P$100,J$242,"") -> 4 | I23: =IF('2.Strategy'!J$9='2.Strategy'!$P$100,K$242,"") -> 1 | J23: =IF('2.Strategy'!K$9='2.Strategy'!$P$100,L$242,"") -> 1 | K23: =IF('2.Strategy'!L$9='2.Strategy'!$P$100,M$242,"") ->  | L23: =IF('2.Strategy'!M$9='2.Strategy'!$P$100,N$242,"") -> 4 | N23: Go to | O23: =B366 -> Table 10. HWSM Machinery repayments | V23: Ryegrass and yields for outputs
A24: 18 | B24: ="Pre-E: "&'1.Profile'!C19 -> Pre-E: Boxer 1 l | C24: =IF(AND('2.Strategy'!D$10='2.Strategy'!$P$83,'1.Profile'!$C19<>""),E$242,"") ->  | D24: =IF(AND('2.Strategy'!E$10='2.Strategy'!$P$83,'1.Profile'!$C19<>""),F$242,"") ->  | E24: =IF(AND('2.Strategy'!F$10='2.Strategy'!$P$83,'1.Profile'!$C19<>""),G$242,"") -> 1 | F24: =IF(AND('2.Strategy'!G$10='2.Strategy'!$P$83,'1.Profile'!$C19<>""),H$242,"") -> 1 | G24: =IF(AND('2.Strategy'!H$10='2.Strategy'!$P$83,'1.Profile'!$C19<>""),I$242,"") ->  | H24: =IF(AND('2.Strategy'!I$10='2.Strategy'!$P$83,'1.Profile'!$C19<>""),J$242,"") ->  | I24: =IF(AND('2.Strategy'!J$10='2.Strategy'!$P$83,'1.Profile'!$C19<>""),K$242,"") -> 1 | J24: =IF(AND('2.Strategy'!K$10='2.Strategy'!$P$83,'1.Profile'!$C19<>""),L$242,"") -> 1 | K24: =IF(AND('2.Strategy'!L$10='2.Strategy'!$P$83,'1.Profile'!$C19<>""),M$242,"") ->  | L24: =IF(AND('2.Strategy'!M$10='2.Strategy'!$P$83,'1.Profile'!$C19<>""),N$242,"") ->  | O24: =B375 -> Table 11. Inflation factors
A25: 19 | B25: ="Pre-E: "&'1.Profile'!C20 -> Pre-E: Boxer 2 l | C25: =IF(AND('2.Strategy'!D$10='2.Strategy'!$P$84,'1.Profile'!$C20<>""),E$242,"") ->  | D25: =IF(AND('2.Strategy'!E$10='2.Strategy'!$P$84,'1.Profile'!$C20<>""),F$242,"") ->  | E25: =IF(AND('2.Strategy'!F$10='2.Strategy'!$P$84,'1.Profile'!$C20<>""),G$242,"") ->  | F25: =IF(AND('2.Strategy'!G$10='2.Strategy'!$P$84,'1.Profile'!$C20<>""),H$242,"") ->  | G25: =IF(AND('2.Strategy'!H$10='2.Strategy'!$P$84,'1.Profile'!$C20<>""),I$242,"") ->  | H25: =IF(AND('2.Strategy'!I$10='2.Strategy'!$P$84,'1.Profile'!$C20<>""),J$242,"") ->  | I25: =IF(AND('2.Strategy'!J$10='2.Strategy'!$P$84,'1.Profile'!$C20<>""),K$242,"") ->  | J25: =IF(AND('2.Strategy'!K$10='2.Strategy'!$P$84,'1.Profile'!$C20<>""),L$242,"") ->  | K25: =IF(AND('2.Strategy'!L$10='2.Strategy'!$P$84,'1.Profile'!$C20<>""),M$242,"") ->  | L25: =IF(AND('2.Strategy'!M$10='2.Strategy'!$P$84,'1.Profile'!$C20<>""),N$242,"") ->  | U25: ECO RESULTS
A26: 20 | B26: ="Post-E: "&'1.Profile'!C22 -> Post-E: Topik | C26: =IF(AND('2.Strategy'!D$11='2.Strategy'!$P$89,'1.Profile'!$C22<>""),E$242,"") ->  | D26: =IF(AND('2.Strategy'!E$11='2.Strategy'!$P$89,'1.Profile'!$C22<>""),F$242,"") ->  | E26: =IF(AND('2.Strategy'!F$11='2.Strategy'!$P$89,'1.Profile'!$C22<>""),G$242,"") ->  | F26: =IF(AND('2.Strategy'!G$11='2.Strategy'!$P$89,'1.Profile'!$C22<>""),H$242,"") -> 1 | G26: =IF(AND('2.Strategy'!H$11='2.Strategy'!$P$89,'1.Profile'!$C22<>""),I$242,"") ->  | H26: =IF(AND('2.Strategy'!I$11='2.Strategy'!$P$89,'1.Profile'!$C22<>""),J$242,"") ->  | I26: =IF(AND('2.Strategy'!J$11='2.Strategy'!$P$89,'1.Profile'!$C22<>""),K$242,"") ->  | J26: =IF(AND('2.Strategy'!K$11='2.Strategy'!$P$89,'1.Profile'!$C22<>""),L$242,"") -> 1 | K26: =IF(AND('2.Strategy'!L$11='2.Strategy'!$P$89,'1.Profile'!$C22<>""),M$242,"") ->  | L26: =IF(AND('2.Strategy'!M$11='2.Strategy'!$P$89,'1.Profile'!$C22<>""),N$242,"") ->  | N26: Go to | O26: =B380 -> Table 12. Competition functions | V26: Receipts & expenses
A27: 21 | B27: ="Post-E: "&'1.Profile'!C23 -> Post-E: Atlantis OD | C27: =IF(AND('2.Strategy'!D$11='2.Strategy'!$P$90,'1.Profile'!$C23<>""),E$242,"") ->  | D27: =IF(AND('2.Strategy'!E$11='2.Strategy'!$P$90,'1.Profile'!$C23<>""),F$242,"") ->  | E27: =IF(AND('2.Strategy'!F$11='2.Strategy'!$P$90,'1.Profile'!$C23<>""),G$242,"") ->  | F27: =IF(AND('2.Strategy'!G$11='2.Strategy'!$P$90,'1.Profile'!$C23<>""),H$242,"") ->  | G27: =IF(AND('2.Strategy'!H$11='2.Strategy'!$P$90,'1.Profile'!$C23<>""),I$242,"") ->  | H27: =IF(AND('2.Strategy'!I$11='2.Strategy'!$P$90,'1.Profile'!$C23<>""),J$242,"") ->  | I27: =IF(AND('2.Strategy'!J$11='2.Strategy'!$P$90,'1.Profile'!$C23<>""),K$242,"") ->  | J27: =IF(AND('2.Strategy'!K$11='2.Strategy'!$P$90,'1.Profile'!$C23<>""),L$242,"") ->  | K27: =IF(AND('2.Strategy'!L$11='2.Strategy'!$P$90,'1.Profile'!$C23<>""),M$242,"") ->  | L27: =IF(AND('2.Strategy'!M$11='2.Strategy'!$P$90,'1.Profile'!$C23<>""),N$242,"") ->  | V27: Gross margins
A28: 22 | B28: ="Post-E: "&'1.Profile'!C24 -> Post-E: Hussar Plus OD | C28: =IF(AND('2.Strategy'!D$11='2.Strategy'!$P$91,'1.Profile'!$C24<>""),E$242,"") ->  | D28: =IF(AND('2.Strategy'!E$11='2.Strategy'!$P$91,'1.Profile'!$C24<>""),F$242,"") ->  | E28: =IF(AND('2.Strategy'!F$11='2.Strategy'!$P$91,'1.Profile'!$C24<>""),G$242,"") ->  | F28: =IF(AND('2.Strategy'!G$11='2.Strategy'!$P$91,'1.Profile'!$C24<>""),H$242,"") ->  | G28: =IF(AND('2.Strategy'!H$11='2.Strategy'!$P$91,'1.Profile'!$C24<>""),I$242,"") ->  | H28: =IF(AND('2.Strategy'!I$11='2.Strategy'!$P$91,'1.Profile'!$C24<>""),J$242,"") ->  | I28: =IF(AND('2.Strategy'!J$11='2.Strategy'!$P$91,'1.Profile'!$C24<>""),K$242,"") ->  | J28: =IF(AND('2.Strategy'!K$11='2.Strategy'!$P$91,'1.Profile'!$C24<>""),L$242,"") ->  | K28: =IF(AND('2.Strategy'!L$11='2.Strategy'!$P$91,'1.Profile'!$C24<>""),M$242,"") ->  | L28: =IF(AND('2.Strategy'!M$11='2.Strategy'!$P$91,'1.Profile'!$C24<>""),N$242,"") ->  | N28: Go to | O28: =B203 -> Table 13: Crop plant density/m2 | V28: Results for outputs
A29: 23 | B29: ="Post-E: "&'1.Profile'!C25 -> Post-E: Broadway | C29: =IF(AND('2.Strategy'!D$11='2.Strategy'!$P$92,'1.Profile'!$C25<>""),E$242,"") ->  | D29: =IF(AND('2.Strategy'!E$11='2.Strategy'!$P$92,'1.Profile'!$C25<>""),F$242,"") ->  | E29: =IF(AND('2.Strategy'!F$11='2.Strategy'!$P$92,'1.Profile'!$C25<>""),G$242,"") ->  | F29: =IF(AND('2.Strategy'!G$11='2.Strategy'!$P$92,'1.Profile'!$C25<>""),H$242,"") ->  | G29: =IF(AND('2.Strategy'!H$11='2.Strategy'!$P$92,'1.Profile'!$C25<>""),I$242,"") ->  | H29: =IF(AND('2.Strategy'!I$11='2.Strategy'!$P$92,'1.Profile'!$C25<>""),J$242,"") ->  | I29: =IF(AND('2.Strategy'!J$11='2.Strategy'!$P$92,'1.Profile'!$C25<>""),K$242,"") ->  | J29: =IF(AND('2.Strategy'!K$11='2.Strategy'!$P$92,'1.Profile'!$C25<>""),L$242,"") ->  | K29: =IF(AND('2.Strategy'!L$11='2.Strategy'!$P$92,'1.Profile'!$C25<>""),M$242,"") ->  | L29: =IF(AND('2.Strategy'!M$11='2.Strategy'!$P$92,'1.Profile'!$C25<>""),N$242,"") -> 
A30: 24 | B30: ="Post-E: "&'1.Profile'!C26 -> Post-E: Cossack OD | C30: =IF(AND('2.Strategy'!D$11='2.Strategy'!$P$93,'1.Profile'!$C26<>""),E$242,"") ->  | D30: =IF(AND('2.Strategy'!E$11='2.Strategy'!$P$93,'1.Profile'!$C26<>""),F$242,"") ->  | E30: =IF(AND('2.Strategy'!F$11='2.Strategy'!$P$93,'1.Profile'!$C26<>""),G$242,"") ->  | F30: =IF(AND('2.Strategy'!G$11='2.Strategy'!$P$93,'1.Profile'!$C26<>""),H$242,"") ->  | G30: =IF(AND('2.Strategy'!H$11='2.Strategy'!$P$93,'1.Profile'!$C26<>""),I$242,"") ->  | H30: =IF(AND('2.Strategy'!I$11='2.Strategy'!$P$93,'1.Profile'!$C26<>""),J$242,"") ->  | I30: =IF(AND('2.Strategy'!J$11='2.Strategy'!$P$93,'1.Profile'!$C26<>""),K$242,"") ->  | J30: =IF(AND('2.Strategy'!K$11='2.Strategy'!$P$93,'1.Profile'!$C26<>""),L$242,"") ->  | K30: =IF(AND('2.Strategy'!L$11='2.Strategy'!$P$93,'1.Profile'!$C26<>""),M$242,"") ->  | L30: =IF(AND('2.Strategy'!M$11='2.Strategy'!$P$93,'1.Profile'!$C26<>""),N$242,"") -> 
A31: 25 | B31: ="Post-E: "&'1.Profile'!C27 -> Post-E: Focus Ultra | C31: =IF(AND('2.Strategy'!D$11='2.Strategy'!$P$94,'1.Profile'!$C27<>""),E$242,"") ->  | D31: =IF(AND('2.Strategy'!E$11='2.Strategy'!$P$94,'1.Profile'!$C27<>""),F$242,"") ->  | E31: =IF(AND('2.Strategy'!F$11='2.Strategy'!$P$94,'1.Profile'!$C27<>""),G$242,"") ->  | F31: =IF(AND('2.Strategy'!G$11='2.Strategy'!$P$94,'1.Profile'!$C27<>""),H$242,"") ->  | G31: =IF(AND('2.Strategy'!H$11='2.Strategy'!$P$94,'1.Profile'!$C27<>""),I$242,"") ->  | H31: =IF(AND('2.Strategy'!I$11='2.Strategy'!$P$94,'1.Profile'!$C27<>""),J$242,"") ->  | I31: =IF(AND('2.Strategy'!J$11='2.Strategy'!$P$94,'1.Profile'!$C27<>""),K$242,"") ->  | J31: =IF(AND('2.Strategy'!K$11='2.Strategy'!$P$94,'1.Profile'!$C27<>""),L$242,"") ->  | K31: =IF(AND('2.Strategy'!L$11='2.Strategy'!$P$94,'1.Profile'!$C27<>""),M$242,"") ->  | L31: =IF(AND('2.Strategy'!M$11='2.Strategy'!$P$94,'1.Profile'!$C27<>""),N$242,"") -> 
A32: 26 | B32: ="Post-E: "&'1.Profile'!C28 -> Post-E: Kerb | C32: =IF(AND('2.Strategy'!D$11='2.Strategy'!$P$95,'1.Profile'!$C28<>""),E$242,"") ->  | D32: =IF(AND('2.Strategy'!E$11='2.Strategy'!$P$95,'1.Profile'!$C28<>""),F$242,"") -> 4 | E32: =IF(AND('2.Strategy'!F$11='2.Strategy'!$P$95,'1.Profile'!$C28<>""),G$242,"") ->  | F32: =IF(AND('2.Strategy'!G$11='2.Strategy'!$P$95,'1.Profile'!$C28<>""),H$242,"") ->  | G32: =IF(AND('2.Strategy'!H$11='2.Strategy'!$P$95,'1.Profile'!$C28<>""),I$242,"") ->  | H32: =IF(AND('2.Strategy'!I$11='2.Strategy'!$P$95,'1.Profile'!$C28<>""),J$242,"") -> 4 | I32: =IF(AND('2.Strategy'!J$11='2.Strategy'!$P$95,'1.Profile'!$C28<>""),K$242,"") ->  | J32: =IF(AND('2.Strategy'!K$11='2.Strategy'!$P$95,'1.Profile'!$C28<>""),L$242,"") ->  | K32: =IF(AND('2.Strategy'!L$11='2.Strategy'!$P$95,'1.Profile'!$C28<>""),M$242,"") ->  | L32: =IF(AND('2.Strategy'!M$11='2.Strategy'!$P$95,'1.Profile'!$C28<>""),N$242,"") -> 4 | N32: Table 1a. Non-selective herbicides counts
A33: 27 | B33: Glyphosate Early | C33: =IF(AND('2.Strategy'!D$65="spring",AND(OR('2.Strategy'!D$12='2.Strategy'!$P$73,'2.Strategy'!D$12='2.Strategy'!$P$76))),E$242,"") ->  | D33: =IF(AND('2.Strategy'!E$65="spring",AND(OR('2.Strategy'!E$12='2.Strategy'!$P$73,'2.Strategy'!E$12='2.Strategy'!$P$76))),F$242,"") ->  | E33: =IF(AND('2.Strategy'!F$65="spring",AND(OR('2.Strategy'!F$12='2.Strategy'!$P$73,'2.Strategy'!F$12='2.Strategy'!$P$76))),G$242,"") ->  | F33: =IF(AND('2.Strategy'!G$65="spring",AND(OR('2.Strategy'!G$12='2.Strategy'!$P$73,'2.Strategy'!G$12='2.Strategy'!$P$76))),H$242,"") ->  | G33: =IF(AND('2.Strategy'!H$65="spring",AND(OR('2.Strategy'!H$12='2.Strategy'!$P$73,'2.Strategy'!H$12='2.Strategy'!$P$76))),I$242,"") ->  | H33: =IF(AND('2.Strategy'!I$65="spring",AND(OR('2.Strategy'!I$12='2.Strategy'!$P$73,'2.Strategy'!I$12='2.Strategy'!$P$76))),J$242,"") ->  | I33: =IF(AND('2.Strategy'!J$65="spring",AND(OR('2.Strategy'!J$12='2.Strategy'!$P$73,'2.Strategy'!J$12='2.Strategy'!$P$76))),K$242,"") ->  | J33: =IF(AND('2.Strategy'!K$65="spring",AND(OR('2.Strategy'!K$12='2.Strategy'!$P$73,'2.Strategy'!K$12='2.Strategy'!$P$76))),L$242,"") ->  | K33: =IF(AND('2.Strategy'!L$65="spring",AND(OR('2.Strategy'!L$12='2.Strategy'!$P$73,'2.Strategy'!L$12='2.Strategy'!$P$76))),M$242,"") ->  | L33: =IF(AND('2.Strategy'!M$65="spring",AND(OR('2.Strategy'!M$12='2.Strategy'!$P$73,'2.Strategy'!M$12='2.Strategy'!$P$76))),N$242,"") ->  | N33: Feeds into the weed control table below, and for phytotoxicity effects in Bio results.
A34: 28 | B34: Glyphosate Medium | C34: =IF(AND('2.Strategy'!D$65="spring",AND(OR('2.Strategy'!D$12='2.Strategy'!$P$74,'2.Strategy'!D$12='2.Strategy'!$P$77))),E$242,"") ->  | D34: =IF(AND('2.Strategy'!E$65="spring",AND(OR('2.Strategy'!E$12='2.Strategy'!$P$74,'2.Strategy'!E$12='2.Strategy'!$P$77))),F$242,"") ->  | E34: =IF(AND('2.Strategy'!F$65="spring",AND(OR('2.Strategy'!F$12='2.Strategy'!$P$74,'2.Strategy'!F$12='2.Strategy'!$P$77))),G$242,"") ->  | F34: =IF(AND('2.Strategy'!G$65="spring",AND(OR('2.Strategy'!G$12='2.Strategy'!$P$74,'2.Strategy'!G$12='2.Strategy'!$P$77))),H$242,"") ->  | G34: =IF(AND('2.Strategy'!H$65="spring",AND(OR('2.Strategy'!H$12='2.Strategy'!$P$74,'2.Strategy'!H$12='2.Strategy'!$P$77))),I$242,"") ->  | H34: =IF(AND('2.Strategy'!I$65="spring",AND(OR('2.Strategy'!I$12='2.Strategy'!$P$74,'2.Strategy'!I$12='2.Strategy'!$P$77))),J$242,"") ->  | I34: =IF(AND('2.Strategy'!J$65="spring",AND(OR('2.Strategy'!J$12='2.Strategy'!$P$74,'2.Strategy'!J$12='2.Strategy'!$P$77))),K$242,"") ->  | J34: =IF(AND('2.Strategy'!K$65="spring",AND(OR('2.Strategy'!K$12='2.Strategy'!$P$74,'2.Strategy'!K$12='2.Strategy'!$P$77))),L$242,"") ->  | K34: =IF(AND('2.Strategy'!L$65="spring",AND(OR('2.Strategy'!L$12='2.Strategy'!$P$74,'2.Strategy'!L$12='2.Strategy'!$P$77))),M$242,"") ->  | L34: =IF(AND('2.Strategy'!M$65="spring",AND(OR('2.Strategy'!M$12='2.Strategy'!$P$74,'2.Strategy'!M$12='2.Strategy'!$P$77))),N$242,"") ->  | N34: Nb of times used | P34: =C1 -> Vårbyg 1 | Q34: Raps 2 | R34: V.hvede 3 | S34: V.hvede 4 | T34: Vårbyg 5 | U34: Raps 6 | V34: V.hvede 7 | W34: V.hvede 8 | X34: Vårbyg 9 | Y34: Raps 10
A35: 29 | B35: Glyphosate Late | C35: =IF(AND('2.Strategy'!D$65="spring",AND(OR('2.Strategy'!D$12='2.Strategy'!$P$75,'2.Strategy'!D$12='2.Strategy'!$P$78))),E$242,"") ->  | D35: =IF(AND('2.Strategy'!E$65="spring",AND(OR('2.Strategy'!E$12='2.Strategy'!$P$75,'2.Strategy'!E$12='2.Strategy'!$P$78))),F$242,"") ->  | E35: =IF(AND('2.Strategy'!F$65="spring",AND(OR('2.Strategy'!F$12='2.Strategy'!$P$75,'2.Strategy'!F$12='2.Strategy'!$P$78))),G$242,"") ->  | F35: =IF(AND('2.Strategy'!G$65="spring",AND(OR('2.Strategy'!G$12='2.Strategy'!$P$75,'2.Strategy'!G$12='2.Strategy'!$P$78))),H$242,"") ->  | G35: =IF(AND('2.Strategy'!H$65="spring",AND(OR('2.Strategy'!H$12='2.Strategy'!$P$75,'2.Strategy'!H$12='2.Strategy'!$P$78))),I$242,"") ->  | H35: =IF(AND('2.Strategy'!I$65="spring",AND(OR('2.Strategy'!I$12='2.Strategy'!$P$75,'2.Strategy'!I$12='2.Strategy'!$P$78))),J$242,"") ->  | I35: =IF(AND('2.Strategy'!J$65="spring",AND(OR('2.Strategy'!J$12='2.Strategy'!$P$75,'2.Strategy'!J$12='2.Strategy'!$P$78))),K$242,"") ->  | J35: =IF(AND('2.Strategy'!K$65="spring",AND(OR('2.Strategy'!K$12='2.Strategy'!$P$75,'2.Strategy'!K$12='2.Strategy'!$P$78))),L$242,"") ->  | K35: =IF(AND('2.Strategy'!L$65="spring",AND(OR('2.Strategy'!L$12='2.Strategy'!$P$75,'2.Strategy'!L$12='2.Strategy'!$P$78))),M$242,"") ->  | L35: =IF(AND('2.Strategy'!M$65="spring",AND(OR('2.Strategy'!M$12='2.Strategy'!$P$75,'2.Strategy'!M$12='2.Strategy'!$P$78))),N$242,"") ->  | N35: =B26 -> Post-E: Topik | P35: =COUNT(C26,C51) -> 0 | Q35: 0 | R35: 0 | S35: 1 | T35: 0 | U35: 0 | V35: 0 | W35: 1 | X35: 0 | Y35: 0
A36: 30 | B36: None | C36: =IF(AND('2.Strategy'!D$65="spring",'2.Strategy'!D$12='2.Strategy'!$P$72),E$242,"") -> 5 | D36: =IF(AND('2.Strategy'!E$65="spring",'2.Strategy'!E$12='2.Strategy'!$P$72),F$242,"") ->  | E36: =IF(AND('2.Strategy'!F$65="spring",'2.Strategy'!F$12='2.Strategy'!$P$72),G$242,"") ->  | F36: =IF(AND('2.Strategy'!G$65="spring",'2.Strategy'!G$12='2.Strategy'!$P$72),H$242,"") ->  | G36: =IF(AND('2.Strategy'!H$65="spring",'2.Strategy'!H$12='2.Strategy'!$P$72),I$242,"") -> 5 | H36: =IF(AND('2.Strategy'!I$65="spring",'2.Strategy'!I$12='2.Strategy'!$P$72),J$242,"") ->  | I36: =IF(AND('2.Strategy'!J$65="spring",'2.Strategy'!J$12='2.Strategy'!$P$72),K$242,"") ->  | J36: =IF(AND('2.Strategy'!K$65="spring",'2.Strategy'!K$12='2.Strategy'!$P$72),L$242,"") ->  | K36: =IF(AND('2.Strategy'!L$65="spring",'2.Strategy'!L$12='2.Strategy'!$P$72),M$242,"") -> 5 | L36: =IF(AND('2.Strategy'!M$65="spring",'2.Strategy'!M$12='2.Strategy'!$P$72),N$242,"") ->  | N36: Post-E: Atlantis OD | P36: 0 | Q36: 0 | R36: 0 | S36: 0 | T36: 0 | U36: 0 | V36: 0 | W36: 0 | X36: 0 | Y36: 0
A37: 31 | B37: ="Glyphosate rate: "&'1.Profile'!C16 -> Glyphosate rate: 540 | C37: =IF(AND('2.Strategy'!D$65="spring",AND(OR('2.Strategy'!D$12='2.Strategy'!$P$73,'2.Strategy'!D$12='2.Strategy'!$P$74,'2.Strategy'!D$12='2.Strategy'!$P$75))),E$242,"") ->  | D37: =IF(AND('2.Strategy'!E$65="spring",AND(OR('2.Strategy'!E$12='2.Strategy'!$P$73,'2.Strategy'!E$12='2.Strategy'!$P$74,'2.Strategy'!E$12='2.Strategy'!$P$75))),F$242,"") ->  | E37: =IF(AND('2.Strategy'!F$65="spring",AND(OR('2.Strategy'!F$12='2.Strategy'!$P$73,'2.Strategy'!F$12='2.Strategy'!$P$74,'2.Strategy'!F$12='2.Strategy'!$P$75))),G$242,"") ->  | F37: =IF(AND('2.Strategy'!G$65="spring",AND(OR('2.Strategy'!G$12='2.Strategy'!$P$73,'2.Strategy'!G$12='2.Strategy'!$P$74,'2.Strategy'!G$12='2.Strategy'!$P$75))),H$242,"") ->  | G37: =IF(AND('2.Strategy'!H$65="spring",AND(OR('2.Strategy'!H$12='2.Strategy'!$P$73,'2.Strategy'!H$12='2.Strategy'!$P$74,'2.Strategy'!H$12='2.Strategy'!$P$75))),I$242,"") ->  | H37: =IF(AND('2.Strategy'!I$65="spring",AND(OR('2.Strategy'!I$12='2.Strategy'!$P$73,'2.Strategy'!I$12='2.Strategy'!$P$74,'2.Strategy'!I$12='2.Strategy'!$P$75))),J$242,"") ->  | I37: =IF(AND('2.Strategy'!J$65="spring",AND(OR('2.Strategy'!J$12='2.Strategy'!$P$73,'2.Strategy'!J$12='2.Strategy'!$P$74,'2.Strategy'!J$12='2.Strategy'!$P$75))),K$242,"") ->  | J37: =IF(AND('2.Strategy'!K$65="spring",AND(OR('2.Strategy'!K$12='2.Strategy'!$P$73,'2.Strategy'!K$12='2.Strategy'!$P$74,'2.Strategy'!K$12='2.Strategy'!$P$75))),L$242,"") ->  | K37: =IF(AND('2.Strategy'!L$65="spring",AND(OR('2.Strategy'!L$12='2.Strategy'!$P$73,'2.Strategy'!L$12='2.Strategy'!$P$74,'2.Strategy'!L$12='2.Strategy'!$P$75))),M$242,"") ->  | L37: =IF(AND('2.Strategy'!M$65="spring",AND(OR('2.Strategy'!M$12='2.Strategy'!$P$73,'2.Strategy'!M$12='2.Strategy'!$P$74,'2.Strategy'!M$12='2.Strategy'!$P$75))),N$242,"") ->  | N37: Post-E: Hussar Plus OD | P37: 1 | Q37: 0 | R37: 1 | S37: 0 | T37: 1 | U37: 0 | V37: 1 | W37: 0 | X37: 1 | Y37: 0
A38: 32 | B38: ="Glyphosate rate: "&'1.Profile'!C17 -> Glyphosate rate: 1080 | C38: =IF(AND('2.Strategy'!D$65="spring",AND(OR('2.Strategy'!D$12='2.Strategy'!$P$76,'2.Strategy'!D$12='2.Strategy'!$P$77,'2.Strategy'!D$12='2.Strategy'!$P$78))),E$242,"") ->  | D38: =IF(AND('2.Strategy'!E$65="spring",AND(OR('2.Strategy'!E$12='2.Strategy'!$P$76,'2.Strategy'!E$12='2.Strategy'!$P$77,'2.Strategy'!E$12='2.Strategy'!$P$78))),F$242,"") ->  | E38: =IF(AND('2.Strategy'!F$65="spring",AND(OR('2.Strategy'!F$12='2.Strategy'!$P$76,'2.Strategy'!F$12='2.Strategy'!$P$77,'2.Strategy'!F$12='2.Strategy'!$P$78))),G$242,"") ->  | F38: =IF(AND('2.Strategy'!G$65="spring",AND(OR('2.Strategy'!G$12='2.Strategy'!$P$76,'2.Strategy'!G$12='2.Strategy'!$P$77,'2.Strategy'!G$12='2.Strategy'!$P$78))),H$242,"") ->  | G38: =IF(AND('2.Strategy'!H$65="spring",AND(OR('2.Strategy'!H$12='2.Strategy'!$P$76,'2.Strategy'!H$12='2.Strategy'!$P$77,'2.Strategy'!H$12='2.Strategy'!$P$78))),I$242,"") ->  | H38: =IF(AND('2.Strategy'!I$65="spring",AND(OR('2.Strategy'!I$12='2.Strategy'!$P$76,'2.Strategy'!I$12='2.Strategy'!$P$77,'2.Strategy'!I$12='2.Strategy'!$P$78))),J$242,"") ->  | I38: =IF(AND('2.Strategy'!J$65="spring",AND(OR('2.Strategy'!J$12='2.Strategy'!$P$76,'2.Strategy'!J$12='2.Strategy'!$P$77,'2.Strategy'!J$12='2.Strategy'!$P$78))),K$242,"") ->  | J38: =IF(AND('2.Strategy'!K$65="spring",AND(OR('2.Strategy'!K$12='2.Strategy'!$P$76,'2.Strategy'!K$12='2.Strategy'!$P$77,'2.Strategy'!K$12='2.Strategy'!$P$78))),L$242,"") ->  | K38: =IF(AND('2.Strategy'!L$65="spring",AND(OR('2.Strategy'!L$12='2.Strategy'!$P$76,'2.Strategy'!L$12='2.Strategy'!$P$77,'2.Strategy'!L$12='2.Strategy'!$P$78))),M$242,"") ->  | L38: =IF(AND('2.Strategy'!M$65="spring",AND(OR('2.Strategy'!M$12='2.Strategy'!$P$76,'2.Strategy'!M$12='2.Strategy'!$P$77,'2.Strategy'!M$12='2.Strategy'!$P$78))),N$242,"") ->  | N38: Post-E: Broadway | P38: 0 | Q38: 0 | R38: 0 | S38: 0 | T38: 0 | U38: 0 | V38: 0 | W38: 0 | X38: 0 | Y38: 0
A39: 33 | B39: Need-based plough | C39: =IF('2.Strategy'!D$13='2.Strategy'!$D$88,E$242,"") ->  | D39: =IF('2.Strategy'!E$13='2.Strategy'!$D$88,F$242,"") ->  | E39: =IF('2.Strategy'!F$13='2.Strategy'!$D$88,G$242,"") ->  | F39: =IF('2.Strategy'!G$13='2.Strategy'!$D$88,H$242,"") ->  | G39: =IF('2.Strategy'!H$13='2.Strategy'!$D$88,I$242,"") ->  | H39: =IF('2.Strategy'!I$13='2.Strategy'!$D$88,J$242,"") ->  | I39: =IF('2.Strategy'!J$13='2.Strategy'!$D$88,K$242,"") ->  | J39: =IF('2.Strategy'!K$13='2.Strategy'!$D$88,L$242,"") ->  | K39: =IF('2.Strategy'!L$13='2.Strategy'!$D$88,M$242,"") ->  | L39: =IF('2.Strategy'!M$13='2.Strategy'!$D$88,N$242,"") ->  | N39: Post-E: Cossack OD | P39: 0 | Q39: 0 | R39: 0 | S39: 0 | T39: 0 | U39: 0 | V39: 0 | W39: 0 | X39: 0 | Y39: 0
A40: 34 | B40: Plough | C40: =IF('2.Strategy'!D$13='2.Strategy'!$D$89,E$242,"") -> 5 | D40: =IF('2.Strategy'!E$13='2.Strategy'!$D$89,F$242,"") ->  | E40: =IF('2.Strategy'!F$13='2.Strategy'!$D$89,G$242,"") ->  | F40: =IF('2.Strategy'!G$13='2.Strategy'!$D$89,H$242,"") ->  | G40: =IF('2.Strategy'!H$13='2.Strategy'!$D$89,I$242,"") -> 5 | H40: =IF('2.Strategy'!I$13='2.Strategy'!$D$89,J$242,"") ->  | I40: =IF('2.Strategy'!J$13='2.Strategy'!$D$89,K$242,"") ->  | J40: =IF('2.Strategy'!K$13='2.Strategy'!$D$89,L$242,"") ->  | K40: =IF('2.Strategy'!L$13='2.Strategy'!$D$89,M$242,"") -> 5 | L40: =IF('2.Strategy'!M$13='2.Strategy'!$D$89,N$242,"") ->  | N40: Post-E: Focus Ultra | P40: 0 | Q40: 0 | R40: 0 | S40: 0 | T40: 0 | U40: 0 | V40: 0 | W40: 0 | X40: 0 | Y40: 0
A41: 35 | B41: Reduced tillage | C41: =IF('2.Strategy'!D$13='2.Strategy'!$D$90,E$242,"") ->  | D41: =IF('2.Strategy'!E$13='2.Strategy'!$D$90,F$242,"") ->  | E41: =IF('2.Strategy'!F$13='2.Strategy'!$D$90,G$242,"") ->  | F41: =IF('2.Strategy'!G$13='2.Strategy'!$D$90,H$242,"") ->  | G41: =IF('2.Strategy'!H$13='2.Strategy'!$D$90,I$242,"") ->  | H41: =IF('2.Strategy'!I$13='2.Strategy'!$D$90,J$242,"") ->  | I41: =IF('2.Strategy'!J$13='2.Strategy'!$D$90,K$242,"") ->  | J41: =IF('2.Strategy'!K$13='2.Strategy'!$D$90,L$242,"") ->  | K41: =IF('2.Strategy'!L$13='2.Strategy'!$D$90,M$242,"") ->  | L41: =IF('2.Strategy'!M$13='2.Strategy'!$D$90,N$242,"") ->  | N41: Post-E: Kerb | P41: 0 | Q41: 1 | R41: 0 | S41: 0 | T41: 0 | U41: 1 | V41: 0 | W41: 0 | X41: 0 | Y41: 1
A42: 36 | B42: No-till | C42: =IF('2.Strategy'!D$13='2.Strategy'!$D$91,E$242,"") ->  | D42: =IF('2.Strategy'!E$13='2.Strategy'!$D$91,F$242,"") ->  | E42: =IF('2.Strategy'!F$13='2.Strategy'!$D$91,G$242,"") ->  | F42: =IF('2.Strategy'!G$13='2.Strategy'!$D$91,H$242,"") ->  | G42: =IF('2.Strategy'!H$13='2.Strategy'!$D$91,I$242,"") ->  | H42: =IF('2.Strategy'!I$13='2.Strategy'!$D$91,J$242,"") ->  | I42: =IF('2.Strategy'!J$13='2.Strategy'!$D$91,K$242,"") ->  | J42: =IF('2.Strategy'!K$13='2.Strategy'!$D$91,L$242,"") ->  | K42: =IF('2.Strategy'!L$13='2.Strategy'!$D$91,M$242,"") ->  | L42: =IF('2.Strategy'!M$13='2.Strategy'!$D$91,N$242,"") ->  | N42: Total, post Em + pre-E (for phytotoxicity counts) | P42: =SUM(P35:P41)+COUNT(C11:C12)+COUNT(C36:C38) -> 2 | Q42: =SUM(Q35:Q41)+COUNT(D11:D12)+COUNT(D36:D38) -> 1 | R42: 1 | S42: 1 | T42: 2 | U42: 1 | V42: 1 | W42: 1 | X42: 2 | Y42: 1
A43: 37 | B43: Early sowing | C43: =IF('2.Strategy'!D$14='2.Strategy'!$D$93,E$242,"") -> 5 | D43: =IF('2.Strategy'!E$14='2.Strategy'!$D$93,F$242,"") ->  | E43: =IF('2.Strategy'!F$14='2.Strategy'!$D$93,G$242,"") ->  | F43: =IF('2.Strategy'!G$14='2.Strategy'!$D$93,H$242,"") ->  | G43: =IF('2.Strategy'!H$14='2.Strategy'!$D$93,I$242,"") -> 5 | H43: =IF('2.Strategy'!I$14='2.Strategy'!$D$93,J$242,"") ->  | I43: =IF('2.Strategy'!J$14='2.Strategy'!$D$93,K$242,"") ->  | J43: =IF('2.Strategy'!K$14='2.Strategy'!$D$93,L$242,"") ->  | K43: =IF('2.Strategy'!L$14='2.Strategy'!$D$93,M$242,"") -> 5 | L43: =IF('2.Strategy'!M$14='2.Strategy'!$D$93,N$242,"") -> 
A44: 38 | B44: Intermediate sowing | C44: =IF('2.Strategy'!D$14='2.Strategy'!$D$94,E$242,"") ->  | D44: =IF('2.Strategy'!E$14='2.Strategy'!$D$94,F$242,"") ->  | E44: =IF('2.Strategy'!F$14='2.Strategy'!$D$94,G$242,"") ->  | F44: =IF('2.Strategy'!G$14='2.Strategy'!$D$94,H$242,"") ->  | G44: =IF('2.Strategy'!H$14='2.Strategy'!$D$94,I$242,"") ->  | H44: =IF('2.Strategy'!I$14='2.Strategy'!$D$94,J$242,"") ->  | I44: =IF('2.Strategy'!J$14='2.Strategy'!$D$94,K$242,"") ->  | J44: =IF('2.Strategy'!K$14='2.Strategy'!$D$94,L$242,"") ->  | K44: =IF('2.Strategy'!L$14='2.Strategy'!$D$94,M$242,"") ->  | L44: =IF('2.Strategy'!M$14='2.Strategy'!$D$94,N$242,"") ->  | N44: Table 1b. Herbicides type counts
A45: 39 | B45: Late Sowing | C45: =IF('2.Strategy'!D$14='2.Strategy'!$D$95,E$242,"") ->  | D45: =IF('2.Strategy'!E$14='2.Strategy'!$D$95,F$242,"") ->  | E45: =IF('2.Strategy'!F$14='2.Strategy'!$D$95,G$242,"") ->  | F45: =IF('2.Strategy'!G$14='2.Strategy'!$D$95,H$242,"") ->  | G45: =IF('2.Strategy'!H$14='2.Strategy'!$D$95,I$242,"") ->  | H45: =IF('2.Strategy'!I$14='2.Strategy'!$D$95,J$242,"") ->  | I45: =IF('2.Strategy'!J$14='2.Strategy'!$D$95,K$242,"") ->  | J45: =IF('2.Strategy'!K$14='2.Strategy'!$D$95,L$242,"") ->  | K45: =IF('2.Strategy'!L$14='2.Strategy'!$D$95,M$242,"") ->  | L45: =IF('2.Strategy'!M$14='2.Strategy'!$D$95,N$242,"") ->  | N45: Adjust the tables in the middle of the strategy page, that controls the error messages and the white cells within the strategy table
A46: 40 | B46: Standard seeding rate | C46: =IF('2.Strategy'!D$15='2.Strategy'!$D$97,E$242,"") -> 5 | D46: =IF('2.Strategy'!E$15='2.Strategy'!$D$97,F$242,"") ->  | E46: =IF('2.Strategy'!F$15='2.Strategy'!$D$97,G$242,"") ->  | F46: =IF('2.Strategy'!G$15='2.Strategy'!$D$97,H$242,"") ->  | G46: =IF('2.Strategy'!H$15='2.Strategy'!$D$97,I$242,"") -> 5 | H46: =IF('2.Strategy'!I$15='2.Strategy'!$D$97,J$242,"") ->  | I46: =IF('2.Strategy'!J$15='2.Strategy'!$D$97,K$242,"") ->  | J46: =IF('2.Strategy'!K$15='2.Strategy'!$D$97,L$242,"") ->  | K46: =IF('2.Strategy'!L$15='2.Strategy'!$D$97,M$242,"") -> 5 | L46: =IF('2.Strategy'!M$15='2.Strategy'!$D$97,N$242,"") ->  | N46: Number of selectives used | P46: =COUNTIF(C11:C12,">=0")+SUM(P35:P39) -> 1 | Q46: =COUNTIF(D11:D12,">=0")+SUM(Q35:Q39) -> 0 | R46: 1 | S46: 1 | T46: 1 | U46: 0 | V46: 1 | W46: 1 | X46: 1 | Y46: 0 | Z46: only important if 0 or 1+ (then sub-lethal effect of selective on RG seed, spring)
A47: 41 | B47: Intermediate seeding rate | C47: =IF('2.Strategy'!D$15='2.Strategy'!$D$98,E$242,"") ->  | D47: =IF('2.Strategy'!E$15='2.Strategy'!$D$98,F$242,"") ->  | E47: =IF('2.Strategy'!F$15='2.Strategy'!$D$98,G$242,"") ->  | F47: =IF('2.Strategy'!G$15='2.Strategy'!$D$98,H$242,"") ->  | G47: =IF('2.Strategy'!H$15='2.Strategy'!$D$98,I$242,"") ->  | H47: =IF('2.Strategy'!I$15='2.Strategy'!$D$98,J$242,"") ->  | I47: =IF('2.Strategy'!J$15='2.Strategy'!$D$98,K$242,"") ->  | J47: =IF('2.Strategy'!K$15='2.Strategy'!$D$98,L$242,"") ->  | K47: =IF('2.Strategy'!L$15='2.Strategy'!$D$98,M$242,"") ->  | L47: =IF('2.Strategy'!M$15='2.Strategy'!$D$98,N$242,"") ->  | N47: Number of late non-selective application | P47: =COUNTIF(C37:C38,">=0")+COUNTIF(C26:C32,">=0") -> 0 | Q47: =COUNTIF(D37:D38,">=0")+COUNTIF(D26:D32,">=0") -> 1 | R47: 0 | S47: 1 | T47: 0 | U47: 1 | V47: 0 | W47: 1 | X47: 0 | Y47: 1 | Z47: only important if 0 or 1+ (then sub-lethal effect of selective on RG seed, spring)
A48: 42 | B48: High seeding rate | C48: =IF('2.Strategy'!D$15='2.Strategy'!$D$99,E$242,"") ->  | D48: =IF('2.Strategy'!E$15='2.Strategy'!$D$99,F$242,"") ->  | E48: =IF('2.Strategy'!F$15='2.Strategy'!$D$99,G$242,"") ->  | F48: =IF('2.Strategy'!G$15='2.Strategy'!$D$99,H$242,"") ->  | G48: =IF('2.Strategy'!H$15='2.Strategy'!$D$99,I$242,"") ->  | H48: =IF('2.Strategy'!I$15='2.Strategy'!$D$99,J$242,"") ->  | I48: =IF('2.Strategy'!J$15='2.Strategy'!$D$99,K$242,"") ->  | J48: =IF('2.Strategy'!K$15='2.Strategy'!$D$99,L$242,"") ->  | K48: =IF('2.Strategy'!L$15='2.Strategy'!$D$99,M$242,"") ->  | L48: =IF('2.Strategy'!M$15='2.Strategy'!$D$99,N$242,"") -> 
A49: 43 | B49: Cover crops | C49: =IF('2.Strategy'!D$16='2.Strategy'!$P$99,E$242,"") ->  | D49: =IF('2.Strategy'!E$16='2.Strategy'!$P$99,F$242,"") ->  | E49: =IF('2.Strategy'!F$16='2.Strategy'!$P$99,G$242,"") ->  | F49: =IF('2.Strategy'!G$16='2.Strategy'!$P$99,H$242,"") ->  | G49: =IF('2.Strategy'!H$16='2.Strategy'!$P$99,I$242,"") ->  | H49: =IF('2.Strategy'!I$16='2.Strategy'!$P$99,J$242,"") ->  | I49: =IF('2.Strategy'!J$16='2.Strategy'!$P$99,K$242,"") ->  | J49: =IF('2.Strategy'!K$16='2.Strategy'!$P$99,L$242,"") ->  | K49: =IF('2.Strategy'!L$16='2.Strategy'!$P$99,M$242,"") ->  | L49: =IF('2.Strategy'!M$16='2.Strategy'!$P$99,N$242,"") -> 
A50: 44 | B50: No cover crops | C50: =IF('2.Strategy'!D$16='2.Strategy'!$P$100,E$242,"") -> 5 | D50: =IF('2.Strategy'!E$16='2.Strategy'!$P$100,F$242,"") ->  | E50: =IF('2.Strategy'!F$16='2.Strategy'!$P$100,G$242,"") ->  | F50: =IF('2.Strategy'!G$16='2.Strategy'!$P$100,H$242,"") ->  | G50: =IF('2.Strategy'!H$16='2.Strategy'!$P$100,I$242,"") -> 5 | H50: =IF('2.Strategy'!I$16='2.Strategy'!$P$100,J$242,"") ->  | I50: =IF('2.Strategy'!J$16='2.Strategy'!$P$100,K$242,"") ->  | J50: =IF('2.Strategy'!K$16='2.Strategy'!$P$100,L$242,"") ->  | K50: =IF('2.Strategy'!L$16='2.Strategy'!$P$100,M$242,"") -> 5 | L50: =IF('2.Strategy'!M$16='2.Strategy'!$P$100,N$242,"") -> 
A51: 45 | B51: ="Post-E: "&'1.Profile'!C22 -> Post-E: Topik | C51: =IF(AND('2.Strategy'!D$17='2.Strategy'!$P$89,'1.Profile'!$C22<>""),E$242,"") ->  | D51: =IF(AND('2.Strategy'!E$17='2.Strategy'!$P$89,'1.Profile'!$C22<>""),F$242,"") ->  | E51: =IF(AND('2.Strategy'!F$17='2.Strategy'!$P$89,'1.Profile'!$C22<>""),G$242,"") ->  | F51: =IF(AND('2.Strategy'!G$17='2.Strategy'!$P$89,'1.Profile'!$C22<>""),H$242,"") ->  | G51: =IF(AND('2.Strategy'!H$17='2.Strategy'!$P$89,'1.Profile'!$C22<>""),I$242,"") ->  | H51: =IF(AND('2.Strategy'!I$17='2.Strategy'!$P$89,'1.Profile'!$C22<>""),J$242,"") ->  | I51: =IF(AND('2.Strategy'!J$17='2.Strategy'!$P$89,'1.Profile'!$C22<>""),K$242,"") ->  | J51: =IF(AND('2.Strategy'!K$17='2.Strategy'!$P$89,'1.Profile'!$C22<>""),L$242,"") ->  | K51: =IF(AND('2.Strategy'!L$17='2.Strategy'!$P$89,'1.Profile'!$C22<>""),M$242,"") ->  | L51: =IF(AND('2.Strategy'!M$17='2.Strategy'!$P$89,'1.Profile'!$C22<>""),N$242,"") -> 
A52: 46 | B52: ="Post-E: "&'1.Profile'!C23 -> Post-E: Atlantis OD | C52: =IF(AND('2.Strategy'!D$17='2.Strategy'!$P$90,'1.Profile'!$C23<>""),E$242,"") ->  | D52: =IF(AND('2.Strategy'!E$17='2.Strategy'!$P$90,'1.Profile'!$C23<>""),F$242,"") ->  | E52: =IF(AND('2.Strategy'!F$17='2.Strategy'!$P$90,'1.Profile'!$C23<>""),G$242,"") ->  | F52: =IF(AND('2.Strategy'!G$17='2.Strategy'!$P$90,'1.Profile'!$C23<>""),H$242,"") ->  | G52: =IF(AND('2.Strategy'!H$17='2.Strategy'!$P$90,'1.Profile'!$C23<>""),I$242,"") ->  | H52: =IF(AND('2.Strategy'!I$17='2.Strategy'!$P$90,'1.Profile'!$C23<>""),J$242,"") ->  | I52: =IF(AND('2.Strategy'!J$17='2.Strategy'!$P$90,'1.Profile'!$C23<>""),K$242,"") ->  | J52: =IF(AND('2.Strategy'!K$17='2.Strategy'!$P$90,'1.Profile'!$C23<>""),L$242,"") ->  | K52: =IF(AND('2.Strategy'!L$17='2.Strategy'!$P$90,'1.Profile'!$C23<>""),M$242,"") ->  | L52: =IF(AND('2.Strategy'!M$17='2.Strategy'!$P$90,'1.Profile'!$C23<>""),N$242,"") -> 
A53: 47 | B53: ="Post-E: "&'1.Profile'!C24 -> Post-E: Hussar Plus OD | C53: =IF(AND('2.Strategy'!D$17='2.Strategy'!$P$91,'1.Profile'!$C24<>""),E$242,"") -> 5 | D53: =IF(AND('2.Strategy'!E$17='2.Strategy'!$P$91,'1.Profile'!$C24<>""),F$242,"") ->  | E53: =IF(AND('2.Strategy'!F$17='2.Strategy'!$P$91,'1.Profile'!$C24<>""),G$242,"") -> 1 | F53: =IF(AND('2.Strategy'!G$17='2.Strategy'!$P$91,'1.Profile'!$C24<>""),H$242,"") ->  | G53: =IF(AND('2.Strategy'!H$17='2.Strategy'!$P$91,'1.Profile'!$C24<>""),I$242,"") -> 5 | H53: =IF(AND('2.Strategy'!I$17='2.Strategy'!$P$91,'1.Profile'!$C24<>""),J$242,"") ->  | I53: =IF(AND('2.Strategy'!J$17='2.Strategy'!$P$91,'1.Profile'!$C24<>""),K$242,"") -> 1 | J53: =IF(AND('2.Strategy'!K$17='2.Strategy'!$P$91,'1.Profile'!$C24<>""),L$242,"") ->  | K53: =IF(AND('2.Strategy'!L$17='2.Strategy'!$P$91,'1.Profile'!$C24<>""),M$242,"") -> 5 | L53: =IF(AND('2.Strategy'!M$17='2.Strategy'!$P$91,'1.Profile'!$C24<>""),N$242,"") -> 
A54: 48 | B54: ="Post-E: "&'1.Profile'!C25 -> Post-E: Broadway | C54: =IF(AND('2.Strategy'!D$17='2.Strategy'!$P$92,'1.Profile'!$C25<>""),E$242,"") ->  | D54: =IF(AND('2.Strategy'!E$17='2.Strategy'!$P$92,'1.Profile'!$C25<>""),F$242,"") ->  | E54: =IF(AND('2.Strategy'!F$17='2.Strategy'!$P$92,'1.Profile'!$C25<>""),G$242,"") ->  | F54: =IF(AND('2.Strategy'!G$17='2.Strategy'!$P$92,'1.Profile'!$C25<>""),H$242,"") ->  | G54: =IF(AND('2.Strategy'!H$17='2.Strategy'!$P$92,'1.Profile'!$C25<>""),I$242,"") ->  | H54: =IF(AND('2.Strategy'!I$17='2.Strategy'!$P$92,'1.Profile'!$C25<>""),J$242,"") ->  | I54: =IF(AND('2.Strategy'!J$17='2.Strategy'!$P$92,'1.Profile'!$C25<>""),K$242,"") ->  | J54: =IF(AND('2.Strategy'!K$17='2.Strategy'!$P$92,'1.Profile'!$C25<>""),L$242,"") ->  | K54: =IF(AND('2.Strategy'!L$17='2.Strategy'!$P$92,'1.Profile'!$C25<>""),M$242,"") ->  | L54: =IF(AND('2.Strategy'!M$17='2.Strategy'!$P$92,'1.Profile'!$C25<>""),N$242,"") -> 
A55: 49 | B55: ="Post-E: "&'1.Profile'!C26 -> Post-E: Cossack OD | C55: =IF(AND('2.Strategy'!D$17='2.Strategy'!$P$93,'1.Profile'!$C26<>""),E$242,"") ->  | D55: =IF(AND('2.Strategy'!E$17='2.Strategy'!$P$93,'1.Profile'!$C26<>""),F$242,"") ->  | E55: =IF(AND('2.Strategy'!F$17='2.Strategy'!$P$93,'1.Profile'!$C26<>""),G$242,"") ->  | F55: =IF(AND('2.Strategy'!G$17='2.Strategy'!$P$93,'1.Profile'!$C26<>""),H$242,"") ->  | G55: =IF(AND('2.Strategy'!H$17='2.Strategy'!$P$93,'1.Profile'!$C26<>""),I$242,"") ->  | H55: =IF(AND('2.Strategy'!I$17='2.Strategy'!$P$93,'1.Profile'!$C26<>""),J$242,"") ->  | I55: =IF(AND('2.Strategy'!J$17='2.Strategy'!$P$93,'1.Profile'!$C26<>""),K$242,"") ->  | J55: =IF(AND('2.Strategy'!K$17='2.Strategy'!$P$93,'1.Profile'!$C26<>""),L$242,"") ->  | K55: =IF(AND('2.Strategy'!L$17='2.Strategy'!$P$93,'1.Profile'!$C26<>""),M$242,"") ->  | L55: =IF(AND('2.Strategy'!M$17='2.Strategy'!$P$93,'1.Profile'!$C26<>""),N$242,"") -> 
A56: 50 | B56: ="Post-E: "&'1.Profile'!C27 -> Post-E: Focus Ultra | C56: =IF(AND('2.Strategy'!D$17='2.Strategy'!$P$94,'1.Profile'!$C27<>""),E$242,"") ->  | D56: =IF(AND('2.Strategy'!E$17='2.Strategy'!$P$94,'1.Profile'!$C27<>""),F$242,"") ->  | E56: =IF(AND('2.Strategy'!F$17='2.Strategy'!$P$94,'1.Profile'!$C27<>""),G$242,"") ->  | F56: =IF(AND('2.Strategy'!G$17='2.Strategy'!$P$94,'1.Profile'!$C27<>""),H$242,"") ->  | G56: =IF(AND('2.Strategy'!H$17='2.Strategy'!$P$94,'1.Profile'!$C27<>""),I$242,"") ->  | H56: =IF(AND('2.Strategy'!I$17='2.Strategy'!$P$94,'1.Profile'!$C27<>""),J$242,"") ->  | I56: =IF(AND('2.Strategy'!J$17='2.Strategy'!$P$94,'1.Profile'!$C27<>""),K$242,"") ->  | J56: =IF(AND('2.Strategy'!K$17='2.Strategy'!$P$94,'1.Profile'!$C27<>""),L$242,"") ->  | K56: =IF(AND('2.Strategy'!L$17='2.Strategy'!$P$94,'1.Profile'!$C27<>""),M$242,"") ->  | L56: =IF(AND('2.Strategy'!M$17='2.Strategy'!$P$94,'1.Profile'!$C27<>""),N$242,"") -> 
A57: 51 | B57: ="Post-E: "&'1.Profile'!C28 -> Post-E: Kerb | C57: =IF(AND('2.Strategy'!D$17='2.Strategy'!$P$95,'1.Profile'!$C28<>""),E$242,"") ->  | D57: =IF(AND('2.Strategy'!E$17='2.Strategy'!$P$95,'1.Profile'!$C28<>""),F$242,"") ->  | E57: =IF(AND('2.Strategy'!F$17='2.Strategy'!$P$95,'1.Profile'!$C28<>""),G$242,"") ->  | F57: =IF(AND('2.Strategy'!G$17='2.Strategy'!$P$95,'1.Profile'!$C28<>""),H$242,"") ->  | G57: =IF(AND('2.Strategy'!H$17='2.Strategy'!$P$95,'1.Profile'!$C28<>""),I$242,"") ->  | H57: =IF(AND('2.Strategy'!I$17='2.Strategy'!$P$95,'1.Profile'!$C28<>""),J$242,"") ->  | I57: =IF(AND('2.Strategy'!J$17='2.Strategy'!$P$95,'1.Profile'!$C28<>""),K$242,"") ->  | J57: =IF(AND('2.Strategy'!K$17='2.Strategy'!$P$95,'1.Profile'!$C28<>""),L$242,"") ->  | K57: =IF(AND('2.Strategy'!L$17='2.Strategy'!$P$95,'1.Profile'!$C28<>""),M$242,"") ->  | L57: =IF(AND('2.Strategy'!M$17='2.Strategy'!$P$95,'1.Profile'!$C28<>""),N$242,"") -> 
A58: 52 | B58: Summer option: None | C58: =IF('2.Strategy'!D$18='2.Strategy'!$D$101,E$242,"") -> 5 | D58: =IF('2.Strategy'!E$18='2.Strategy'!$D$101,F$242,"") -> 4 | E58: =IF('2.Strategy'!F$18='2.Strategy'!$D$101,G$242,"") -> 1 | F58: =IF('2.Strategy'!G$18='2.Strategy'!$D$101,H$242,"") -> 1 | G58: =IF('2.Strategy'!H$18='2.Strategy'!$D$101,I$242,"") -> 5 | H58: =IF('2.Strategy'!I$18='2.Strategy'!$D$101,J$242,"") -> 4 | I58: =IF('2.Strategy'!J$18='2.Strategy'!$D$101,K$242,"") -> 1 | J58: =IF('2.Strategy'!K$18='2.Strategy'!$D$101,L$242,"") -> 1 | K58: =IF('2.Strategy'!L$18='2.Strategy'!$D$101,M$242,"") -> 5 | L58: =IF('2.Strategy'!M$18='2.Strategy'!$D$101,N$242,"") -> 4
A59: 53 | B59: Summer option: dessication | C59: =IF('2.Strategy'!D$18='2.Strategy'!$D$102,E$242,"") ->  | D59: =IF('2.Strategy'!E$18='2.Strategy'!$D$102,F$242,"") ->  | E59: =IF('2.Strategy'!F$18='2.Strategy'!$D$102,G$242,"") ->  | F59: =IF('2.Strategy'!G$18='2.Strategy'!$D$102,H$242,"") ->  | G59: =IF('2.Strategy'!H$18='2.Strategy'!$D$102,I$242,"") ->  | H59: =IF('2.Strategy'!I$18='2.Strategy'!$D$102,J$242,"") ->  | I59: =IF('2.Strategy'!J$18='2.Strategy'!$D$102,K$242,"") ->  | J59: =IF('2.Strategy'!K$18='2.Strategy'!$D$102,L$242,"") ->  | K59: =IF('2.Strategy'!L$18='2.Strategy'!$D$102,M$242,"") ->  | L59: =IF('2.Strategy'!M$18='2.Strategy'!$D$102,N$242,"") -> 
A60: 54 | B60: Summer option: crop sacrifies | C60: =IF('2.Strategy'!D$18='2.Strategy'!$D$103,E$242,"") ->  | D60: =IF('2.Strategy'!E$18='2.Strategy'!$D$103,F$242,"") ->  | E60: =IF('2.Strategy'!F$18='2.Strategy'!$D$103,G$242,"") ->  | F60: =IF('2.Strategy'!G$18='2.Strategy'!$D$103,H$242,"") ->  | G60: =IF('2.Strategy'!H$18='2.Strategy'!$D$103,I$242,"") ->  | H60: =IF('2.Strategy'!I$18='2.Strategy'!$D$103,J$242,"") ->  | I60: =IF('2.Strategy'!J$18='2.Strategy'!$D$103,K$242,"") ->  | J60: =IF('2.Strategy'!K$18='2.Strategy'!$D$103,L$242,"") ->  | K60: =IF('2.Strategy'!L$18='2.Strategy'!$D$103,M$242,"") ->  | L60: =IF('2.Strategy'!M$18='2.Strategy'!$D$103,N$242,"") -> 
A61: 55 | B61: ="Summer option: "&'1.Profile'!C32 -> Summer option: Mulighed 1 | C61: =IF('2.Strategy'!D$18='2.Strategy'!$D$104,E$242,"") ->  | D61: =IF('2.Strategy'!E$18='2.Strategy'!$D$104,F$242,"") ->  | E61: =IF('2.Strategy'!F$18='2.Strategy'!$D$104,G$242,"") ->  | F61: =IF('2.Strategy'!G$18='2.Strategy'!$D$104,H$242,"") ->  | G61: =IF('2.Strategy'!H$18='2.Strategy'!$D$104,I$242,"") ->  | H61: =IF('2.Strategy'!I$18='2.Strategy'!$D$104,J$242,"") ->  | I61: =IF('2.Strategy'!J$18='2.Strategy'!$D$104,K$242,"") ->  | J61: =IF('2.Strategy'!K$18='2.Strategy'!$D$104,L$242,"") ->  | K61: =IF('2.Strategy'!L$18='2.Strategy'!$D$104,M$242,"") ->  | L61: =IF('2.Strategy'!M$18='2.Strategy'!$D$104,N$242,"") -> 
A62: 56 | B62: ="Summer option: "&'1.Profile'!C33 -> Summer option: Mulighed 2 | C62: =IF('2.Strategy'!D$18='2.Strategy'!$D$105,E$242,"") ->  | D62: =IF('2.Strategy'!E$18='2.Strategy'!$D$105,F$242,"") ->  | E62: =IF('2.Strategy'!F$18='2.Strategy'!$D$105,G$242,"") ->  | F62: =IF('2.Strategy'!G$18='2.Strategy'!$D$105,H$242,"") ->  | G62: =IF('2.Strategy'!H$18='2.Strategy'!$D$105,I$242,"") ->  | H62: =IF('2.Strategy'!I$18='2.Strategy'!$D$105,J$242,"") ->  | I62: =IF('2.Strategy'!J$18='2.Strategy'!$D$105,K$242,"") ->  | J62: =IF('2.Strategy'!K$18='2.Strategy'!$D$105,L$242,"") ->  | K62: =IF('2.Strategy'!L$18='2.Strategy'!$D$105,M$242,"") ->  | L62: =IF('2.Strategy'!M$18='2.Strategy'!$D$105,N$242,"") -> 
A63: 57 | B63: Harvester with bale presser | C63: =IF('2.Strategy'!D$19='2.Strategy'!$D$107,E$242,"") ->  | D63: =IF('2.Strategy'!E$19='2.Strategy'!$D$107,F$242,"") ->  | E63: =IF('2.Strategy'!F$19='2.Strategy'!$D$107,G$242,"") ->  | F63: =IF('2.Strategy'!G$19='2.Strategy'!$D$107,H$242,"") ->  | G63: =IF('2.Strategy'!H$19='2.Strategy'!$D$107,I$242,"") ->  | H63: =IF('2.Strategy'!I$19='2.Strategy'!$D$107,J$242,"") ->  | I63: =IF('2.Strategy'!J$19='2.Strategy'!$D$107,K$242,"") ->  | J63: =IF('2.Strategy'!K$19='2.Strategy'!$D$107,L$242,"") ->  | K63: =IF('2.Strategy'!L$19='2.Strategy'!$D$107,M$242,"") ->  | L63: =IF('2.Strategy'!M$19='2.Strategy'!$D$107,N$242,"") -> 
A64: 58 | B64: Harvester with chopping of straws | C64: =IF('2.Strategy'!D$19='2.Strategy'!$D$108,E$242,"") -> 5 | D64: =IF('2.Strategy'!E$19='2.Strategy'!$D$108,F$242,"") ->  | E64: =IF('2.Strategy'!F$19='2.Strategy'!$D$108,G$242,"") -> 1 | F64: =IF('2.Strategy'!G$19='2.Strategy'!$D$108,H$242,"") -> 1 | G64: =IF('2.Strategy'!H$19='2.Strategy'!$D$108,I$242,"") -> 5 | H64: =IF('2.Strategy'!I$19='2.Strategy'!$D$108,J$242,"") ->  | I64: =IF('2.Strategy'!J$19='2.Strategy'!$D$108,K$242,"") -> 1 | J64: =IF('2.Strategy'!K$19='2.Strategy'!$D$108,L$242,"") -> 1 | K64: =IF('2.Strategy'!L$19='2.Strategy'!$D$108,M$242,"") -> 5 | L64: =IF('2.Strategy'!M$19='2.Strategy'!$D$108,N$242,"") -> 
A65: 59 | B65: Oilseed rape, harvest | C65: =IF('2.Strategy'!D$19='2.Strategy'!$D$109,E$242,"") ->  | D65: =IF('2.Strategy'!E$19='2.Strategy'!$D$109,F$242,"") -> 4 | E65: =IF('2.Strategy'!F$19='2.Strategy'!$D$109,G$242,"") ->  | F65: =IF('2.Strategy'!G$19='2.Strategy'!$D$109,H$242,"") ->  | G65: =IF('2.Strategy'!H$19='2.Strategy'!$D$109,I$242,"") ->  | H65: =IF('2.Strategy'!I$19='2.Strategy'!$D$109,J$242,"") -> 4 | I65: =IF('2.Strategy'!J$19='2.Strategy'!$D$109,K$242,"") ->  | J65: =IF('2.Strategy'!K$19='2.Strategy'!$D$109,L$242,"") ->  | K65: =IF('2.Strategy'!L$19='2.Strategy'!$D$109,M$242,"") ->  | L65: =IF('2.Strategy'!M$19='2.Strategy'!$D$109,N$242,"") -> 4
A66: 60 | B66: Oilseed rape, harvest, with swathing | C66: =IF('2.Strategy'!D$19='2.Strategy'!$D$110,E$242,"") ->  | D66: =IF('2.Strategy'!E$19='2.Strategy'!$D$110,F$242,"") ->  | E66: =IF('2.Strategy'!F$19='2.Strategy'!$D$110,G$242,"") ->  | F66: =IF('2.Strategy'!G$19='2.Strategy'!$D$110,H$242,"") ->  | G66: =IF('2.Strategy'!H$19='2.Strategy'!$D$110,I$242,"") ->  | H66: =IF('2.Strategy'!I$19='2.Strategy'!$D$110,J$242,"") ->  | I66: =IF('2.Strategy'!J$19='2.Strategy'!$D$110,K$242,"") ->  | J66: =IF('2.Strategy'!K$19='2.Strategy'!$D$110,L$242,"") ->  | K66: =IF('2.Strategy'!L$19='2.Strategy'!$D$110,M$242,"") ->  | L66: =IF('2.Strategy'!M$19='2.Strategy'!$D$110,N$242,"") -> 
A67: 61 | B67: Legumes, harvest with chopping | C67: =IF('2.Strategy'!D$19='2.Strategy'!$D$111,E$242,"") ->  | D67: =IF('2.Strategy'!E$19='2.Strategy'!$D$111,F$242,"") ->  | E67: =IF('2.Strategy'!F$19='2.Strategy'!$D$111,G$242,"") ->  | F67: =IF('2.Strategy'!G$19='2.Strategy'!$D$111,H$242,"") ->  | G67: =IF('2.Strategy'!H$19='2.Strategy'!$D$111,I$242,"") ->  | H67: =IF('2.Strategy'!I$19='2.Strategy'!$D$111,J$242,"") ->  | I67: =IF('2.Strategy'!J$19='2.Strategy'!$D$111,K$242,"") ->  | J67: =IF('2.Strategy'!K$19='2.Strategy'!$D$111,L$242,"") ->  | K67: =IF('2.Strategy'!L$19='2.Strategy'!$D$111,M$242,"") ->  | L67: =IF('2.Strategy'!M$19='2.Strategy'!$D$111,N$242,"") -> 
B68: Seed Catching
B69: None/grass | C69: =IF('2.Strategy'!D$19='2.Strategy'!$D$112,E$242,"") ->  | D69: =IF('2.Strategy'!E$19='2.Strategy'!$D$112,F$242,"") ->  | E69: =IF('2.Strategy'!F$19='2.Strategy'!$D$112,G$242,"") ->  | F69: =IF('2.Strategy'!G$19='2.Strategy'!$D$112,H$242,"") ->  | G69: =IF('2.Strategy'!H$19='2.Strategy'!$D$112,I$242,"") ->  | H69: =IF('2.Strategy'!I$19='2.Strategy'!$D$112,J$242,"") ->  | I69: =IF('2.Strategy'!J$19='2.Strategy'!$D$112,K$242,"") ->  | J69: =IF('2.Strategy'!K$19='2.Strategy'!$D$112,L$242,"") ->  | K69: =IF('2.Strategy'!L$19='2.Strategy'!$D$112,M$242,"") ->  | L69: =IF('2.Strategy'!M$19='2.Strategy'!$D$112,N$242,"") ->  | N69: Table 2a. Ryegrass control (%) | AC69: Legend to the Control and Costs tables:
A70: 1 | B70: Table 2. Selected RG control (%) | C70: Proportions of weeds or seeds surviving each selected option. | N70: W wheat | O70: W barley | P70: W Rye | Q70: W Oilseed | R70: S Barley | S70: S oat | T70: S Wheat | U70: Legume | V70: Grass | W70: Grass/clover
A71: 2 | C71: =1-Control % as specified in Table 2.a on the right. | N71: 1 | O71: 2 | P71: 3 | Q71: 4 | R71: 5 | S71: 6 | T71: 7 | U71: 8 | V71: 9 | W71: 10 | AC71: 22 | AD71: results from calculations
A72: 3 | B72: Glyphosate Early | C72: =IF(C7<>"",C75*C76*C77,1) -> 1 | D72: =IF(D7<>"",D75*D76*D77,1) -> 1 | E72: 1 | F72: 1 | G72: 1 | H72: 1 | I72: 1 | J72: 1 | K72: 1 | L72: 1 | X72: Options' with the ryegrass options on the right | AC72: 22 | AD72: linked to either Profile, Prices, Option pages
A73: 4 | B73: Glyphosate Intermediate | C73: =IF(C8<>"",C75*C76*C77,1) -> 1 | D73: =IF(D8<>"",D75*D76*D77,1) -> 1 | E73: 1 | F73: 1 | G73: 1 | H73: 1 | I73: 1 | J73: 1 | K73: 1 | L73: 1 | AD73: (interface or background calculations)
A74: 5 | B74: Glyphosate Late | C74: =IF(C9<>"",C75*C76*C77,1) -> 1 | D74: =IF(D9<>"",D75*D76*D77,1) -> 1 | E74: 1 | F74: 1 | G74: 1 | H74: 1 | I74: 1 | J74: 1 | K74: 1 | L74: 1
A75: 6 | B75: None | C75: =IF(C10<>"",1-(HLOOKUP(C10,$N$71:$W$77,$A74)),1) -> 1 | D75: =IF(D10<>"",1-(HLOOKUP(D10,$N$71:$W$77,$A74)),1) -> 1 | E75: 1 | F75: 1 | G75: 1 | H75: 1 | I75: 1 | J75: 1 | K75: 1 | L75: 1 | N75: 0 | O75: 0 | P75: 0 | Q75: 0 | X75: From 'Profile'
A76: 7 | B76: ="Glyphosate rate: "&'1.Profile'!C16 -> Glyphosate rate: 540 | C76: =IF(C11<>"",1-(HLOOKUP(C11,$N$71:$W$77,$A75)),1) -> 1 | D76: =IF(D11<>"",1-(HLOOKUP(D11,$N$71:$W$77,$A75)),1) -> 1 | E76: 1 | F76: 1 | G76: 1 | H76: 1 | I76: 1 | J76: 1 | K76: 1 | L76: 1 | N76: ='1.Profile'!I16 -> 0.85 | O76: ='1.Profile'!I16 -> 0.85 | P76: ='1.Profile'!I16 -> 0.85 | Q76: ='1.Profile'!K16 -> 0.85
A77: 8 | B77: ="Glyphosate rate: "&'1.Profile'!C17 -> Glyphosate rate: 1080 | C77: =IF(C12<>"",1-(HLOOKUP(C12,$N$71:$W$77,$A76)),1) -> 1 | D77: =IF(D12<>"",1-(HLOOKUP(D12,$N$71:$W$77,$A76)),1) -> 1 | E77: 1 | F77: 1 | G77: 1 | H77: 1 | I77: 1 | J77: 1 | K77: 1 | L77: 1 | N77: ='1.Profile'!I17 -> 0.95 | O77: ='1.Profile'!I17 -> 0.95 | P77: ='1.Profile'!I17 -> 0.95 | Q77: ='1.Profile'!K17 -> 0.95 | AC77: References for ryegrass control values
A78: 9 | B78: Plough and pack | AC78: Many people have had input to these control percentages. In reality they vary widely from year to year and from farm to farm and are hence left to the user to define.
A79: 10 | B79: Reduced tillage | D79: The control % is applied to the 'time of seeding' options, below. | O79: Seeding timing/type | P79: Plough | Q79: Red. till | R79: No-till | AC79: A number of those weed control options and their parameters are reviewed in:
A80: 11 | B80: No-till | O80: Early | P80: ='+Options'!$AG$124 -> 0.9 | Q80: ='+Options'!$Q$24 -> 0.6 | R80: ='+Options'!$Q$25 -> 0.4
A81: 12 | B81: Early sowing | C81: =IF(AND(C13<>"",C16<>""),1-$P$80,IF(AND(C14<>"",C16<>""),1-$Q$80,IF(AND(C15<>"",C16<>""),1-$R$80,1))) -> 1 | D81: =IF(AND(D13<>"",D16<>""),1-$P$80,IF(AND(D14<>"",D16<>""),1-$Q$80,IF(AND(D15<>"",D16<>""),1-$R$80,1))) -> 0.1 | E81: 1 | F81: 0.1 | G81: 1 | H81: 0.1 | I81: 1 | J81: 0.1 | K81: 1 | L81: 0.1 | O81: Intermediate | P81: ='+Options'!$AG$124 -> 0.9 | Q81: ='+Options'!$Q$24 -> 0.6 | R81: ='+Options'!$Q$25 -> 0.4 | S81: NB, No connection to crop in column heading | AC81: Walsh, M. and Powles, S. (2007) Management Strategies for Herbicide-Resistant Weed Populations in Australian Dryland Crop Production Systems. Weed Technology 21:332–338
A82: 13 | B82: Intermediate sowing | C82: =IF(AND(C13<>"",C17<>""),1-$P$81,IF(AND(C14<>"",C17<>""),1-$Q$81,IF(AND(C15<>"",C17<>""),1-$R$81,1))) -> 1 | D82: =IF(AND(D13<>"",D17<>""),1-$P$81,IF(AND(D14<>"",D17<>""),1-$Q$81,IF(AND(D15<>"",D17<>""),1-$R$81,1))) -> 1 | E82: 1 | F82: 1 | G82: 1 | H82: 1 | I82: 1 | J82: 1 | K82: 1 | L82: 1 | O82: Late | P82: ='+Options'!$AG$124 -> 0.9 | Q82: ='+Options'!$Q$24 -> 0.6 | R82: ='+Options'!$Q$25 -> 0.4 | AC82: Goggin, D.E., Powles, S.B. and Steadman, K,J. (2012) Understanding Lolium rigidum Seeds: The Key to Managing a Problem Weed? Agronomy 2:222-239
A83: 14 | B83: Late Sowing | C83: =IF(AND(C13<>"",C18<>""),1-$P$82,IF(AND(C14<>"",C18<>""),1-$Q$82,IF(AND(C15<>"",C18<>""),1-$R$82,1))) -> 1 | D83: =IF(AND(D13<>"",D18<>""),1-$P$82,IF(AND(D14<>"",D18<>""),1-$Q$82,IF(AND(D15<>"",D18<>""),1-$R$82,1))) -> 1 | E83: 0.1 | F83: 1 | G83: 1 | H83: 1 | I83: 0.1 | J83: 1 | K83: 1 | L83: 1 | AC83: Walsh, M. and P. Newman (2007) Burning narrow windrows for weed seed destruction. Field Crops Research 104:24–30.
A84: 15 | B84: Standard seeding rate | AC84: Walsh, M., Harrington, R. and Powles, S (2012) Harrington Seed Destructor: a new non-chemical weed control tool for global grain crops. Crop Science (2012) 52:1343-1347
A85: 16 | B85: Intermediate seeding rate | D85: Dealt with in Bio results | AC85: ='1.Profile'!E49 -> 0
A86: 17 | B86: High seeding rate
A87: 18 | B87: Cover crops, dealt with in Bio results table 2 | C87: =IF(C22<>"",1-(HLOOKUP(C22,$N$71:$U$130,17)),1) -> 1 | D87: =IF(D22<>"",1-(HLOOKUP(D22,$N$71:$U$130,17)),1) -> 1 | E87: 1 | F87: 1 | G87: 1 | H87: 1 | I87: 1 | J87: 1 | K87: 1 | L87: 1 | N87: ='1.Profile'!$O$8 -> 0.02 | O87: ='1.Profile'!$O$8 -> 0.02 | P87: ='1.Profile'!$O$8 -> 0.02 | Q87: ='1.Profile'!$O$8 -> 0.02 | V87: From 'Profile' | AC87: Knock-down: | AE87: 0.95
A88: 19 | B88: No cover crops | C88: =IF(C23<>"",1-(HLOOKUP(C23,$N$71:$U$130,18)),1) -> 1 | D88: =IF(D23<>"",1-(HLOOKUP(D23,$N$71:$U$130,18)),1) -> 1 | E88: 1 | F88: 1 | G88: 1 | H88: 1 | I88: 1 | J88: 1 | K88: 1 | L88: 1 | N88: 0 | O88: 0 | P88: 0 | Q88: 0 | AC88: Double-knock: | AE88: 1
A89: 20 | B89: ="Pre-E: "&'1.Profile'!C19 -> Pre-E: Boxer 1 l | C89: =IF(C24<>"",1-(HLOOKUP(C24,$N$71:$U$130,19)),1) -> 1 | D89: =IF(D24<>"",1-(HLOOKUP(D24,$N$71:$U$130,19)),1) -> 1 | E89: 0.37 | F89: 0.37 | G89: 1 | H89: 1 | I89: 0.37 | J89: 0.37 | K89: 1 | L89: 1 | N89: ='1.Profile'!I19 -> 0.63 | O89: ='1.Profile'!I19 -> 0.63 | P89: ='1.Profile'!I19 -> 0.63 | Q89: ='1.Profile'!K19 -> 0 | V89: From 'Profile'
A90: 21 | B90: ="Pre-E: "&'1.Profile'!C20 -> Pre-E: Boxer 2 l | C90: =IF(C25<>"",1-(HLOOKUP(C25,$N$71:$U$130,20)),1) -> 1 | D90: =IF(D25<>"",1-(HLOOKUP(D25,$N$71:$U$130,20)),1) -> 1 | E90: 1 | F90: 1 | G90: 1 | H90: 1 | I90: 1 | J90: 1 | K90: 1 | L90: 1 | N90: ='1.Profile'!I20 -> 0.85 | O90: ='1.Profile'!I20 -> 0.85 | P90: ='1.Profile'!I20 -> 0.85 | Q90: ='1.Profile'!K20 -> 0 | AC90: Tickle: | AE90: 0
A91: 22 | B91: ="Post-E: "&'1.Profile'!C22 -> Post-E: Topik | C91: =IF(C26<>"",1-(HLOOKUP(C26,$N$71:$U$130,21)),1) -> 1 | D91: =IF(D26<>"",1-(HLOOKUP(D26,$N$71:$U$130,21)),1) -> 1 | E91: 1 | F91: 0.33 | G91: 1 | H91: 1 | I91: 1 | J91: 0.33 | K91: 1 | L91: 1 | N91: ='1.Profile'!$I$22 -> 0.67 | O91: ='1.Profile'!$I$22 -> 0.67 | P91: ='1.Profile'!$I$22 -> 0.67 | Q91: ='1.Profile'!$K$22 -> 0 | V91: From 'Profile' | AC91: Mouldboard plough | AE91: 1
A92: 23 | B92: ="Post-E: "&'1.Profile'!C23 -> Post-E: Atlantis OD | C92: =IF(C27<>"",1-(HLOOKUP(C27,$N$71:$U$130,22)),1) -> 1 | D92: =IF(D27<>"",1-(HLOOKUP(D27,$N$71:$U$130,22)),1) -> 1 | E92: 1 | F92: 1 | G92: 1 | H92: 1 | I92: 1 | J92: 1 | K92: 1 | L92: 1 | N92: ='1.Profile'!$I$23 -> 0.97 | O92: ='1.Profile'!$I$23 -> 0.97 | P92: ='1.Profile'!$I$23 -> 0.97 | Q92: ='1.Profile'!$K$23 -> 0 | AC92: No-till: | AE92: 0.05 | AF92: same if delayed
A93: 24 | B93: ="Post-E: "&'1.Profile'!C24 -> Post-E: Hussar Plus OD | C93: =IF(C28<>"",1-(HLOOKUP(C28,$N$71:$U$130,23)),1) -> 1 | D93: =IF(D28<>"",1-(HLOOKUP(D28,$N$71:$U$130,23)),1) -> 1 | E93: 1 | F93: 1 | G93: 1 | H93: 1 | I93: 1 | J93: 1 | K93: 1 | L93: 1 | N93: ='1.Profile'!$I$24 -> 0.94 | O93: ='1.Profile'!$I$24 -> 0.94 | P93: ='1.Profile'!$I$24 -> 0.94 | Q93: ='1.Profile'!$K$24 -> 0 | AC93: Full-cut: | AE93: 0.8 | AF93: same if delayed
A94: 25 | B94: ="Post-E: "&'1.Profile'!C25 -> Post-E: Broadway | C94: =IF(C29<>"",1-(HLOOKUP(C29,$N$71:$U$130,24)),1) -> 1 | D94: =IF(D29<>"",1-(HLOOKUP(D29,$N$71:$U$130,24)),1) -> 1 | E94: 1 | F94: 1 | G94: 1 | H94: 1 | I94: 1 | J94: 1 | K94: 1 | L94: 1 | N94: ='1.Profile'!$I$25 -> 0.86 | O94: ='1.Profile'!$I$25 -> 0.86 | P94: ='1.Profile'!$I$25 -> 0.86 | Q94: ='1.Profile'!$K$25 -> 0
A95: 26 | B95: ="Post-E: "&'1.Profile'!C26 -> Post-E: Cossack OD | C95: =IF(C30<>"",1-(HLOOKUP(C30,$N$71:$U$130,25)),1) -> 1 | D95: =IF(D30<>"",1-(HLOOKUP(D30,$N$71:$U$130,25)),1) -> 1 | E95: 1 | F95: 1 | G95: 1 | H95: 1 | I95: 1 | J95: 1 | K95: 1 | L95: 1 | N95: ='1.Profile'!$I$26 -> 0.98 | O95: ='1.Profile'!$I$26 -> 0.98 | P95: ='1.Profile'!$I$26 -> 0.98 | Q95: ='1.Profile'!$K$26 -> 0 | AC95: Sacrifice + spray: | AE95: 1 | AG95: 0% if no no-selectives
A96: 27 | B96: ="Post-E: "&'1.Profile'!C27 -> Post-E: Focus Ultra | C96: =IF(C31<>"",1-(HLOOKUP(C31,$N$71:$U$130,26)),1) -> 1 | D96: =IF(D31<>"",1-(HLOOKUP(D31,$N$71:$U$130,26)),1) -> 1 | E96: 1 | F96: 1 | G96: 1 | H96: 1 | I96: 1 | J96: 1 | K96: 1 | L96: 1 | N96: ='1.Profile'!$I$27 -> 0 | O96: ='1.Profile'!$I$27 -> 0 | P96: ='1.Profile'!$I$27 -> 0 | Q96: ='1.Profile'!$K$27 -> 0.95 | AC96: Topping: crops: 75% pastures: 90%
A97: 28 | B97: ="Post-E: "&'1.Profile'!C28 -> Post-E: Kerb | C97: =IF(C32<>"",1-(HLOOKUP(C32,$N$71:$U$130,27)),1) -> 1 | D97: =IF(D32<>"",1-(HLOOKUP(D32,$N$71:$U$130,27)),1) -> 0.08 | E97: 1 | F97: 1 | G97: 1 | H97: 0.08 | I97: 1 | J97: 1 | K97: 1 | L97: 0.08 | N97: ='1.Profile'!$I$28 -> 0 | O97: ='1.Profile'!$I$28 -> 0 | P97: ='1.Profile'!$I$28 -> 0 | Q97: ='1.Profile'!$K$28 -> 0.92 | AC97: n.a.
A98: 29 | B98: Glyphosate Early | C98: =IF(C33<>"",C101*C102*C103,1) -> 1 | D98: 1 | E98: 1 | F98: 1 | G98: 1 | H98: 1 | I98: 1 | J98: 1 | K98: 1 | L98: 1 | AC98: Sacrifice + spray: | AE98: 1
A99: 30 | B99: Glyphosate Medium | C99: =IF(C34<>"",C101*C102*C103,1) -> 1 | D99: 1 | E99: 1 | F99: 1 | G99: 1 | H99: 1 | I99: 1 | J99: 1 | K99: 1 | L99: 1 | AC99: Sacrifice + spray: | AE99: 1 | AG99: 60% if no no-selectives
A100: 31 | B100: Glyphosate Late | C100: =IF(C35<>"",C101*C102*C103,1) -> 1 | D100: 1 | E100: 1 | F100: 1 | G100: 1 | H100: 1 | I100: 1 | J100: 1 | K100: 1 | L100: 1 | Z100: Options | AC100: Hay + spray | AE100: 1
A101: 32 | B101: None | C101: =IF(C36<>"",1-(HLOOKUP(C36,$N$71:$U$130,31)),1) -> 1 | D101: =IF(D36<>"",1-(HLOOKUP(D36,$N$71:$U$130,31)),1) -> 1 | E101: 1 | F101: 1 | G101: 1 | H101: 1 | I101: 1 | J101: 1 | K101: 1 | L101: 1 | R101: 0 | S101: 0 | T101: 0 | U101: 0 | AC101: Silage: higher than hay
A102: 33 | B102: ="Glyphosate rate: "&'1.Profile'!C16 -> Glyphosate rate: 540 | C102: =IF(C37<>"",1-(HLOOKUP(C37,$N$71:$U$130,32)),1) -> 1 | D102: =IF(D37<>"",1-(HLOOKUP(D37,$N$71:$U$130,32)),1) -> 1 | E102: 1 | F102: 1 | G102: 1 | H102: 1 | I102: 1 | J102: 1 | K102: 1 | L102: 1 | R102: ='1.Profile'!J16 -> 0.85 | S102: ='1.Profile'!J16 -> 0.85 | T102: ='1.Profile'!J16 -> 0.85 | U102: ='1.Profile'!L16 -> 0.85 | Z102: Profile
A103: 34 | B103: ="Glyphosate rate: "&'1.Profile'!C17 -> Glyphosate rate: 1080 | C103: =IF(C38<>"",1-(HLOOKUP(C38,$N$71:$U$130,33)),1) -> 1 | D103: =IF(D38<>"",1-(HLOOKUP(D38,$N$71:$U$130,33)),1) -> 1 | E103: 1 | F103: 1 | G103: 1 | H103: 1 | I103: 1 | J103: 1 | K103: 1 | L103: 1 | R103: ='1.Profile'!J17 -> 0.95 | S103: ='1.Profile'!J17 -> 0.95 | T103: ='1.Profile'!J17 -> 0.95 | U103: ='1.Profile'!L17 -> 0.95
A104: 35 | B104: Need-based plough | Z104: Options | AC104: Swathe: legumes & canola: 35% cereals: 45%
A105: 36 | B105: Plough | D105: The control % is applied to the 'time of seeding' options, below. | O105: Seeding timing/type | P105: Prescriptive | Q105: Plough | R105: Red. till | S105: No-till | AC105: Swathe + spray: | AE105: 0.9
A106: 37 | B106: Reduced tillage | O106: Early | P106: ='+Options'!$Q$22 -> 0.98 | Q106: ='+Options'!$Q$23 -> 0.9 | R106: ='+Options'!$Q$24 -> 0.6 | S106: ='+Options'!$Q$25 -> 0.4 | T106: NB, Separate table | Z106: Options | AC106: 0.85 | AD106: --> RG controlled ~ 85% (+/- 20%), from:
A107: 38 | B107: No-till | O107: Intermediate | P107: ='+Options'!$Q$22 -> 0.98 | Q107: ='+Options'!$Q$23 -> 0.9 | R107: ='+Options'!$Q$24 -> 0.6 | S107: ='+Options'!$Q$25 -> 0.4 | T107: No connection to crop in column heading row 66 | AC107: 0.85 | AD107: Ryegrass captured at harvest 88% (75-100%).
A108: 39 | B108: Early sowing | C108: =IF(C39<>"",1-$P$106,IF(AND(C40<>"",C43<>""),1-$Q$106,IF(AND(C41<>"",C43<>""),1-$R$106,IF(AND(C42<>"",C43<>""),1-$S$106,1)))) -> 0.1 | D108: 1 | E108: 1 | F108: 1 | G108: 0.1 | H108: 1 | I108: 1 | J108: 1 | K108: 0.1 | L108: 1 | O108: Late | P108: ='+Options'!$Q$22 -> 0.98 | Q108: ='+Options'!$Q$23 -> 0.9 | R108: ='+Options'!$Q$24 -> 0.6 | S108: ='+Options'!$Q$25 -> 0.4 | AC108: 0.85 | AD108: (combination of ryegrass seeds retention and header height)
A109: 40 | B109: Intermediate sowing | C109: =IF(C39<>"",1-$P$107,IF(AND(C40<>"",C44<>""),1-$Q$107,IF(AND(C41<>"",C44<>""),1-$R$107,IF(AND(C42<>"",C44<>""),1-$S$107,1)))) -> 1 | D109: 1 | E109: 1 | F109: 1 | G109: 1 | H109: 1 | I109: 1 | J109: 1 | K109: 1 | L109: 1 | N109: Skal behovsbaseret pløjning give forskellig effekt alt efter såtidspunkt? Formoder, nej, da man vel pløjer så tæt på såtidspunkt som muligt | AC109: 0.85 | AD109: Proportion of seeds in chaff: 95%, closer to 100% if straw as well (narrow windrows and BDS)
A110: 41 | B110: Late Sowing | C110: =IF(C39<>"",1-$P$108,IF(AND(C40<>"",C45<>""),1-$Q$108,IF(AND(C41<>"",C45<>""),1-$R$108,IF(AND(C42<>"",C45<>""),1-$S$108,1)))) -> 1 | D110: 1 | E110: 1 | F110: 1 | G110: 1 | H110: 1 | I110: 1 | J110: 1 | K110: 1 | L110: 1 | N110: Dog er der flere rajgræs fremspiret, som man rammer med en senere jordbarbejdning og såning. Dermed skulle de senere tidspunkter give bedre kontrol | AD110: Kill by high burn, export, crush, stumped+herbicide: 98% (95-100%)
A111: 42 | B111: Standard seeding rate | N111: The above is on need-based ploughing, whether the control is different depending on seeding time. | AC111: 0.85
A112: 43 | B112: Intermediate seeding rate | D112: Dealt with in Bio results | Z112: Options | AC112: 0.6 | AD112: Highly variable. Much lower for canola and legumes than cereals
A113: 44 | B113: High seeding rate | Z113: Profile
A114: 45 | B114: Cover crops | C114: =IF(C49<>"",1-(HLOOKUP(C49,$N$71:$U$130,44)),1) -> 1 | D114: =IF(D49<>"",1-(HLOOKUP(D49,$N$71:$U$130,44)),1) -> 1 | E114: 1 | F114: 1 | G114: 1 | H114: 1 | I114: 1 | J114: 1 | K114: 1 | L114: 1 | R114: ='1.Profile'!$O$8 -> 0.02 | S114: ='1.Profile'!$O$8 -> 0.02 | T114: ='1.Profile'!$O$8 -> 0.02 | U114: ='1.Profile'!$O$8 -> 0.02
A115: 46 | B115: No cover crops | C115: =IF(C50<>"",1-(HLOOKUP(C50,$N$71:$U$130,45)),1) -> 1 | D115: =IF(D50<>"",1-(HLOOKUP(D50,$N$71:$U$130,45)),1) -> 1 | E115: 1 | F115: 1 | G115: 1 | H115: 1 | I115: 1 | J115: 1 | K115: 1 | L115: 1 | R115: 0 | S115: 0 | T115: 0 | U115: 0
A116: 47 | B116: ="Post-E: "&'1.Profile'!C22 -> Post-E: Topik | C116: =IF(C51<>"",1-(HLOOKUP(C51,$N$71:$U$130,46)),1) -> 1 | D116: =IF(D51<>"",1-(HLOOKUP(D51,$N$71:$U$130,46)),1) -> 1 | E116: 1 | F116: 1 | G116: 1 | H116: 1 | I116: 1 | J116: 1 | K116: 1 | L116: 1 | N116: ='1.Profile'!$I$22 -> 0.67 | O116: ='1.Profile'!$I$22 -> 0.67 | P116: ='1.Profile'!$I$22 -> 0.67 | Q116: ='1.Profile'!$K$22 -> 0 | R116: ='1.Profile'!$J$22 -> 0 | S116: ='1.Profile'!$J$22 -> 0 | T116: ='1.Profile'!$J$22 -> 0 | U116: ='1.Profile'!$L$22 -> 0
A117: 48 | B117: ="Post-E: "&'1.Profile'!C23 -> Post-E: Atlantis OD | C117: =IF(C52<>"",1-(HLOOKUP(C52,$N$71:$U$130,47)),1) -> 1 | D117: =IF(D52<>"",1-(HLOOKUP(D52,$N$71:$U$130,47)),1) -> 1 | E117: 1 | F117: 1 | G117: 1 | H117: 1 | I117: 1 | J117: 1 | K117: 1 | L117: 1 | N117: ='1.Profile'!$I$23 -> 0.97 | O117: ='1.Profile'!$I$23 -> 0.97 | P117: ='1.Profile'!$I$23 -> 0.97 | Q117: ='1.Profile'!$K$23 -> 0 | R117: ='1.Profile'!$J$23 -> 0 | S117: ='1.Profile'!$J$23 -> 0 | T117: ='1.Profile'!$J$23 -> 0 | U117: ='1.Profile'!$L$23 -> 0
A118: 49 | B118: ="Post-E: "&'1.Profile'!C24 -> Post-E: Hussar Plus OD | C118: =IF(C53<>"",1-(HLOOKUP(C53,$N$71:$U$130,48)),1) -> 0.18 | D118: =IF(D53<>"",1-(HLOOKUP(D53,$N$71:$U$130,48)),1) -> 1 | E118: 0.06 | F118: 1 | G118: 0.18 | H118: 1 | I118: 0.06 | J118: 1 | K118: 0.18 | L118: 1 | N118: ='1.Profile'!$I$24 -> 0.94 | O118: ='1.Profile'!$I$24 -> 0.94 | P118: ='1.Profile'!$I$24 -> 0.94 | Q118: ='1.Profile'!$K$24 -> 0 | R118: ='1.Profile'!$J$24 -> 0.82 | S118: ='1.Profile'!$J$24 -> 0.82 | T118: ='1.Profile'!$J$24 -> 0.82 | U118: ='1.Profile'!$L$24 -> 0
A119: 50 | B119: ="Post-E: "&'1.Profile'!C25 -> Post-E: Broadway | C119: =IF(C54<>"",1-(HLOOKUP(C54,$N$71:$U$130,49)),1) -> 1 | D119: =IF(D54<>"",1-(HLOOKUP(D54,$N$71:$U$130,49)),1) -> 1 | E119: 1 | F119: 1 | G119: 1 | H119: 1 | I119: 1 | J119: 1 | K119: 1 | L119: 1 | N119: ='1.Profile'!$I$25 -> 0.86 | O119: ='1.Profile'!$I$25 -> 0.86 | P119: ='1.Profile'!$I$25 -> 0.86 | Q119: ='1.Profile'!$K$25 -> 0 | R119: ='1.Profile'!$J$25 -> 0 | S119: ='1.Profile'!$J$25 -> 0 | T119: ='1.Profile'!$J$25 -> 0 | U119: ='1.Profile'!$L$25 -> 0
A120: 51 | B120: ="Post-E: "&'1.Profile'!C26 -> Post-E: Cossack OD | C120: =IF(C55<>"",1-(HLOOKUP(C55,$N$71:$U$130,50)),1) -> 1 | D120: =IF(D55<>"",1-(HLOOKUP(D55,$N$71:$U$130,50)),1) -> 1 | E120: 1 | F120: 1 | G120: 1 | H120: 1 | I120: 1 | J120: 1 | K120: 1 | L120: 1 | N120: ='1.Profile'!$I$26 -> 0.98 | O120: ='1.Profile'!$I$26 -> 0.98 | P120: ='1.Profile'!$I$26 -> 0.98 | Q120: ='1.Profile'!$K$26 -> 0 | R120: ='1.Profile'!$J$26 -> 0 | S120: ='1.Profile'!$J$26 -> 0 | T120: ='1.Profile'!$J$26 -> 0 | U120: ='1.Profile'!$L$26 -> 0
A121: 52 | B121: ="Post-E: "&'1.Profile'!C27 -> Post-E: Focus Ultra | C121: =IF(C56<>"",1-(HLOOKUP(C56,$N$71:$U$130,51)),1) -> 1 | D121: =IF(D56<>"",1-(HLOOKUP(D56,$N$71:$U$130,51)),1) -> 1 | E121: 1 | F121: 1 | G121: 1 | H121: 1 | I121: 1 | J121: 1 | K121: 1 | L121: 1 | N121: ='1.Profile'!$I$27 -> 0 | O121: ='1.Profile'!$I$27 -> 0 | P121: ='1.Profile'!$I$27 -> 0 | Q121: ='1.Profile'!$K$27 -> 0.95 | R121: ='1.Profile'!$J$27 -> 0 | S121: ='1.Profile'!$J$27 -> 0 | T121: ='1.Profile'!$J$27 -> 0 | U121: ='1.Profile'!$L$27 -> 0.92
A122: 53 | B122: ="Post-E: "&'1.Profile'!C28 -> Post-E: Kerb | C122: =IF(C57<>"",1-(HLOOKUP(C57,$N$71:$U$130,52)),1) -> 1 | D122: =IF(D57<>"",1-(HLOOKUP(D57,$N$71:$U$130,52)),1) -> 1 | E122: 1 | F122: 1 | G122: 1 | H122: 1 | I122: 1 | J122: 1 | K122: 1 | L122: 1 | N122: ='1.Profile'!$I$28 -> 0 | O122: ='1.Profile'!$I$28 -> 0 | P122: ='1.Profile'!$I$28 -> 0 | Q122: ='1.Profile'!$K$28 -> 0.92 | R122: ='1.Profile'!$J$28 -> 0 | S122: ='1.Profile'!$J$28 -> 0 | T122: ='1.Profile'!$J$28 -> 0 | U122: ='1.Profile'!$L$28 -> 0
A123: 54 | B123: Summer option: None | C123: =IF(C58<>"",1-(HLOOKUP(C58,$N$71:$U$130,$A122)),1) -> 1 | D123: =IF(D58<>"",1-(HLOOKUP(D58,$N$71:$U$130,$A122)),1) -> 1 | E123: 1 | F123: 1 | G123: 1 | H123: 1 | I123: 1 | J123: 1 | K123: 1 | L123: 1 | N123: 0 | O123: 0 | P123: 0 | Q123: 0 | R123: 0 | S123: 0 | T123: 0 | U123: 0
A124: 55 | B124: Summer option: dessication | C124: =IF(C59<>"",1-(HLOOKUP(C59,$N$71:$U$130,$A123)),1) -> 1 | D124: =IF(D59<>"",1-(HLOOKUP(D59,$N$71:$U$130,$A123)),1) -> 1 | E124: 1 | F124: 1 | G124: 1 | H124: 1 | I124: 1 | J124: 1 | K124: 1 | L124: 1 | N124: ='+Options'!$Q$26 -> 0.05 | O124: ='+Options'!$Q$26 -> 0.05 | P124: ='+Options'!$Q$26 -> 0.05 | Q124: ='+Options'!$Q$26 -> 0.05 | R124: ='+Options'!$Q$26 -> 0.05 | S124: ='+Options'!$Q$26 -> 0.05 | T124: ='+Options'!$Q$26 -> 0.05 | U124: ='+Options'!$Q$26 -> 0.05
A125: 56 | B125: Summer option: crop sacrifies | C125: =IF(C60<>"",1-(HLOOKUP(C60,$N$71:$U$130,$A124)),1) -> 1 | D125: =IF(D60<>"",1-(HLOOKUP(D60,$N$71:$U$130,$A124)),1) -> 1 | E125: 1 | F125: 1 | G125: 1 | H125: 1 | I125: 1 | J125: 1 | K125: 1 | L125: 1 | N125: ='+Options'!$Q$28 -> 0.95 | O125: ='+Options'!$Q$28 -> 0.95 | P125: ='+Options'!$Q$28 -> 0.95 | Q125: ='+Options'!$Q$28 -> 0.95 | R125: ='+Options'!$Q$28 -> 0.95 | S125: ='+Options'!$Q$28 -> 0.95 | T125: ='+Options'!$Q$28 -> 0.95 | U125: ='+Options'!$Q$28 -> 0.95
A126: 57 | B126: ="Summer option: "&'1.Profile'!C32 -> Summer option: Mulighed 1 | C126: =IF(C61<>"",1-(HLOOKUP(C61,$N$71:$U$130,$A125)),1) -> 1 | D126: =IF(D61<>"",1-(HLOOKUP(D61,$N$71:$U$130,$A125)),1) -> 1 | E126: 1 | F126: 1 | G126: 1 | H126: 1 | I126: 1 | J126: 1 | K126: 1 | L126: 1 | N126: ='1.Profile'!I32 -> 0 | O126: ='1.Profile'!I32 -> 0 | P126: ='1.Profile'!I32 -> 0 | Q126: ='1.Profile'!K32 -> 0 | R126: ='1.Profile'!I32 -> 0 | S126: ='1.Profile'!I32 -> 0 | T126: ='1.Profile'!I32 -> 0 | U126: ='1.Profile'!L32 -> 0
A127: 58 | B127: ="Summer option: "&'1.Profile'!C33 -> Summer option: Mulighed 2 | C127: =IF(C62<>"",1-(HLOOKUP(C62,$N$71:$U$130,$A126)),1) -> 1 | D127: =IF(D62<>"",1-(HLOOKUP(D62,$N$71:$U$130,$A126)),1) -> 1 | E127: 1 | F127: 1 | G127: 1 | H127: 1 | I127: 1 | J127: 1 | K127: 1 | L127: 1 | N127: ='1.Profile'!I33 -> 0 | O127: ='1.Profile'!I33 -> 0 | P127: ='1.Profile'!I33 -> 0 | Q127: ='1.Profile'!K33 -> 0 | R127: ='1.Profile'!I33 -> 0 | S127: ='1.Profile'!I33 -> 0 | T127: ='1.Profile'!I33 -> 0 | U127: ='1.Profile'!L33 -> 0
A128: 59 | B128: Harvester with bale presser | C128: =IF(C63<>"",1-(HLOOKUP(C63,$N$71:$W$134,$A127)),1) -> 1 | D128: =IF(D63<>"",1-(HLOOKUP(D63,$N$71:$W$134,$A127)),1) -> 1 | E128: 1 | F128: 1 | G128: 1 | H128: 1 | I128: 1 | J128: 1 | K128: 1 | L128: 1 | N128: ='+Options'!$AG$132 -> 0.05 | O128: ='+Options'!$AG$132 -> 0.05 | P128: ='+Options'!$AG$132 -> 0.05 | Q128: ='+Options'!$AG$132 -> 0.05 | R128: ='+Options'!$AG$132 -> 0.05 | S128: ='+Options'!$AG$132 -> 0.05 | T128: ='+Options'!$AG$132 -> 0.05 | U128: ='+Options'!$AG$132 -> 0.05
A129: 60 | B129: Harvester with chopping of straws | C129: =IF(C64<>"",1-(HLOOKUP(C64,$N$71:$W$134,$A128)),1) -> 0.95 | D129: =IF(D64<>"",1-(HLOOKUP(D64,$N$71:$W$134,$A128)),1) -> 1 | E129: 0.95 | F129: 0.95 | G129: 0.95 | H129: 1 | I129: 0.95 | J129: 0.95 | K129: 0.95 | L129: 1 | N129: ='+Options'!$AG$132 -> 0.05 | O129: ='+Options'!$AG$132 -> 0.05 | P129: ='+Options'!$AG$132 -> 0.05 | Q129: ='+Options'!$AG$132 -> 0.05 | R129: ='+Options'!$AG$132 -> 0.05 | S129: ='+Options'!$AG$132 -> 0.05 | T129: ='+Options'!$AG$132 -> 0.05 | U129: ='+Options'!$AG$132 -> 0.05
A130: 61 | B130: Oilseed rape, harvest | C130: =IF(C65<>"",1-(HLOOKUP(C65,$N$71:$W$134,$A129)),1) -> 1 | D130: =IF(D65<>"",1-(HLOOKUP(D65,$N$71:$W$134,$A129)),1) -> 0.95 | E130: 1 | F130: 1 | G130: 1 | H130: 0.95 | I130: 1 | J130: 1 | K130: 1 | L130: 0.95 | N130: ='+Options'!$AG$132 -> 0.05 | O130: ='+Options'!$AG$132 -> 0.05 | P130: ='+Options'!$AG$132 -> 0.05 | Q130: ='+Options'!$AG$132 -> 0.05 | R130: ='+Options'!$AG$132 -> 0.05 | S130: ='+Options'!$AG$132 -> 0.05 | T130: ='+Options'!$AG$132 -> 0.05 | U130: ='+Options'!$AG$132 -> 0.05
A131: 62 | B131: Oilseed rape, harvest, with swathing | C131: =IF(C66<>"",1-(HLOOKUP(C66,$N$71:$W$134,$A130)),1) -> 1 | D131: =IF(D66<>"",1-(HLOOKUP(D66,$N$71:$W$134,$A130)),1) -> 1 | E131: 1 | F131: 1 | G131: 1 | H131: 1 | I131: 1 | J131: 1 | K131: 1 | L131: 1 | N131: ='+Options'!$AG$132 -> 0.05 | O131: ='+Options'!$AG$132 -> 0.05 | P131: ='+Options'!$AG$132 -> 0.05 | Q131: ='+Options'!$AG$132 -> 0.05 | R131: ='+Options'!$AG$132 -> 0.05 | S131: ='+Options'!$AG$132 -> 0.05 | T131: ='+Options'!$AG$132 -> 0.05 | U131: ='+Options'!$AG$132 -> 0.05
A132: 63 | B132: Legumes, harvest with chopping | C132: =IF(C67<>"",1-(HLOOKUP(C67,$N$71:$W$134,$A131)),1) -> 1 | D132: =IF(D67<>"",1-(HLOOKUP(D67,$N$71:$W$134,$A131)),1) -> 1 | E132: 1 | F132: 1 | G132: 1 | H132: 1 | I132: 1 | J132: 1 | K132: 1 | L132: 1 | N132: ='+Options'!$AG$132 -> 0.05 | O132: ='+Options'!$AG$132 -> 0.05 | P132: ='+Options'!$AG$132 -> 0.05 | Q132: ='+Options'!$AG$132 -> 0.05 | R132: ='+Options'!$AG$132 -> 0.05 | S132: ='+Options'!$AG$132 -> 0.05 | T132: ='+Options'!$AG$132 -> 0.05 | U132: ='+Options'!$AG$132 -> 0.05
B133: Seed Catching | N133: ='+Options'!$AU$29 -> 0.85 | O133: ='+Options'!$AU$29 -> 0.85 | P133: ='+Options'!$AU$29 -> 0.85 | Q133: ='+Options'!$AU$29 -> 0.85 | R133: ='+Options'!$AU$29 -> 0.85 | S133: ='+Options'!$AU$29 -> 0.85 | T133: ='+Options'!$AU$29 -> 0.85 | U133: ='+Options'!$AU$29 -> 0.85
B134: None/grass | C134: =IF(C69<>"",1-(HLOOKUP(C69,$N$71:$W$134,$A133)),1) -> 1 | D134: =IF(D69<>"",1-(HLOOKUP(D69,$N$71:$W$134,$A133)),1) -> 1 | E134: 1 | F134: 1 | G134: 1 | H134: 1 | I134: 1 | J134: 1 | K134: 1 | L134: 1 | N134: 0 | O134: 0 | P134: 0 | Q134: 0 | R134: 0 | S134: 0 | T134: 0 | U134: 0 | V134: 0.95 | W134: 0.95
O135: Table 3a Options costs (kr/ha)
N136: W wheat | O136: W barley | P136: W Rye | Q136: W Oilseed | R136: S Barley | S136: S oat | T136: S Wheat | U136: Legume | Y136: Table 3b. Generic costs (kr/ha)
B137: Table 3. Selected costs (kr/ha) | C137: Cost of each selected option, ploughing costs include fungicides etc.. | N137: 1 | O137: 2 | P137: 3 | Q137: 4 | R137: 5 | S137: 6 | T137: 7 | U137: 8 | W137: Added | AB137: Cereals | AC137: Oilseed | AD137: Legumes
A138: 1 | B138: Glyphosate Early | X138: +boom | Y138: Cost by boom of herbicide/pesticide application (kr/ha) | AB138: ='1.Profile'!$F$10 -> 75 | AC138: ='1.Profile'!$F$10 -> 75 | AD138: ='1.Profile'!$F$10 -> 75
A139: 2 | B139: Glyphosate Intermediate | D139: The cost is applied to the 'Glyphosate rate' below
A140: 3 | B140: Glyphosate Late | X140: +SP
A141: 4 | B141: None | C141: =IF(C10=1,Calcs!$N141,IF(C10=2,Calcs!$O141,IF(C10=3,Calcs!$P141,IF(C10=4,Calcs!$Q141,IF(C10=5,Calcs!$R141,IF(C10=6,Calcs!$S141,IF(C10=7,Calcs!$T141,IF(C10=8,Calcs!$U141,0)))))))) -> 0 | D141: =IF(D10=1,Calcs!$N141,IF(D10=2,Calcs!$O141,IF(D10=3,Calcs!$P141,IF(D10=4,Calcs!$Q141,IF(D10=5,Calcs!$R141,IF(D10=6,Calcs!$S141,IF(D10=7,Calcs!$T141,IF(D10=8,Calcs!$U141,0)))))))) -> 0 | E141: =IF(E10=1,Calcs!$N141,IF(E10=2,Calcs!$O141,IF(E10=3,Calcs!$P141,IF(E10=4,Calcs!$Q141,IF(E10=5,Calcs!$R141,IF(E10=6,Calcs!$S141,IF(E10=7,Calcs!$T141,IF(E10=8,Calcs!$U141,0)))))))) -> 0 | F141: =IF(F10=1,Calcs!$N141,IF(F10=2,Calcs!$O141,IF(F10=3,Calcs!$P141,IF(F10=4,Calcs!$Q141,IF(F10=5,Calcs!$R141,IF(F10=6,Calcs!$S141,IF(F10=7,Calcs!$T141,IF(F10=8,Calcs!$U141,0)))))))) -> 0 | G141: =IF(G10=1,Calcs!$N141,IF(G10=2,Calcs!$O141,IF(G10=3,Calcs!$P141,IF(G10=4,Calcs!$Q141,IF(G10=5,Calcs!$R141,IF(G10=6,Calcs!$S141,IF(G10=7,Calcs!$T141,IF(G10=8,Calcs!$U141,0)))))))) -> 0 | H141: =IF(H10=1,Calcs!$N141,IF(H10=2,Calcs!$O141,IF(H10=3,Calcs!$P141,IF(H10=4,Calcs!$Q141,IF(H10=5,Calcs!$R141,IF(H10=6,Calcs!$S141,IF(H10=7,Calcs!$T141,IF(H10=8,Calcs!$U141,0)))))))) -> 0 | I141: =IF(I10=1,Calcs!$N141,IF(I10=2,Calcs!$O141,IF(I10=3,Calcs!$P141,IF(I10=4,Calcs!$Q141,IF(I10=5,Calcs!$R141,IF(I10=6,Calcs!$S141,IF(I10=7,Calcs!$T141,IF(I10=8,Calcs!$U141,0)))))))) -> 0 | J141: =IF(J10=1,Calcs!$N141,IF(J10=2,Calcs!$O141,IF(J10=3,Calcs!$P141,IF(J10=4,Calcs!$Q141,IF(J10=5,Calcs!$R141,IF(J10=6,Calcs!$S141,IF(J10=7,Calcs!$T141,IF(J10=8,Calcs!$U141,0)))))))) -> 0 | K141: =IF(K10=1,Calcs!$N141,IF(K10=2,Calcs!$O141,IF(K10=3,Calcs!$P141,IF(K10=4,Calcs!$Q141,IF(K10=5,Calcs!$R141,IF(K10=6,Calcs!$S141,IF(K10=7,Calcs!$T141,IF(K10=8,Calcs!$U141,0)))))))) -> 0 | L141: =IF(L10=1,Calcs!$N141,IF(L10=2,Calcs!$O141,IF(L10=3,Calcs!$P141,IF(L10=4,Calcs!$Q141,IF(L10=5,Calcs!$R141,IF(L10=6,Calcs!$S141,IF(L10=7,Calcs!$T141,IF(L10=8,Calcs!$U141,0)))))))) -> 0 | N141: 0 | O141: 0 | P141: 0 | Q141: 0 | V141: Profile | X141: +sp
A142: 5 | B142: ="Glyphosate rate: "&'1.Profile'!C16 -> Glyphosate rate: 540 | C142: =IF(C11=1,Calcs!$N142,IF(C11=2,Calcs!$O142,IF(C11=3,Calcs!$P142,IF(C11=4,Calcs!$Q142,IF(C11=5,Calcs!$R142,IF(C11=6,Calcs!$S142,IF(C11=7,Calcs!$T142,IF(C11=8,Calcs!$U142,0)))))))) -> 0 | D142: =IF(D11=1,Calcs!$N142,IF(D11=2,Calcs!$O142,IF(D11=3,Calcs!$P142,IF(D11=4,Calcs!$Q142,IF(D11=5,Calcs!$R142,IF(D11=6,Calcs!$S142,IF(D11=7,Calcs!$T142,IF(D11=8,Calcs!$U142,0)))))))) -> 0 | E142: =IF(E11=1,Calcs!$N142,IF(E11=2,Calcs!$O142,IF(E11=3,Calcs!$P142,IF(E11=4,Calcs!$Q142,IF(E11=5,Calcs!$R142,IF(E11=6,Calcs!$S142,IF(E11=7,Calcs!$T142,IF(E11=8,Calcs!$U142,0)))))))) -> 0 | F142: =IF(F11=1,Calcs!$N142,IF(F11=2,Calcs!$O142,IF(F11=3,Calcs!$P142,IF(F11=4,Calcs!$Q142,IF(F11=5,Calcs!$R142,IF(F11=6,Calcs!$S142,IF(F11=7,Calcs!$T142,IF(F11=8,Calcs!$U142,0)))))))) -> 0 | G142: =IF(G11=1,Calcs!$N142,IF(G11=2,Calcs!$O142,IF(G11=3,Calcs!$P142,IF(G11=4,Calcs!$Q142,IF(G11=5,Calcs!$R142,IF(G11=6,Calcs!$S142,IF(G11=7,Calcs!$T142,IF(G11=8,Calcs!$U142,0)))))))) -> 0 | H142: =IF(H11=1,Calcs!$N142,IF(H11=2,Calcs!$O142,IF(H11=3,Calcs!$P142,IF(H11=4,Calcs!$Q142,IF(H11=5,Calcs!$R142,IF(H11=6,Calcs!$S142,IF(H11=7,Calcs!$T142,IF(H11=8,Calcs!$U142,0)))))))) -> 0 | I142: =IF(I11=1,Calcs!$N142,IF(I11=2,Calcs!$O142,IF(I11=3,Calcs!$P142,IF(I11=4,Calcs!$Q142,IF(I11=5,Calcs!$R142,IF(I11=6,Calcs!$S142,IF(I11=7,Calcs!$T142,IF(I11=8,Calcs!$U142,0)))))))) -> 0 | J142: =IF(J11=1,Calcs!$N142,IF(J11=2,Calcs!$O142,IF(J11=3,Calcs!$P142,IF(J11=4,Calcs!$Q142,IF(J11=5,Calcs!$R142,IF(J11=6,Calcs!$S142,IF(J11=7,Calcs!$T142,IF(J11=8,Calcs!$U142,0)))))))) -> 0 | K142: =IF(K11=1,Calcs!$N142,IF(K11=2,Calcs!$O142,IF(K11=3,Calcs!$P142,IF(K11=4,Calcs!$Q142,IF(K11=5,Calcs!$R142,IF(K11=6,Calcs!$S142,IF(K11=7,Calcs!$T142,IF(K11=8,Calcs!$U142,0)))))))) -> 0 | L142: =IF(L11=1,Calcs!$N142,IF(L11=2,Calcs!$O142,IF(L11=3,Calcs!$P142,IF(L11=4,Calcs!$Q142,IF(L11=5,Calcs!$R142,IF(L11=6,Calcs!$S142,IF(L11=7,Calcs!$T142,IF(L11=8,Calcs!$U142,0)))))))) -> 0 | N142: ='1.Profile'!$E$16+AB138 -> 150 | O142: ='1.Profile'!$E$16+AB138 -> 150 | P142: ='1.Profile'!$E$16+AB138 -> 150 | Q142: ='1.Profile'!$G$16+AC138 -> 150 | W142: +boom
A143: 6 | B143: ="Glyphosate rate: "&'1.Profile'!C17 -> Glyphosate rate: 1080 | C143: =IF(C12=1,Calcs!$N143,IF(C12=2,Calcs!$O143,IF(C12=3,Calcs!$P143,IF(C12=4,Calcs!$Q143,IF(C12=5,Calcs!$R143,IF(C12=6,Calcs!$S143,IF(C12=7,Calcs!$T143,IF(C12=8,Calcs!$U143,0)))))))) -> 0 | D143: =IF(D12=1,Calcs!$N143,IF(D12=2,Calcs!$O143,IF(D12=3,Calcs!$P143,IF(D12=4,Calcs!$Q143,IF(D12=5,Calcs!$R143,IF(D12=6,Calcs!$S143,IF(D12=7,Calcs!$T143,IF(D12=8,Calcs!$U143,0)))))))) -> 0 | E143: =IF(E12=1,Calcs!$N143,IF(E12=2,Calcs!$O143,IF(E12=3,Calcs!$P143,IF(E12=4,Calcs!$Q143,IF(E12=5,Calcs!$R143,IF(E12=6,Calcs!$S143,IF(E12=7,Calcs!$T143,IF(E12=8,Calcs!$U143,0)))))))) -> 0 | F143: =IF(F12=1,Calcs!$N143,IF(F12=2,Calcs!$O143,IF(F12=3,Calcs!$P143,IF(F12=4,Calcs!$Q143,IF(F12=5,Calcs!$R143,IF(F12=6,Calcs!$S143,IF(F12=7,Calcs!$T143,IF(F12=8,Calcs!$U143,0)))))))) -> 0 | G143: =IF(G12=1,Calcs!$N143,IF(G12=2,Calcs!$O143,IF(G12=3,Calcs!$P143,IF(G12=4,Calcs!$Q143,IF(G12=5,Calcs!$R143,IF(G12=6,Calcs!$S143,IF(G12=7,Calcs!$T143,IF(G12=8,Calcs!$U143,0)))))))) -> 0 | H143: =IF(H12=1,Calcs!$N143,IF(H12=2,Calcs!$O143,IF(H12=3,Calcs!$P143,IF(H12=4,Calcs!$Q143,IF(H12=5,Calcs!$R143,IF(H12=6,Calcs!$S143,IF(H12=7,Calcs!$T143,IF(H12=8,Calcs!$U143,0)))))))) -> 0 | I143: =IF(I12=1,Calcs!$N143,IF(I12=2,Calcs!$O143,IF(I12=3,Calcs!$P143,IF(I12=4,Calcs!$Q143,IF(I12=5,Calcs!$R143,IF(I12=6,Calcs!$S143,IF(I12=7,Calcs!$T143,IF(I12=8,Calcs!$U143,0)))))))) -> 0 | J143: =IF(J12=1,Calcs!$N143,IF(J12=2,Calcs!$O143,IF(J12=3,Calcs!$P143,IF(J12=4,Calcs!$Q143,IF(J12=5,Calcs!$R143,IF(J12=6,Calcs!$S143,IF(J12=7,Calcs!$T143,IF(J12=8,Calcs!$U143,0)))))))) -> 0 | K143: =IF(K12=1,Calcs!$N143,IF(K12=2,Calcs!$O143,IF(K12=3,Calcs!$P143,IF(K12=4,Calcs!$Q143,IF(K12=5,Calcs!$R143,IF(K12=6,Calcs!$S143,IF(K12=7,Calcs!$T143,IF(K12=8,Calcs!$U143,0)))))))) -> 0 | L143: =IF(L12=1,Calcs!$N143,IF(L12=2,Calcs!$O143,IF(L12=3,Calcs!$P143,IF(L12=4,Calcs!$Q143,IF(L12=5,Calcs!$R143,IF(L12=6,Calcs!$S143,IF(L12=7,Calcs!$T143,IF(L12=8,Calcs!$U143,0)))))))) -> 0 | N143: ='1.Profile'!$E$17+AB138 -> 225 | O143: ='1.Profile'!$E$17+AB138 -> 225 | P143: ='1.Profile'!$E$17+AB138 -> 225 | Q143: ='1.Profile'!$G$17+AC138 -> 225 | W143: +boom
A144: 7 | B144: Plough and pack | C144: =IF(C13=1,Calcs!$N144,IF(C13=2,Calcs!$O144,IF(C13=3,Calcs!$P144,IF(C13=4,Calcs!$Q144,IF(C13=5,Calcs!$R144,IF(C13=6,Calcs!$S144,IF(C13=7,Calcs!$T144,IF(C13=8,U144,0)))))))) -> 0 | D144: =IF(D13=1,Calcs!$N$144,IF(D13=2,Calcs!$O$144,IF(D13=3,Calcs!$P$144,IF(D13=4,Calcs!$Q$144,IF(D13=5,Calcs!$R$144,IF(D13=6,Calcs!$S$144,IF(D13=7,Calcs!$T$144,IF(D13=8,Calcs!$U$144,0)))))))) -> 4842 | E144: =IF(E13=1,Calcs!$N$144,IF(E13=2,Calcs!$O$144,IF(E13=3,Calcs!$P$144,IF(E13=4,Calcs!$Q$144,IF(E13=5,Calcs!$R$144,IF(E13=6,Calcs!$S$144,IF(E13=7,Calcs!$T$144,IF(E13=8,Calcs!$U$144,0)))))))) -> 4842 | F144: =IF(F13=1,Calcs!$N$144,IF(F13=2,Calcs!$O$144,IF(F13=3,Calcs!$P$144,IF(F13=4,Calcs!$Q$144,IF(F13=5,Calcs!$R$144,IF(F13=6,Calcs!$S$144,IF(F13=7,Calcs!$T$144,IF(F13=8,Calcs!$U$144,0)))))))) -> 4842 | G144: =IF(G13=1,Calcs!$N$144,IF(G13=2,Calcs!$O$144,IF(G13=3,Calcs!$P$144,IF(G13=4,Calcs!$Q$144,IF(G13=5,Calcs!$R$144,IF(G13=6,Calcs!$S$144,IF(G13=7,Calcs!$T$144,IF(G13=8,Calcs!$U$144,0)))))))) -> 0 | H144: =IF(H13=1,Calcs!$N$144,IF(H13=2,Calcs!$O$144,IF(H13=3,Calcs!$P$144,IF(H13=4,Calcs!$Q$144,IF(H13=5,Calcs!$R$144,IF(H13=6,Calcs!$S$144,IF(H13=7,Calcs!$T$144,IF(H13=8,Calcs!$U$144,0)))))))) -> 4842 | I144: =IF(I13=1,Calcs!$N$144,IF(I13=2,Calcs!$O$144,IF(I13=3,Calcs!$P$144,IF(I13=4,Calcs!$Q$144,IF(I13=5,Calcs!$R$144,IF(I13=6,Calcs!$S$144,IF(I13=7,Calcs!$T$144,IF(I13=8,Calcs!$U$144,0)))))))) -> 4842 | J144: =IF(J13=1,Calcs!$N$144,IF(J13=2,Calcs!$O$144,IF(J13=3,Calcs!$P$144,IF(J13=4,Calcs!$Q$144,IF(J13=5,Calcs!$R$144,IF(J13=6,Calcs!$S$144,IF(J13=7,Calcs!$T$144,IF(J13=8,Calcs!$U$144,0)))))))) -> 4842 | K144: =IF(K13=1,Calcs!$N$144,IF(K13=2,Calcs!$O$144,IF(K13=3,Calcs!$P$144,IF(K13=4,Calcs!$Q$144,IF(K13=5,Calcs!$R$144,IF(K13=6,Calcs!$S$144,IF(K13=7,Calcs!$T$144,IF(K13=8,Calcs!$U$144,0)))))))) -> 0 | L144: =IF(L13=1,Calcs!$N$144,IF(L13=2,Calcs!$O$144,IF(L13=3,Calcs!$P$144,IF(L13=4,Calcs!$Q$144,IF(L13=5,Calcs!$R$144,IF(L13=6,Calcs!$S$144,IF(L13=7,Calcs!$T$144,IF(L13=8,Calcs!$U$144,0)))))))) -> 4842 | N144: ='+Prices'!$AJ$95 -> 4842 | O144: ='+Prices'!$AJ$95 -> 4842 | P144: ='+Prices'!$AJ$95 -> 4842 | Q144: ='+Prices'!$AJ$95 -> 4842 | V144: Prices
A145: 8 | B145: Reduced tillage | C145: =IF(C14=1,Calcs!$O145,IF(C14=2,Calcs!$P145,IF(C14=3,Calcs!$Q145,IF(C14=0,Calcs!$N145,IF(C14=5,Calcs!$S145,IF(C14=4,Calcs!$R145,IF(C14=6,Calcs!$T145,0))))))) -> 0 | D145: =IF(D14=1,Calcs!$N$145,IF(D14=2,Calcs!$O$145,IF(D14=3,Calcs!$P$145,IF(D14=4,Calcs!$Q$145,IF(D14=5,Calcs!$R$145,IF(D14=6,Calcs!$S$145,IF(D14=7,Calcs!$T$145,IF(D14=8,Calcs!$U$145,0)))))))) -> 0 | E145: =IF(E14=1,Calcs!$N$145,IF(E14=2,Calcs!$O$145,IF(E14=3,Calcs!$P$145,IF(E14=4,Calcs!$Q$145,IF(E14=5,Calcs!$R$145,IF(E14=6,Calcs!$S$145,IF(E14=7,Calcs!$T$145,IF(E14=8,Calcs!$U$145,0)))))))) -> 0 | F145: =IF(F14=1,Calcs!$N$145,IF(F14=2,Calcs!$O$145,IF(F14=3,Calcs!$P$145,IF(F14=4,Calcs!$Q$145,IF(F14=5,Calcs!$R$145,IF(F14=6,Calcs!$S$145,IF(F14=7,Calcs!$T$145,IF(F14=8,Calcs!$U$145,0)))))))) -> 0 | G145: =IF(G14=1,Calcs!$N$145,IF(G14=2,Calcs!$O$145,IF(G14=3,Calcs!$P$145,IF(G14=4,Calcs!$Q$145,IF(G14=5,Calcs!$R$145,IF(G14=6,Calcs!$S$145,IF(G14=7,Calcs!$T$145,IF(G14=8,Calcs!$U$145,0)))))))) -> 0 | H145: =IF(H14=1,Calcs!$N$145,IF(H14=2,Calcs!$O$145,IF(H14=3,Calcs!$P$145,IF(H14=4,Calcs!$Q$145,IF(H14=5,Calcs!$R$145,IF(H14=6,Calcs!$S$145,IF(H14=7,Calcs!$T$145,IF(H14=8,Calcs!$U$145,0)))))))) -> 0 | I145: =IF(I14=1,Calcs!$N$145,IF(I14=2,Calcs!$O$145,IF(I14=3,Calcs!$P$145,IF(I14=4,Calcs!$Q$145,IF(I14=5,Calcs!$R$145,IF(I14=6,Calcs!$S$145,IF(I14=7,Calcs!$T$145,IF(I14=8,Calcs!$U$145,0)))))))) -> 0 | J145: =IF(J14=1,Calcs!$N$145,IF(J14=2,Calcs!$O$145,IF(J14=3,Calcs!$P$145,IF(J14=4,Calcs!$Q$145,IF(J14=5,Calcs!$R$145,IF(J14=6,Calcs!$S$145,IF(J14=7,Calcs!$T$145,IF(J14=8,Calcs!$U$145,0)))))))) -> 0 | K145: =IF(K14=1,Calcs!$N$145,IF(K14=2,Calcs!$O$145,IF(K14=3,Calcs!$P$145,IF(K14=4,Calcs!$Q$145,IF(K14=5,Calcs!$R$145,IF(K14=6,Calcs!$S$145,IF(K14=7,Calcs!$T$145,IF(K14=8,Calcs!$U$145,0)))))))) -> 0 | L145: =IF(L14=1,Calcs!$N$145,IF(L14=2,Calcs!$O$145,IF(L14=3,Calcs!$P$145,IF(L14=4,Calcs!$Q$145,IF(L14=5,Calcs!$R$145,IF(L14=6,Calcs!$S$145,IF(L14=7,Calcs!$T$145,IF(L14=8,Calcs!$U$145,0)))))))) -> 0 | N145: ='+Prices'!AJ96 -> 4172 | O145: ='+Prices'!AJ96 -> 4172 | P145: ='+Prices'!AJ96 -> 4172 | Q145: ='+Prices'!AL96 -> 3840 | V145: Prices
A146: 9 | B146: No-till | C146: =IF(C15=1,Calcs!$O146,IF(C15=2,Calcs!$P146,IF(C15=3,Calcs!$Q146,IF(C15=0,Calcs!$N146,IF(C15=5,Calcs!$T146,IF(C15=4,Calcs!$R146,IF(C15=6,Calcs!$S146,0))))))) -> 0 | D146: =IF(D15=1,Calcs!$N$146,IF(D15=2,Calcs!$O$146,IF(D15=3,Calcs!$P$146,IF(D15=4,Calcs!$Q$146,IF(D15=5,Calcs!$R$146,IF(D15=6,Calcs!$S$146,IF(D15=7,Calcs!$T$146,IF(D15=8,Calcs!$U$146,0)))))))) -> 0 | E146: =IF(E15=1,Calcs!$N$146,IF(E15=2,Calcs!$O$146,IF(E15=3,Calcs!$P$146,IF(E15=4,Calcs!$Q$146,IF(E15=5,Calcs!$R$146,IF(E15=6,Calcs!$S$146,IF(E15=7,Calcs!$T$146,IF(E15=8,Calcs!$U$146,0)))))))) -> 0 | F146: =IF(F15=1,Calcs!$N$146,IF(F15=2,Calcs!$O$146,IF(F15=3,Calcs!$P$146,IF(F15=4,Calcs!$Q$146,IF(F15=5,Calcs!$R$146,IF(F15=6,Calcs!$S$146,IF(F15=7,Calcs!$T$146,IF(F15=8,Calcs!$U$146,0)))))))) -> 0 | G146: =IF(G15=1,Calcs!$N$146,IF(G15=2,Calcs!$O$146,IF(G15=3,Calcs!$P$146,IF(G15=4,Calcs!$Q$146,IF(G15=5,Calcs!$R$146,IF(G15=6,Calcs!$S$146,IF(G15=7,Calcs!$T$146,IF(G15=8,Calcs!$U$146,0)))))))) -> 0 | H146: =IF(H15=1,Calcs!$N$146,IF(H15=2,Calcs!$O$146,IF(H15=3,Calcs!$P$146,IF(H15=4,Calcs!$Q$146,IF(H15=5,Calcs!$R$146,IF(H15=6,Calcs!$S$146,IF(H15=7,Calcs!$T$146,IF(H15=8,Calcs!$U$146,0)))))))) -> 0 | I146: =IF(I15=1,Calcs!$N$146,IF(I15=2,Calcs!$O$146,IF(I15=3,Calcs!$P$146,IF(I15=4,Calcs!$Q$146,IF(I15=5,Calcs!$R$146,IF(I15=6,Calcs!$S$146,IF(I15=7,Calcs!$T$146,IF(I15=8,Calcs!$U$146,0)))))))) -> 0 | J146: =IF(J15=1,Calcs!$N$146,IF(J15=2,Calcs!$O$146,IF(J15=3,Calcs!$P$146,IF(J15=4,Calcs!$Q$146,IF(J15=5,Calcs!$R$146,IF(J15=6,Calcs!$S$146,IF(J15=7,Calcs!$T$146,IF(J15=8,Calcs!$U$146,0)))))))) -> 0 | K146: =IF(K15=1,Calcs!$N$146,IF(K15=2,Calcs!$O$146,IF(K15=3,Calcs!$P$146,IF(K15=4,Calcs!$Q$146,IF(K15=5,Calcs!$R$146,IF(K15=6,Calcs!$S$146,IF(K15=7,Calcs!$T$146,IF(K15=8,Calcs!$U$146,0)))))))) -> 0 | L146: =IF(L15=1,Calcs!$N$146,IF(L15=2,Calcs!$O$146,IF(L15=3,Calcs!$P$146,IF(L15=4,Calcs!$Q$146,IF(L15=5,Calcs!$R$146,IF(L15=6,Calcs!$S$146,IF(L15=7,Calcs!$T$146,IF(L15=8,Calcs!$U$146,0)))))))) -> 0 | N146: ='+Prices'!AJ97 -> 3852 | O146: ='+Prices'!AJ97 -> 3852 | P146: ='+Prices'!AJ97 -> 3852 | Q146: ='+Prices'!AL97 -> 3520 | V146: Prices
A147: 10 | B147: Early sowing | D147: Since sowing must occur anyway, the cost attributable to weed control is zero and
A148: 11 | B148: Intermediate sowing | D148: included instead in the non-weed control costs, from the Prices page to the
A149: 12 | B149: Late Sowing | D149: production cost table below, to the Eco results. | I149: Yield penalty accounted for in 'Bio results'.
A150: 13 | B150: Standard seeding rate | C150: =IF(C19=1,Calcs!$N$150,IF(C19=2,Calcs!$O$150,IF(C19=3,Calcs!$P$150,IF(C19=4,Calcs!$Q$150,IF(C19=5,Calcs!$R$150,IF(C19=6,Calcs!$S$150,IF(C19=7,Calcs!$T$150,IF(C19=8,Calcs!$U$150,0)))))))) -> 0 | D150: =IF(D19=1,Calcs!$N$150,IF(D19=2,Calcs!$O$150,IF(D19=3,Calcs!$P$150,IF(D19=4,Calcs!$Q$150,IF(D19=5,Calcs!$R$150,IF(D19=6,Calcs!$S$150,IF(D19=7,Calcs!$T$150,IF(D19=8,Calcs!$U$150,0)))))))) -> 374 | E150: =IF(E19=1,Calcs!$N$150,IF(E19=2,Calcs!$O$150,IF(E19=3,Calcs!$P$150,IF(E19=4,Calcs!$Q$150,IF(E19=5,Calcs!$R$150,IF(E19=6,Calcs!$S$150,IF(E19=7,Calcs!$T$150,IF(E19=8,Calcs!$U$150,0)))))))) -> 0 | F150: =IF(F19=1,Calcs!$N$150,IF(F19=2,Calcs!$O$150,IF(F19=3,Calcs!$P$150,IF(F19=4,Calcs!$Q$150,IF(F19=5,Calcs!$R$150,IF(F19=6,Calcs!$S$150,IF(F19=7,Calcs!$T$150,IF(F19=8,Calcs!$U$150,0)))))))) -> 442 | G150: =IF(G19=1,Calcs!$N$150,IF(G19=2,Calcs!$O$150,IF(G19=3,Calcs!$P$150,IF(G19=4,Calcs!$Q$150,IF(G19=5,Calcs!$R$150,IF(G19=6,Calcs!$S$150,IF(G19=7,Calcs!$T$150,IF(G19=8,Calcs!$U$150,0)))))))) -> 0 | H150: =IF(H19=1,Calcs!$N$150,IF(H19=2,Calcs!$O$150,IF(H19=3,Calcs!$P$150,IF(H19=4,Calcs!$Q$150,IF(H19=5,Calcs!$R$150,IF(H19=6,Calcs!$S$150,IF(H19=7,Calcs!$T$150,IF(H19=8,Calcs!$U$150,0)))))))) -> 374 | I150: =IF(I19=1,Calcs!$N$150,IF(I19=2,Calcs!$O$150,IF(I19=3,Calcs!$P$150,IF(I19=4,Calcs!$Q$150,IF(I19=5,Calcs!$R$150,IF(I19=6,Calcs!$S$150,IF(I19=7,Calcs!$T$150,IF(I19=8,Calcs!$U$150,0)))))))) -> 0 | J150: =IF(J19=1,Calcs!$N$150,IF(J19=2,Calcs!$O$150,IF(J19=3,Calcs!$P$150,IF(J19=4,Calcs!$Q$150,IF(J19=5,Calcs!$R$150,IF(J19=6,Calcs!$S$150,IF(J19=7,Calcs!$T$150,IF(J19=8,Calcs!$U$150,0)))))))) -> 442 | K150: =IF(K19=1,Calcs!$N$150,IF(K19=2,Calcs!$O$150,IF(K19=3,Calcs!$P$150,IF(K19=4,Calcs!$Q$150,IF(K19=5,Calcs!$R$150,IF(K19=6,Calcs!$S$150,IF(K19=7,Calcs!$T$150,IF(K19=8,Calcs!$U$150,0)))))))) -> 0 | L150: =IF(L19=1,Calcs!$N$150,IF(L19=2,Calcs!$O$150,IF(L19=3,Calcs!$P$150,IF(L19=4,Calcs!$Q$150,IF(L19=5,Calcs!$R$150,IF(L19=6,Calcs!$S$150,IF(L19=7,Calcs!$T$150,IF(L19=8,Calcs!$U$150,0)))))))) -> 374 | N150: ='+Prices'!AJ91 -> 442 | O150: ='+Prices'!AK91 -> 448 | P150: ='+Prices'!AL91 -> 360 | Q150: ='+Prices'!AP91 -> 374 | V150: Prices
A151: 14 | B151: Intermediate seeding rate | C151: =IF(C20=1,Calcs!$N$151,IF(C20=2,Calcs!$O$151,IF(C20=3,Calcs!$P$151,IF(C20=4,Calcs!$Q$151,IF(C20=5,Calcs!$R$151,IF(C20=6,Calcs!$S$151,IF(C20=7,Calcs!$T$151,IF(C20=8,Calcs!$U$151,0)))))))) -> 0 | D151: =IF(D20=1,Calcs!$N$151,IF(D20=2,Calcs!$O$151,IF(D20=3,Calcs!$P$151,IF(D20=4,Calcs!$Q$151,IF(D20=5,Calcs!$R$151,IF(D20=6,Calcs!$S$151,IF(D20=7,Calcs!$T$151,IF(D20=8,Calcs!$U$151,0)))))))) -> 0 | E151: =IF(E20=1,Calcs!$N$151,IF(E20=2,Calcs!$O$151,IF(E20=3,Calcs!$P$151,IF(E20=4,Calcs!$Q$151,IF(E20=5,Calcs!$R$151,IF(E20=6,Calcs!$S$151,IF(E20=7,Calcs!$T$151,IF(E20=8,Calcs!$U$151,0)))))))) -> 0 | F151: =IF(F20=1,Calcs!$N$151,IF(F20=2,Calcs!$O$151,IF(F20=3,Calcs!$P$151,IF(F20=4,Calcs!$Q$151,IF(F20=5,Calcs!$R$151,IF(F20=6,Calcs!$S$151,IF(F20=7,Calcs!$T$151,IF(F20=8,Calcs!$U$151,0)))))))) -> 0 | G151: =IF(G20=1,Calcs!$N$151,IF(G20=2,Calcs!$O$151,IF(G20=3,Calcs!$P$151,IF(G20=4,Calcs!$Q$151,IF(G20=5,Calcs!$R$151,IF(G20=6,Calcs!$S$151,IF(G20=7,Calcs!$T$151,IF(G20=8,Calcs!$U$151,0)))))))) -> 0 | H151: =IF(H20=1,Calcs!$N$151,IF(H20=2,Calcs!$O$151,IF(H20=3,Calcs!$P$151,IF(H20=4,Calcs!$Q$151,IF(H20=5,Calcs!$R$151,IF(H20=6,Calcs!$S$151,IF(H20=7,Calcs!$T$151,IF(H20=8,Calcs!$U$151,0)))))))) -> 0 | I151: =IF(I20=1,Calcs!$N$151,IF(I20=2,Calcs!$O$151,IF(I20=3,Calcs!$P$151,IF(I20=4,Calcs!$Q$151,IF(I20=5,Calcs!$R$151,IF(I20=6,Calcs!$S$151,IF(I20=7,Calcs!$T$151,IF(I20=8,Calcs!$U$151,0)))))))) -> 0 | J151: =IF(J20=1,Calcs!$N$151,IF(J20=2,Calcs!$O$151,IF(J20=3,Calcs!$P$151,IF(J20=4,Calcs!$Q$151,IF(J20=5,Calcs!$R$151,IF(J20=6,Calcs!$S$151,IF(J20=7,Calcs!$T$151,IF(J20=8,Calcs!$U$151,0)))))))) -> 0 | K151: =IF(K20=1,Calcs!$N$151,IF(K20=2,Calcs!$O$151,IF(K20=3,Calcs!$P$151,IF(K20=4,Calcs!$Q$151,IF(K20=5,Calcs!$R$151,IF(K20=6,Calcs!$S$151,IF(K20=7,Calcs!$T$151,IF(K20=8,Calcs!$U$151,0)))))))) -> 0 | L151: =IF(L20=1,Calcs!$N$151,IF(L20=2,Calcs!$O$151,IF(L20=3,Calcs!$P$151,IF(L20=4,Calcs!$Q$151,IF(L20=5,Calcs!$R$151,IF(L20=6,Calcs!$S$151,IF(L20=7,Calcs!$T$151,IF(L20=8,Calcs!$U$151,0)))))))) -> 0 | N151: ='+Prices'!AJ91+'+Prices'!AJ98 -> 632.06 | O151: ='+Prices'!AK91+'+Prices'!AK98 -> 490.4421053 | P151: ='+Prices'!AL91+'+Prices'!AL98 -> 400 | Q151: ='+Prices'!AP91+'+Prices'!AP98 -> 448.8 | V151: Prices
A152: 15 | B152: High seeding rate | C152: =IF(C21=1,Calcs!$N$152,IF(C21=2,Calcs!$O$152,IF(C21=3,Calcs!$P$152,IF(C21=4,Calcs!$Q$152,IF(C21=5,Calcs!$R$152,IF(C21=6,Calcs!$S$152,IF(C21=7,Calcs!$T$152,IF(C21=8,Calcs!$U$152,0)))))))) -> 0 | D152: =IF(D21=1,Calcs!$N$152,IF(D21=2,Calcs!$O$152,IF(D21=3,Calcs!$P$152,IF(D21=4,Calcs!$Q$152,IF(D21=5,Calcs!$R$152,IF(D21=6,Calcs!$S$152,IF(D21=7,Calcs!$T$152,IF(D21=8,Calcs!$U$152,0)))))))) -> 0 | E152: =IF(E21=1,Calcs!$N$152,IF(E21=2,Calcs!$O$152,IF(E21=3,Calcs!$P$152,IF(E21=4,Calcs!$Q$152,IF(E21=5,Calcs!$R$152,IF(E21=6,Calcs!$S$152,IF(E21=7,Calcs!$T$152,IF(E21=8,Calcs!$U$152,0)))))))) -> 817.7 | F152: =IF(F21=1,Calcs!$N$152,IF(F21=2,Calcs!$O$152,IF(F21=3,Calcs!$P$152,IF(F21=4,Calcs!$Q$152,IF(F21=5,Calcs!$R$152,IF(F21=6,Calcs!$S$152,IF(F21=7,Calcs!$T$152,IF(F21=8,Calcs!$U$152,0)))))))) -> 0 | G152: =IF(G21=1,Calcs!$N$152,IF(G21=2,Calcs!$O$152,IF(G21=3,Calcs!$P$152,IF(G21=4,Calcs!$Q$152,IF(G21=5,Calcs!$R$152,IF(G21=6,Calcs!$S$152,IF(G21=7,Calcs!$T$152,IF(G21=8,Calcs!$U$152,0)))))))) -> 0 | H152: =IF(H21=1,Calcs!$N$152,IF(H21=2,Calcs!$O$152,IF(H21=3,Calcs!$P$152,IF(H21=4,Calcs!$Q$152,IF(H21=5,Calcs!$R$152,IF(H21=6,Calcs!$S$152,IF(H21=7,Calcs!$T$152,IF(H21=8,Calcs!$U$152,0)))))))) -> 0 | I152: =IF(I21=1,Calcs!$N$152,IF(I21=2,Calcs!$O$152,IF(I21=3,Calcs!$P$152,IF(I21=4,Calcs!$Q$152,IF(I21=5,Calcs!$R$152,IF(I21=6,Calcs!$S$152,IF(I21=7,Calcs!$T$152,IF(I21=8,Calcs!$U$152,0)))))))) -> 817.7 | J152: =IF(J21=1,Calcs!$N$152,IF(J21=2,Calcs!$O$152,IF(J21=3,Calcs!$P$152,IF(J21=4,Calcs!$Q$152,IF(J21=5,Calcs!$R$152,IF(J21=6,Calcs!$S$152,IF(J21=7,Calcs!$T$152,IF(J21=8,Calcs!$U$152,0)))))))) -> 0 | K152: =IF(K21=1,Calcs!$N$152,IF(K21=2,Calcs!$O$152,IF(K21=3,Calcs!$P$152,IF(K21=4,Calcs!$Q$152,IF(K21=5,Calcs!$R$152,IF(K21=6,Calcs!$S$152,IF(K21=7,Calcs!$T$152,IF(K21=8,Calcs!$U$152,0)))))))) -> 0 | L152: =IF(L21=1,Calcs!$N$152,IF(L21=2,Calcs!$O$152,IF(L21=3,Calcs!$P$152,IF(L21=4,Calcs!$Q$152,IF(L21=5,Calcs!$R$152,IF(L21=6,Calcs!$S$152,IF(L21=7,Calcs!$T$152,IF(L21=8,Calcs!$U$152,0)))))))) -> 0 | N152: ='+Prices'!AJ91+'+Prices'!AJ99 -> 817.7 | O152: ='+Prices'!AK91+'+Prices'!AK99 -> 530.5263158 | P152: ='+Prices'!AL91+'+Prices'!AL99 -> 440 | Q152: ='+Prices'!AP91+'+Prices'!AP99 -> 523.6 | V152: Prices
A153: 16 | B153: Cover crops | C153: =IF(C22=1,Calcs!$N$153,IF(C22=2,Calcs!$O$153,IF(C22=3,Calcs!$P$153,IF(C22=4,Calcs!$Q$153,0)))) -> 0 | D153: =IF(D22=1,Calcs!$N$153,IF(D22=2,Calcs!$O$153,IF(D22=3,Calcs!$P$153,IF(D22=4,Calcs!$Q$153,0)))) -> 0 | E153: =IF(E22=1,Calcs!$N$153,IF(E22=2,Calcs!$O$153,IF(E22=3,Calcs!$P$153,IF(E22=4,Calcs!$Q$153,0)))) -> 0 | F153: =IF(F22=1,Calcs!$N$153,IF(F22=2,Calcs!$O$153,IF(F22=3,Calcs!$P$153,IF(F22=4,Calcs!$Q$153,0)))) -> 0 | G153: =IF(G22=1,Calcs!$N$153,IF(G22=2,Calcs!$O$153,IF(G22=3,Calcs!$P$153,IF(G22=4,Calcs!$Q$153,0)))) -> 0 | H153: =IF(H22=1,Calcs!$N$153,IF(H22=2,Calcs!$O$153,IF(H22=3,Calcs!$P$153,IF(H22=4,Calcs!$Q$153,0)))) -> 0 | I153: =IF(I22=1,Calcs!$N$153,IF(I22=2,Calcs!$O$153,IF(I22=3,Calcs!$P$153,IF(I22=4,Calcs!$Q$153,0)))) -> 0 | J153: =IF(J22=1,Calcs!$N$153,IF(J22=2,Calcs!$O$153,IF(J22=3,Calcs!$P$153,IF(J22=4,Calcs!$Q$153,0)))) -> 0 | K153: =IF(K22=1,Calcs!$N$153,IF(K22=2,Calcs!$O$153,IF(K22=3,Calcs!$P$153,IF(K22=4,Calcs!$Q$153,0)))) -> 0 | L153: =IF(L22=1,Calcs!$N$153,IF(L22=2,Calcs!$O$153,IF(L22=3,Calcs!$P$153,IF(L22=4,Calcs!$Q$153,0)))) -> 0 | N153: ='+Prices'!AJ$100 -> 500 | O153: ='+Prices'!AK$100 -> 500 | P153: ='+Prices'!AL$100 -> 500 | Q153: ='+Prices'!AM$100 -> 600 | V153: Prices
A154: 17 | B154: No cover crops | C154: =IF(C23=1,Calcs!$N$154,IF(C23=2,Calcs!$O$154,IF(C23=3,Calcs!$P$154,IF(C23=4,Calcs!$Q$154,0)))) -> 0 | D154: =IF(D23=1,Calcs!$N$154,IF(D23=2,Calcs!$O$154,IF(D23=3,Calcs!$P$154,IF(D23=4,Calcs!$Q$154,0)))) -> 0 | E154: =IF(E23=1,Calcs!$N$154,IF(E23=2,Calcs!$O$154,IF(E23=3,Calcs!$P$154,IF(E23=4,Calcs!$Q$154,0)))) -> 0 | F154: =IF(F23=1,Calcs!$N$154,IF(F23=2,Calcs!$O$154,IF(F23=3,Calcs!$P$154,IF(F23=4,Calcs!$Q$154,0)))) -> 0 | G154: =IF(G23=1,Calcs!$N$154,IF(G23=2,Calcs!$O$154,IF(G23=3,Calcs!$P$154,IF(G23=4,Calcs!$Q$154,0)))) -> 0 | H154: =IF(H23=1,Calcs!$N$154,IF(H23=2,Calcs!$O$154,IF(H23=3,Calcs!$P$154,IF(H23=4,Calcs!$Q$154,0)))) -> 0 | I154: =IF(I23=1,Calcs!$N$154,IF(I23=2,Calcs!$O$154,IF(I23=3,Calcs!$P$154,IF(I23=4,Calcs!$Q$154,0)))) -> 0 | J154: =IF(J23=1,Calcs!$N$154,IF(J23=2,Calcs!$O$154,IF(J23=3,Calcs!$P$154,IF(J23=4,Calcs!$Q$154,0)))) -> 0 | K154: =IF(K23=1,Calcs!$N$154,IF(K23=2,Calcs!$O$154,IF(K23=3,Calcs!$P$154,IF(K23=4,Calcs!$Q$154,0)))) -> 0 | L154: =IF(L23=1,Calcs!$N$154,IF(L23=2,Calcs!$O$154,IF(L23=3,Calcs!$P$154,IF(L23=4,Calcs!$Q$154,0)))) -> 0 | N154: 0 | O154: 0 | P154: 0 | Q154: 0
A155: 18 | B155: ="Pre-E: "&'1.Profile'!C19 -> Pre-E: Boxer 1 l | C155: =(IF(C24=1,Calcs!$N155,IF(C24=2,Calcs!$O155,IF(C24=3,Calcs!$P155,IF(C24=4,Calcs!$Q155,IF(C24=5,Calcs!$R155,IF(C24=6,Calcs!$S155,IF(C24=7,Calcs!$T155,0)))))))) -> 0 | D155: =(IF(D24=1,Calcs!$N155,IF(D24=2,Calcs!$O155,IF(D24=3,Calcs!$P155,IF(D24=4,Calcs!$Q155,IF(D24=5,Calcs!$R155,IF(D24=6,Calcs!$S155,IF(D24=7,Calcs!$T155,0)))))))) -> 0 | E155: =(IF(E24=1,Calcs!$N155,IF(E24=2,Calcs!$O155,IF(E24=3,Calcs!$P155,IF(E24=4,Calcs!$Q155,IF(E24=5,Calcs!$R155,IF(E24=6,Calcs!$S155,IF(E24=7,Calcs!$T155,0)))))))) -> 255 | F155: =(IF(F24=1,Calcs!$N155,IF(F24=2,Calcs!$O155,IF(F24=3,Calcs!$P155,IF(F24=4,Calcs!$Q155,IF(F24=5,Calcs!$R155,IF(F24=6,Calcs!$S155,IF(F24=7,Calcs!$T155,0)))))))) -> 255 | G155: =(IF(G24=1,Calcs!$N155,IF(G24=2,Calcs!$O155,IF(G24=3,Calcs!$P155,IF(G24=4,Calcs!$Q155,IF(G24=5,Calcs!$R155,IF(G24=6,Calcs!$S155,IF(G24=7,Calcs!$T155,0)))))))) -> 0 | H155: =(IF(H24=1,Calcs!$N155,IF(H24=2,Calcs!$O155,IF(H24=3,Calcs!$P155,IF(H24=4,Calcs!$Q155,IF(H24=5,Calcs!$R155,IF(H24=6,Calcs!$S155,IF(H24=7,Calcs!$T155,0)))))))) -> 0 | I155: =(IF(I24=1,Calcs!$N155,IF(I24=2,Calcs!$O155,IF(I24=3,Calcs!$P155,IF(I24=4,Calcs!$Q155,IF(I24=5,Calcs!$R155,IF(I24=6,Calcs!$S155,IF(I24=7,Calcs!$T155,0)))))))) -> 255 | J155: =(IF(J24=1,Calcs!$N155,IF(J24=2,Calcs!$O155,IF(J24=3,Calcs!$P155,IF(J24=4,Calcs!$Q155,IF(J24=5,Calcs!$R155,IF(J24=6,Calcs!$S155,IF(J24=7,Calcs!$T155,0)))))))) -> 255 | K155: =(IF(K24=1,Calcs!$N155,IF(K24=2,Calcs!$O155,IF(K24=3,Calcs!$P155,IF(K24=4,Calcs!$Q155,IF(K24=5,Calcs!$R155,IF(K24=6,Calcs!$S155,IF(K24=7,Calcs!$T155,0)))))))) -> 0 | L155: =(IF(L24=1,Calcs!$N155,IF(L24=2,Calcs!$O155,IF(L24=3,Calcs!$P155,IF(L24=4,Calcs!$Q155,IF(L24=5,Calcs!$R155,IF(L24=6,Calcs!$S155,IF(L24=7,Calcs!$T155,0)))))))) -> 0 | N155: ='1.Profile'!E19+$AB$138 -> 255 | O155: ='1.Profile'!E19+$AB$138 -> 255 | P155: ='1.Profile'!E19+$AB$138 -> 255 | Q155: ='1.Profile'!G19+$AC$138 -> 75 | V155: Profile | W155: +boom
A156: 19 | B156: ="Pre-E: "&'1.Profile'!C20 -> Pre-E: Boxer 2 l | C156: =(IF(C25=1,Calcs!$N156,IF(C25=2,Calcs!$O156,IF(C25=3,Calcs!$P156,IF(C25=4,Calcs!$Q156,IF(C25=5,Calcs!$R156,IF(C25=6,Calcs!$S156,IF(C25=7,Calcs!$T156,0)))))))) -> 0 | D156: =(IF(D25=1,Calcs!$N156,IF(D25=2,Calcs!$O156,IF(D25=3,Calcs!$P156,IF(D25=4,Calcs!$Q156,IF(D25=5,Calcs!$R156,IF(D25=6,Calcs!$S156,IF(D25=7,Calcs!$T156,0)))))))) -> 0 | E156: =(IF(E25=1,Calcs!$N156,IF(E25=2,Calcs!$O156,IF(E25=3,Calcs!$P156,IF(E25=4,Calcs!$Q156,IF(E25=5,Calcs!$R156,IF(E25=6,Calcs!$S156,IF(E25=7,Calcs!$T156,0)))))))) -> 0 | F156: =(IF(F25=1,Calcs!$N156,IF(F25=2,Calcs!$O156,IF(F25=3,Calcs!$P156,IF(F25=4,Calcs!$Q156,IF(F25=5,Calcs!$R156,IF(F25=6,Calcs!$S156,IF(F25=7,Calcs!$T156,0)))))))) -> 0 | G156: =(IF(G25=1,Calcs!$N156,IF(G25=2,Calcs!$O156,IF(G25=3,Calcs!$P156,IF(G25=4,Calcs!$Q156,IF(G25=5,Calcs!$R156,IF(G25=6,Calcs!$S156,IF(G25=7,Calcs!$T156,0)))))))) -> 0 | H156: =(IF(H25=1,Calcs!$N156,IF(H25=2,Calcs!$O156,IF(H25=3,Calcs!$P156,IF(H25=4,Calcs!$Q156,IF(H25=5,Calcs!$R156,IF(H25=6,Calcs!$S156,IF(H25=7,Calcs!$T156,0)))))))) -> 0 | I156: =(IF(I25=1,Calcs!$N156,IF(I25=2,Calcs!$O156,IF(I25=3,Calcs!$P156,IF(I25=4,Calcs!$Q156,IF(I25=5,Calcs!$R156,IF(I25=6,Calcs!$S156,IF(I25=7,Calcs!$T156,0)))))))) -> 0 | J156: =(IF(J25=1,Calcs!$N156,IF(J25=2,Calcs!$O156,IF(J25=3,Calcs!$P156,IF(J25=4,Calcs!$Q156,IF(J25=5,Calcs!$R156,IF(J25=6,Calcs!$S156,IF(J25=7,Calcs!$T156,0)))))))) -> 0 | K156: =(IF(K25=1,Calcs!$N156,IF(K25=2,Calcs!$O156,IF(K25=3,Calcs!$P156,IF(K25=4,Calcs!$Q156,IF(K25=5,Calcs!$R156,IF(K25=6,Calcs!$S156,IF(K25=7,Calcs!$T156,0)))))))) -> 0 | L156: =(IF(L25=1,Calcs!$N156,IF(L25=2,Calcs!$O156,IF(L25=3,Calcs!$P156,IF(L25=4,Calcs!$Q156,IF(L25=5,Calcs!$R156,IF(L25=6,Calcs!$S156,IF(L25=7,Calcs!$T156,0)))))))) -> 0 | N156: ='1.Profile'!E20+$AB$138 -> 435 | O156: ='1.Profile'!E20+$AB$138 -> 435 | P156: ='1.Profile'!E20+$AB$138 -> 435 | Q156: ='1.Profile'!G20+$AC$138 -> 75 | W156: +boom
A157: 20 | B157: ="Post-E: "&'1.Profile'!C22 -> Post-E: Topik | C157: =(IF(C26=1,Calcs!$N157,IF(C26=2,Calcs!$O157,IF(C26=3,Calcs!$P157,IF(C26=4,Calcs!$Q157,IF(C26=5,Calcs!$R157,IF(C26=6,Calcs!$S157,IF(C26=7,Calcs!$T157,IF(C26=8,Calcs!$U157,0))))))))) -> 0 | D157: =(IF(D26=1,Calcs!$N157,IF(D26=2,Calcs!$O157,IF(D26=3,Calcs!$P157,IF(D26=4,Calcs!$Q157,IF(D26=5,Calcs!$R157,IF(D26=6,Calcs!$S157,IF(D26=7,Calcs!$T157,IF(D26=8,Calcs!$U157,0))))))))) -> 0 | E157: =(IF(E26=1,Calcs!$N157,IF(E26=2,Calcs!$O157,IF(E26=3,Calcs!$P157,IF(E26=4,Calcs!$Q157,IF(E26=5,Calcs!$R157,IF(E26=6,Calcs!$S157,IF(E26=7,Calcs!$T157,IF(E26=8,Calcs!$U157,0))))))))) -> 0 | F157: =(IF(F26=1,Calcs!$N157,IF(F26=2,Calcs!$O157,IF(F26=3,Calcs!$P157,IF(F26=4,Calcs!$Q157,IF(F26=5,Calcs!$R157,IF(F26=6,Calcs!$S157,IF(F26=7,Calcs!$T157,IF(F26=8,Calcs!$U157,0))))))))) -> 323 | G157: =(IF(G26=1,Calcs!$N157,IF(G26=2,Calcs!$O157,IF(G26=3,Calcs!$P157,IF(G26=4,Calcs!$Q157,IF(G26=5,Calcs!$R157,IF(G26=6,Calcs!$S157,IF(G26=7,Calcs!$T157,IF(G26=8,Calcs!$U157,0))))))))) -> 0 | H157: =(IF(H26=1,Calcs!$N157,IF(H26=2,Calcs!$O157,IF(H26=3,Calcs!$P157,IF(H26=4,Calcs!$Q157,IF(H26=5,Calcs!$R157,IF(H26=6,Calcs!$S157,IF(H26=7,Calcs!$T157,IF(H26=8,Calcs!$U157,0))))))))) -> 0 | I157: =(IF(I26=1,Calcs!$N157,IF(I26=2,Calcs!$O157,IF(I26=3,Calcs!$P157,IF(I26=4,Calcs!$Q157,IF(I26=5,Calcs!$R157,IF(I26=6,Calcs!$S157,IF(I26=7,Calcs!$T157,IF(I26=8,Calcs!$U157,0))))))))) -> 0 | J157: =(IF(J26=1,Calcs!$N157,IF(J26=2,Calcs!$O157,IF(J26=3,Calcs!$P157,IF(J26=4,Calcs!$Q157,IF(J26=5,Calcs!$R157,IF(J26=6,Calcs!$S157,IF(J26=7,Calcs!$T157,IF(J26=8,Calcs!$U157,0))))))))) -> 323 | K157: =(IF(K26=1,Calcs!$N157,IF(K26=2,Calcs!$O157,IF(K26=3,Calcs!$P157,IF(K26=4,Calcs!$Q157,IF(K26=5,Calcs!$R157,IF(K26=6,Calcs!$S157,IF(K26=7,Calcs!$T157,IF(K26=8,Calcs!$U157,0))))))))) -> 0 | L157: =(IF(L26=1,Calcs!$N157,IF(L26=2,Calcs!$O157,IF(L26=3,Calcs!$P157,IF(L26=4,Calcs!$Q157,IF(L26=5,Calcs!$R157,IF(L26=6,Calcs!$S157,IF(L26=7,Calcs!$T157,IF(L26=8,Calcs!$U157,0))))))))) -> 0 | N157: ='1.Profile'!$E$22+$AB$138 -> 323 | O157: ='1.Profile'!$E$22+$AB$138 -> 323 | P157: ='1.Profile'!$E$22+$AB$138 -> 323 | Q157: ='1.Profile'!$G$22+$AC$138 -> 75 | W157: +boom
A158: 21 | B158: ="Post-E: "&'1.Profile'!C23 -> Post-E: Atlantis OD | C158: =(IF(C27=1,Calcs!$N158,IF(C27=2,Calcs!$O158,IF(C27=3,Calcs!$P158,IF(C27=4,Calcs!$Q158,IF(C27=5,Calcs!$R158,IF(C27=6,Calcs!$S158,IF(C27=7,Calcs!$T158,IF(C27=8,Calcs!$U158,0))))))))) -> 0 | D158: =(IF(D27=1,Calcs!$N158,IF(D27=2,Calcs!$O158,IF(D27=3,Calcs!$P158,IF(D27=4,Calcs!$Q158,IF(D27=5,Calcs!$R158,IF(D27=6,Calcs!$S158,IF(D27=7,Calcs!$T158,IF(D27=8,Calcs!$U158,0))))))))) -> 0 | E158: =(IF(E27=1,Calcs!$N158,IF(E27=2,Calcs!$O158,IF(E27=3,Calcs!$P158,IF(E27=4,Calcs!$Q158,IF(E27=5,Calcs!$R158,IF(E27=6,Calcs!$S158,IF(E27=7,Calcs!$T158,IF(E27=8,Calcs!$U158,0))))))))) -> 0 | F158: =(IF(F27=1,Calcs!$N158,IF(F27=2,Calcs!$O158,IF(F27=3,Calcs!$P158,IF(F27=4,Calcs!$Q158,IF(F27=5,Calcs!$R158,IF(F27=6,Calcs!$S158,IF(F27=7,Calcs!$T158,IF(F27=8,Calcs!$U158,0))))))))) -> 0 | G158: =(IF(G27=1,Calcs!$N158,IF(G27=2,Calcs!$O158,IF(G27=3,Calcs!$P158,IF(G27=4,Calcs!$Q158,IF(G27=5,Calcs!$R158,IF(G27=6,Calcs!$S158,IF(G27=7,Calcs!$T158,IF(G27=8,Calcs!$U158,0))))))))) -> 0 | H158: =(IF(H27=1,Calcs!$N158,IF(H27=2,Calcs!$O158,IF(H27=3,Calcs!$P158,IF(H27=4,Calcs!$Q158,IF(H27=5,Calcs!$R158,IF(H27=6,Calcs!$S158,IF(H27=7,Calcs!$T158,IF(H27=8,Calcs!$U158,0))))))))) -> 0 | I158: =(IF(I27=1,Calcs!$N158,IF(I27=2,Calcs!$O158,IF(I27=3,Calcs!$P158,IF(I27=4,Calcs!$Q158,IF(I27=5,Calcs!$R158,IF(I27=6,Calcs!$S158,IF(I27=7,Calcs!$T158,IF(I27=8,Calcs!$U158,0))))))))) -> 0 | J158: =(IF(J27=1,Calcs!$N158,IF(J27=2,Calcs!$O158,IF(J27=3,Calcs!$P158,IF(J27=4,Calcs!$Q158,IF(J27=5,Calcs!$R158,IF(J27=6,Calcs!$S158,IF(J27=7,Calcs!$T158,IF(J27=8,Calcs!$U158,0))))))))) -> 0 | K158: =(IF(K27=1,Calcs!$N158,IF(K27=2,Calcs!$O158,IF(K27=3,Calcs!$P158,IF(K27=4,Calcs!$Q158,IF(K27=5,Calcs!$R158,IF(K27=6,Calcs!$S158,IF(K27=7,Calcs!$T158,IF(K27=8,Calcs!$U158,0))))))))) -> 0 | L158: =(IF(L27=1,Calcs!$N158,IF(L27=2,Calcs!$O158,IF(L27=3,Calcs!$P158,IF(L27=4,Calcs!$Q158,IF(L27=5,Calcs!$R158,IF(L27=6,Calcs!$S158,IF(L27=7,Calcs!$T158,IF(L27=8,Calcs!$U158,0))))))))) -> 0 | N158: ='1.Profile'!$E$23+$AB$138 -> 333 | O158: ='1.Profile'!$E$23+$AB$138 -> 333 | P158: ='1.Profile'!$E$23+$AB$138 -> 333 | Q158: ='1.Profile'!$G$23+$AC$138 -> 75 | W158: +boom
A159: 22 | B159: ="Post-E: "&'1.Profile'!C24 -> Post-E: Hussar Plus OD | C159: =(IF(C28=1,Calcs!$N159,IF(C28=2,Calcs!$O159,IF(C28=3,Calcs!$P159,IF(C28=4,Calcs!$Q159,IF(C28=5,Calcs!$R159,IF(C28=6,Calcs!$S159,IF(C28=7,Calcs!$T159,IF(C28=8,Calcs!$U159,0))))))))) -> 0 | D159: =(IF(D28=1,Calcs!$N159,IF(D28=2,Calcs!$O159,IF(D28=3,Calcs!$P159,IF(D28=4,Calcs!$Q159,IF(D28=5,Calcs!$R159,IF(D28=6,Calcs!$S159,IF(D28=7,Calcs!$T159,IF(D28=8,Calcs!$U159,0))))))))) -> 0 | E159: =(IF(E28=1,Calcs!$N159,IF(E28=2,Calcs!$O159,IF(E28=3,Calcs!$P159,IF(E28=4,Calcs!$Q159,IF(E28=5,Calcs!$R159,IF(E28=6,Calcs!$S159,IF(E28=7,Calcs!$T159,IF(E28=8,Calcs!$U159,0))))))))) -> 0 | F159: =(IF(F28=1,Calcs!$N159,IF(F28=2,Calcs!$O159,IF(F28=3,Calcs!$P159,IF(F28=4,Calcs!$Q159,IF(F28=5,Calcs!$R159,IF(F28=6,Calcs!$S159,IF(F28=7,Calcs!$T159,IF(F28=8,Calcs!$U159,0))))))))) -> 0 | G159: =(IF(G28=1,Calcs!$N159,IF(G28=2,Calcs!$O159,IF(G28=3,Calcs!$P159,IF(G28=4,Calcs!$Q159,IF(G28=5,Calcs!$R159,IF(G28=6,Calcs!$S159,IF(G28=7,Calcs!$T159,IF(G28=8,Calcs!$U159,0))))))))) -> 0 | H159: =(IF(H28=1,Calcs!$N159,IF(H28=2,Calcs!$O159,IF(H28=3,Calcs!$P159,IF(H28=4,Calcs!$Q159,IF(H28=5,Calcs!$R159,IF(H28=6,Calcs!$S159,IF(H28=7,Calcs!$T159,IF(H28=8,Calcs!$U159,0))))))))) -> 0 | I159: =(IF(I28=1,Calcs!$N159,IF(I28=2,Calcs!$O159,IF(I28=3,Calcs!$P159,IF(I28=4,Calcs!$Q159,IF(I28=5,Calcs!$R159,IF(I28=6,Calcs!$S159,IF(I28=7,Calcs!$T159,IF(I28=8,Calcs!$U159,0))))))))) -> 0 | J159: =(IF(J28=1,Calcs!$N159,IF(J28=2,Calcs!$O159,IF(J28=3,Calcs!$P159,IF(J28=4,Calcs!$Q159,IF(J28=5,Calcs!$R159,IF(J28=6,Calcs!$S159,IF(J28=7,Calcs!$T159,IF(J28=8,Calcs!$U159,0))))))))) -> 0 | K159: =(IF(K28=1,Calcs!$N159,IF(K28=2,Calcs!$O159,IF(K28=3,Calcs!$P159,IF(K28=4,Calcs!$Q159,IF(K28=5,Calcs!$R159,IF(K28=6,Calcs!$S159,IF(K28=7,Calcs!$T159,IF(K28=8,Calcs!$U159,0))))))))) -> 0 | L159: =(IF(L28=1,Calcs!$N159,IF(L28=2,Calcs!$O159,IF(L28=3,Calcs!$P159,IF(L28=4,Calcs!$Q159,IF(L28=5,Calcs!$R159,IF(L28=6,Calcs!$S159,IF(L28=7,Calcs!$T159,IF(L28=8,Calcs!$U159,0))))))))) -> 0 | N159: ='1.Profile'!$E$24+$AB$138 -> 251 | O159: ='1.Profile'!$E$24+$AB$138 -> 251 | P159: ='1.Profile'!$E$24+$AB$138 -> 251 | Q159: ='1.Profile'!$G$24+$AC$138 -> 75 | W159: +boom
A160: 23 | B160: ="Post-E: "&'1.Profile'!C25 -> Post-E: Broadway | C160: =(IF(C29=1,Calcs!$N160,IF(C29=2,Calcs!$O160,IF(C29=3,Calcs!$P160,IF(C29=4,Calcs!$Q160,IF(C29=5,Calcs!$R160,IF(C29=6,Calcs!$S160,IF(C29=7,Calcs!$T160,IF(C29=8,Calcs!$U160,0))))))))) -> 0 | D160: =(IF(D29=1,Calcs!$N160,IF(D29=2,Calcs!$O160,IF(D29=3,Calcs!$P160,IF(D29=4,Calcs!$Q160,IF(D29=5,Calcs!$R160,IF(D29=6,Calcs!$S160,IF(D29=7,Calcs!$T160,IF(D29=8,Calcs!$U160,0))))))))) -> 0 | E160: =(IF(E29=1,Calcs!$N160,IF(E29=2,Calcs!$O160,IF(E29=3,Calcs!$P160,IF(E29=4,Calcs!$Q160,IF(E29=5,Calcs!$R160,IF(E29=6,Calcs!$S160,IF(E29=7,Calcs!$T160,IF(E29=8,Calcs!$U160,0))))))))) -> 0 | F160: =(IF(F29=1,Calcs!$N160,IF(F29=2,Calcs!$O160,IF(F29=3,Calcs!$P160,IF(F29=4,Calcs!$Q160,IF(F29=5,Calcs!$R160,IF(F29=6,Calcs!$S160,IF(F29=7,Calcs!$T160,IF(F29=8,Calcs!$U160,0))))))))) -> 0 | G160: =(IF(G29=1,Calcs!$N160,IF(G29=2,Calcs!$O160,IF(G29=3,Calcs!$P160,IF(G29=4,Calcs!$Q160,IF(G29=5,Calcs!$R160,IF(G29=6,Calcs!$S160,IF(G29=7,Calcs!$T160,IF(G29=8,Calcs!$U160,0))))))))) -> 0 | H160: =(IF(H29=1,Calcs!$N160,IF(H29=2,Calcs!$O160,IF(H29=3,Calcs!$P160,IF(H29=4,Calcs!$Q160,IF(H29=5,Calcs!$R160,IF(H29=6,Calcs!$S160,IF(H29=7,Calcs!$T160,IF(H29=8,Calcs!$U160,0))))))))) -> 0 | I160: =(IF(I29=1,Calcs!$N160,IF(I29=2,Calcs!$O160,IF(I29=3,Calcs!$P160,IF(I29=4,Calcs!$Q160,IF(I29=5,Calcs!$R160,IF(I29=6,Calcs!$S160,IF(I29=7,Calcs!$T160,IF(I29=8,Calcs!$U160,0))))))))) -> 0 | J160: =(IF(J29=1,Calcs!$N160,IF(J29=2,Calcs!$O160,IF(J29=3,Calcs!$P160,IF(J29=4,Calcs!$Q160,IF(J29=5,Calcs!$R160,IF(J29=6,Calcs!$S160,IF(J29=7,Calcs!$T160,IF(J29=8,Calcs!$U160,0))))))))) -> 0 | K160: =(IF(K29=1,Calcs!$N160,IF(K29=2,Calcs!$O160,IF(K29=3,Calcs!$P160,IF(K29=4,Calcs!$Q160,IF(K29=5,Calcs!$R160,IF(K29=6,Calcs!$S160,IF(K29=7,Calcs!$T160,IF(K29=8,Calcs!$U160,0))))))))) -> 0 | L160: =(IF(L29=1,Calcs!$N160,IF(L29=2,Calcs!$O160,IF(L29=3,Calcs!$P160,IF(L29=4,Calcs!$Q160,IF(L29=5,Calcs!$R160,IF(L29=6,Calcs!$S160,IF(L29=7,Calcs!$T160,IF(L29=8,Calcs!$U160,0))))))))) -> 0 | N160: ='1.Profile'!$E$25+$AB$138 -> 235 | O160: ='1.Profile'!$E$25+$AB$138 -> 235 | P160: ='1.Profile'!$E$25+$AB$138 -> 235 | Q160: ='1.Profile'!$G$25+$AC$138 -> 75 | W160: +boom
A161: 24 | B161: ="Post-E: "&'1.Profile'!C26 -> Post-E: Cossack OD | C161: =(IF(C30=1,Calcs!$N161,IF(C30=2,Calcs!$O161,IF(C30=3,Calcs!$P161,IF(C30=4,Calcs!$Q161,IF(C30=5,Calcs!$R161,IF(C30=6,Calcs!$S161,IF(C30=7,Calcs!$T161,IF(C30=8,Calcs!$U161,0))))))))) -> 0 | D161: =(IF(D30=1,Calcs!$N161,IF(D30=2,Calcs!$O161,IF(D30=3,Calcs!$P161,IF(D30=4,Calcs!$Q161,IF(D30=5,Calcs!$R161,IF(D30=6,Calcs!$S161,IF(D30=7,Calcs!$T161,IF(D30=8,Calcs!$U161,0))))))))) -> 0 | E161: =(IF(E30=1,Calcs!$N161,IF(E30=2,Calcs!$O161,IF(E30=3,Calcs!$P161,IF(E30=4,Calcs!$Q161,IF(E30=5,Calcs!$R161,IF(E30=6,Calcs!$S161,IF(E30=7,Calcs!$T161,IF(E30=8,Calcs!$U161,0))))))))) -> 0 | F161: =(IF(F30=1,Calcs!$N161,IF(F30=2,Calcs!$O161,IF(F30=3,Calcs!$P161,IF(F30=4,Calcs!$Q161,IF(F30=5,Calcs!$R161,IF(F30=6,Calcs!$S161,IF(F30=7,Calcs!$T161,IF(F30=8,Calcs!$U161,0))))))))) -> 0 | G161: =(IF(G30=1,Calcs!$N161,IF(G30=2,Calcs!$O161,IF(G30=3,Calcs!$P161,IF(G30=4,Calcs!$Q161,IF(G30=5,Calcs!$R161,IF(G30=6,Calcs!$S161,IF(G30=7,Calcs!$T161,IF(G30=8,Calcs!$U161,0))))))))) -> 0 | H161: =(IF(H30=1,Calcs!$N161,IF(H30=2,Calcs!$O161,IF(H30=3,Calcs!$P161,IF(H30=4,Calcs!$Q161,IF(H30=5,Calcs!$R161,IF(H30=6,Calcs!$S161,IF(H30=7,Calcs!$T161,IF(H30=8,Calcs!$U161,0))))))))) -> 0 | I161: =(IF(I30=1,Calcs!$N161,IF(I30=2,Calcs!$O161,IF(I30=3,Calcs!$P161,IF(I30=4,Calcs!$Q161,IF(I30=5,Calcs!$R161,IF(I30=6,Calcs!$S161,IF(I30=7,Calcs!$T161,IF(I30=8,Calcs!$U161,0))))))))) -> 0 | J161: =(IF(J30=1,Calcs!$N161,IF(J30=2,Calcs!$O161,IF(J30=3,Calcs!$P161,IF(J30=4,Calcs!$Q161,IF(J30=5,Calcs!$R161,IF(J30=6,Calcs!$S161,IF(J30=7,Calcs!$T161,IF(J30=8,Calcs!$U161,0))))))))) -> 0 | K161: =(IF(K30=1,Calcs!$N161,IF(K30=2,Calcs!$O161,IF(K30=3,Calcs!$P161,IF(K30=4,Calcs!$Q161,IF(K30=5,Calcs!$R161,IF(K30=6,Calcs!$S161,IF(K30=7,Calcs!$T161,IF(K30=8,Calcs!$U161,0))))))))) -> 0 | L161: =(IF(L30=1,Calcs!$N161,IF(L30=2,Calcs!$O161,IF(L30=3,Calcs!$P161,IF(L30=4,Calcs!$Q161,IF(L30=5,Calcs!$R161,IF(L30=6,Calcs!$S161,IF(L30=7,Calcs!$T161,IF(L30=8,Calcs!$U161,0))))))))) -> 0 | N161: ='1.Profile'!$E$26+$AB$138 -> 419 | O161: ='1.Profile'!$E$26+$AB$138 -> 419 | P161: ='1.Profile'!$E$26+$AB$138 -> 419 | Q161: ='1.Profile'!$G$26+$AC$138 -> 75 | W161: +boom
A162: 25 | B162: ="Post-E: "&'1.Profile'!C27 -> Post-E: Focus Ultra | C162: =(IF(C31=1,Calcs!$N162,IF(C31=2,Calcs!$O162,IF(C31=3,Calcs!$P162,IF(C31=4,Calcs!$Q162,IF(C31=5,Calcs!$R162,IF(C31=6,Calcs!$S162,IF(C31=7,Calcs!$T162,IF(C31=8,Calcs!$U162,0))))))))) -> 0 | D162: =(IF(D31=1,Calcs!$N162,IF(D31=2,Calcs!$O162,IF(D31=3,Calcs!$P162,IF(D31=4,Calcs!$Q162,IF(D31=5,Calcs!$R162,IF(D31=6,Calcs!$S162,IF(D31=7,Calcs!$T162,IF(D31=8,Calcs!$U162,0))))))))) -> 0 | E162: =(IF(E31=1,Calcs!$N162,IF(E31=2,Calcs!$O162,IF(E31=3,Calcs!$P162,IF(E31=4,Calcs!$Q162,IF(E31=5,Calcs!$R162,IF(E31=6,Calcs!$S162,IF(E31=7,Calcs!$T162,IF(E31=8,Calcs!$U162,0))))))))) -> 0 | F162: =(IF(F31=1,Calcs!$N162,IF(F31=2,Calcs!$O162,IF(F31=3,Calcs!$P162,IF(F31=4,Calcs!$Q162,IF(F31=5,Calcs!$R162,IF(F31=6,Calcs!$S162,IF(F31=7,Calcs!$T162,IF(F31=8,Calcs!$U162,0))))))))) -> 0 | G162: =(IF(G31=1,Calcs!$N162,IF(G31=2,Calcs!$O162,IF(G31=3,Calcs!$P162,IF(G31=4,Calcs!$Q162,IF(G31=5,Calcs!$R162,IF(G31=6,Calcs!$S162,IF(G31=7,Calcs!$T162,IF(G31=8,Calcs!$U162,0))))))))) -> 0 | H162: =(IF(H31=1,Calcs!$N162,IF(H31=2,Calcs!$O162,IF(H31=3,Calcs!$P162,IF(H31=4,Calcs!$Q162,IF(H31=5,Calcs!$R162,IF(H31=6,Calcs!$S162,IF(H31=7,Calcs!$T162,IF(H31=8,Calcs!$U162,0))))))))) -> 0 | I162: =(IF(I31=1,Calcs!$N162,IF(I31=2,Calcs!$O162,IF(I31=3,Calcs!$P162,IF(I31=4,Calcs!$Q162,IF(I31=5,Calcs!$R162,IF(I31=6,Calcs!$S162,IF(I31=7,Calcs!$T162,IF(I31=8,Calcs!$U162,0))))))))) -> 0 | J162: =(IF(J31=1,Calcs!$N162,IF(J31=2,Calcs!$O162,IF(J31=3,Calcs!$P162,IF(J31=4,Calcs!$Q162,IF(J31=5,Calcs!$R162,IF(J31=6,Calcs!$S162,IF(J31=7,Calcs!$T162,IF(J31=8,Calcs!$U162,0))))))))) -> 0 | K162: =(IF(K31=1,Calcs!$N162,IF(K31=2,Calcs!$O162,IF(K31=3,Calcs!$P162,IF(K31=4,Calcs!$Q162,IF(K31=5,Calcs!$R162,IF(K31=6,Calcs!$S162,IF(K31=7,Calcs!$T162,IF(K31=8,Calcs!$U162,0))))))))) -> 0 | L162: =(IF(L31=1,Calcs!$N162,IF(L31=2,Calcs!$O162,IF(L31=3,Calcs!$P162,IF(L31=4,Calcs!$Q162,IF(L31=5,Calcs!$R162,IF(L31=6,Calcs!$S162,IF(L31=7,Calcs!$T162,IF(L31=8,Calcs!$U162,0))))))))) -> 0 | N162: ='1.Profile'!$E$27+$AB$138 -> 75 | O162: ='1.Profile'!$E$27+$AB$138 -> 75 | P162: ='1.Profile'!$E$27+$AB$138 -> 75 | Q162: ='1.Profile'!$G$27+$AC$138 -> 345 | W162: +boom
A163: 26 | B163: ="Post-E: "&'1.Profile'!C28 -> Post-E: Kerb | C163: =(IF(C32=1,Calcs!$N163,IF(C32=2,Calcs!$O163,IF(C32=3,Calcs!$P163,IF(C32=4,Calcs!$Q163,IF(C32=5,Calcs!$R163,IF(C32=6,Calcs!$S163,IF(C32=7,Calcs!$T163,IF(C32=8,Calcs!$U163,0))))))))) -> 0 | D163: =(IF(D32=1,Calcs!$N163,IF(D32=2,Calcs!$O163,IF(D32=3,Calcs!$P163,IF(D32=4,Calcs!$Q163,IF(D32=5,Calcs!$R163,IF(D32=6,Calcs!$S163,IF(D32=7,Calcs!$T163,IF(D32=8,Calcs!$U163,0))))))))) -> 469 | E163: =(IF(E32=1,Calcs!$N163,IF(E32=2,Calcs!$O163,IF(E32=3,Calcs!$P163,IF(E32=4,Calcs!$Q163,IF(E32=5,Calcs!$R163,IF(E32=6,Calcs!$S163,IF(E32=7,Calcs!$T163,IF(E32=8,Calcs!$U163,0))))))))) -> 0 | F163: =(IF(F32=1,Calcs!$N163,IF(F32=2,Calcs!$O163,IF(F32=3,Calcs!$P163,IF(F32=4,Calcs!$Q163,IF(F32=5,Calcs!$R163,IF(F32=6,Calcs!$S163,IF(F32=7,Calcs!$T163,IF(F32=8,Calcs!$U163,0))))))))) -> 0 | G163: =(IF(G32=1,Calcs!$N163,IF(G32=2,Calcs!$O163,IF(G32=3,Calcs!$P163,IF(G32=4,Calcs!$Q163,IF(G32=5,Calcs!$R163,IF(G32=6,Calcs!$S163,IF(G32=7,Calcs!$T163,IF(G32=8,Calcs!$U163,0))))))))) -> 0 | H163: =(IF(H32=1,Calcs!$N163,IF(H32=2,Calcs!$O163,IF(H32=3,Calcs!$P163,IF(H32=4,Calcs!$Q163,IF(H32=5,Calcs!$R163,IF(H32=6,Calcs!$S163,IF(H32=7,Calcs!$T163,IF(H32=8,Calcs!$U163,0))))))))) -> 469 | I163: =(IF(I32=1,Calcs!$N163,IF(I32=2,Calcs!$O163,IF(I32=3,Calcs!$P163,IF(I32=4,Calcs!$Q163,IF(I32=5,Calcs!$R163,IF(I32=6,Calcs!$S163,IF(I32=7,Calcs!$T163,IF(I32=8,Calcs!$U163,0))))))))) -> 0 | J163: =(IF(J32=1,Calcs!$N163,IF(J32=2,Calcs!$O163,IF(J32=3,Calcs!$P163,IF(J32=4,Calcs!$Q163,IF(J32=5,Calcs!$R163,IF(J32=6,Calcs!$S163,IF(J32=7,Calcs!$T163,IF(J32=8,Calcs!$U163,0))))))))) -> 0 | K163: =(IF(K32=1,Calcs!$N163,IF(K32=2,Calcs!$O163,IF(K32=3,Calcs!$P163,IF(K32=4,Calcs!$Q163,IF(K32=5,Calcs!$R163,IF(K32=6,Calcs!$S163,IF(K32=7,Calcs!$T163,IF(K32=8,Calcs!$U163,0))))))))) -> 0 | L163: =(IF(L32=1,Calcs!$N163,IF(L32=2,Calcs!$O163,IF(L32=3,Calcs!$P163,IF(L32=4,Calcs!$Q163,IF(L32=5,Calcs!$R163,IF(L32=6,Calcs!$S163,IF(L32=7,Calcs!$T163,IF(L32=8,Calcs!$U163,0))))))))) -> 469 | N163: ='1.Profile'!$E$28+$AB$138 -> 75 | O163: ='1.Profile'!$E$28+$AB$138 -> 75 | P163: ='1.Profile'!$E$28+$AB$138 -> 75 | Q163: ='1.Profile'!$G$28+$AC$138 -> 469 | W163: +boom
A164: 27 | B164: Glyphosate Early
A165: 28 | B165: Glyphosate Medium | D165: The cost is applied to the 'Glyphosate rate' below
A166: 29 | B166: Glyphosate Late
A167: 30 | B167: None | C167: =IF(C36=1,Calcs!$N167,IF(C36=2,Calcs!$O167,IF(C36=3,Calcs!$P167,IF(C36=4,Calcs!$Q167,IF(C36=5,Calcs!$R167,IF(C36=6,Calcs!$S167,IF(C36=7,Calcs!$T167,IF(C36=8,Calcs!$U167,0)))))))) -> 0 | D167: =IF(D36=1,Calcs!$N167,IF(D36=2,Calcs!$O167,IF(D36=3,Calcs!$P167,IF(D36=4,Calcs!$Q167,IF(D36=5,Calcs!$R167,IF(D36=6,Calcs!$S167,IF(D36=7,Calcs!$T167,IF(D36=8,Calcs!$U167,0)))))))) -> 0 | E167: =IF(E36=1,Calcs!$N167,IF(E36=2,Calcs!$O167,IF(E36=3,Calcs!$P167,IF(E36=4,Calcs!$Q167,IF(E36=5,Calcs!$R167,IF(E36=6,Calcs!$S167,IF(E36=7,Calcs!$T167,IF(E36=8,Calcs!$U167,0)))))))) -> 0 | F167: =IF(F36=1,Calcs!$N167,IF(F36=2,Calcs!$O167,IF(F36=3,Calcs!$P167,IF(F36=4,Calcs!$Q167,IF(F36=5,Calcs!$R167,IF(F36=6,Calcs!$S167,IF(F36=7,Calcs!$T167,IF(F36=8,Calcs!$U167,0)))))))) -> 0 | G167: =IF(G36=1,Calcs!$N167,IF(G36=2,Calcs!$O167,IF(G36=3,Calcs!$P167,IF(G36=4,Calcs!$Q167,IF(G36=5,Calcs!$R167,IF(G36=6,Calcs!$S167,IF(G36=7,Calcs!$T167,IF(G36=8,Calcs!$U167,0)))))))) -> 0 | H167: =IF(H36=1,Calcs!$N167,IF(H36=2,Calcs!$O167,IF(H36=3,Calcs!$P167,IF(H36=4,Calcs!$Q167,IF(H36=5,Calcs!$R167,IF(H36=6,Calcs!$S167,IF(H36=7,Calcs!$T167,IF(H36=8,Calcs!$U167,0)))))))) -> 0 | I167: =IF(I36=1,Calcs!$N167,IF(I36=2,Calcs!$O167,IF(I36=3,Calcs!$P167,IF(I36=4,Calcs!$Q167,IF(I36=5,Calcs!$R167,IF(I36=6,Calcs!$S167,IF(I36=7,Calcs!$T167,IF(I36=8,Calcs!$U167,0)))))))) -> 0 | J167: =IF(J36=1,Calcs!$N167,IF(J36=2,Calcs!$O167,IF(J36=3,Calcs!$P167,IF(J36=4,Calcs!$Q167,IF(J36=5,Calcs!$R167,IF(J36=6,Calcs!$S167,IF(J36=7,Calcs!$T167,IF(J36=8,Calcs!$U167,0)))))))) -> 0 | K167: =IF(K36=1,Calcs!$N167,IF(K36=2,Calcs!$O167,IF(K36=3,Calcs!$P167,IF(K36=4,Calcs!$Q167,IF(K36=5,Calcs!$R167,IF(K36=6,Calcs!$S167,IF(K36=7,Calcs!$T167,IF(K36=8,Calcs!$U167,0)))))))) -> 0 | L167: =IF(L36=1,Calcs!$N167,IF(L36=2,Calcs!$O167,IF(L36=3,Calcs!$P167,IF(L36=4,Calcs!$Q167,IF(L36=5,Calcs!$R167,IF(L36=6,Calcs!$S167,IF(L36=7,Calcs!$T167,IF(L36=8,Calcs!$U167,0)))))))) -> 0 | R167: 0 | S167: 0 | T167: 0 | U167: 0 | V167: Profile
A168: 31 | B168: ="Glyphosate rate: "&'1.Profile'!C16 -> Glyphosate rate: 540 | C168: =IF(C37=1,Calcs!$N168,IF(C37=2,Calcs!$O168,IF(C37=3,Calcs!$P168,IF(C37=4,Calcs!$Q168,IF(C37=5,Calcs!$R168,IF(C37=6,Calcs!$S168,IF(C37=7,Calcs!$T168,IF(C37=8,Calcs!$U168,0)))))))) -> 0 | D168: =IF(D37=1,Calcs!$N168,IF(D37=2,Calcs!$O168,IF(D37=3,Calcs!$P168,IF(D37=4,Calcs!$Q168,IF(D37=5,Calcs!$R168,IF(D37=6,Calcs!$S168,IF(D37=7,Calcs!$T168,IF(D37=8,Calcs!$U168,0)))))))) -> 0 | E168: =IF(E37=1,Calcs!$N168,IF(E37=2,Calcs!$O168,IF(E37=3,Calcs!$P168,IF(E37=4,Calcs!$Q168,IF(E37=5,Calcs!$R168,IF(E37=6,Calcs!$S168,IF(E37=7,Calcs!$T168,IF(E37=8,Calcs!$U168,0)))))))) -> 0 | F168: =IF(F37=1,Calcs!$N168,IF(F37=2,Calcs!$O168,IF(F37=3,Calcs!$P168,IF(F37=4,Calcs!$Q168,IF(F37=5,Calcs!$R168,IF(F37=6,Calcs!$S168,IF(F37=7,Calcs!$T168,IF(F37=8,Calcs!$U168,0)))))))) -> 0 | G168: =IF(G37=1,Calcs!$N168,IF(G37=2,Calcs!$O168,IF(G37=3,Calcs!$P168,IF(G37=4,Calcs!$Q168,IF(G37=5,Calcs!$R168,IF(G37=6,Calcs!$S168,IF(G37=7,Calcs!$T168,IF(G37=8,Calcs!$U168,0)))))))) -> 0 | H168: =IF(H37=1,Calcs!$N168,IF(H37=2,Calcs!$O168,IF(H37=3,Calcs!$P168,IF(H37=4,Calcs!$Q168,IF(H37=5,Calcs!$R168,IF(H37=6,Calcs!$S168,IF(H37=7,Calcs!$T168,IF(H37=8,Calcs!$U168,0)))))))) -> 0 | I168: =IF(I37=1,Calcs!$N168,IF(I37=2,Calcs!$O168,IF(I37=3,Calcs!$P168,IF(I37=4,Calcs!$Q168,IF(I37=5,Calcs!$R168,IF(I37=6,Calcs!$S168,IF(I37=7,Calcs!$T168,IF(I37=8,Calcs!$U168,0)))))))) -> 0 | J168: =IF(J37=1,Calcs!$N168,IF(J37=2,Calcs!$O168,IF(J37=3,Calcs!$P168,IF(J37=4,Calcs!$Q168,IF(J37=5,Calcs!$R168,IF(J37=6,Calcs!$S168,IF(J37=7,Calcs!$T168,IF(J37=8,Calcs!$U168,0)))))))) -> 0 | K168: =IF(K37=1,Calcs!$N168,IF(K37=2,Calcs!$O168,IF(K37=3,Calcs!$P168,IF(K37=4,Calcs!$Q168,IF(K37=5,Calcs!$R168,IF(K37=6,Calcs!$S168,IF(K37=7,Calcs!$T168,IF(K37=8,Calcs!$U168,0)))))))) -> 0 | L168: =IF(L37=1,Calcs!$N168,IF(L37=2,Calcs!$O168,IF(L37=3,Calcs!$P168,IF(L37=4,Calcs!$Q168,IF(L37=5,Calcs!$R168,IF(L37=6,Calcs!$S168,IF(L37=7,Calcs!$T168,IF(L37=8,Calcs!$U168,0)))))))) -> 0 | R168: ='1.Profile'!$F$16+AB163 -> 75 | S168: ='1.Profile'!$F$16+AB163 -> 75 | T168: ='1.Profile'!$F$16+AB163 -> 75 | U168: ='1.Profile'!$F$16+AD163 -> 75 | W168: +boom
A169: 32 | B169: ="Glyphosate rate: "&'1.Profile'!C17 -> Glyphosate rate: 1080 | C169: =IF(C38=1,Calcs!$N169,IF(C38=2,Calcs!$O169,IF(C38=3,Calcs!$P169,IF(C38=4,Calcs!$Q169,IF(C38=5,Calcs!$R169,IF(C38=6,Calcs!$S169,IF(C38=7,Calcs!$T169,IF(C38=8,Calcs!$U169,0)))))))) -> 0 | D169: =IF(D38=1,Calcs!$N169,IF(D38=2,Calcs!$O169,IF(D38=3,Calcs!$P169,IF(D38=4,Calcs!$Q169,IF(D38=5,Calcs!$R169,IF(D38=6,Calcs!$S169,IF(D38=7,Calcs!$T169,IF(D38=8,Calcs!$U169,0)))))))) -> 0 | E169: =IF(E38=1,Calcs!$N169,IF(E38=2,Calcs!$O169,IF(E38=3,Calcs!$P169,IF(E38=4,Calcs!$Q169,IF(E38=5,Calcs!$R169,IF(E38=6,Calcs!$S169,IF(E38=7,Calcs!$T169,IF(E38=8,Calcs!$U169,0)))))))) -> 0 | F169: =IF(F38=1,Calcs!$N169,IF(F38=2,Calcs!$O169,IF(F38=3,Calcs!$P169,IF(F38=4,Calcs!$Q169,IF(F38=5,Calcs!$R169,IF(F38=6,Calcs!$S169,IF(F38=7,Calcs!$T169,IF(F38=8,Calcs!$U169,0)))))))) -> 0 | G169: =IF(G38=1,Calcs!$N169,IF(G38=2,Calcs!$O169,IF(G38=3,Calcs!$P169,IF(G38=4,Calcs!$Q169,IF(G38=5,Calcs!$R169,IF(G38=6,Calcs!$S169,IF(G38=7,Calcs!$T169,IF(G38=8,Calcs!$U169,0)))))))) -> 0 | H169: =IF(H38=1,Calcs!$N169,IF(H38=2,Calcs!$O169,IF(H38=3,Calcs!$P169,IF(H38=4,Calcs!$Q169,IF(H38=5,Calcs!$R169,IF(H38=6,Calcs!$S169,IF(H38=7,Calcs!$T169,IF(H38=8,Calcs!$U169,0)))))))) -> 0 | I169: =IF(I38=1,Calcs!$N169,IF(I38=2,Calcs!$O169,IF(I38=3,Calcs!$P169,IF(I38=4,Calcs!$Q169,IF(I38=5,Calcs!$R169,IF(I38=6,Calcs!$S169,IF(I38=7,Calcs!$T169,IF(I38=8,Calcs!$U169,0)))))))) -> 0 | J169: =IF(J38=1,Calcs!$N169,IF(J38=2,Calcs!$O169,IF(J38=3,Calcs!$P169,IF(J38=4,Calcs!$Q169,IF(J38=5,Calcs!$R169,IF(J38=6,Calcs!$S169,IF(J38=7,Calcs!$T169,IF(J38=8,Calcs!$U169,0)))))))) -> 0 | K169: =IF(K38=1,Calcs!$N169,IF(K38=2,Calcs!$O169,IF(K38=3,Calcs!$P169,IF(K38=4,Calcs!$Q169,IF(K38=5,Calcs!$R169,IF(K38=6,Calcs!$S169,IF(K38=7,Calcs!$T169,IF(K38=8,Calcs!$U169,0)))))))) -> 0 | L169: =IF(L38=1,Calcs!$N169,IF(L38=2,Calcs!$O169,IF(L38=3,Calcs!$P169,IF(L38=4,Calcs!$Q169,IF(L38=5,Calcs!$R169,IF(L38=6,Calcs!$S169,IF(L38=7,Calcs!$T169,IF(L38=8,Calcs!$U169,0)))))))) -> 0 | R169: ='1.Profile'!$F$17+AB163 -> 150 | S169: ='1.Profile'!$F$17+AB163 -> 150 | T169: ='1.Profile'!$F$17+AB163 -> 150 | U169: ='1.Profile'!$F$17+AD163 -> 150 | W169: +boom
A170: 33 | B170: Need-based plough | C170: =IF(C39=1,Calcs!$N170,IF(C39=2,Calcs!$O170,IF(C39=3,Calcs!$P170,IF(C39=4,Calcs!$Q170,IF(C39=5,Calcs!$R170,IF(C39=6,Calcs!$S170,IF(C39=7,Calcs!$T170,IF(C39=8,$U170,0)))))))) -> 0 | D170: =IF(D39=1,Calcs!$N170,IF(D39=2,Calcs!$O170,IF(D39=3,Calcs!$P170,IF(D39=4,Calcs!$Q170,IF(D39=5,Calcs!$R170,IF(D39=6,Calcs!$S170,IF(D39=7,Calcs!$T170,IF(D39=8,$U170,0)))))))) -> 0 | E170: =IF(E39=1,Calcs!$N170,IF(E39=2,Calcs!$O170,IF(E39=3,Calcs!$P170,IF(E39=4,Calcs!$Q170,IF(E39=5,Calcs!$R170,IF(E39=6,Calcs!$S170,IF(E39=7,Calcs!$T170,IF(E39=8,$U170,0)))))))) -> 0 | F170: =IF(F39=1,Calcs!$N170,IF(F39=2,Calcs!$O170,IF(F39=3,Calcs!$P170,IF(F39=4,Calcs!$Q170,IF(F39=5,Calcs!$R170,IF(F39=6,Calcs!$S170,IF(F39=7,Calcs!$T170,IF(F39=8,$U170,0)))))))) -> 0 | G170: =IF(G39=1,Calcs!$N170,IF(G39=2,Calcs!$O170,IF(G39=3,Calcs!$P170,IF(G39=4,Calcs!$Q170,IF(G39=5,Calcs!$R170,IF(G39=6,Calcs!$S170,IF(G39=7,Calcs!$T170,IF(G39=8,$U170,0)))))))) -> 0 | H170: =IF(H39=1,Calcs!$N170,IF(H39=2,Calcs!$O170,IF(H39=3,Calcs!$P170,IF(H39=4,Calcs!$Q170,IF(H39=5,Calcs!$R170,IF(H39=6,Calcs!$S170,IF(H39=7,Calcs!$T170,IF(H39=8,$U170,0)))))))) -> 0 | I170: =IF(I39=1,Calcs!$N170,IF(I39=2,Calcs!$O170,IF(I39=3,Calcs!$P170,IF(I39=4,Calcs!$Q170,IF(I39=5,Calcs!$R170,IF(I39=6,Calcs!$S170,IF(I39=7,Calcs!$T170,IF(I39=8,$U170,0)))))))) -> 0 | J170: =IF(J39=1,Calcs!$N170,IF(J39=2,Calcs!$O170,IF(J39=3,Calcs!$P170,IF(J39=4,Calcs!$Q170,IF(J39=5,Calcs!$R170,IF(J39=6,Calcs!$S170,IF(J39=7,Calcs!$T170,IF(J39=8,$U170,0)))))))) -> 0 | K170: =IF(K39=1,Calcs!$N170,IF(K39=2,Calcs!$O170,IF(K39=3,Calcs!$P170,IF(K39=4,Calcs!$Q170,IF(K39=5,Calcs!$R170,IF(K39=6,Calcs!$S170,IF(K39=7,Calcs!$T170,IF(K39=8,$U170,0)))))))) -> 0 | L170: =IF(L39=1,Calcs!$N170,IF(L39=2,Calcs!$O170,IF(L39=3,Calcs!$P170,IF(L39=4,Calcs!$Q170,IF(L39=5,Calcs!$R170,IF(L39=6,Calcs!$S170,IF(L39=7,Calcs!$T170,IF(L39=8,$U170,0)))))))) -> 0 | R170: ='+Prices'!$AJ$95 -> 4842 | S170: ='+Prices'!$AJ$95 -> 4842 | T170: ='+Prices'!$AJ$95 -> 4842 | U170: ='+Prices'!$AJ$95 -> 4842
A171: 34 | B171: Plough | C171: =IF(C40=1,Calcs!$N171,IF(C40=2,Calcs!$O171,IF(C40=3,Calcs!$P171,IF(C40=4,Calcs!$Q171,IF(C40=5,Calcs!$R171,IF(C40=6,Calcs!$S171,IF(C40=7,Calcs!$T171,IF(C40=8,$U171,0)))))))) -> 4842 | D171: =IF(D40=1,Calcs!$N171,IF(D40=2,Calcs!$O171,IF(D40=3,Calcs!$P171,IF(D40=4,Calcs!$Q171,IF(D40=5,Calcs!$R171,IF(D40=6,Calcs!$S171,IF(D40=7,Calcs!$T171,IF(D40=8,$U171,0)))))))) -> 0 | E171: =IF(E40=1,Calcs!$N171,IF(E40=2,Calcs!$O171,IF(E40=3,Calcs!$P171,IF(E40=4,Calcs!$Q171,IF(E40=5,Calcs!$R171,IF(E40=6,Calcs!$S171,IF(E40=7,Calcs!$T171,IF(E40=8,$U171,0)))))))) -> 0 | F171: =IF(F40=1,Calcs!$N171,IF(F40=2,Calcs!$O171,IF(F40=3,Calcs!$P171,IF(F40=4,Calcs!$Q171,IF(F40=5,Calcs!$R171,IF(F40=6,Calcs!$S171,IF(F40=7,Calcs!$T171,IF(F40=8,$U171,0)))))))) -> 0 | G171: =IF(G40=1,Calcs!$N171,IF(G40=2,Calcs!$O171,IF(G40=3,Calcs!$P171,IF(G40=4,Calcs!$Q171,IF(G40=5,Calcs!$R171,IF(G40=6,Calcs!$S171,IF(G40=7,Calcs!$T171,IF(G40=8,$U171,0)))))))) -> 4842 | H171: =IF(H40=1,Calcs!$N171,IF(H40=2,Calcs!$O171,IF(H40=3,Calcs!$P171,IF(H40=4,Calcs!$Q171,IF(H40=5,Calcs!$R171,IF(H40=6,Calcs!$S171,IF(H40=7,Calcs!$T171,IF(H40=8,$U171,0)))))))) -> 0 | I171: =IF(I40=1,Calcs!$N171,IF(I40=2,Calcs!$O171,IF(I40=3,Calcs!$P171,IF(I40=4,Calcs!$Q171,IF(I40=5,Calcs!$R171,IF(I40=6,Calcs!$S171,IF(I40=7,Calcs!$T171,IF(I40=8,$U171,0)))))))) -> 0 | J171: =IF(J40=1,Calcs!$N171,IF(J40=2,Calcs!$O171,IF(J40=3,Calcs!$P171,IF(J40=4,Calcs!$Q171,IF(J40=5,Calcs!$R171,IF(J40=6,Calcs!$S171,IF(J40=7,Calcs!$T171,IF(J40=8,$U171,0)))))))) -> 0 | K171: =IF(K40=1,Calcs!$N171,IF(K40=2,Calcs!$O171,IF(K40=3,Calcs!$P171,IF(K40=4,Calcs!$Q171,IF(K40=5,Calcs!$R171,IF(K40=6,Calcs!$S171,IF(K40=7,Calcs!$T171,IF(K40=8,$U171,0)))))))) -> 4842 | L171: =IF(L40=1,Calcs!$N171,IF(L40=2,Calcs!$O171,IF(L40=3,Calcs!$P171,IF(L40=4,Calcs!$Q171,IF(L40=5,Calcs!$R171,IF(L40=6,Calcs!$S171,IF(L40=7,Calcs!$T171,IF(L40=8,$U171,0)))))))) -> 0 | R171: ='+Prices'!$AJ$95 -> 4842 | S171: ='+Prices'!$AJ$95 -> 4842 | T171: ='+Prices'!$AJ$95 -> 4842 | U171: ='+Prices'!$AJ$95 -> 4842 | V171: Prices
A172: 35 | B172: Reduced tillage | C172: =IF(C41=1,Calcs!$N172,IF(C41=2,Calcs!$O172,IF(C41=3,Calcs!$P172,IF(C41=4,Calcs!$Q172,IF(C41=5,Calcs!$R172,IF(C41=6,Calcs!$S172,IF(C41=7,Calcs!$T172,IF(C41=8,$U172,0)))))))) -> 0 | D172: =IF(D41=1,Calcs!$N172,IF(D41=2,Calcs!$O172,IF(D41=3,Calcs!$P172,IF(D41=4,Calcs!$Q172,IF(D41=5,Calcs!$R172,IF(D41=6,Calcs!$S172,IF(D41=7,Calcs!$T172,IF(D41=8,$U172,0)))))))) -> 0 | E172: =IF(E41=1,Calcs!$N172,IF(E41=2,Calcs!$O172,IF(E41=3,Calcs!$P172,IF(E41=4,Calcs!$Q172,IF(E41=5,Calcs!$R172,IF(E41=6,Calcs!$S172,IF(E41=7,Calcs!$T172,IF(E41=8,$U172,0)))))))) -> 0 | F172: =IF(F41=1,Calcs!$N172,IF(F41=2,Calcs!$O172,IF(F41=3,Calcs!$P172,IF(F41=4,Calcs!$Q172,IF(F41=5,Calcs!$R172,IF(F41=6,Calcs!$S172,IF(F41=7,Calcs!$T172,IF(F41=8,$U172,0)))))))) -> 0 | G172: =IF(G41=1,Calcs!$N172,IF(G41=2,Calcs!$O172,IF(G41=3,Calcs!$P172,IF(G41=4,Calcs!$Q172,IF(G41=5,Calcs!$R172,IF(G41=6,Calcs!$S172,IF(G41=7,Calcs!$T172,IF(G41=8,$U172,0)))))))) -> 0 | H172: =IF(H41=1,Calcs!$N172,IF(H41=2,Calcs!$O172,IF(H41=3,Calcs!$P172,IF(H41=4,Calcs!$Q172,IF(H41=5,Calcs!$R172,IF(H41=6,Calcs!$S172,IF(H41=7,Calcs!$T172,IF(H41=8,$U172,0)))))))) -> 0 | I172: =IF(I41=1,Calcs!$N172,IF(I41=2,Calcs!$O172,IF(I41=3,Calcs!$P172,IF(I41=4,Calcs!$Q172,IF(I41=5,Calcs!$R172,IF(I41=6,Calcs!$S172,IF(I41=7,Calcs!$T172,IF(I41=8,$U172,0)))))))) -> 0 | J172: =IF(J41=1,Calcs!$N172,IF(J41=2,Calcs!$O172,IF(J41=3,Calcs!$P172,IF(J41=4,Calcs!$Q172,IF(J41=5,Calcs!$R172,IF(J41=6,Calcs!$S172,IF(J41=7,Calcs!$T172,IF(J41=8,$U172,0)))))))) -> 0 | K172: =IF(K41=1,Calcs!$N172,IF(K41=2,Calcs!$O172,IF(K41=3,Calcs!$P172,IF(K41=4,Calcs!$Q172,IF(K41=5,Calcs!$R172,IF(K41=6,Calcs!$S172,IF(K41=7,Calcs!$T172,IF(K41=8,$U172,0)))))))) -> 0 | L172: =IF(L41=1,Calcs!$N172,IF(L41=2,Calcs!$O172,IF(L41=3,Calcs!$P172,IF(L41=4,Calcs!$Q172,IF(L41=5,Calcs!$R172,IF(L41=6,Calcs!$S172,IF(L41=7,Calcs!$T172,IF(L41=8,$U172,0)))))))) -> 0 | R172: ='+Prices'!$AJ$96 -> 4172 | S172: ='+Prices'!$AJ$96 -> 4172 | T172: ='+Prices'!$AJ$96 -> 4172 | U172: ='+Prices'!$AJ$96 -> 4172 | V172: Prices
A173: 36 | B173: No-till | C173: =IF(C42=1,Calcs!$N173,IF(C42=2,Calcs!$O173,IF(C42=3,Calcs!$P173,IF(C42=4,Calcs!$Q173,IF(C42=5,Calcs!$R173,IF(C42=6,Calcs!$S173,IF(C42=7,Calcs!$T173,IF(C42=8,$U173,0)))))))) -> 0 | D173: =IF(D42=1,Calcs!$N173,IF(D42=2,Calcs!$O173,IF(D42=3,Calcs!$P173,IF(D42=4,Calcs!$Q173,IF(D42=5,Calcs!$R173,IF(D42=6,Calcs!$S173,IF(D42=7,Calcs!$T173,IF(D42=8,$U173,0)))))))) -> 0 | E173: =IF(E42=1,Calcs!$N173,IF(E42=2,Calcs!$O173,IF(E42=3,Calcs!$P173,IF(E42=4,Calcs!$Q173,IF(E42=5,Calcs!$R173,IF(E42=6,Calcs!$S173,IF(E42=7,Calcs!$T173,IF(E42=8,$U173,0)))))))) -> 0 | F173: =IF(F42=1,Calcs!$N173,IF(F42=2,Calcs!$O173,IF(F42=3,Calcs!$P173,IF(F42=4,Calcs!$Q173,IF(F42=5,Calcs!$R173,IF(F42=6,Calcs!$S173,IF(F42=7,Calcs!$T173,IF(F42=8,$U173,0)))))))) -> 0 | G173: =IF(G42=1,Calcs!$N173,IF(G42=2,Calcs!$O173,IF(G42=3,Calcs!$P173,IF(G42=4,Calcs!$Q173,IF(G42=5,Calcs!$R173,IF(G42=6,Calcs!$S173,IF(G42=7,Calcs!$T173,IF(G42=8,$U173,0)))))))) -> 0 | H173: =IF(H42=1,Calcs!$N173,IF(H42=2,Calcs!$O173,IF(H42=3,Calcs!$P173,IF(H42=4,Calcs!$Q173,IF(H42=5,Calcs!$R173,IF(H42=6,Calcs!$S173,IF(H42=7,Calcs!$T173,IF(H42=8,$U173,0)))))))) -> 0 | I173: =IF(I42=1,Calcs!$N173,IF(I42=2,Calcs!$O173,IF(I42=3,Calcs!$P173,IF(I42=4,Calcs!$Q173,IF(I42=5,Calcs!$R173,IF(I42=6,Calcs!$S173,IF(I42=7,Calcs!$T173,IF(I42=8,$U173,0)))))))) -> 0 | J173: =IF(J42=1,Calcs!$N173,IF(J42=2,Calcs!$O173,IF(J42=3,Calcs!$P173,IF(J42=4,Calcs!$Q173,IF(J42=5,Calcs!$R173,IF(J42=6,Calcs!$S173,IF(J42=7,Calcs!$T173,IF(J42=8,$U173,0)))))))) -> 0 | K173: =IF(K42=1,Calcs!$N173,IF(K42=2,Calcs!$O173,IF(K42=3,Calcs!$P173,IF(K42=4,Calcs!$Q173,IF(K42=5,Calcs!$R173,IF(K42=6,Calcs!$S173,IF(K42=7,Calcs!$T173,IF(K42=8,$U173,0)))))))) -> 0 | L173: =IF(L42=1,Calcs!$N173,IF(L42=2,Calcs!$O173,IF(L42=3,Calcs!$P173,IF(L42=4,Calcs!$Q173,IF(L42=5,Calcs!$R173,IF(L42=6,Calcs!$S173,IF(L42=7,Calcs!$T173,IF(L42=8,$U173,0)))))))) -> 0 | R173: ='+Prices'!$AJ$97 -> 3852 | S173: ='+Prices'!$AJ$97 -> 3852 | T173: ='+Prices'!$AJ$97 -> 3852 | U173: ='+Prices'!$AJ$97 -> 3852 | V173: Prices
A174: 37 | B174: Early sowing | D174: Since sowing must occur anyway, the cost attributable to weed control is zero and | Y174: Residue removal accounted for in Prices, Machinary
A175: 38 | B175: Intermediate sowing | D175: included instead in the non-weed control costs, from the Prices page to the
A176: 39 | B176: Late Sowing | C176: Production cost table below, to the Eco results. | I176: Yield penalty accounted for in 'Bio results'.
A177: 40 | B177: Standard seeding rate | C177: =IF(C46=1,Calcs!$N$150,IF(C46=2,Calcs!$O$150,IF(C46=3,Calcs!$P$150,IF(C46=4,Calcs!$Q$150,IF(C46=5,Calcs!$R$177,IF(C46=6,Calcs!$S$177,IF(C46=7,Calcs!$T$177,IF(C46=8,Calcs!$U$177,0)))))))) -> 360 | D177: =IF(D46=1,Calcs!$N$150,IF(D46=2,Calcs!$O$150,IF(D46=3,Calcs!$P$150,IF(D46=4,Calcs!$Q$150,IF(D46=5,Calcs!$R$177,IF(D46=6,Calcs!$S$177,IF(D46=7,Calcs!$T$177,IF(D46=8,Calcs!$U$177,0)))))))) -> 0 | E177: =IF(E46=1,Calcs!$N$150,IF(E46=2,Calcs!$O$150,IF(E46=3,Calcs!$P$150,IF(E46=4,Calcs!$Q$150,IF(E46=5,Calcs!$R$177,IF(E46=6,Calcs!$S$177,IF(E46=7,Calcs!$T$177,IF(E46=8,Calcs!$U$177,0)))))))) -> 0 | F177: =IF(F46=1,Calcs!$N$150,IF(F46=2,Calcs!$O$150,IF(F46=3,Calcs!$P$150,IF(F46=4,Calcs!$Q$150,IF(F46=5,Calcs!$R$177,IF(F46=6,Calcs!$S$177,IF(F46=7,Calcs!$T$177,IF(F46=8,Calcs!$U$177,0)))))))) -> 0 | G177: =IF(G46=1,Calcs!$N$150,IF(G46=2,Calcs!$O$150,IF(G46=3,Calcs!$P$150,IF(G46=4,Calcs!$Q$150,IF(G46=5,Calcs!$R$177,IF(G46=6,Calcs!$S$177,IF(G46=7,Calcs!$T$177,IF(G46=8,Calcs!$U$177,0)))))))) -> 360 | H177: =IF(H46=1,Calcs!$N$150,IF(H46=2,Calcs!$O$150,IF(H46=3,Calcs!$P$150,IF(H46=4,Calcs!$Q$150,IF(H46=5,Calcs!$R$177,IF(H46=6,Calcs!$S$177,IF(H46=7,Calcs!$T$177,IF(H46=8,Calcs!$U$177,0)))))))) -> 0 | I177: =IF(I46=1,Calcs!$N$150,IF(I46=2,Calcs!$O$150,IF(I46=3,Calcs!$P$150,IF(I46=4,Calcs!$Q$150,IF(I46=5,Calcs!$R$177,IF(I46=6,Calcs!$S$177,IF(I46=7,Calcs!$T$177,IF(I46=8,Calcs!$U$177,0)))))))) -> 0 | J177: =IF(J46=1,Calcs!$N$150,IF(J46=2,Calcs!$O$150,IF(J46=3,Calcs!$P$150,IF(J46=4,Calcs!$Q$150,IF(J46=5,Calcs!$R$177,IF(J46=6,Calcs!$S$177,IF(J46=7,Calcs!$T$177,IF(J46=8,Calcs!$U$177,0)))))))) -> 0 | K177: =IF(K46=1,Calcs!$N$150,IF(K46=2,Calcs!$O$150,IF(K46=3,Calcs!$P$150,IF(K46=4,Calcs!$Q$150,IF(K46=5,Calcs!$R$177,IF(K46=6,Calcs!$S$177,IF(K46=7,Calcs!$T$177,IF(K46=8,Calcs!$U$177,0)))))))) -> 360 | L177: =IF(L46=1,Calcs!$N$150,IF(L46=2,Calcs!$O$150,IF(L46=3,Calcs!$P$150,IF(L46=4,Calcs!$Q$150,IF(L46=5,Calcs!$R$177,IF(L46=6,Calcs!$S$177,IF(L46=7,Calcs!$T$177,IF(L46=8,Calcs!$U$177,0)))))))) -> 0 | R177: ='+Prices'!AM91 -> 360 | S177: ='+Prices'!AN91 -> 378 | T177: ='+Prices'!AO91 -> 428 | U177: ='+Prices'!AO91 -> 428 | V177: Prices
A178: 41 | B178: Intermediate seeding rate | C178: =IF(C47=1,Calcs!$N$150,IF(C47=2,Calcs!$O$150,IF(C47=3,Calcs!$P$150,IF(C47=4,Calcs!$Q$150,IF(C47=5,Calcs!$R$178,IF(C47=6,Calcs!$S$178,IF(C47=7,Calcs!$T$178,IF(C47=8,Calcs!$U$178,0)))))))) -> 0 | D178: =IF(D47=1,Calcs!$N$150,IF(D47=2,Calcs!$O$150,IF(D47=3,Calcs!$P$150,IF(D47=4,Calcs!$Q$150,IF(D47=5,Calcs!$R$178,IF(D47=6,Calcs!$S$178,IF(D47=7,Calcs!$T$178,IF(D47=8,Calcs!$U$178,0)))))))) -> 0 | E178: =IF(E47=1,Calcs!$N$150,IF(E47=2,Calcs!$O$150,IF(E47=3,Calcs!$P$150,IF(E47=4,Calcs!$Q$150,IF(E47=5,Calcs!$R$178,IF(E47=6,Calcs!$S$178,IF(E47=7,Calcs!$T$178,IF(E47=8,Calcs!$U$178,0)))))))) -> 0 | F178: =IF(F47=1,Calcs!$N$150,IF(F47=2,Calcs!$O$150,IF(F47=3,Calcs!$P$150,IF(F47=4,Calcs!$Q$150,IF(F47=5,Calcs!$R$178,IF(F47=6,Calcs!$S$178,IF(F47=7,Calcs!$T$178,IF(F47=8,Calcs!$U$178,0)))))))) -> 0 | G178: =IF(G47=1,Calcs!$N$150,IF(G47=2,Calcs!$O$150,IF(G47=3,Calcs!$P$150,IF(G47=4,Calcs!$Q$150,IF(G47=5,Calcs!$R$178,IF(G47=6,Calcs!$S$178,IF(G47=7,Calcs!$T$178,IF(G47=8,Calcs!$U$178,0)))))))) -> 0 | H178: =IF(H47=1,Calcs!$N$150,IF(H47=2,Calcs!$O$150,IF(H47=3,Calcs!$P$150,IF(H47=4,Calcs!$Q$150,IF(H47=5,Calcs!$R$178,IF(H47=6,Calcs!$S$178,IF(H47=7,Calcs!$T$178,IF(H47=8,Calcs!$U$178,0)))))))) -> 0 | I178: =IF(I47=1,Calcs!$N$150,IF(I47=2,Calcs!$O$150,IF(I47=3,Calcs!$P$150,IF(I47=4,Calcs!$Q$150,IF(I47=5,Calcs!$R$178,IF(I47=6,Calcs!$S$178,IF(I47=7,Calcs!$T$178,IF(I47=8,Calcs!$U$178,0)))))))) -> 0 | J178: =IF(J47=1,Calcs!$N$150,IF(J47=2,Calcs!$O$150,IF(J47=3,Calcs!$P$150,IF(J47=4,Calcs!$Q$150,IF(J47=5,Calcs!$R$178,IF(J47=6,Calcs!$S$178,IF(J47=7,Calcs!$T$178,IF(J47=8,Calcs!$U$178,0)))))))) -> 0 | K178: =IF(K47=1,Calcs!$N$150,IF(K47=2,Calcs!$O$150,IF(K47=3,Calcs!$P$150,IF(K47=4,Calcs!$Q$150,IF(K47=5,Calcs!$R$178,IF(K47=6,Calcs!$S$178,IF(K47=7,Calcs!$T$178,IF(K47=8,Calcs!$U$178,0)))))))) -> 0 | L178: =IF(L47=1,Calcs!$N$150,IF(L47=2,Calcs!$O$150,IF(L47=3,Calcs!$P$150,IF(L47=4,Calcs!$Q$150,IF(L47=5,Calcs!$R$178,IF(L47=6,Calcs!$S$178,IF(L47=7,Calcs!$T$178,IF(L47=8,Calcs!$U$178,0)))))))) -> 0 | R178: ='+Prices'!AM91+'+Prices'!AM98 -> 385.7142857 | S178: ='+Prices'!AN91+'+Prices'!AN98 -> 405 | T178: ='+Prices'!AO91+'+Prices'!AO98 -> 440.5882353 | U178: ='+Prices'!AP91+'+Prices'!AP98 -> 448.8 | V178: Prices
A179: 42 | B179: High seeding rate | C179: =IF(C48=1,Calcs!$N$152,IF(C48=2,Calcs!$O$152,IF(C48=3,Calcs!$P$152,IF(C48=4,Calcs!$Q$152,IF(C48=5,Calcs!$R$179,IF(C48=6,Calcs!$S$179,IF(C48=7,Calcs!$T$179,IF(C48=8,Calcs!$U$179,0)))))))) -> 0 | D179: =IF(D48=1,Calcs!$N$152,IF(D48=2,Calcs!$O$152,IF(D48=3,Calcs!$P$152,IF(D48=4,Calcs!$Q$152,IF(D48=5,Calcs!$R$179,IF(D48=6,Calcs!$S$179,IF(D48=7,Calcs!$T$179,IF(D48=8,Calcs!$U$179,0)))))))) -> 0 | E179: =IF(E48=1,Calcs!$N$152,IF(E48=2,Calcs!$O$152,IF(E48=3,Calcs!$P$152,IF(E48=4,Calcs!$Q$152,IF(E48=5,Calcs!$R$179,IF(E48=6,Calcs!$S$179,IF(E48=7,Calcs!$T$179,IF(E48=8,Calcs!$U$179,0)))))))) -> 0 | F179: =IF(F48=1,Calcs!$N$152,IF(F48=2,Calcs!$O$152,IF(F48=3,Calcs!$P$152,IF(F48=4,Calcs!$Q$152,IF(F48=5,Calcs!$R$179,IF(F48=6,Calcs!$S$179,IF(F48=7,Calcs!$T$179,IF(F48=8,Calcs!$U$179,0)))))))) -> 0 | G179: =IF(G48=1,Calcs!$N$152,IF(G48=2,Calcs!$O$152,IF(G48=3,Calcs!$P$152,IF(G48=4,Calcs!$Q$152,IF(G48=5,Calcs!$R$179,IF(G48=6,Calcs!$S$179,IF(G48=7,Calcs!$T$179,IF(G48=8,Calcs!$U$179,0)))))))) -> 0 | H179: =IF(H48=1,Calcs!$N$152,IF(H48=2,Calcs!$O$152,IF(H48=3,Calcs!$P$152,IF(H48=4,Calcs!$Q$152,IF(H48=5,Calcs!$R$179,IF(H48=6,Calcs!$S$179,IF(H48=7,Calcs!$T$179,IF(H48=8,Calcs!$U$179,0)))))))) -> 0 | I179: =IF(I48=1,Calcs!$N$152,IF(I48=2,Calcs!$O$152,IF(I48=3,Calcs!$P$152,IF(I48=4,Calcs!$Q$152,IF(I48=5,Calcs!$R$179,IF(I48=6,Calcs!$S$179,IF(I48=7,Calcs!$T$179,IF(I48=8,Calcs!$U$179,0)))))))) -> 0 | J179: =IF(J48=1,Calcs!$N$152,IF(J48=2,Calcs!$O$152,IF(J48=3,Calcs!$P$152,IF(J48=4,Calcs!$Q$152,IF(J48=5,Calcs!$R$179,IF(J48=6,Calcs!$S$179,IF(J48=7,Calcs!$T$179,IF(J48=8,Calcs!$U$179,0)))))))) -> 0 | K179: =IF(K48=1,Calcs!$N$152,IF(K48=2,Calcs!$O$152,IF(K48=3,Calcs!$P$152,IF(K48=4,Calcs!$Q$152,IF(K48=5,Calcs!$R$179,IF(K48=6,Calcs!$S$179,IF(K48=7,Calcs!$T$179,IF(K48=8,Calcs!$U$179,0)))))))) -> 0 | L179: =IF(L48=1,Calcs!$N$152,IF(L48=2,Calcs!$O$152,IF(L48=3,Calcs!$P$152,IF(L48=4,Calcs!$Q$152,IF(L48=5,Calcs!$R$179,IF(L48=6,Calcs!$S$179,IF(L48=7,Calcs!$T$179,IF(L48=8,Calcs!$U$179,0)))))))) -> 0 | R179: ='+Prices'!AM91+'+Prices'!AM99 -> 411.4285714 | S179: ='+Prices'!AN91+'+Prices'!AN99 -> 432 | T179: ='+Prices'!AO91+'+Prices'!AO99 -> 473.3176471 | U179: ='+Prices'!AP91+'+Prices'!AP99 -> 523.6 | V179: Prices
A180: 43 | B180: Cover crops | C180: =IF(C49=5,Calcs!$R$180,IF(C49=6,Calcs!$S$180,IF(C49=7,Calcs!$T$180,IF(C49=8,Calcs!$U$180,0)))) -> 0 | D180: =IF(D49=5,Calcs!$R$180,IF(D49=6,Calcs!$S$180,IF(D49=7,Calcs!$T$180,IF(D49=8,Calcs!$U$180,0)))) -> 0 | E180: =IF(E49=5,Calcs!$R$180,IF(E49=6,Calcs!$S$180,IF(E49=7,Calcs!$T$180,IF(E49=8,Calcs!$U$180,0)))) -> 0 | F180: =IF(F49=5,Calcs!$R$180,IF(F49=6,Calcs!$S$180,IF(F49=7,Calcs!$T$180,IF(F49=8,Calcs!$U$180,0)))) -> 0 | G180: =IF(G49=5,Calcs!$R$180,IF(G49=6,Calcs!$S$180,IF(G49=7,Calcs!$T$180,IF(G49=8,Calcs!$U$180,0)))) -> 0 | H180: =IF(H49=5,Calcs!$R$180,IF(H49=6,Calcs!$S$180,IF(H49=7,Calcs!$T$180,IF(H49=8,Calcs!$U$180,0)))) -> 0 | I180: =IF(I49=5,Calcs!$R$180,IF(I49=6,Calcs!$S$180,IF(I49=7,Calcs!$T$180,IF(I49=8,Calcs!$U$180,0)))) -> 0 | J180: =IF(J49=5,Calcs!$R$180,IF(J49=6,Calcs!$S$180,IF(J49=7,Calcs!$T$180,IF(J49=8,Calcs!$U$180,0)))) -> 0 | K180: =IF(K49=5,Calcs!$R$180,IF(K49=6,Calcs!$S$180,IF(K49=7,Calcs!$T$180,IF(K49=8,Calcs!$U$180,0)))) -> 0 | L180: =IF(L49=5,Calcs!$R$180,IF(L49=6,Calcs!$S$180,IF(L49=7,Calcs!$T$180,IF(L49=8,Calcs!$U$180,0)))) -> 0 | R180: ='+Prices'!AM$99 -> 51.42857143 | S180: ='+Prices'!AN$99 -> 54 | T180: ='+Prices'!AO$99 -> 45.31764706 | U180: ='+Prices'!AP$99 -> 149.6 | V180: Prices
A181: 44 | B181: No cover crops | C181: =IF(C50=5,Calcs!$R$154,IF(C50=6,Calcs!$S$154,IF(C50=7,Calcs!$T$154,IF(C50=8,Calcs!$U$154,0)))) -> 0 | D181: =IF(D50=5,Calcs!$R$154,IF(D50=6,Calcs!$S$154,IF(D50=7,Calcs!$T$154,IF(D50=8,Calcs!$U$154,0)))) -> 0 | E181: =IF(E50=5,Calcs!$R$154,IF(E50=6,Calcs!$S$154,IF(E50=7,Calcs!$T$154,IF(E50=8,Calcs!$U$154,0)))) -> 0 | F181: =IF(F50=5,Calcs!$R$154,IF(F50=6,Calcs!$S$154,IF(F50=7,Calcs!$T$154,IF(F50=8,Calcs!$U$154,0)))) -> 0 | G181: =IF(G50=5,Calcs!$R$154,IF(G50=6,Calcs!$S$154,IF(G50=7,Calcs!$T$154,IF(G50=8,Calcs!$U$154,0)))) -> 0 | H181: =IF(H50=5,Calcs!$R$154,IF(H50=6,Calcs!$S$154,IF(H50=7,Calcs!$T$154,IF(H50=8,Calcs!$U$154,0)))) -> 0 | I181: =IF(I50=5,Calcs!$R$154,IF(I50=6,Calcs!$S$154,IF(I50=7,Calcs!$T$154,IF(I50=8,Calcs!$U$154,0)))) -> 0 | J181: =IF(J50=5,Calcs!$R$154,IF(J50=6,Calcs!$S$154,IF(J50=7,Calcs!$T$154,IF(J50=8,Calcs!$U$154,0)))) -> 0 | K181: =IF(K50=5,Calcs!$R$154,IF(K50=6,Calcs!$S$154,IF(K50=7,Calcs!$T$154,IF(K50=8,Calcs!$U$154,0)))) -> 0 | L181: =IF(L50=5,Calcs!$R$154,IF(L50=6,Calcs!$S$154,IF(L50=7,Calcs!$T$154,IF(L50=8,Calcs!$U$154,0)))) -> 0 | R181: 0 | S181: 0 | T181: 0 | U181: 0 | V181: Prices
A182: 45 | B182: ="Post-E: "&'1.Profile'!C22 -> Post-E: Topik | C182: =(IF(C51=1,Calcs!$N182,IF(C51=2,Calcs!$O182,IF(C51=3,Calcs!$P182,IF(C51=4,Calcs!$Q182,IF(C51=5,Calcs!$R182,IF(C51=6,Calcs!$S182,IF(C51=7,Calcs!$T182,IF(C51=8,Calcs!$U182,0))))))))) -> 0 | D182: =(IF(D51=1,Calcs!$N182,IF(D51=2,Calcs!$O182,IF(D51=3,Calcs!$P182,IF(D51=4,Calcs!$Q182,IF(D51=5,Calcs!$R182,IF(D51=6,Calcs!$S182,IF(D51=7,Calcs!$T182,IF(D51=8,Calcs!$U182,0))))))))) -> 0 | E182: =(IF(E51=1,Calcs!$N182,IF(E51=2,Calcs!$O182,IF(E51=3,Calcs!$P182,IF(E51=4,Calcs!$Q182,IF(E51=5,Calcs!$R182,IF(E51=6,Calcs!$S182,IF(E51=7,Calcs!$T182,IF(E51=8,Calcs!$U182,0))))))))) -> 0 | F182: =(IF(F51=1,Calcs!$N182,IF(F51=2,Calcs!$O182,IF(F51=3,Calcs!$P182,IF(F51=4,Calcs!$Q182,IF(F51=5,Calcs!$R182,IF(F51=6,Calcs!$S182,IF(F51=7,Calcs!$T182,IF(F51=8,Calcs!$U182,0))))))))) -> 0 | G182: =(IF(G51=1,Calcs!$N182,IF(G51=2,Calcs!$O182,IF(G51=3,Calcs!$P182,IF(G51=4,Calcs!$Q182,IF(G51=5,Calcs!$R182,IF(G51=6,Calcs!$S182,IF(G51=7,Calcs!$T182,IF(G51=8,Calcs!$U182,0))))))))) -> 0 | H182: =(IF(H51=1,Calcs!$N182,IF(H51=2,Calcs!$O182,IF(H51=3,Calcs!$P182,IF(H51=4,Calcs!$Q182,IF(H51=5,Calcs!$R182,IF(H51=6,Calcs!$S182,IF(H51=7,Calcs!$T182,IF(H51=8,Calcs!$U182,0))))))))) -> 0 | I182: =(IF(I51=1,Calcs!$N182,IF(I51=2,Calcs!$O182,IF(I51=3,Calcs!$P182,IF(I51=4,Calcs!$Q182,IF(I51=5,Calcs!$R182,IF(I51=6,Calcs!$S182,IF(I51=7,Calcs!$T182,IF(I51=8,Calcs!$U182,0))))))))) -> 0 | J182: =(IF(J51=1,Calcs!$N182,IF(J51=2,Calcs!$O182,IF(J51=3,Calcs!$P182,IF(J51=4,Calcs!$Q182,IF(J51=5,Calcs!$R182,IF(J51=6,Calcs!$S182,IF(J51=7,Calcs!$T182,IF(J51=8,Calcs!$U182,0))))))))) -> 0 | K182: =(IF(K51=1,Calcs!$N182,IF(K51=2,Calcs!$O182,IF(K51=3,Calcs!$P182,IF(K51=4,Calcs!$Q182,IF(K51=5,Calcs!$R182,IF(K51=6,Calcs!$S182,IF(K51=7,Calcs!$T182,IF(K51=8,Calcs!$U182,0))))))))) -> 0 | L182: =(IF(L51=1,Calcs!$N182,IF(L51=2,Calcs!$O182,IF(L51=3,Calcs!$P182,IF(L51=4,Calcs!$Q182,IF(L51=5,Calcs!$R182,IF(L51=6,Calcs!$S182,IF(L51=7,Calcs!$T182,IF(L51=8,Calcs!$U182,0))))))))) -> 0 | N182: ='1.Profile'!$E$22+$AB$138 -> 323 | O182: ='1.Profile'!$E$22+$AB$138 -> 323 | P182: ='1.Profile'!$E$22+$AB$138 -> 323 | Q182: ='1.Profile'!$G$22+$AC$138 -> 75 | R182: ='1.Profile'!$F$22+$AB$138 -> 75 | S182: ='1.Profile'!$F$22+$AB$138 -> 75 | T182: ='1.Profile'!$F$22+$AB$138 -> 75 | U182: ='1.Profile'!$H$22+$AD$138 -> 75 | V182: Profile | W182: +boom
A183: 46 | B183: ="Post-E: "&'1.Profile'!C23 -> Post-E: Atlantis OD | C183: =(IF(C52=1,Calcs!$N183,IF(C52=2,Calcs!$O183,IF(C52=3,Calcs!$P183,IF(C52=4,Calcs!$Q183,IF(C52=5,Calcs!$R183,IF(C52=6,Calcs!$S183,IF(C52=7,Calcs!$T183,IF(C52=8,Calcs!$U183,0))))))))) -> 0 | D183: =(IF(D52=1,Calcs!$N183,IF(D52=2,Calcs!$O183,IF(D52=3,Calcs!$P183,IF(D52=4,Calcs!$Q183,IF(D52=5,Calcs!$R183,IF(D52=6,Calcs!$S183,IF(D52=7,Calcs!$T183,IF(D52=8,Calcs!$U183,0))))))))) -> 0 | E183: =(IF(E52=1,Calcs!$N183,IF(E52=2,Calcs!$O183,IF(E52=3,Calcs!$P183,IF(E52=4,Calcs!$Q183,IF(E52=5,Calcs!$R183,IF(E52=6,Calcs!$S183,IF(E52=7,Calcs!$T183,IF(E52=8,Calcs!$U183,0))))))))) -> 0 | F183: =(IF(F52=1,Calcs!$N183,IF(F52=2,Calcs!$O183,IF(F52=3,Calcs!$P183,IF(F52=4,Calcs!$Q183,IF(F52=5,Calcs!$R183,IF(F52=6,Calcs!$S183,IF(F52=7,Calcs!$T183,IF(F52=8,Calcs!$U183,0))))))))) -> 0 | G183: =(IF(G52=1,Calcs!$N183,IF(G52=2,Calcs!$O183,IF(G52=3,Calcs!$P183,IF(G52=4,Calcs!$Q183,IF(G52=5,Calcs!$R183,IF(G52=6,Calcs!$S183,IF(G52=7,Calcs!$T183,IF(G52=8,Calcs!$U183,0))))))))) -> 0 | H183: =(IF(H52=1,Calcs!$N183,IF(H52=2,Calcs!$O183,IF(H52=3,Calcs!$P183,IF(H52=4,Calcs!$Q183,IF(H52=5,Calcs!$R183,IF(H52=6,Calcs!$S183,IF(H52=7,Calcs!$T183,IF(H52=8,Calcs!$U183,0))))))))) -> 0 | I183: =(IF(I52=1,Calcs!$N183,IF(I52=2,Calcs!$O183,IF(I52=3,Calcs!$P183,IF(I52=4,Calcs!$Q183,IF(I52=5,Calcs!$R183,IF(I52=6,Calcs!$S183,IF(I52=7,Calcs!$T183,IF(I52=8,Calcs!$U183,0))))))))) -> 0 | J183: =(IF(J52=1,Calcs!$N183,IF(J52=2,Calcs!$O183,IF(J52=3,Calcs!$P183,IF(J52=4,Calcs!$Q183,IF(J52=5,Calcs!$R183,IF(J52=6,Calcs!$S183,IF(J52=7,Calcs!$T183,IF(J52=8,Calcs!$U183,0))))))))) -> 0 | K183: =(IF(K52=1,Calcs!$N183,IF(K52=2,Calcs!$O183,IF(K52=3,Calcs!$P183,IF(K52=4,Calcs!$Q183,IF(K52=5,Calcs!$R183,IF(K52=6,Calcs!$S183,IF(K52=7,Calcs!$T183,IF(K52=8,Calcs!$U183,0))))))))) -> 0 | L183: =(IF(L52=1,Calcs!$N183,IF(L52=2,Calcs!$O183,IF(L52=3,Calcs!$P183,IF(L52=4,Calcs!$Q183,IF(L52=5,Calcs!$R183,IF(L52=6,Calcs!$S183,IF(L52=7,Calcs!$T183,IF(L52=8,Calcs!$U183,0))))))))) -> 0 | N183: ='1.Profile'!$E$23+$AB$138 -> 333 | O183: ='1.Profile'!$E$23+$AB$138 -> 333 | P183: ='1.Profile'!$E$23+$AB$138 -> 333 | Q183: ='1.Profile'!$G$23+$AC$138 -> 75 | R183: ='1.Profile'!$F$23+$AB$138 -> 75 | S183: ='1.Profile'!$F$23+$AB$138 -> 75 | T183: ='1.Profile'!$F$23+$AB$138 -> 75 | U183: ='1.Profile'!$H$23+$AD$138 -> 75 | V183: Profile | W183: +boom
A184: 47 | B184: ="Post-E: "&'1.Profile'!C24 -> Post-E: Hussar Plus OD | C184: =(IF(C53=1,Calcs!$N184,IF(C53=2,Calcs!$O184,IF(C53=3,Calcs!$P184,IF(C53=4,Calcs!$Q184,IF(C53=5,Calcs!$R184,IF(C53=6,Calcs!$S184,IF(C53=7,Calcs!$T184,IF(C53=8,Calcs!$U184,0))))))))) -> 163 | D184: =(IF(D53=1,Calcs!$N184,IF(D53=2,Calcs!$O184,IF(D53=3,Calcs!$P184,IF(D53=4,Calcs!$Q184,IF(D53=5,Calcs!$R184,IF(D53=6,Calcs!$S184,IF(D53=7,Calcs!$T184,IF(D53=8,Calcs!$U184,0))))))))) -> 0 | E184: =(IF(E53=1,Calcs!$N184,IF(E53=2,Calcs!$O184,IF(E53=3,Calcs!$P184,IF(E53=4,Calcs!$Q184,IF(E53=5,Calcs!$R184,IF(E53=6,Calcs!$S184,IF(E53=7,Calcs!$T184,IF(E53=8,Calcs!$U184,0))))))))) -> 251 | F184: =(IF(F53=1,Calcs!$N184,IF(F53=2,Calcs!$O184,IF(F53=3,Calcs!$P184,IF(F53=4,Calcs!$Q184,IF(F53=5,Calcs!$R184,IF(F53=6,Calcs!$S184,IF(F53=7,Calcs!$T184,IF(F53=8,Calcs!$U184,0))))))))) -> 0 | G184: =(IF(G53=1,Calcs!$N184,IF(G53=2,Calcs!$O184,IF(G53=3,Calcs!$P184,IF(G53=4,Calcs!$Q184,IF(G53=5,Calcs!$R184,IF(G53=6,Calcs!$S184,IF(G53=7,Calcs!$T184,IF(G53=8,Calcs!$U184,0))))))))) -> 163 | H184: =(IF(H53=1,Calcs!$N184,IF(H53=2,Calcs!$O184,IF(H53=3,Calcs!$P184,IF(H53=4,Calcs!$Q184,IF(H53=5,Calcs!$R184,IF(H53=6,Calcs!$S184,IF(H53=7,Calcs!$T184,IF(H53=8,Calcs!$U184,0))))))))) -> 0 | I184: =(IF(I53=1,Calcs!$N184,IF(I53=2,Calcs!$O184,IF(I53=3,Calcs!$P184,IF(I53=4,Calcs!$Q184,IF(I53=5,Calcs!$R184,IF(I53=6,Calcs!$S184,IF(I53=7,Calcs!$T184,IF(I53=8,Calcs!$U184,0))))))))) -> 251 | J184: =(IF(J53=1,Calcs!$N184,IF(J53=2,Calcs!$O184,IF(J53=3,Calcs!$P184,IF(J53=4,Calcs!$Q184,IF(J53=5,Calcs!$R184,IF(J53=6,Calcs!$S184,IF(J53=7,Calcs!$T184,IF(J53=8,Calcs!$U184,0))))))))) -> 0 | K184: =(IF(K53=1,Calcs!$N184,IF(K53=2,Calcs!$O184,IF(K53=3,Calcs!$P184,IF(K53=4,Calcs!$Q184,IF(K53=5,Calcs!$R184,IF(K53=6,Calcs!$S184,IF(K53=7,Calcs!$T184,IF(K53=8,Calcs!$U184,0))))))))) -> 163 | L184: =(IF(L53=1,Calcs!$N184,IF(L53=2,Calcs!$O184,IF(L53=3,Calcs!$P184,IF(L53=4,Calcs!$Q184,IF(L53=5,Calcs!$R184,IF(L53=6,Calcs!$S184,IF(L53=7,Calcs!$T184,IF(L53=8,Calcs!$U184,0))))))))) -> 0 | N184: ='1.Profile'!$E$24+$AB$138 -> 251 | O184: ='1.Profile'!$E$24+$AB$138 -> 251 | P184: ='1.Profile'!$E$24+$AB$138 -> 251 | Q184: ='1.Profile'!$G$24+$AC$138 -> 75 | R184: ='1.Profile'!$F$24+$AB$138 -> 163 | S184: ='1.Profile'!$F$24+$AB$138 -> 163 | T184: ='1.Profile'!$F$24+$AB$138 -> 163 | U184: ='1.Profile'!$H$24+$AD$138 -> 75 | V184: Profile | W184: +boom
A185: 48 | B185: ="Post-E: "&'1.Profile'!C25 -> Post-E: Broadway | C185: =(IF(C54=1,Calcs!$N185,IF(C54=2,Calcs!$O185,IF(C54=3,Calcs!$P185,IF(C54=4,Calcs!$Q185,IF(C54=5,Calcs!$R185,IF(C54=6,Calcs!$S185,IF(C54=7,Calcs!$T185,IF(C54=8,Calcs!$U185,0))))))))) -> 0 | D185: =(IF(D54=1,Calcs!$N185,IF(D54=2,Calcs!$O185,IF(D54=3,Calcs!$P185,IF(D54=4,Calcs!$Q185,IF(D54=5,Calcs!$R185,IF(D54=6,Calcs!$S185,IF(D54=7,Calcs!$T185,IF(D54=8,Calcs!$U185,0))))))))) -> 0 | E185: =(IF(E54=1,Calcs!$N185,IF(E54=2,Calcs!$O185,IF(E54=3,Calcs!$P185,IF(E54=4,Calcs!$Q185,IF(E54=5,Calcs!$R185,IF(E54=6,Calcs!$S185,IF(E54=7,Calcs!$T185,IF(E54=8,Calcs!$U185,0))))))))) -> 0 | F185: =(IF(F54=1,Calcs!$N185,IF(F54=2,Calcs!$O185,IF(F54=3,Calcs!$P185,IF(F54=4,Calcs!$Q185,IF(F54=5,Calcs!$R185,IF(F54=6,Calcs!$S185,IF(F54=7,Calcs!$T185,IF(F54=8,Calcs!$U185,0))))))))) -> 0 | G185: =(IF(G54=1,Calcs!$N185,IF(G54=2,Calcs!$O185,IF(G54=3,Calcs!$P185,IF(G54=4,Calcs!$Q185,IF(G54=5,Calcs!$R185,IF(G54=6,Calcs!$S185,IF(G54=7,Calcs!$T185,IF(G54=8,Calcs!$U185,0))))))))) -> 0 | H185: =(IF(H54=1,Calcs!$N185,IF(H54=2,Calcs!$O185,IF(H54=3,Calcs!$P185,IF(H54=4,Calcs!$Q185,IF(H54=5,Calcs!$R185,IF(H54=6,Calcs!$S185,IF(H54=7,Calcs!$T185,IF(H54=8,Calcs!$U185,0))))))))) -> 0 | I185: =(IF(I54=1,Calcs!$N185,IF(I54=2,Calcs!$O185,IF(I54=3,Calcs!$P185,IF(I54=4,Calcs!$Q185,IF(I54=5,Calcs!$R185,IF(I54=6,Calcs!$S185,IF(I54=7,Calcs!$T185,IF(I54=8,Calcs!$U185,0))))))))) -> 0 | J185: =(IF(J54=1,Calcs!$N185,IF(J54=2,Calcs!$O185,IF(J54=3,Calcs!$P185,IF(J54=4,Calcs!$Q185,IF(J54=5,Calcs!$R185,IF(J54=6,Calcs!$S185,IF(J54=7,Calcs!$T185,IF(J54=8,Calcs!$U185,0))))))))) -> 0 | K185: =(IF(K54=1,Calcs!$N185,IF(K54=2,Calcs!$O185,IF(K54=3,Calcs!$P185,IF(K54=4,Calcs!$Q185,IF(K54=5,Calcs!$R185,IF(K54=6,Calcs!$S185,IF(K54=7,Calcs!$T185,IF(K54=8,Calcs!$U185,0))))))))) -> 0 | L185: =(IF(L54=1,Calcs!$N185,IF(L54=2,Calcs!$O185,IF(L54=3,Calcs!$P185,IF(L54=4,Calcs!$Q185,IF(L54=5,Calcs!$R185,IF(L54=6,Calcs!$S185,IF(L54=7,Calcs!$T185,IF(L54=8,Calcs!$U185,0))))))))) -> 0 | N185: ='1.Profile'!$E$25+$AB$138 -> 235 | O185: ='1.Profile'!$E$25+$AB$138 -> 235 | P185: ='1.Profile'!$E$25+$AB$138 -> 235 | Q185: ='1.Profile'!$G$25+$AC$138 -> 75 | R185: ='1.Profile'!$F$25+$AB$138 -> 75 | S185: ='1.Profile'!$F$25+$AB$138 -> 75 | T185: ='1.Profile'!$F$25+$AB$138 -> 75 | U185: ='1.Profile'!$H$25+$AD$138 -> 75 | V185: Profile | W185: +boom
A186: 49 | B186: ="Post-E: "&'1.Profile'!C26 -> Post-E: Cossack OD | C186: =(IF(C55=1,Calcs!$N186,IF(C55=2,Calcs!$O186,IF(C55=3,Calcs!$P186,IF(C55=4,Calcs!$Q186,IF(C55=5,Calcs!$R186,IF(C55=6,Calcs!$S186,IF(C55=7,Calcs!$T186,IF(C55=8,Calcs!$U186,0))))))))) -> 0 | D186: =(IF(D55=1,Calcs!$N186,IF(D55=2,Calcs!$O186,IF(D55=3,Calcs!$P186,IF(D55=4,Calcs!$Q186,IF(D55=5,Calcs!$R186,IF(D55=6,Calcs!$S186,IF(D55=7,Calcs!$T186,IF(D55=8,Calcs!$U186,0))))))))) -> 0 | E186: =(IF(E55=1,Calcs!$N186,IF(E55=2,Calcs!$O186,IF(E55=3,Calcs!$P186,IF(E55=4,Calcs!$Q186,IF(E55=5,Calcs!$R186,IF(E55=6,Calcs!$S186,IF(E55=7,Calcs!$T186,IF(E55=8,Calcs!$U186,0))))))))) -> 0 | F186: =(IF(F55=1,Calcs!$N186,IF(F55=2,Calcs!$O186,IF(F55=3,Calcs!$P186,IF(F55=4,Calcs!$Q186,IF(F55=5,Calcs!$R186,IF(F55=6,Calcs!$S186,IF(F55=7,Calcs!$T186,IF(F55=8,Calcs!$U186,0))))))))) -> 0 | G186: =(IF(G55=1,Calcs!$N186,IF(G55=2,Calcs!$O186,IF(G55=3,Calcs!$P186,IF(G55=4,Calcs!$Q186,IF(G55=5,Calcs!$R186,IF(G55=6,Calcs!$S186,IF(G55=7,Calcs!$T186,IF(G55=8,Calcs!$U186,0))))))))) -> 0 | H186: =(IF(H55=1,Calcs!$N186,IF(H55=2,Calcs!$O186,IF(H55=3,Calcs!$P186,IF(H55=4,Calcs!$Q186,IF(H55=5,Calcs!$R186,IF(H55=6,Calcs!$S186,IF(H55=7,Calcs!$T186,IF(H55=8,Calcs!$U186,0))))))))) -> 0 | I186: =(IF(I55=1,Calcs!$N186,IF(I55=2,Calcs!$O186,IF(I55=3,Calcs!$P186,IF(I55=4,Calcs!$Q186,IF(I55=5,Calcs!$R186,IF(I55=6,Calcs!$S186,IF(I55=7,Calcs!$T186,IF(I55=8,Calcs!$U186,0))))))))) -> 0 | J186: =(IF(J55=1,Calcs!$N186,IF(J55=2,Calcs!$O186,IF(J55=3,Calcs!$P186,IF(J55=4,Calcs!$Q186,IF(J55=5,Calcs!$R186,IF(J55=6,Calcs!$S186,IF(J55=7,Calcs!$T186,IF(J55=8,Calcs!$U186,0))))))))) -> 0 | K186: =(IF(K55=1,Calcs!$N186,IF(K55=2,Calcs!$O186,IF(K55=3,Calcs!$P186,IF(K55=4,Calcs!$Q186,IF(K55=5,Calcs!$R186,IF(K55=6,Calcs!$S186,IF(K55=7,Calcs!$T186,IF(K55=8,Calcs!$U186,0))))))))) -> 0 | L186: =(IF(L55=1,Calcs!$N186,IF(L55=2,Calcs!$O186,IF(L55=3,Calcs!$P186,IF(L55=4,Calcs!$Q186,IF(L55=5,Calcs!$R186,IF(L55=6,Calcs!$S186,IF(L55=7,Calcs!$T186,IF(L55=8,Calcs!$U186,0))))))))) -> 0 | N186: ='1.Profile'!$E$26+$AB$138 -> 419 | O186: ='1.Profile'!$E$26+$AB$138 -> 419 | P186: ='1.Profile'!$E$26+$AB$138 -> 419 | Q186: ='1.Profile'!$G$26+$AC$138 -> 75 | R186: ='1.Profile'!$F$26+$AB$138 -> 75 | S186: ='1.Profile'!$F$26+$AB$138 -> 75 | T186: ='1.Profile'!$F$26+$AB$138 -> 75 | U186: ='1.Profile'!$H$26+$AD$138 -> 75 | V186: Profile | W186: +boom
A187: 50 | B187: ="Post-E: "&'1.Profile'!C27 -> Post-E: Focus Ultra | C187: =(IF(C56=1,Calcs!$N187,IF(C56=2,Calcs!$O187,IF(C56=3,Calcs!$P187,IF(C56=4,Calcs!$Q187,IF(C56=5,Calcs!$R187,IF(C56=6,Calcs!$S187,IF(C56=7,Calcs!$T187,IF(C56=8,Calcs!$U187,0))))))))) -> 0 | D187: =(IF(D56=1,Calcs!$N187,IF(D56=2,Calcs!$O187,IF(D56=3,Calcs!$P187,IF(D56=4,Calcs!$Q187,IF(D56=5,Calcs!$R187,IF(D56=6,Calcs!$S187,IF(D56=7,Calcs!$T187,IF(D56=8,Calcs!$U187,0))))))))) -> 0 | E187: =(IF(E56=1,Calcs!$N187,IF(E56=2,Calcs!$O187,IF(E56=3,Calcs!$P187,IF(E56=4,Calcs!$Q187,IF(E56=5,Calcs!$R187,IF(E56=6,Calcs!$S187,IF(E56=7,Calcs!$T187,IF(E56=8,Calcs!$U187,0))))))))) -> 0 | F187: =(IF(F56=1,Calcs!$N187,IF(F56=2,Calcs!$O187,IF(F56=3,Calcs!$P187,IF(F56=4,Calcs!$Q187,IF(F56=5,Calcs!$R187,IF(F56=6,Calcs!$S187,IF(F56=7,Calcs!$T187,IF(F56=8,Calcs!$U187,0))))))))) -> 0 | G187: =(IF(G56=1,Calcs!$N187,IF(G56=2,Calcs!$O187,IF(G56=3,Calcs!$P187,IF(G56=4,Calcs!$Q187,IF(G56=5,Calcs!$R187,IF(G56=6,Calcs!$S187,IF(G56=7,Calcs!$T187,IF(G56=8,Calcs!$U187,0))))))))) -> 0 | H187: =(IF(H56=1,Calcs!$N187,IF(H56=2,Calcs!$O187,IF(H56=3,Calcs!$P187,IF(H56=4,Calcs!$Q187,IF(H56=5,Calcs!$R187,IF(H56=6,Calcs!$S187,IF(H56=7,Calcs!$T187,IF(H56=8,Calcs!$U187,0))))))))) -> 0 | I187: =(IF(I56=1,Calcs!$N187,IF(I56=2,Calcs!$O187,IF(I56=3,Calcs!$P187,IF(I56=4,Calcs!$Q187,IF(I56=5,Calcs!$R187,IF(I56=6,Calcs!$S187,IF(I56=7,Calcs!$T187,IF(I56=8,Calcs!$U187,0))))))))) -> 0 | J187: =(IF(J56=1,Calcs!$N187,IF(J56=2,Calcs!$O187,IF(J56=3,Calcs!$P187,IF(J56=4,Calcs!$Q187,IF(J56=5,Calcs!$R187,IF(J56=6,Calcs!$S187,IF(J56=7,Calcs!$T187,IF(J56=8,Calcs!$U187,0))))))))) -> 0 | K187: =(IF(K56=1,Calcs!$N187,IF(K56=2,Calcs!$O187,IF(K56=3,Calcs!$P187,IF(K56=4,Calcs!$Q187,IF(K56=5,Calcs!$R187,IF(K56=6,Calcs!$S187,IF(K56=7,Calcs!$T187,IF(K56=8,Calcs!$U187,0))))))))) -> 0 | L187: =(IF(L56=1,Calcs!$N187,IF(L56=2,Calcs!$O187,IF(L56=3,Calcs!$P187,IF(L56=4,Calcs!$Q187,IF(L56=5,Calcs!$R187,IF(L56=6,Calcs!$S187,IF(L56=7,Calcs!$T187,IF(L56=8,Calcs!$U187,0))))))))) -> 0 | N187: ='1.Profile'!$E$27+$AB$138 -> 75 | O187: ='1.Profile'!$E$27+$AB$138 -> 75 | P187: ='1.Profile'!$E$27+$AB$138 -> 75 | Q187: ='1.Profile'!$G$27+$AC$138 -> 345 | R187: ='1.Profile'!$F$27+$AB$138 -> 75 | S187: ='1.Profile'!$F$27+$AB$138 -> 75 | T187: ='1.Profile'!$F$27+$AB$138 -> 75 | U187: ='1.Profile'!$H$27+$AD$138 -> 435 | V187: Profile | W187: +boom
A188: 51 | B188: ="Post-E: "&'1.Profile'!C28 -> Post-E: Kerb | C188: =(IF(C57=1,Calcs!$N188,IF(C57=2,Calcs!$O188,IF(C57=3,Calcs!$P188,IF(C57=4,Calcs!$Q188,IF(C57=5,Calcs!$R188,IF(C57=6,Calcs!$S188,IF(C57=7,Calcs!$T188,IF(C57=8,Calcs!$U188,0))))))))) -> 0 | D188: =(IF(D57=1,Calcs!$N188,IF(D57=2,Calcs!$O188,IF(D57=3,Calcs!$P188,IF(D57=4,Calcs!$Q188,IF(D57=5,Calcs!$R188,IF(D57=6,Calcs!$S188,IF(D57=7,Calcs!$T188,IF(D57=8,Calcs!$U188,0))))))))) -> 0 | E188: =(IF(E57=1,Calcs!$N188,IF(E57=2,Calcs!$O188,IF(E57=3,Calcs!$P188,IF(E57=4,Calcs!$Q188,IF(E57=5,Calcs!$R188,IF(E57=6,Calcs!$S188,IF(E57=7,Calcs!$T188,IF(E57=8,Calcs!$U188,0))))))))) -> 0 | F188: =(IF(F57=1,Calcs!$N188,IF(F57=2,Calcs!$O188,IF(F57=3,Calcs!$P188,IF(F57=4,Calcs!$Q188,IF(F57=5,Calcs!$R188,IF(F57=6,Calcs!$S188,IF(F57=7,Calcs!$T188,IF(F57=8,Calcs!$U188,0))))))))) -> 0 | G188: =(IF(G57=1,Calcs!$N188,IF(G57=2,Calcs!$O188,IF(G57=3,Calcs!$P188,IF(G57=4,Calcs!$Q188,IF(G57=5,Calcs!$R188,IF(G57=6,Calcs!$S188,IF(G57=7,Calcs!$T188,IF(G57=8,Calcs!$U188,0))))))))) -> 0 | H188: =(IF(H57=1,Calcs!$N188,IF(H57=2,Calcs!$O188,IF(H57=3,Calcs!$P188,IF(H57=4,Calcs!$Q188,IF(H57=5,Calcs!$R188,IF(H57=6,Calcs!$S188,IF(H57=7,Calcs!$T188,IF(H57=8,Calcs!$U188,0))))))))) -> 0 | I188: =(IF(I57=1,Calcs!$N188,IF(I57=2,Calcs!$O188,IF(I57=3,Calcs!$P188,IF(I57=4,Calcs!$Q188,IF(I57=5,Calcs!$R188,IF(I57=6,Calcs!$S188,IF(I57=7,Calcs!$T188,IF(I57=8,Calcs!$U188,0))))))))) -> 0 | J188: =(IF(J57=1,Calcs!$N188,IF(J57=2,Calcs!$O188,IF(J57=3,Calcs!$P188,IF(J57=4,Calcs!$Q188,IF(J57=5,Calcs!$R188,IF(J57=6,Calcs!$S188,IF(J57=7,Calcs!$T188,IF(J57=8,Calcs!$U188,0))))))))) -> 0 | K188: =(IF(K57=1,Calcs!$N188,IF(K57=2,Calcs!$O188,IF(K57=3,Calcs!$P188,IF(K57=4,Calcs!$Q188,IF(K57=5,Calcs!$R188,IF(K57=6,Calcs!$S188,IF(K57=7,Calcs!$T188,IF(K57=8,Calcs!$U188,0))))))))) -> 0 | L188: =(IF(L57=1,Calcs!$N188,IF(L57=2,Calcs!$O188,IF(L57=3,Calcs!$P188,IF(L57=4,Calcs!$Q188,IF(L57=5,Calcs!$R188,IF(L57=6,Calcs!$S188,IF(L57=7,Calcs!$T188,IF(L57=8,Calcs!$U188,0))))))))) -> 0 | N188: ='1.Profile'!$E$28+$AB$138 -> 75 | O188: ='1.Profile'!$E$28+$AB$138 -> 75 | P188: ='1.Profile'!$E$28+$AB$138 -> 75 | Q188: ='1.Profile'!$G$28+$AC$138 -> 469 | R188: ='1.Profile'!$F$28+$AB$138 -> 75 | S188: ='1.Profile'!$F$28+$AB$138 -> 75 | T188: ='1.Profile'!$F$28+$AB$138 -> 75 | U188: ='1.Profile'!$H$28+$AD$138 -> 75 | V188: Profile | W188: +boom
A189: 52 | B189: Summer option: None | C189: =IF(C58=1,Calcs!$N$189,IF(C58=2,Calcs!$O$189,IF(C58=3,Calcs!$P$189,IF(C58=4,Calcs!$Q$189,IF(C58=5,Calcs!$R$189,IF(C58=6,Calcs!$S$189,IF(C58=7,Calcs!$T$189,IF(C58=8,Calcs!$U$189,0)))))))) -> 0 | D189: =IF(D58=1,Calcs!$N$189,IF(D58=2,Calcs!$O$189,IF(D58=3,Calcs!$P$189,IF(D58=4,Calcs!$Q$189,IF(D58=5,Calcs!$R$189,IF(D58=6,Calcs!$S$189,IF(D58=7,Calcs!$T$189,IF(D58=8,Calcs!$U$189,0)))))))) -> 0 | E189: =IF(E58=1,Calcs!$N$189,IF(E58=2,Calcs!$O$189,IF(E58=3,Calcs!$P$189,IF(E58=4,Calcs!$Q$189,IF(E58=5,Calcs!$R$189,IF(E58=6,Calcs!$S$189,IF(E58=7,Calcs!$T$189,IF(E58=8,Calcs!$U$189,0)))))))) -> 0 | F189: =IF(F58=1,Calcs!$N$189,IF(F58=2,Calcs!$O$189,IF(F58=3,Calcs!$P$189,IF(F58=4,Calcs!$Q$189,IF(F58=5,Calcs!$R$189,IF(F58=6,Calcs!$S$189,IF(F58=7,Calcs!$T$189,IF(F58=8,Calcs!$U$189,0)))))))) -> 0 | G189: =IF(G58=1,Calcs!$N$189,IF(G58=2,Calcs!$O$189,IF(G58=3,Calcs!$P$189,IF(G58=4,Calcs!$Q$189,IF(G58=5,Calcs!$R$189,IF(G58=6,Calcs!$S$189,IF(G58=7,Calcs!$T$189,IF(G58=8,Calcs!$U$189,0)))))))) -> 0 | H189: =IF(H58=1,Calcs!$N$189,IF(H58=2,Calcs!$O$189,IF(H58=3,Calcs!$P$189,IF(H58=4,Calcs!$Q$189,IF(H58=5,Calcs!$R$189,IF(H58=6,Calcs!$S$189,IF(H58=7,Calcs!$T$189,IF(H58=8,Calcs!$U$189,0)))))))) -> 0 | I189: =IF(I58=1,Calcs!$N$189,IF(I58=2,Calcs!$O$189,IF(I58=3,Calcs!$P$189,IF(I58=4,Calcs!$Q$189,IF(I58=5,Calcs!$R$189,IF(I58=6,Calcs!$S$189,IF(I58=7,Calcs!$T$189,IF(I58=8,Calcs!$U$189,0)))))))) -> 0 | J189: =IF(J58=1,Calcs!$N$189,IF(J58=2,Calcs!$O$189,IF(J58=3,Calcs!$P$189,IF(J58=4,Calcs!$Q$189,IF(J58=5,Calcs!$R$189,IF(J58=6,Calcs!$S$189,IF(J58=7,Calcs!$T$189,IF(J58=8,Calcs!$U$189,0)))))))) -> 0 | K189: =IF(K58=1,Calcs!$N$189,IF(K58=2,Calcs!$O$189,IF(K58=3,Calcs!$P$189,IF(K58=4,Calcs!$Q$189,IF(K58=5,Calcs!$R$189,IF(K58=6,Calcs!$S$189,IF(K58=7,Calcs!$T$189,IF(K58=8,Calcs!$U$189,0)))))))) -> 0 | L189: =IF(L58=1,Calcs!$N$189,IF(L58=2,Calcs!$O$189,IF(L58=3,Calcs!$P$189,IF(L58=4,Calcs!$Q$189,IF(L58=5,Calcs!$R$189,IF(L58=6,Calcs!$S$189,IF(L58=7,Calcs!$T$189,IF(L58=8,Calcs!$U$189,0)))))))) -> 0 | N189: 0 | O189: 0 | P189: 0 | Q189: 0 | R189: 0 | S189: 0 | T189: 0 | U189: 0
A190: 53 | B190: Summer option: dessication | C190: =IF(C59=1,Calcs!$N$190,IF(C59=2,Calcs!$O$190,IF(C59=3,Calcs!$P$190,IF(C59=4,Calcs!$Q$190,IF(C59=5,Calcs!$R$190,IF(C59=6,Calcs!$S$190,IF(C59=7,Calcs!$T$190,IF(C59=8,Calcs!$U$190,0)))))))) -> 0 | D190: =IF(D59=1,Calcs!$N$190,IF(D59=2,Calcs!$O$190,IF(D59=3,Calcs!$P$190,IF(D59=4,Calcs!$Q$190,IF(D59=5,Calcs!$R$190,IF(D59=6,Calcs!$S$190,IF(D59=7,Calcs!$T$190,IF(D59=8,Calcs!$U$190,0)))))))) -> 0 | E190: =IF(E59=1,Calcs!$N$190,IF(E59=2,Calcs!$O$190,IF(E59=3,Calcs!$P$190,IF(E59=4,Calcs!$Q$190,IF(E59=5,Calcs!$R$190,IF(E59=6,Calcs!$S$190,IF(E59=7,Calcs!$T$190,IF(E59=8,Calcs!$U$190,0)))))))) -> 0 | F190: =IF(F59=1,Calcs!$N$190,IF(F59=2,Calcs!$O$190,IF(F59=3,Calcs!$P$190,IF(F59=4,Calcs!$Q$190,IF(F59=5,Calcs!$R$190,IF(F59=6,Calcs!$S$190,IF(F59=7,Calcs!$T$190,IF(F59=8,Calcs!$U$190,0)))))))) -> 0 | G190: =IF(G59=1,Calcs!$N$190,IF(G59=2,Calcs!$O$190,IF(G59=3,Calcs!$P$190,IF(G59=4,Calcs!$Q$190,IF(G59=5,Calcs!$R$190,IF(G59=6,Calcs!$S$190,IF(G59=7,Calcs!$T$190,IF(G59=8,Calcs!$U$190,0)))))))) -> 0 | H190: =IF(H59=1,Calcs!$N$190,IF(H59=2,Calcs!$O$190,IF(H59=3,Calcs!$P$190,IF(H59=4,Calcs!$Q$190,IF(H59=5,Calcs!$R$190,IF(H59=6,Calcs!$S$190,IF(H59=7,Calcs!$T$190,IF(H59=8,Calcs!$U$190,0)))))))) -> 0 | I190: =IF(I59=1,Calcs!$N$190,IF(I59=2,Calcs!$O$190,IF(I59=3,Calcs!$P$190,IF(I59=4,Calcs!$Q$190,IF(I59=5,Calcs!$R$190,IF(I59=6,Calcs!$S$190,IF(I59=7,Calcs!$T$190,IF(I59=8,Calcs!$U$190,0)))))))) -> 0 | J190: =IF(J59=1,Calcs!$N$190,IF(J59=2,Calcs!$O$190,IF(J59=3,Calcs!$P$190,IF(J59=4,Calcs!$Q$190,IF(J59=5,Calcs!$R$190,IF(J59=6,Calcs!$S$190,IF(J59=7,Calcs!$T$190,IF(J59=8,Calcs!$U$190,0)))))))) -> 0 | K190: =IF(K59=1,Calcs!$N$190,IF(K59=2,Calcs!$O$190,IF(K59=3,Calcs!$P$190,IF(K59=4,Calcs!$Q$190,IF(K59=5,Calcs!$R$190,IF(K59=6,Calcs!$S$190,IF(K59=7,Calcs!$T$190,IF(K59=8,Calcs!$U$190,0)))))))) -> 0 | L190: =IF(L59=1,Calcs!$N$190,IF(L59=2,Calcs!$O$190,IF(L59=3,Calcs!$P$190,IF(L59=4,Calcs!$Q$190,IF(L59=5,Calcs!$R$190,IF(L59=6,Calcs!$S$190,IF(L59=7,Calcs!$T$190,IF(L59=8,Calcs!$U$190,0)))))))) -> 0 | N190: ='1.Profile'!$E$17 -> 150 | O190: ='1.Profile'!$E$17 -> 150 | P190: ='1.Profile'!$E$17 -> 150 | Q190: 28 | R190: ='1.Profile'!$F$17 -> 150 | S190: ='1.Profile'!$F$17 -> 150 | T190: ='1.Profile'!$F$17 -> 150 | U190: 28 | V190: Det skal besluttes hvordan doses medtages
A191: 54 | B191: Summer option: crop sacrifies | D191: Conditions are inluded in eco results for grain gross receipts
A192: 55 | B192: ="Summer option: "&'1.Profile'!C32 -> Summer option: Mulighed 1 | C192: =IF(C61=1,Calcs!$N$192,IF(C61=2,Calcs!$O$192,IF(C61=3,Calcs!$P$192,IF(C61=4,Calcs!$Q$192,IF(C61=5,Calcs!$R$192,IF(C61=6,Calcs!$S$192,IF(C61=7,Calcs!$T$192,IF(C61=8,Calcs!$U$192,0)))))))) -> 0 | D192: =IF(D61=1,Calcs!$N$192,IF(D61=2,Calcs!$O$192,IF(D61=3,Calcs!$P$192,IF(D61=4,Calcs!$Q$192,IF(D61=5,Calcs!$R$192,IF(D61=6,Calcs!$S$192,IF(D61=7,Calcs!$T$192,IF(D61=8,Calcs!$U$192,0)))))))) -> 0 | E192: =IF(E61=1,Calcs!$N$192,IF(E61=2,Calcs!$O$192,IF(E61=3,Calcs!$P$192,IF(E61=4,Calcs!$Q$192,IF(E61=5,Calcs!$R$192,IF(E61=6,Calcs!$S$192,IF(E61=7,Calcs!$T$192,IF(E61=8,Calcs!$U$192,0)))))))) -> 0 | F192: =IF(F61=1,Calcs!$N$192,IF(F61=2,Calcs!$O$192,IF(F61=3,Calcs!$P$192,IF(F61=4,Calcs!$Q$192,IF(F61=5,Calcs!$R$192,IF(F61=6,Calcs!$S$192,IF(F61=7,Calcs!$T$192,IF(F61=8,Calcs!$U$192,0)))))))) -> 0 | G192: =IF(G61=1,Calcs!$N$192,IF(G61=2,Calcs!$O$192,IF(G61=3,Calcs!$P$192,IF(G61=4,Calcs!$Q$192,IF(G61=5,Calcs!$R$192,IF(G61=6,Calcs!$S$192,IF(G61=7,Calcs!$T$192,IF(G61=8,Calcs!$U$192,0)))))))) -> 0 | H192: =IF(H61=1,Calcs!$N$192,IF(H61=2,Calcs!$O$192,IF(H61=3,Calcs!$P$192,IF(H61=4,Calcs!$Q$192,IF(H61=5,Calcs!$R$192,IF(H61=6,Calcs!$S$192,IF(H61=7,Calcs!$T$192,IF(H61=8,Calcs!$U$192,0)))))))) -> 0 | I192: =IF(I61=1,Calcs!$N$192,IF(I61=2,Calcs!$O$192,IF(I61=3,Calcs!$P$192,IF(I61=4,Calcs!$Q$192,IF(I61=5,Calcs!$R$192,IF(I61=6,Calcs!$S$192,IF(I61=7,Calcs!$T$192,IF(I61=8,Calcs!$U$192,0)))))))) -> 0 | J192: =IF(J61=1,Calcs!$N$192,IF(J61=2,Calcs!$O$192,IF(J61=3,Calcs!$P$192,IF(J61=4,Calcs!$Q$192,IF(J61=5,Calcs!$R$192,IF(J61=6,Calcs!$S$192,IF(J61=7,Calcs!$T$192,IF(J61=8,Calcs!$U$192,0)))))))) -> 0 | K192: =IF(K61=1,Calcs!$N$192,IF(K61=2,Calcs!$O$192,IF(K61=3,Calcs!$P$192,IF(K61=4,Calcs!$Q$192,IF(K61=5,Calcs!$R$192,IF(K61=6,Calcs!$S$192,IF(K61=7,Calcs!$T$192,IF(K61=8,Calcs!$U$192,0)))))))) -> 0 | L192: =IF(L61=1,Calcs!$N$192,IF(L61=2,Calcs!$O$192,IF(L61=3,Calcs!$P$192,IF(L61=4,Calcs!$Q$192,IF(L61=5,Calcs!$R$192,IF(L61=6,Calcs!$S$192,IF(L61=7,Calcs!$T$192,IF(L61=8,Calcs!$U$192,0)))))))) -> 0 | N192: ='1.Profile'!E32 -> 0 | O192: ='1.Profile'!E32 -> 0 | P192: ='1.Profile'!E32 -> 0 | Q192: ='1.Profile'!G32 -> 0 | R192: ='1.Profile'!F32 -> 0 | S192: ='1.Profile'!F32 -> 0 | T192: ='1.Profile'!F32 -> 0 | U192: ='1.Profile'!H32 -> 0
A193: 56 | B193: ="Summer option: "&'1.Profile'!C33 -> Summer option: Mulighed 2 | C193: =IF(C62=1,Calcs!$N$193,IF(C62=2,Calcs!$O$193,IF(C62=3,Calcs!$P$193,IF(C62=4,Calcs!$Q$193,IF(C62=5,Calcs!$R$193,IF(C62=6,Calcs!$S$193,IF(C62=7,Calcs!$T$193,IF(C62=8,Calcs!$U$193,0)))))))) -> 0 | D193: =IF(D62=1,Calcs!$N$193,IF(D62=2,Calcs!$O$193,IF(D62=3,Calcs!$P$193,IF(D62=4,Calcs!$Q$193,IF(D62=5,Calcs!$R$193,IF(D62=6,Calcs!$S$193,IF(D62=7,Calcs!$T$193,IF(D62=8,Calcs!$U$193,0)))))))) -> 0 | E193: =IF(E62=1,Calcs!$N$193,IF(E62=2,Calcs!$O$193,IF(E62=3,Calcs!$P$193,IF(E62=4,Calcs!$Q$193,IF(E62=5,Calcs!$R$193,IF(E62=6,Calcs!$S$193,IF(E62=7,Calcs!$T$193,IF(E62=8,Calcs!$U$193,0)))))))) -> 0 | F193: =IF(F62=1,Calcs!$N$193,IF(F62=2,Calcs!$O$193,IF(F62=3,Calcs!$P$193,IF(F62=4,Calcs!$Q$193,IF(F62=5,Calcs!$R$193,IF(F62=6,Calcs!$S$193,IF(F62=7,Calcs!$T$193,IF(F62=8,Calcs!$U$193,0)))))))) -> 0 | G193: =IF(G62=1,Calcs!$N$193,IF(G62=2,Calcs!$O$193,IF(G62=3,Calcs!$P$193,IF(G62=4,Calcs!$Q$193,IF(G62=5,Calcs!$R$193,IF(G62=6,Calcs!$S$193,IF(G62=7,Calcs!$T$193,IF(G62=8,Calcs!$U$193,0)))))))) -> 0 | H193: =IF(H62=1,Calcs!$N$193,IF(H62=2,Calcs!$O$193,IF(H62=3,Calcs!$P$193,IF(H62=4,Calcs!$Q$193,IF(H62=5,Calcs!$R$193,IF(H62=6,Calcs!$S$193,IF(H62=7,Calcs!$T$193,IF(H62=8,Calcs!$U$193,0)))))))) -> 0 | I193: =IF(I62=1,Calcs!$N$193,IF(I62=2,Calcs!$O$193,IF(I62=3,Calcs!$P$193,IF(I62=4,Calcs!$Q$193,IF(I62=5,Calcs!$R$193,IF(I62=6,Calcs!$S$193,IF(I62=7,Calcs!$T$193,IF(I62=8,Calcs!$U$193,0)))))))) -> 0 | J193: =IF(J62=1,Calcs!$N$193,IF(J62=2,Calcs!$O$193,IF(J62=3,Calcs!$P$193,IF(J62=4,Calcs!$Q$193,IF(J62=5,Calcs!$R$193,IF(J62=6,Calcs!$S$193,IF(J62=7,Calcs!$T$193,IF(J62=8,Calcs!$U$193,0)))))))) -> 0 | K193: =IF(K62=1,Calcs!$N$193,IF(K62=2,Calcs!$O$193,IF(K62=3,Calcs!$P$193,IF(K62=4,Calcs!$Q$193,IF(K62=5,Calcs!$R$193,IF(K62=6,Calcs!$S$193,IF(K62=7,Calcs!$T$193,IF(K62=8,Calcs!$U$193,0)))))))) -> 0 | L193: =IF(L62=1,Calcs!$N$193,IF(L62=2,Calcs!$O$193,IF(L62=3,Calcs!$P$193,IF(L62=4,Calcs!$Q$193,IF(L62=5,Calcs!$R$193,IF(L62=6,Calcs!$S$193,IF(L62=7,Calcs!$T$193,IF(L62=8,Calcs!$U$193,0)))))))) -> 0 | N193: ='1.Profile'!E33 -> 0 | O193: ='1.Profile'!E33 -> 0 | P193: ='1.Profile'!E33 -> 0 | Q193: ='1.Profile'!G33 -> 0 | R193: ='1.Profile'!F33 -> 0 | S193: ='1.Profile'!F33 -> 0 | T193: ='1.Profile'!F33 -> 0 | U193: ='1.Profile'!H33 -> 0
A194: 57 | B194: Harvester with bale presser | C194: =IF(C63=1,Calcs!$N$194,IF(C63=2,Calcs!$O$194,IF(C63=3,Calcs!$P$194,IF(C63=5,Calcs!$R$194,IF(C63=6,Calcs!$S$194,IF(C63=7,Calcs!$T$194,0)))))) -> 0 | D194: =IF(D63=1,Calcs!$N$194,IF(D63=2,Calcs!$O$194,IF(D63=3,Calcs!$P$194,IF(D63=5,Calcs!$R$194,IF(D63=6,Calcs!$S$194,IF(D63=7,Calcs!$T$194,0)))))) -> 0 | E194: =IF(E63=1,Calcs!$N$194,IF(E63=2,Calcs!$O$194,IF(E63=3,Calcs!$P$194,IF(E63=5,Calcs!$R$194,IF(E63=6,Calcs!$S$194,IF(E63=7,Calcs!$T$194,0)))))) -> 0 | F194: =IF(F63=1,Calcs!$N$194,IF(F63=2,Calcs!$O$194,IF(F63=3,Calcs!$P$194,IF(F63=5,Calcs!$R$194,IF(F63=6,Calcs!$S$194,IF(F63=7,Calcs!$T$194,0)))))) -> 0 | G194: =IF(G63=1,Calcs!$N$194,IF(G63=2,Calcs!$O$194,IF(G63=3,Calcs!$P$194,IF(G63=5,Calcs!$R$194,IF(G63=6,Calcs!$S$194,IF(G63=7,Calcs!$T$194,0)))))) -> 0 | H194: =IF(H63=1,Calcs!$N$194,IF(H63=2,Calcs!$O$194,IF(H63=3,Calcs!$P$194,IF(H63=5,Calcs!$R$194,IF(H63=6,Calcs!$S$194,IF(H63=7,Calcs!$T$194,0)))))) -> 0 | I194: =IF(I63=1,Calcs!$N$194,IF(I63=2,Calcs!$O$194,IF(I63=3,Calcs!$P$194,IF(I63=5,Calcs!$R$194,IF(I63=6,Calcs!$S$194,IF(I63=7,Calcs!$T$194,0)))))) -> 0 | J194: =IF(J63=1,Calcs!$N$194,IF(J63=2,Calcs!$O$194,IF(J63=3,Calcs!$P$194,IF(J63=5,Calcs!$R$194,IF(J63=6,Calcs!$S$194,IF(J63=7,Calcs!$T$194,0)))))) -> 0 | K194: =IF(K63=1,Calcs!$N$194,IF(K63=2,Calcs!$O$194,IF(K63=3,Calcs!$P$194,IF(K63=5,Calcs!$R$194,IF(K63=6,Calcs!$S$194,IF(K63=7,Calcs!$T$194,0)))))) -> 0 | L194: =IF(L63=1,Calcs!$N$194,IF(L63=2,Calcs!$O$194,IF(L63=3,Calcs!$P$194,IF(L63=5,Calcs!$R$194,IF(L63=6,Calcs!$S$194,IF(L63=7,Calcs!$T$194,0)))))) -> 0 | N194: ='+Prices'!$AJ$70 -> 1200 | O194: ='+Prices'!$AJ$70 -> 1200 | P194: ='+Prices'!$AJ$70 -> 1200 | R194: ='+Prices'!$AJ$70 -> 1200 | S194: ='+Prices'!$AJ$70 -> 1200 | T194: ='+Prices'!$AJ$70 -> 1200
A195: 58 | B195: Harvester with chopping of straws | C195: =IF(C64=1,Calcs!$N$195,IF(C64=2,Calcs!$O$195,IF(C64=3,Calcs!$P$195,IF(C64=5,Calcs!$R$195,IF(C64=6,Calcs!$S$195,IF(C64=7,Calcs!$T$195,0)))))) -> 1125 | D195: =IF(D64=1,Calcs!$N$195,IF(D64=2,Calcs!$O$195,IF(D64=3,Calcs!$P$195,IF(D64=5,Calcs!$R$195,IF(D64=6,Calcs!$S$195,IF(D64=7,Calcs!$T$195,0)))))) -> 0 | E195: =IF(E64=1,Calcs!$N$195,IF(E64=2,Calcs!$O$195,IF(E64=3,Calcs!$P$195,IF(E64=5,Calcs!$R$195,IF(E64=6,Calcs!$S$195,IF(E64=7,Calcs!$T$195,0)))))) -> 1125 | F195: =IF(F64=1,Calcs!$N$195,IF(F64=2,Calcs!$O$195,IF(F64=3,Calcs!$P$195,IF(F64=5,Calcs!$R$195,IF(F64=6,Calcs!$S$195,IF(F64=7,Calcs!$T$195,0)))))) -> 1125 | G195: =IF(G64=1,Calcs!$N$195,IF(G64=2,Calcs!$O$195,IF(G64=3,Calcs!$P$195,IF(G64=5,Calcs!$R$195,IF(G64=6,Calcs!$S$195,IF(G64=7,Calcs!$T$195,0)))))) -> 1125 | H195: =IF(H64=1,Calcs!$N$195,IF(H64=2,Calcs!$O$195,IF(H64=3,Calcs!$P$195,IF(H64=5,Calcs!$R$195,IF(H64=6,Calcs!$S$195,IF(H64=7,Calcs!$T$195,0)))))) -> 0 | I195: =IF(I64=1,Calcs!$N$195,IF(I64=2,Calcs!$O$195,IF(I64=3,Calcs!$P$195,IF(I64=5,Calcs!$R$195,IF(I64=6,Calcs!$S$195,IF(I64=7,Calcs!$T$195,0)))))) -> 1125 | J195: =IF(J64=1,Calcs!$N$195,IF(J64=2,Calcs!$O$195,IF(J64=3,Calcs!$P$195,IF(J64=5,Calcs!$R$195,IF(J64=6,Calcs!$S$195,IF(J64=7,Calcs!$T$195,0)))))) -> 1125 | K195: =IF(K64=1,Calcs!$N$195,IF(K64=2,Calcs!$O$195,IF(K64=3,Calcs!$P$195,IF(K64=5,Calcs!$R$195,IF(K64=6,Calcs!$S$195,IF(K64=7,Calcs!$T$195,0)))))) -> 1125 | L195: =IF(L64=1,Calcs!$N$195,IF(L64=2,Calcs!$O$195,IF(L64=3,Calcs!$P$195,IF(L64=5,Calcs!$R$195,IF(L64=6,Calcs!$S$195,IF(L64=7,Calcs!$T$195,0)))))) -> 0 | N195: ='+Prices'!$AJ$71 -> 1125 | O195: ='+Prices'!$AJ$71 -> 1125 | P195: ='+Prices'!$AJ$71 -> 1125 | R195: ='+Prices'!$AJ$71 -> 1125 | S195: ='+Prices'!$AJ$71 -> 1125 | T195: ='+Prices'!$AJ$71 -> 1125
A196: 59 | B196: Oilseed rape, harvest | C196: =IF(C65=4,Calcs!$Q$196,0) -> 0 | D196: =IF(D65=4,Calcs!$Q$196,0) -> 850 | E196: =IF(E65=4,Calcs!$Q$196,0) -> 0 | F196: =IF(F65=4,Calcs!$Q$196,0) -> 0 | G196: =IF(G65=4,Calcs!$Q$196,0) -> 0 | H196: =IF(H65=4,Calcs!$Q$196,0) -> 850 | I196: =IF(I65=4,Calcs!$Q$196,0) -> 0 | J196: =IF(J65=4,Calcs!$Q$196,0) -> 0 | K196: =IF(K65=4,Calcs!$Q$196,0) -> 0 | L196: =IF(L65=4,Calcs!$Q$196,0) -> 850 | Q196: ='+Prices'!$AJ$72 -> 850
A197: 60 | B197: Oilseed rape, harvest, with swathing | C197: =IF(C66=4,Calcs!$Q$197,0) -> 0 | D197: =IF(D66=4,Calcs!$Q$197,0) -> 0 | E197: =IF(E66=4,Calcs!$Q$197,0) -> 0 | F197: =IF(F66=4,Calcs!$Q$197,0) -> 0 | G197: =IF(G66=4,Calcs!$Q$197,0) -> 0 | H197: =IF(H66=4,Calcs!$Q$197,0) -> 0 | I197: =IF(I66=4,Calcs!$Q$197,0) -> 0 | J197: =IF(J66=4,Calcs!$Q$197,0) -> 0 | K197: =IF(K66=4,Calcs!$Q$197,0) -> 0 | L197: =IF(L66=4,Calcs!$Q$197,0) -> 0 | Q197: ='+Prices'!$AJ$73 -> 1350
A198: 61 | B198: Legumes, harvest with chopping | C198: =IF(C67=8,Calcs!$U$198,0) -> 0 | D198: =IF(D67=8,Calcs!$U$198,0) -> 0 | E198: =IF(E67=8,Calcs!$U$198,0) -> 0 | F198: =IF(F67=8,Calcs!$U$198,0) -> 0 | G198: =IF(G67=8,Calcs!$U$198,0) -> 0 | H198: =IF(H67=8,Calcs!$U$198,0) -> 0 | I198: =IF(I67=8,Calcs!$U$198,0) -> 0 | J198: =IF(J67=8,Calcs!$U$198,0) -> 0 | K198: =IF(K67=8,Calcs!$U$198,0) -> 0 | L198: =IF(L67=8,Calcs!$U$198,0) -> 0 | U198: ='+Prices'!$AJ$74 -> 1300
B199: Seed Catching | C199: =IF(C68=1,Calcs!$N$199,IF(C68=2,Calcs!$O$199,IF(C68=3,Calcs!$P$199,IF(C68=4,Calcs!$Q$199,IF(C68=5,Calcs!$R$199,IF(C68=6,Calcs!$S$199,IF(C68=7,Calcs!$T$199,IF(C68=8,Calcs!$U$199,0)))))))) -> 0 | D199: =IF(D68=1,Calcs!$N$199,IF(D68=2,Calcs!$O$199,IF(D68=3,Calcs!$P$199,IF(D68=4,Calcs!$Q$199,IF(D68=5,Calcs!$R$199,IF(D68=6,Calcs!$S$199,IF(D68=7,Calcs!$T$199,IF(D68=8,Calcs!$U$199,0)))))))) -> 0 | E199: =IF(E68=1,Calcs!$N$199,IF(E68=2,Calcs!$O$199,IF(E68=3,Calcs!$P$199,IF(E68=4,Calcs!$Q$199,IF(E68=5,Calcs!$R$199,IF(E68=6,Calcs!$S$199,IF(E68=7,Calcs!$T$199,IF(E68=8,Calcs!$U$199,0)))))))) -> 0 | F199: =IF(F68=1,Calcs!$N$199,IF(F68=2,Calcs!$O$199,IF(F68=3,Calcs!$P$199,IF(F68=4,Calcs!$Q$199,IF(F68=5,Calcs!$R$199,IF(F68=6,Calcs!$S$199,IF(F68=7,Calcs!$T$199,IF(F68=8,Calcs!$U$199,0)))))))) -> 0 | G199: =IF(G68=1,Calcs!$N$199,IF(G68=2,Calcs!$O$199,IF(G68=3,Calcs!$P$199,IF(G68=4,Calcs!$Q$199,IF(G68=5,Calcs!$R$199,IF(G68=6,Calcs!$S$199,IF(G68=7,Calcs!$T$199,IF(G68=8,Calcs!$U$199,0)))))))) -> 0 | H199: =IF(H68=1,Calcs!$N$199,IF(H68=2,Calcs!$O$199,IF(H68=3,Calcs!$P$199,IF(H68=4,Calcs!$Q$199,IF(H68=5,Calcs!$R$199,IF(H68=6,Calcs!$S$199,IF(H68=7,Calcs!$T$199,IF(H68=8,Calcs!$U$199,0)))))))) -> 0 | I199: =IF(I68=1,Calcs!$N$199,IF(I68=2,Calcs!$O$199,IF(I68=3,Calcs!$P$199,IF(I68=4,Calcs!$Q$199,IF(I68=5,Calcs!$R$199,IF(I68=6,Calcs!$S$199,IF(I68=7,Calcs!$T$199,IF(I68=8,Calcs!$U$199,0)))))))) -> 0 | J199: =IF(J68=1,Calcs!$N$199,IF(J68=2,Calcs!$O$199,IF(J68=3,Calcs!$P$199,IF(J68=4,Calcs!$Q$199,IF(J68=5,Calcs!$R$199,IF(J68=6,Calcs!$S$199,IF(J68=7,Calcs!$T$199,IF(J68=8,Calcs!$U$199,0)))))))) -> 0 | K199: =IF(K68=1,Calcs!$N$199,IF(K68=2,Calcs!$O$199,IF(K68=3,Calcs!$P$199,IF(K68=4,Calcs!$Q$199,IF(K68=5,Calcs!$R$199,IF(K68=6,Calcs!$S$199,IF(K68=7,Calcs!$T$199,IF(K68=8,Calcs!$U$199,0)))))))) -> 0 | L199: =IF(L68=1,Calcs!$N$199,IF(L68=2,Calcs!$O$199,IF(L68=3,Calcs!$P$199,IF(L68=4,Calcs!$Q$199,IF(L68=5,Calcs!$R$199,IF(L68=6,Calcs!$S$199,IF(L68=7,Calcs!$T$199,IF(L68=8,Calcs!$U$199,0)))))))) -> 0 | N199: ='+Prices'!$AJ$75 -> 1395 | O199: ='+Prices'!$AJ$75 -> 1395 | P199: ='+Prices'!$AJ$75 -> 1395 | R199: ='+Prices'!$AJ$75 -> 1395 | S199: ='+Prices'!$AJ$75 -> 1395 | T199: ='+Prices'!$AJ$75 -> 1395
B200: None/grass | C200: =IF(C69<>"",N200,0) -> 0 | D200: 0 | E200: 0 | F200: 0 | G200: 0 | H200: 0 | I200: 0 | J200: 0 | K200: 0 | L200: 0 | N200: 0 | O200: 0 | P200: 0 | Q200: 0 | R200: 0 | S200: 0 | T200: 0 | U200: 0
M202: Crop plant density as a function of time and seeding rate | R202: W. Wheat | S202: W. Barley | T202: W. rye | U202: S. Barley | V202: S.Oat | W202: S. Wheat | X202: Oilseed | Y202: Legumes
... 159 more rows

Sheet Bio results
D1: ='2.Strategy'!D64 -> Vårbyg 1 | E1: ='2.Strategy'!E64 -> Raps 2 | F1: ='2.Strategy'!F64 -> V.hvede 3 | G1: ='2.Strategy'!G64 -> V.hvede 4 | H1: ='2.Strategy'!H64 -> Vårbyg 5 | I1: ='2.Strategy'!I64 -> Raps 6 | J1: ='2.Strategy'!J64 -> V.hvede 7 | K1: ='2.Strategy'!K64 -> V.hvede 8 | L1: ='2.Strategy'!L64 -> Vårbyg 9 | M1: ='2.Strategy'!M64 -> Raps 10 | N1: "Dates" | O1: Active | P1: Plants/m2 | Q1: Weeds/m2 | S1: Strategy A | T1: Plants/m2 | U1: Seeds | W1: Strategy B | X1: Plants/m2 | Y1: Seeds
C2: Table 1B. Ryegrass plants per m2 | D2: These numbers refer to the number present at the start of the period listed | O2: 2001-09-01 | P2: 0 | Q2: ='Bio results'!D13 -> 100 | S2: 2001-09-01 | W2: 2001-09-01
C3: Period for early sowing 1.-15. sep /before 20. Mar. | D3: =D13*Calcs!C213 -> 72 | E3: =E13*Calcs!D213 -> 17.5 | F3: =F13*Calcs!E213 -> 32.5 | G3: =G13*Calcs!F213 -> 45 | H3: =H13*Calcs!G213 -> 136.8 | I3: =I13*Calcs!H213 -> 35 | J3: =J13*Calcs!I213 -> 65 | K3: =K13*Calcs!J213 -> 90 | L3: =L13*Calcs!K213 -> 273.6 | M3: =M13*Calcs!L213 -> 67.5 | N3: 2000-05-01 | O3: 2001-09-15 | P3: ='Bio results'!D3 -> 72 | Q3: ='Bio results'!D14 -> 28 | S3: 2001-09-15 | W3: 2001-09-15
C4: Period for medium sowing 15.-20. sep /20. mar - 15. apr | D4: =D3*Calcs!C222+D14*Calcs!C214 -> 14.2 | E4: =E3*Calcs!D222+E14*Calcs!D214 -> 20.125 | F4: =F3*Calcs!E222+F14*Calcs!E214 -> 66.625 | G4: =G3*Calcs!F222+G14*Calcs!F214 -> 51.75 | H4: =H3*Calcs!G222+H14*Calcs!G214 -> 26.98 | I4: =I3*Calcs!H222+I14*Calcs!H214 -> 40.25 | J4: =J3*Calcs!I222+J14*Calcs!I214 -> 133.25 | K4: =K3*Calcs!J222+K14*Calcs!J214 -> 103.5 | L4: =L3*Calcs!K222+L14*Calcs!K214 -> 53.96 | M4: =M3*Calcs!L222+M14*Calcs!L214 -> 77.625 | N4: 2000-05-10 | O4: 2001-09-20 | P4: ='Bio results'!D4 -> 14.2 | Q4: ='Bio results'!D15 -> 21 | S4: 2001-09-20 | W4: 2001-09-20
C5: Period for late sowing after 20. sep / after 15. apr. | D5: =D4*Calcs!C223+D15*Calcs!C215 -> 17.35 | E5: =E4*Calcs!D223+E15*Calcs!D215 -> 28.65625 | F5: =F4*Calcs!E223+F15*Calcs!E215 -> 82.46875 | G5: =G4*Calcs!F223+G15*Calcs!F215 -> 73.6875 | H5: =H4*Calcs!G223+H15*Calcs!G215 -> 32.965 | I5: =I4*Calcs!H223+I15*Calcs!H215 -> 57.3125 | J5: =J4*Calcs!I223+J15*Calcs!I215 -> 164.9375 | K5: =K4*Calcs!J223+K15*Calcs!J215 -> 147.375 | L5: =L4*Calcs!K223+L15*Calcs!K215 -> 65.93 | M5: =M4*Calcs!L223+M15*Calcs!L215 -> 110.53125 | N5: 2000-05-20 | O5: 2001-10-01 | P5: ='Bio results'!D5 -> 17.35 | Q5: ='Bio results'!D16 -> 17.85 | S5: 2001-10-01 | W5: 2001-10-01
C6: Time for Pre-E spraying (late emerging ) /not relevant in spring | D6: =IF(Calcs!E242<5,D5*Calcs!C224+D16*Calcs!C216,D5) -> 17.35 | E6: =IF(Calcs!F242<5,E5*Calcs!D224+E16*Calcs!D216,E5) -> 31.215625 | F6: =IF(Calcs!G242<5,F5*Calcs!E224+F16*Calcs!E216,F5) -> 13 | G6: =IF(Calcs!H242<5,G5*Calcs!F224+G16*Calcs!F216,G5) -> 80.26875 | H6: =IF(Calcs!I242<5,H5*Calcs!G224+H16*Calcs!G216,H5) -> 32.965 | I6: =IF(Calcs!J242<5,I5*Calcs!H224+I16*Calcs!H216,I5) -> 62.43125 | J6: =IF(Calcs!K242<5,J5*Calcs!I224+J16*Calcs!I216,J5) -> 26 | K6: =IF(Calcs!L242<5,K5*Calcs!J224+K16*Calcs!J216,K5) -> 160.5375 | L6: =IF(Calcs!M242<5,L5*Calcs!K224+L16*Calcs!K216,L5) -> 65.93 | M6: =IF(Calcs!N242<5,M5*Calcs!L224+M16*Calcs!L216,M5) -> 120.403125 | N6: 2000-06-10 | O6: 2001-11-01 | P6: ='Bio results'!D6 -> 17.35 | Q6: ='Bio results'!D17 -> 17.85 | S6: 2001-11-01 | W6: 2001-11-01
C7: Time for Post-E spraying, both winter and spring crop | D7: =D6*Calcs!C225+D17*Calcs!C217 -> 19.135 | E7: =E6*Calcs!D225+E17*Calcs!D217 -> 31.95828125 | F7: =F6*Calcs!E225+F17*Calcs!E217 -> 8.8473125 | G7: =G6*Calcs!F225+G17*Calcs!F217 -> 34.13759063 | H7: =H6*Calcs!G225+H17*Calcs!G217 -> 36.3565 | I7: =I6*Calcs!H225+I17*Calcs!H217 -> 63.9165625 | J7: =J6*Calcs!I225+J17*Calcs!I217 -> 17.694625 | K7: =K6*Calcs!J225+K17*Calcs!J217 -> 68.27518125 | L7: =L6*Calcs!K225+L17*Calcs!K217 -> 72.713 | M7: =M6*Calcs!L225+M17*Calcs!L217 -> 123.2676563 | N7: 2000-09-01 | O7: 2001-06-01 | P7: ='Bio results'!D7 -> 19.135 | Q7: ='Bio results'!D18 -> 12.852 | S7: 2001-06-01 | W7: 2001-06-01
C8: End of season survival, both winter and spring crop | D8: =(D7*Calcs!C226*Calcs!C227+D18*Calcs!C218)*Calcs!C228 -> 3.228138 | E8: =(E7*Calcs!D226*Calcs!D227+E18*Calcs!D218)*Calcs!D228 -> 2.63368595 | F8: =(F7*Calcs!E226*Calcs!E227+F18*Calcs!E218)*Calcs!E228 -> 1.846277453 | G8: =(G7*Calcs!F226*Calcs!F227+G18*Calcs!F218)*Calcs!F228 -> 10.15933109 | H8: =(H7*Calcs!G226*Calcs!G227+H18*Calcs!G218)*Calcs!G228 -> 6.1334622 | I8: =(I7*Calcs!H226*Calcs!H227+I18*Calcs!H218)*Calcs!H228 -> 5.2673719 | J8: =(J7*Calcs!I226*Calcs!I227+J18*Calcs!I218)*Calcs!I228 -> 3.692554905 | K8: =(K7*Calcs!J226*Calcs!J227+K18*Calcs!J218)*Calcs!J228 -> 20.31866218 | L8: =(L7*Calcs!K226*Calcs!K227+L18*Calcs!K218)*Calcs!K228 -> 12.2669244 | M8: =(M7*Calcs!L226*Calcs!L227+M18*Calcs!L218)*Calcs!L228 -> 10.15850295 | O8: =O7+14 -> 2001-06-15 | P8: ='Bio results'!D8 -> 3.228138 | Q8: =Q7 -> 12.852 | S8: 2001-06-15 | W8: 2001-06-15
C9: Mature ryegrass plants setting seed | D9: =D8 -> 3.228138 | E9: =E8 -> 2.63368595 | F9: 1.846277453 | G9: 10.15933109 | H9: 6.1334622 | I9: 5.2673719 | J9: 3.692554905 | K9: 20.31866218 | L9: 12.2669244 | M9: 10.15850295 | N9: 2000-10-01 | O9: 2001-07-01 | P9: ='Bio results'!D9 -> 3.228138 | Q9: ='Bio results'!D20 -> 95.45841908 | S9: 2001-07-01 | W9: 2001-07-01
O10: 2001-08-01 | P10: 0 | Q10: ='Bio results'!D21 -> 108.3104191 | S10: 2001-08-01 | W10: 2001-08-01
O11: 2002-09-01 | P11: 0 | Q11: ='Bio results'!E13 -> 70 | S11: 2002-09-01 | W11: 2002-09-01
C12: Table 2B. Ryegrass seeds per m2 | D12: cover crops have been added to reduce seed carry over where used, A and S | O12: 2002-09-15 | P12: ='Bio results'!E3 -> 17.5 | Q12: ='Bio results'!E14 -> 52.5 | S12: 2002-09-15 | W12: 2002-09-15
C13: Period for early sowing 1.-15. sep /before 20. Mar. | D13: ='+Options'!$AG$96*'+Options'!AG123 -> 100 | E13: =D22*IF(Calcs!C$22<> "",(1-'1.Profile'!$O$8),1)*IF(Calcs!C$49<>"",(1-'1.Profile'!$O$8),1) -> 70 | F13: =E22*IF(Calcs!D$22<> "",(1-'1.Profile'!$O$8),1)*IF(Calcs!D$49<>"",(1-'1.Profile'!$O$8),1) -> 130 | G13: =F22*IF(Calcs!E$22<> "",(1-'1.Profile'!$O$8),1)*IF(Calcs!E$49<>"",(1-'1.Profile'!$O$8),1) -> 180 | H13: =G22*IF(Calcs!F$22<> "",(1-'1.Profile'!$O$8),1)*IF(Calcs!F$49<>"",(1-'1.Profile'!$O$8),1) -> 190 | I13: =H22*IF(Calcs!G$22<> "",(1-'1.Profile'!$O$8),1)*IF(Calcs!G$49<>"",(1-'1.Profile'!$O$8),1) -> 140 | J13: =I22*IF(Calcs!H$22<> "",(1-'1.Profile'!$O$8),1)*IF(Calcs!H$49<>"",(1-'1.Profile'!$O$8),1) -> 260 | K13: =J22*IF(Calcs!I$22<> "",(1-'1.Profile'!$O$8),1)*IF(Calcs!I$49<>"",(1-'1.Profile'!$O$8),1) -> 360 | L13: =K22*IF(Calcs!J$22<> "",(1-'1.Profile'!$O$8),1)*IF(Calcs!J$49<>"",(1-'1.Profile'!$O$8),1) -> 380 | M13: =L22*IF(Calcs!K$22<> "",(1-'1.Profile'!$O$8),1)*IF(Calcs!K$49<>"",(1-'1.Profile'!$O$8),1) -> 270 | N13: 2000-04-01 | O13: 2002-09-20 | P13: ='Bio results'!E4 -> 20.125 | Q13: ='Bio results'!E15 -> 34.125 | S13: 2002-09-20 | W13: 2002-09-20
C14: Period for medium sowing 15.-20. sep /20. mar - 15. apr | D14: =D13*(1-Calcs!C213) -> 28 | E14: =E13*(1-Calcs!D213) -> 52.5 | F14: =F13*(1-Calcs!E213) -> 97.5 | G14: =G13*(1-Calcs!F213) -> 135 | H14: =H13*(1-Calcs!G213) -> 53.2 | I14: =I13*(1-Calcs!H213) -> 105 | J14: =J13*(1-Calcs!I213) -> 195 | K14: =K13*(1-Calcs!J213) -> 270 | L14: =L13*(1-Calcs!K213) -> 106.4 | M14: =M13*(1-Calcs!L213) -> 202.5 | N14: 2000-05-01 | O14: 2002-10-01 | P14: ='Bio results'!E5 -> 28.65625 | Q14: ='Bio results'!E16 -> 25.59375 | S14: 2002-10-01 | W14: 2002-10-01
C15: Period for late sowing after 20. sep / after 15. apr. | D15: =D14*(1-Calcs!C214) -> 21 | E15: =E14*(1-Calcs!D214) -> 34.125 | F15: =F14*(1-Calcs!E214) -> 63.375 | G15: =G14*(1-Calcs!F214) -> 87.75 | H15: =H14*(1-Calcs!G214) -> 39.9 | I15: =I14*(1-Calcs!H214) -> 68.25 | J15: =J14*(1-Calcs!I214) -> 126.75 | K15: =K14*(1-Calcs!J214) -> 175.5 | L15: =L14*(1-Calcs!K214) -> 79.8 | M15: =M14*(1-Calcs!L214) -> 131.625 | N15: 2000-05-10 | O15: 2002-11-01 | P15: ='Bio results'!E6 -> 31.215625 | Q15: ='Bio results'!E17 -> 23.034375 | S15: 2002-11-01 | W15: 2002-11-01
C16: Before Pre-E spraying (late emerging ) /not relevant in spring | D16: =D15*(1-Calcs!C215) -> 17.85 | E16: =E15*(1-Calcs!D215) -> 25.59375 | F16: =F15*(1-Calcs!E215) -> 47.53125 | G16: =G15*(1-Calcs!F215) -> 65.8125 | H16: =H15*(1-Calcs!G215) -> 33.915 | I16: =I15*(1-Calcs!H215) -> 51.1875 | J16: =J15*(1-Calcs!I215) -> 95.0625 | K16: =K15*(1-Calcs!J215) -> 131.625 | L16: =L15*(1-Calcs!K215) -> 67.83 | M16: =M15*(1-Calcs!L215) -> 98.71875 | N16: 2000-05-20 | O16: 2002-06-01 | P16: ='Bio results'!E7 -> 31.95828125 | Q16: ='Bio results'!E18 -> 16.58475 | S16: 2002-06-01 | W16: 2002-06-01
C17: Before Post-E spraying, both seasons | D17: =D16*(1-Calcs!C216) -> 17.85 | E17: =E16*(1-Calcs!D216) -> 23.034375 | F17: =F16*(1-Calcs!E216) -> 42.778125 | G17: =G16*(1-Calcs!F216) -> 59.23125 | H17: =H16*(1-Calcs!G216) -> 33.915 | I17: =I16*(1-Calcs!H216) -> 46.06875 | J17: =J16*(1-Calcs!I216) -> 85.55625 | K17: =K16*(1-Calcs!J216) -> 118.4625 | L17: =L16*(1-Calcs!K216) -> 67.83 | M17: =M16*(1-Calcs!L216) -> 88.846875 | N17: 2000-06-10 | O17: =O16+14 -> 2002-06-15 | P17: ='Bio results'!E8 -> 2.63368595 | Q17: =Q16 -> 16.58475 | S17: 2002-06-15 | W17: 2002-06-15
C18: End of spring, both winter and spring crop | D18: =D17*(1-Calcs!C217)*(1-'+Options'!$AG$127)*IF(COUNTIF(Calcs!C$39,">=1"),(1-'+Options'!$AG$140),1) -> 12.852 | E18: =E17*(1-Calcs!D217)*(1-'+Options'!$AG$127)*IF(COUNTIF(Calcs!D$39,">=1"),(1-'+Options'!$AG$140),1) -> 16.58475 | F18: =F17*(1-Calcs!E217)*(1-'+Options'!$AG$127)*IF(COUNTIF(Calcs!E$39,">=1"),(1-'+Options'!$AG$140),1) -> 30.80025 | G18: =G17*(1-Calcs!F217)*(1-'+Options'!$AG$127)*IF(COUNTIF(Calcs!F$39,">=1"),(1-'+Options'!$AG$140),1) -> 42.6465 | H18: =H17*(1-Calcs!G217)*(1-'+Options'!$AG$127)*IF(COUNTIF(Calcs!G$39,">=1"),(1-'+Options'!$AG$140),1) -> 24.4188 | I18: =I17*(1-Calcs!H217)*(1-'+Options'!$AG$127)*IF(COUNTIF(Calcs!H$39,">=1"),(1-'+Options'!$AG$140),1) -> 33.1695 | J18: =J17*(1-Calcs!I217)*(1-'+Options'!$AG$127)*IF(COUNTIF(Calcs!I$39,">=1"),(1-'+Options'!$AG$140),1) -> 61.6005 | K18: =K17*(1-Calcs!J217)*(1-'+Options'!$AG$127)*IF(COUNTIF(Calcs!J$39,">=1"),(1-'+Options'!$AG$140),1) -> 85.293 | L18: =L17*(1-Calcs!K217)*(1-'+Options'!$AG$127)*IF(COUNTIF(Calcs!K$39,">=1"),(1-'+Options'!$AG$140),1) -> 48.8376 | M18: =M17*(1-Calcs!L217)*(1-'+Options'!$AG$127)*IF(COUNTIF(Calcs!L$39,">=1"),(1-'+Options'!$AG$140),1) -> 63.96975 | N18: 2000-09-01 | O18: 2002-07-01 | P18: ='Bio results'!E9 -> 2.63368595 | Q18: ='Bio results'!E20 -> 176.13947 | S18: 2002-07-01 | W18: 2002-07-01
C19: Spring, seed produced per m2 | D19: =('+Options'!$AG$131*'+Options'!$AG$134*Calcs!C236*(IF(Calcs!E242=1,1/(1+('+Options'!$AG$134*Calcs!C236)+('+Options'!$AG$87*Calcs!C207)),0)+IF(Calcs!E242=2,1/(1+('+Options'!$AG$134*Calcs!C236)+('+Options'!$AH$87*Calcs!C207)),0)+IF(Calcs!E242=3,1/(1+('+Options'!$AG$134*Calcs!C236)+('+Options'!$AI$87*Calcs!C207)),0)+IF(Calcs!E242=4,1/(1+('+Options'!$AG$134*Calcs!C236)+('+Options'!$AM$87*Calcs!C207)),0)+IF(Calcs!E242=5,1/(1+('+Options'!$AG$134*Calcs!C236)+('+Options'!$AJ$87*Calcs!C207)),0)+IF(Calcs!E242=6,1/(1+('+Options'!$AG$134*Calcs!C236)+('+Options'!$AK$87*Calcs!C207)),0)+IF(Calcs!E242=7,1/(1+('+Options'!$AG$134*Calcs!C236)+('+Options'!$AL$87*Calcs!C207)),0)+IF(Calcs!E242=8,1/(1+('+Options'!$AG$134*Calcs!C236)+('+Options'!$AN$87*Calcs!C207)),0)+IF(Calcs!E242>8,1/(1+('+Options'!$AG$134+Calcs!C236)+'+Options'!$AG$139))))*IF(Calcs!P46>0,1-'+Options'!$AG$129,1)*IF(Calcs!P47>0,1-'+Options'!$AG$130,1) -> 95.45841908 | E19: =('+Options'!$AG$131*'+Options'!$AG$134*Calcs!D236*(IF(Calcs!F242=1,1/(1+('+Options'!$AG$134*Calcs!D236)+('+Options'!$AG$87*Calcs!D207)),0)+IF(Calcs!F242=2,1/(1+('+Options'!$AG$134*Calcs!D236)+('+Options'!$AH$87*Calcs!D207)),0)+IF(Calcs!F242=3,1/(1+('+Options'!$AG$134*Calcs!D236)+('+Options'!$AI$87*Calcs!D207)),0)+IF(Calcs!F242=4,1/(1+('+Options'!$AG$134*Calcs!D236)+('+Options'!$AM$87*Calcs!D207)),0)+IF(Calcs!F242=5,1/(1+('+Options'!$AG$134*Calcs!D236)+('+Options'!$AJ$87*Calcs!D207)),0)+IF(Calcs!F242=6,1/(1+('+Options'!$AG$134*Calcs!D236)+('+Options'!$AK$87*Calcs!D207)),0)+IF(Calcs!F242=7,1/(1+('+Options'!$AG$134*Calcs!D236)+('+Options'!$AL$87*Calcs!D207)),0)+IF(Calcs!F242=8,1/(1+('+Options'!$AG$134*Calcs!D236)+('+Options'!$AN$87*Calcs!D207)),0)+IF(Calcs!F242>8,1/(1+('+Options'!$AG$134+Calcs!D236)+'+Options'!$AG$139))))*IF(Calcs!Q46>0,1-'+Options'!$AG$129,1)*IF(Calcs!Q47>0,1-'+Options'!$AG$130,1) -> 176.13947 | F19: =('+Options'!$AG$131*'+Options'!$AG$134*Calcs!E236*(IF(Calcs!G242=1,1/(1+('+Options'!$AG$134*Calcs!E236)+('+Options'!$AG$87*Calcs!E207)),0)+IF(Calcs!G242=2,1/(1+('+Options'!$AG$134*Calcs!E236)+('+Options'!$AH$87*Calcs!E207)),0)+IF(Calcs!G242=3,1/(1+('+Options'!$AG$134*Calcs!E236)+('+Options'!$AI$87*Calcs!E207)),0)+IF(Calcs!G242=4,1/(1+('+Options'!$AG$134*Calcs!E236)+('+Options'!$AM$87*Calcs!E207)),0)+IF(Calcs!G242=5,1/(1+('+Options'!$AG$134*Calcs!E236)+('+Options'!$AJ$87*Calcs!E207)),0)+IF(Calcs!G242=6,1/(1+('+Options'!$AG$134*Calcs!E236)+('+Options'!$AK$87*Calcs!E207)),0)+IF(Calcs!G242=7,1/(1+('+Options'!$AG$134*Calcs!E236)+('+Options'!$AL$87*Calcs!E207)),0)+IF(Calcs!G242=8,1/(1+('+Options'!$AG$134*Calcs!E236)+('+Options'!$AN$87*Calcs!E207)),0)+IF(Calcs!G242>8,1/(1+('+Options'!$AG$134+Calcs!E236)+'+Options'!$AG$139))))*IF(Calcs!R46>0,1-'+Options'!$AG$129,1)*IF(Calcs!R47>0,1-'+Options'!$AG$130,1) -> 237.9493995 | G19: =('+Options'!$AG$131*'+Options'!$AG$134*Calcs!F236*(IF(Calcs!H242=1,1/(1+('+Options'!$AG$134*Calcs!F236)+('+Options'!$AG$87*Calcs!F207)),0)+IF(Calcs!H242=2,1/(1+('+Options'!$AG$134*Calcs!F236)+('+Options'!$AH$87*Calcs!F207)),0)+IF(Calcs!H242=3,1/(1+('+Options'!$AG$134*Calcs!F236)+('+Options'!$AI$87*Calcs!F207)),0)+IF(Calcs!H242=4,1/(1+('+Options'!$AG$134*Calcs!F236)+('+Options'!$AM$87*Calcs!F207)),0)+IF(Calcs!H242=5,1/(1+('+Options'!$AG$134*Calcs!F236)+('+Options'!$AJ$87*Calcs!F207)),0)+IF(Calcs!H242=6,1/(1+('+Options'!$AG$134*Calcs!F236)+('+Options'!$AK$87*Calcs!F207)),0)+IF(Calcs!H242=7,1/(1+('+Options'!$AG$134*Calcs!F236)+('+Options'!$AL$87*Calcs!F207)),0)+IF(Calcs!H242=8,1/(1+('+Options'!$AG$134*Calcs!F236)+('+Options'!$AN$87*Calcs!F207)),0)+IF(Calcs!H242>8,1/(1+('+Options'!$AG$134+Calcs!F236)+'+Options'!$AG$139))))*IF(Calcs!S46>0,1-'+Options'!$AG$129,1)*IF(Calcs!S47>0,1-'+Options'!$AG$130,1) -> 243.8474476 | H19: =('+Options'!$AG$131*'+Options'!$AG$134*Calcs!G236*(IF(Calcs!I242=1,1/(1+('+Options'!$AG$134*Calcs!G236)+('+Options'!$AG$87*Calcs!G207)),0)+IF(Calcs!I242=2,1/(1+('+Options'!$AG$134*Calcs!G236)+('+Options'!$AH$87*Calcs!G207)),0)+IF(Calcs!I242=3,1/(1+('+Options'!$AG$134*Calcs!G236)+('+Options'!$AI$87*Calcs!G207)),0)+IF(Calcs!I242=4,1/(1+('+Options'!$AG$134*Calcs!G236)+('+Options'!$AM$87*Calcs!G207)),0)+IF(Calcs!I242=5,1/(1+('+Options'!$AG$134*Calcs!G236)+('+Options'!$AJ$87*Calcs!G207)),0)+IF(Calcs!I242=6,1/(1+('+Options'!$AG$134*Calcs!G236)+('+Options'!$AK$87*Calcs!G207)),0)+IF(Calcs!I242=7,1/(1+('+Options'!$AG$134*Calcs!G236)+('+Options'!$AL$87*Calcs!G207)),0)+IF(Calcs!I242=8,1/(1+('+Options'!$AG$134*Calcs!G236)+('+Options'!$AN$87*Calcs!G207)),0)+IF(Calcs!I242>8,1/(1+('+Options'!$AG$134+Calcs!G236)+'+Options'!$AG$139))))*IF(Calcs!T46>0,1-'+Options'!$AG$129,1)*IF(Calcs!T47>0,1-'+Options'!$AG$130,1) -> 180.708942 | I19: =('+Options'!$AG$131*'+Options'!$AG$134*Calcs!H236*(IF(Calcs!J242=1,1/(1+('+Options'!$AG$134*Calcs!H236)+('+Options'!$AG$87*Calcs!H207)),0)+IF(Calcs!J242=2,1/(1+('+Options'!$AG$134*Calcs!H236)+('+Options'!$AH$87*Calcs!H207)),0)+IF(Calcs!J242=3,1/(1+('+Options'!$AG$134*Calcs!H236)+('+Options'!$AI$87*Calcs!H207)),0)+IF(Calcs!J242=4,1/(1+('+Options'!$AG$134*Calcs!H236)+('+Options'!$AM$87*Calcs!H207)),0)+IF(Calcs!J242=5,1/(1+('+Options'!$AG$134*Calcs!H236)+('+Options'!$AJ$87*Calcs!H207)),0)+IF(Calcs!J242=6,1/(1+('+Options'!$AG$134*Calcs!H236)+('+Options'!$AK$87*Calcs!H207)),0)+IF(Calcs!J242=7,1/(1+('+Options'!$AG$134*Calcs!H236)+('+Options'!$AL$87*Calcs!H207)),0)+IF(Calcs!J242=8,1/(1+('+Options'!$AG$134*Calcs!H236)+('+Options'!$AN$87*Calcs!H207)),0)+IF(Calcs!J242>8,1/(1+('+Options'!$AG$134+Calcs!H236)+'+Options'!$AG$139))))*IF(Calcs!U46>0,1-'+Options'!$AG$129,1)*IF(Calcs!U47>0,1-'+Options'!$AG$130,1) -> 348.7685453 | J19: =('+Options'!$AG$131*'+Options'!$AG$134*Calcs!I236*(IF(Calcs!K242=1,1/(1+('+Options'!$AG$134*Calcs!I236)+('+Options'!$AG$87*Calcs!I207)),0)+IF(Calcs!K242=2,1/(1+('+Options'!$AG$134*Calcs!I236)+('+Options'!$AH$87*Calcs!I207)),0)+IF(Calcs!K242=3,1/(1+('+Options'!$AG$134*Calcs!I236)+('+Options'!$AI$87*Calcs!I207)),0)+IF(Calcs!K242=4,1/(1+('+Options'!$AG$134*Calcs!I236)+('+Options'!$AM$87*Calcs!I207)),0)+IF(Calcs!K242=5,1/(1+('+Options'!$AG$134*Calcs!I236)+('+Options'!$AJ$87*Calcs!I207)),0)+IF(Calcs!K242=6,1/(1+('+Options'!$AG$134*Calcs!I236)+('+Options'!$AK$87*Calcs!I207)),0)+IF(Calcs!K242=7,1/(1+('+Options'!$AG$134*Calcs!I236)+('+Options'!$AL$87*Calcs!I207)),0)+IF(Calcs!K242=8,1/(1+('+Options'!$AG$134*Calcs!I236)+('+Options'!$AN$87*Calcs!I207)),0)+IF(Calcs!K242>8,1/(1+('+Options'!$AG$134+Calcs!I236)+'+Options'!$AG$139))))*IF(Calcs!V46>0,1-'+Options'!$AG$129,1)*IF(Calcs!V47>0,1-'+Options'!$AG$130,1) -> 471.1183163 | K19: =('+Options'!$AG$131*'+Options'!$AG$134*Calcs!J236*(IF(Calcs!L242=1,1/(1+('+Options'!$AG$134*Calcs!J236)+('+Options'!$AG$87*Calcs!J207)),0)+IF(Calcs!L242=2,1/(1+('+Options'!$AG$134*Calcs!J236)+('+Options'!$AH$87*Calcs!J207)),0)+IF(Calcs!L242=3,1/(1+('+Options'!$AG$134*Calcs!J236)+('+Options'!$AI$87*Calcs!J207)),0)+IF(Calcs!L242=4,1/(1+('+Options'!$AG$134*Calcs!J236)+('+Options'!$AM$87*Calcs!J207)),0)+IF(Calcs!L242=5,1/(1+('+Options'!$AG$134*Calcs!J236)+('+Options'!$AJ$87*Calcs!J207)),0)+IF(Calcs!L242=6,1/(1+('+Options'!$AG$134*Calcs!J236)+('+Options'!$AK$87*Calcs!J207)),0)+IF(Calcs!L242=7,1/(1+('+Options'!$AG$134*Calcs!J236)+('+Options'!$AL$87*Calcs!J207)),0)+IF(Calcs!L242=8,1/(1+('+Options'!$AG$134*Calcs!J236)+('+Options'!$AN$87*Calcs!J207)),0)+IF(Calcs!L242>8,1/(1+('+Options'!$AG$134+Calcs!J236)+'+Options'!$AG$139))))*IF(Calcs!W46>0,1-'+Options'!$AG$129,1)*IF(Calcs!W47>0,1-'+Options'!$AG$130,1) -> 477.7588377 | L19: =('+Options'!$AG$131*'+Options'!$AG$134*Calcs!K236*(IF(Calcs!M242=1,1/(1+('+Options'!$AG$134*Calcs!K236)+('+Options'!$AG$87*Calcs!K207)),0)+IF(Calcs!M242=2,1/(1+('+Options'!$AG$134*Calcs!K236)+('+Options'!$AH$87*Calcs!K207)),0)+IF(Calcs!M242=3,1/(1+('+Options'!$AG$134*Calcs!K236)+('+Options'!$AI$87*Calcs!K207)),0)+IF(Calcs!M242=4,1/(1+('+Options'!$AG$134*Calcs!K236)+('+Options'!$AM$87*Calcs!K207)),0)+IF(Calcs!M242=5,1/(1+('+Options'!$AG$134*Calcs!K236)+('+Options'!$AJ$87*Calcs!K207)),0)+IF(Calcs!M242=6,1/(1+('+Options'!$AG$134*Calcs!K236)+('+Options'!$AK$87*Calcs!K207)),0)+IF(Calcs!M242=7,1/(1+('+Options'!$AG$134*Calcs!K236)+('+Options'!$AL$87*Calcs!K207)),0)+IF(Calcs!M242=8,1/(1+('+Options'!$AG$134*Calcs!K236)+('+Options'!$AN$87*Calcs!K207)),0)+IF(Calcs!M242>8,1/(1+('+Options'!$AG$134+Calcs!K236)+'+Options'!$AG$139))))*IF(Calcs!X46>0,1-'+Options'!$AG$129,1)*IF(Calcs!X47>0,1-'+Options'!$AG$130,1) -> 358.6540464 | M19: =('+Options'!$AG$131*'+Options'!$AG$134*Calcs!L236*(IF(Calcs!N242=1,1/(1+('+Options'!$AG$134*Calcs!L236)+('+Options'!$AG$87*Calcs!L207)),0)+IF(Calcs!N242=2,1/(1+('+Options'!$AG$134*Calcs!L236)+('+Options'!$AH$87*Calcs!L207)),0)+IF(Calcs!N242=3,1/(1+('+Options'!$AG$134*Calcs!L236)+('+Options'!$AI$87*Calcs!L207)),0)+IF(Calcs!N242=4,1/(1+('+Options'!$AG$134*Calcs!L236)+('+Options'!$AM$87*Calcs!L207)),0)+IF(Calcs!N242=5,1/(1+('+Options'!$AG$134*Calcs!L236)+('+Options'!$AJ$87*Calcs!L207)),0)+IF(Calcs!N242=6,1/(1+('+Options'!$AG$134*Calcs!L236)+('+Options'!$AK$87*Calcs!L207)),0)+IF(Calcs!N242=7,1/(1+('+Options'!$AG$134*Calcs!L236)+('+Options'!$AL$87*Calcs!L207)),0)+IF(Calcs!N242=8,1/(1+('+Options'!$AG$134*Calcs!L236)+('+Options'!$AN$87*Calcs!L207)),0)+IF(Calcs!N242>8,1/(1+('+Options'!$AG$134+Calcs!L236)+'+Options'!$AG$139))))*IF(Calcs!Y46>0,1-'+Options'!$AG$129,1)*IF(Calcs!Y47>0,1-'+Options'!$AG$130,1) -> 660.4035664 | O19: 2002-08-01 | P19: 0 | Q19: ='Bio results'!E21 -> 192.72422 | S19: 2002-08-01 | W19: 2002-08-01
C20: Spring, seed produced per m2 | D20: =D19 -> 95.45841908 | E20: =E19 -> 176.13947 | F20: 237.9493995 | G20: 243.8474476 | H20: 180.708942 | I20: 348.7685453 | J20: 471.1183163 | K20: 477.7588377 | L20: 358.6540464 | M20: 660.4035664 | N20: 2000-10-01 | O20: 2003-09-01 | P20: 0 | Q20: ='Bio results'!F13 -> 130 | S20: 2003-09-01 | W20: 2003-09-01
C21: Just before harvest | D21: =D20+D18 -> 108.3104191 | E21: 192.72422 | F21: 268.7496495 | G21: 286.4939476 | H21: 205.127742 | I21: 381.9380453 | J21: 532.7188163 | K21: 563.0518377 | L21: 407.4916464 | M21: 724.3733164 | N21: 2000-11-01 | O21: 2003-09-15 | P21: ='Bio results'!F3 -> 32.5 | Q21: ='Bio results'!F14 -> 97.5 | S21: 2003-09-15 | W21: 2003-09-15
C22: Seeds in soil after cover crop (/m2) | D22: =ROUND((D18+D20*Calcs!C228)*(1-'+Options'!$AG$128),-1) -> 70 | E22: =ROUND((E18+E20*Calcs!D228)*(1-'+Options'!$AG$128),-1) -> 130 | F22: =ROUND((F18+F20*Calcs!E228)*(1-'+Options'!$AG$128),-1) -> 180 | G22: =ROUND((G18+G20*Calcs!F228)*(1-'+Options'!$AG$128),-1) -> 190 | H22: =ROUND((H18+H20*Calcs!G228)*(1-'+Options'!$AG$128),-1) -> 140 | I22: =ROUND((I18+I20*Calcs!H228)*(1-'+Options'!$AG$128),-1) -> 260 | J22: =ROUND((J18+J20*Calcs!I228)*(1-'+Options'!$AG$128),-1) -> 360 | K22: =ROUND((K18+K20*Calcs!J228)*(1-'+Options'!$AG$128),-1) -> 380 | L22: =ROUND((L18+L20*Calcs!K228)*(1-'+Options'!$AG$128),-1) -> 270 | M22: =ROUND((M18+M20*Calcs!L228)*(1-'+Options'!$AG$128),-1) -> 480 | O22: 2003-09-20 | P22: ='Bio results'!F4 -> 66.625 | Q22: ='Bio results'!F15 -> 63.375 | S22: 2003-09-20 | W22: 2003-09-20
O23: 2003-10-01 | P23: ='Bio results'!F5 -> 82.46875 | Q23: ='Bio results'!F16 -> 47.53125 | S23: 2003-10-01 | W23: 2003-10-01
O24: 2003-11-01 | P24: ='Bio results'!F6 -> 13 | Q24: ='Bio results'!F17 -> 42.778125 | S24: 2003-11-01 | W24: 2003-11-01
O25: 2003-06-01 | P25: ='Bio results'!F7 -> 8.8473125 | Q25: ='Bio results'!F18 -> 30.80025 | S25: 2003-06-01 | W25: 2003-06-01
O26: =O25+14 -> 2003-06-15 | P26: ='Bio results'!F8 -> 1.846277453 | Q26: =Q25 -> 30.80025 | S26: 2003-06-15 | W26: 2003-06-15
C27: Table 3B. Yields | O27: 2003-07-01 | P27: ='Bio results'!F9 -> 1.846277453 | Q27: ='Bio results'!F20 -> 237.9493995 | S27: 2003-07-01 | W27: 2003-07-01
C28: Yield penalty from phytotoxicity | D28: =('+Options'!$AN$81)*Calcs!P42 -> 0.04 | E28: =('+Options'!$AN$81)*Calcs!Q42 -> 0.02 | F28: =('+Options'!$AN$81)*Calcs!R42 -> 0.02 | G28: =('+Options'!$AN$81)*Calcs!S42 -> 0.02 | H28: =('+Options'!$AN$81)*Calcs!T42 -> 0.04 | I28: =('+Options'!$AN$81)*Calcs!U42 -> 0.02 | J28: =('+Options'!$AN$81)*Calcs!V42 -> 0.02 | K28: =('+Options'!$AN$81)*Calcs!W42 -> 0.02 | L28: =('+Options'!$AN$81)*Calcs!X42 -> 0.04 | M28: =('+Options'!$AN$81)*Calcs!Y42 -> 0.02 | O28: 2003-08-01 | P28: 0 | Q28: ='Bio results'!F21 -> 268.7496495 | S28: 2003-08-01 | W28: 2003-08-01
C29: Optional, for later added penalty | D29: 0 | E29: 0 | F29: 0 | G29: 0 | H29: 0 | I29: 0 | J29: 0 | K29: 0 | L29: 0 | M29: 0 | O29: 2004-09-01 | P29: 0 | Q29: ='Bio results'!G13 -> 180 | S29: 2004-09-01 | W29: 2004-09-01
C30: Optional, for later added penalty | D30: 0 | E30: 0 | F30: 0 | G30: 0 | H30: 0 | I30: 0 | J30: 0 | K30: 0 | L30: 0 | M30: 0 | O30: 2004-09-15 | P30: ='Bio results'!G3 -> 45 | Q30: ='Bio results'!G14 -> 135 | S30: 2004-09-15 | W30: 2004-09-15
C31: Optional, for later added penalty | D31: 0 | E31: 0 | F31: 0 | G31: 0 | H31: 0 | I31: 0 | J31: 0 | K31: 0 | L31: 0 | M31: 0 | O31: 2004-09-20 | P31: ='Bio results'!G4 -> 51.75 | Q31: ='Bio results'!G15 -> 87.75 | S31: 2004-09-20 | W31: 2004-09-20
C32: Yield benefit following cover crops | D32: =IF(COUNTIF(Calcs!B22,">=1"),'+Options'!$AN$71,IF(COUNTIF(Calcs!B49,">=1"),'+Options'!$AN$71,0)) -> 0 | E32: =IF(COUNTIF(Calcs!C22,">=1"),'+Options'!$AN$71,IF(COUNTIF(Calcs!C49,">=1"),'+Options'!$AN$71,0)) -> 0 | F32: =IF(COUNTIF(Calcs!D22,">=1"),'+Options'!$AN$71,IF(COUNTIF(Calcs!D49,">=1"),'+Options'!$AN$71,0)) -> 0 | G32: =IF(COUNTIF(Calcs!E22,">=1"),'+Options'!$AN$71,IF(COUNTIF(Calcs!E49,">=1"),'+Options'!$AN$71,0)) -> 0 | H32: =IF(COUNTIF(Calcs!F22,">=1"),'+Options'!$AN$71,IF(COUNTIF(Calcs!F49,">=1"),'+Options'!$AN$71,0)) -> 0 | I32: =IF(COUNTIF(Calcs!G22,">=1"),'+Options'!$AN$71,IF(COUNTIF(Calcs!G49,">=1"),'+Options'!$AN$71,0)) -> 0 | J32: =IF(COUNTIF(Calcs!H22,">=1"),'+Options'!$AN$71,IF(COUNTIF(Calcs!H49,">=1"),'+Options'!$AN$71,0)) -> 0 | K32: =IF(COUNTIF(Calcs!I22,">=1"),'+Options'!$AN$71,IF(COUNTIF(Calcs!I49,">=1"),'+Options'!$AN$71,0)) -> 0 | L32: =IF(COUNTIF(Calcs!J22,">=1"),'+Options'!$AN$71,IF(COUNTIF(Calcs!J49,">=1"),'+Options'!$AN$71,0)) -> 0 | M32: =IF(COUNTIF(Calcs!K22,">=1"),'+Options'!$AN$71,IF(COUNTIF(Calcs!K49,">=1"),'+Options'!$AN$71,0)) -> 0 | O32: 2004-10-01 | P32: ='Bio results'!G5 -> 73.6875 | Q32: ='Bio results'!G16 -> 65.8125 | S32: 2004-10-01 | W32: 2004-10-01
C33: Optional, for later added benefit | D33: 0 | E33: 0 | F33: 0 | G33: 0 | H33: 0 | I33: 0 | J33: 0 | K33: 0 | L33: 0 | M33: 0 | O33: 2004-11-01 | P33: ='Bio results'!G6 -> 80.26875 | Q33: ='Bio results'!G17 -> 59.23125 | S33: 2004-11-01 | W33: 2004-11-01
C34: Optional, for later added benefit | D34: 0 | E34: 0 | F34: 0 | G34: 0 | H34: 0 | I34: 0 | J34: 0 | K34: 0 | L34: 0 | M34: 0 | O34: 2004-06-01 | P34: ='Bio results'!G7 -> 34.13759063 | Q34: ='Bio results'!G18 -> 42.6465 | S34: 2004-06-01 | W34: 2004-06-01
C35: Weed-free yield - Winter cereal (t/ha) | D35: =IF(Calcs!E242<4,VLOOKUP(Calcs!E251,Calcs!$C253:$L351,3)*(1-D$28-D$29-D$30-D$31+D32+D$33+D$34),0) -> 0 | E35: =IF(Calcs!F242<4,VLOOKUP(Calcs!F251,Calcs!$C253:$L351,3)*(1-E$28-E$29-E$30-E$31+E32+E$33+E$34),0) -> 0 | F35: =IF(Calcs!G242<4,VLOOKUP(Calcs!G251,Calcs!$C253:$L351,3)*(1-F$28-F$29-F$30-F$31+F32+F$33+F$34),0) -> 10.29 | G35: =IF(Calcs!H242<4,VLOOKUP(Calcs!H251,Calcs!$C253:$L351,3)*(1-G$28-G$29-G$30-G$31+G32+G$33+G$34),0) -> 7.84 | H35: =IF(Calcs!I242<4,VLOOKUP(Calcs!I251,Calcs!$C253:$L351,3)*(1-H$28-H$29-H$30-H$31+H32+H$33+H$34),0) -> 0 | I35: =IF(Calcs!J242<4,VLOOKUP(Calcs!J251,Calcs!$C253:$L351,3)*(1-I$28-I$29-I$30-I$31+I32+I$33+I$34),0) -> 0 | J35: =IF(Calcs!K242<4,VLOOKUP(Calcs!K251,Calcs!$C253:$L351,3)*(1-J$28-J$29-J$30-J$31+J32+J$33+J$34),0) -> 10.29 | K35: =IF(Calcs!L242<4,VLOOKUP(Calcs!L251,Calcs!$C253:$L351,3)*(1-K$28-K$29-K$30-K$31+K32+K$33+K$34),0) -> 7.84 | L35: =IF(Calcs!M242<4,VLOOKUP(Calcs!M251,Calcs!$C253:$L351,3)*(1-L$28-L$29-L$30-L$31+L32+L$33+L$34),0) -> 0 | M35: =IF(Calcs!N242<4,VLOOKUP(Calcs!N251,Calcs!$C253:$L351,3)*(1-M$28-M$29-M$30-M$31+M32+M$33+M$34),0) -> 0 | O35: =O34+14 -> 2004-06-15 | P35: ='Bio results'!G8 -> 10.15933109 | Q35: =Q34 -> 42.6465 | S35: 2004-06-15 | W35: 2004-06-15
C36: Weed-free yield - Spring cereal (t/ha) | D36: =IF(OR(Calcs!E242=5,Calcs!E242=6,Calcs!E242=7),VLOOKUP(Calcs!E251,Calcs!$C253:$L351,3)*(1-D$28-D$29-D$30-D$31+D32+D$33+D$34),0) -> 6.72 | E36: =IF(OR(Calcs!F242=5,Calcs!F242=6,Calcs!F242=7),VLOOKUP(Calcs!F251,Calcs!$C253:$L351,3)*(1-E$28-E$29-E$30-E$31+E32+E$33+E$34),0) -> 0 | F36: =IF(OR(Calcs!G242=5,Calcs!G242=6,Calcs!G242=7),VLOOKUP(Calcs!G251,Calcs!$C253:$L351,3)*(1-F$28-F$29-F$30-F$31+F32+F$33+F$34),0) -> 0 | G36: =IF(OR(Calcs!H242=5,Calcs!H242=6,Calcs!H242=7),VLOOKUP(Calcs!H251,Calcs!$C253:$L351,3)*(1-G$28-G$29-G$30-G$31+G32+G$33+G$34),0) -> 0 | H36: =IF(OR(Calcs!I242=5,Calcs!I242=6,Calcs!I242=7),VLOOKUP(Calcs!I251,Calcs!$C253:$L351,3)*(1-H$28-H$29-H$30-H$31+H32+H$33+H$34),0) -> 6.72 | I36: =IF(OR(Calcs!J242=5,Calcs!J242=6,Calcs!J242=7),VLOOKUP(Calcs!J251,Calcs!$C253:$L351,3)*(1-I$28-I$29-I$30-I$31+I32+I$33+I$34),0) -> 0 | J36: =IF(OR(Calcs!K242=5,Calcs!K242=6,Calcs!K242=7),VLOOKUP(Calcs!K251,Calcs!$C253:$L351,3)*(1-J$28-J$29-J$30-J$31+J32+J$33+J$34),0) -> 0 | K36: =IF(OR(Calcs!L242=5,Calcs!L242=6,Calcs!L242=7),VLOOKUP(Calcs!L251,Calcs!$C253:$L351,3)*(1-K$28-K$29-K$30-K$31+K32+K$33+K$34),0) -> 0 | L36: =IF(OR(Calcs!M242=5,Calcs!M242=6,Calcs!M242=7),VLOOKUP(Calcs!M251,Calcs!$C253:$L351,3)*(1-L$28-L$29-L$30-L$31+L32+L$33+L$34),0) -> 6.72 | M36: =IF(OR(Calcs!N242=5,Calcs!N242=6,Calcs!N242=7),VLOOKUP(Calcs!N251,Calcs!$C253:$L351,3)*(1-M$28-M$29-M$30-M$31+M32+M$33+M$34),0) -> 0 | O36: 2004-07-01 | P36: ='Bio results'!G9 -> 10.15933109 | Q36: ='Bio results'!G20 -> 243.8474476 | S36: 2004-07-01 | W36: 2004-07-01
C37: Weed-free yield - Oilseed (t/ha) | D37: =IF(Calcs!E$242=4,VLOOKUP(Calcs!E$251,Calcs!$C253:$L351,3)*(1-D$28-D$29-D$30-D$31+D34+D$33+D$34),0) -> 0 | E37: =IF(Calcs!F$242=4,VLOOKUP(Calcs!F$251,Calcs!$C253:$L351,3)*(1-E$28-E$29-E$30-E$31+E34+E$33+E$34),0) -> 4.41 | F37: =IF(Calcs!G$242=4,VLOOKUP(Calcs!G$251,Calcs!$C253:$L351,3)*(1-F$28-F$29-F$30-F$31+F34+F$33+F$34),0) -> 0 | G37: =IF(Calcs!H$242=4,VLOOKUP(Calcs!H$251,Calcs!$C253:$L351,3)*(1-G$28-G$29-G$30-G$31+G34+G$33+G$34),0) -> 0 | H37: =IF(Calcs!I$242=4,VLOOKUP(Calcs!I$251,Calcs!$C253:$L351,3)*(1-H$28-H$29-H$30-H$31+H34+H$33+H$34),0) -> 0 | I37: =IF(Calcs!J$242=4,VLOOKUP(Calcs!J$251,Calcs!$C253:$L351,3)*(1-I$28-I$29-I$30-I$31+I34+I$33+I$34),0) -> 4.41 | J37: =IF(Calcs!K$242=4,VLOOKUP(Calcs!K$251,Calcs!$C253:$L351,3)*(1-J$28-J$29-J$30-J$31+J34+J$33+J$34),0) -> 0 | K37: =IF(Calcs!L$242=4,VLOOKUP(Calcs!L$251,Calcs!$C253:$L351,3)*(1-K$28-K$29-K$30-K$31+K34+K$33+K$34),0) -> 0 | L37: =IF(Calcs!M$242=4,VLOOKUP(Calcs!M$251,Calcs!$C253:$L351,3)*(1-L$28-L$29-L$30-L$31+L34+L$33+L$34),0) -> 0 | M37: =IF(Calcs!N$242=4,VLOOKUP(Calcs!N$251,Calcs!$C253:$L351,3)*(1-M$28-M$29-M$30-M$31+M34+M$33+M$34),0) -> 4.41 | O37: 2004-08-01 | P37: 0 | Q37: ='Bio results'!G21 -> 286.4939476 | S37: 2004-08-01 | W37: 2004-08-01
